Workbook

Sheet List
A1: 序号 | B1: 系统名称 | C1: 主要初始化事项 | D1: 对接人 | E1: 进度 | F1: 更新时间 | G1: 问题 | H1: 初始化进度 8/14 | I1: 导入问题
A2: 1.1 | B2: 微纳园 | C2: 载体 | D2: 潘超 | E2: 已完成 | F2: 2023-07-28 | G2: 已经治理和核对完成 | H2: 已导入 | I2: 园区、楼盘和载体手动录入；研发批量导入【房间】
A3: 1.2 | B3: 微纳园 | C3: 合同信息 | D3: 潘超 | E3: 进行中 | F3: 2023-08-04 | G3: 合同已经根据载体核对；缺租金和物业费余额 | H3: 1、批量导入的已经大部分进入；--已完成 2、少部分有问题；--已完成？ 3、手工的没有录入 | I3: 合同手工录入；研发批量导入
A4: 1.3 | B4: 微纳园 | C4: 企业库 | D4: 赵部长 | E4: 已完成 | F4: 2023-07-28 | G4: 已经治理和核对完成；迁出的大约200家企业等客户提供 | H4: 已导入 | I4: 研发批量导入
A5: 1.4 | B5: 微纳园 | C5: 企业标签 | D5: 赵部长 | E5: 未提供 | F5: 2023-08-04 | G5: 客户需要考虑
A6: 1.5 | B6: 微纳园 | C6: 经发数据 | D6: 赵部长 | E6: 已完成 | F6: 2023-08-01 | G6: 已经治理和核对完成 | H6: 已导入 | I6: 研发批量导入
A7: 1.6 | B7: 微纳园 | C7: 数据字典 | D7: 无 | E7: 进行中 | F7: 2023-08-04 | G7: 根据原型以及客户提供数据持续更新 | H7: 已更新
A8: 1.7 | B8: 微纳园 | C8: 发票抬头信息 | E8: 已完成 | F8: 2023-08-04 | G8: 大部分已完成，少数客户确认后提供或手动录入 | H8: 已导入 | I8: 研发批量导入
A9: 1.8 | B9: 微纳园 | C9: 账单信息 | E9: 未提供 | F9: 2023-07-31 | G9: 根据合同导入后账单数据再定 | H9: 开票账单与用友数据核对
A10: 1.9 | B10: 微纳园 | C10: 用户组织 | D10: 董部长 | E10: 未提供 | F10: 2023-08-04 | G10: 等人员调整后提供 | H10: 人工建立--已完成
A11: 1.10 | B11: 微纳园 | C11: 企业补贴 | D11: 赵部长 | E11: 已完成 | F11: 2023-07-31 | G11: 已经治理和核对完成 | H11: 已导入 | I11: 研发批量导入
C12: 招商经理

Sheet 客户说明
A1: 序号 | B1: 客户说明
A2: 1 | B2: 客户潘超表示：7/17日，房间没有【朝向】的数据；合同信息没有【签约日期】；建议不要这两个栏位；合同编号可以根据系统规则生成。（章总表示合同签约日期=开始日期）
A3: 2 | B3: 客户潘超表示：7/18日。合同管理中，没有对应具体入驻企业的数据可以删除。（客户缺失数据核对和补充及更新）
A4: 3 | B4: 客户潘超表示：7/19日。同一客户，同一签约时间段的不同载体的合同，视为同一合同。2023年7月前没有生效的合同，统一变成【到期】状态
A5: 4 | B5: 陈婕 7.19:检查同一个合同是否包含不同期载体的情况；比如1-3期的合同租金税率是5%；四期是9%；两者不能合并。即同一合同不能跨1-3和4期。【符合此要求】
A6: 5 | B6: 章总确认：7/21日。 同一客户，同一合同，但是不同时间段落的合同，价格不同；这块需要人工录入，暂不用研发导入。
A7: 6 | B7: 客户潘超表示：7/21日。只有蚊子科技一家有入住款和入驻款缴费截止日期，截至日期设定为2023/7/15；其余没有
A8: 7 | B8: 客户潘超表示：7/21日。部分属于【商铺】，其它属于【研发办公】
A9: 8 | B9: 琳琳表示：7/21日。园区载体类型不是很重要的字段，微纳园先按照【研发办公】来配置即可。后续客户如有需要，再改成多选。
A10: 9 | B10: 潘超表示：7/27日。企业信息，联系人和联系方式直接取合同信息里的数据；入园企业为已入驻；16家已入住企业，没有合同，是因为跟买方签租赁合同
A11: 10 | B11: 赵部长表示：8/1 2022年的税收数据没有月度数据，所以无法提供
B13: 陈婕：微纳园无丙方企业
B16: 备注： | C16: 研发导入时，应该要将表格前后隐含的空格去掉，以免数据比对时无法匹配

Sheet 1.载体管理
A1: #数据初始化须知#
A2: 1、“* ”为必填栏位
A4: 新增园区 | B4: 园区名称* | C4: 面积(平方米)* | D4: 类型* | E4: 详细地址* | F4: 备注
B5: 中国物联网国际创新园 | C5: 253311.346 | D5: 选择 | E5: 无锡市新吴区菱湖大道200号 | F5: 客户表示园区和楼栋类型都统一用【研发办公】，不要用写字楼、场地等字样
D6: 研发办公
A12: 新增楼盘 | B12: 楼盘名称* | C12: 所属园区名称*
B13: 中国物联网国际创新园一期 | C13: 中国物联网国际创新园
B14: 中国物联网国际创新园二期 | C14: 中国物联网国际创新园
B15: 中国物联网国际创新园三期 | C15: 中国物联网国际创新园
B16: 中国物联网国际创新园四期 | C16: 中国物联网国际创新园
H19: 生活配套面价总共6048..85,不算在出租统计率，出售的面积也不算在出租统计率
A20: 新增楼栋 | B20: 楼盘名称* | C20: 楼栋号/地块号* | D20: 关联区域* | E20: 关联楼层* | F20: 面积 | G20: 类型*
B21: 填报 | C21: 填报 | D21: 填报 | E21: 填报 | F21: 填报 | G21: 选择
B22: 中国物联网国际创新园一期 | C22: A栋 | D22: A栋 | E22: 1层 | F22: 2771 | G22: 研发办公
E23: 2层 | F23: 2772
E24: 3层 | F24: 2664
E25: 4层 | F25: 3042
E26: 5层 | F26: 3109
E27: 6层 | F27: 3051.06
E28: 7层 | F28: 3051
E29: 8层 | F29: 1472
E30: 9层 | F30: 1579
E31: 10层 | F31: 1579
E32: 11层 | F32: 1579
C33: B栋 | D33: B栋 | E33: 1层 | F33: 3641
E34: 2层 | F34: 3992
E35: 3层 | F35: 5710
E36: 4层 | F36: 4011.8
C37: C栋 | D37: C栋 | E37: 已出售 | F37: 24670.35 | G37: 研发办公
B38: 中国物联网国际创新园二期 | C38: D1栋 | D38: D1栋 | E38: 1层 | F38: 1797.5 | G38: 研发办公
E39: 2层 | F39: 1591.5
E40: 3层 | F40: 1542
E41: 4层 | F41: 1542
E42: 5层 | F42: 1542
E43: 6层 | F43: 1431.2
C44: D2栋 | D44: D2栋 | E44: 1层 | F44: 1176 | G44: 研发办公
E45: 2层 | F45: 1495.5
E46: 3层 | F46: 1847
E47: 4层 | F47: 1758
E48: 5层 | F48: 1758.5
E49: 6层 | F49: 1796.1
C50: E1栋 | D50: E1栋 | E50: 1层 | F50: 0 | G50: 研发办公
E51: 2层 | F51: 0
E52: 3层 | F52: 1963
E53: 4层 | F53: 1796
E54: 5层 | F54: 1922
E55: 6层 | F55: 1963
E56: 7层 | F56: 1963
E57: 8层 | F57: 1963
E58: 9层 | F58: 1963
E59: 10层 | F59: 1963
E60: 11层 | F60: 1963
C61: E2栋 | D61: E2栋 | E61: 1层 | F61: 5647.6 | G61: 研发办公
E62: 2层 | F62: 3719 | G62: 研发办公
E63: 3层 | F63: 5695 | G63: 研发办公
E64: 4层 | F64: 4454 | G64: 研发办公
E65: 5层 | F65: 4411 | G65: 研发办公
C66: F1栋 | D66: F1栋 | E66: 整栋 | F66: 3903.8 | G66: 研发办公
C67: F2栋 | D67: F2栋 | E67: 整栋 | F67: 1562.2 | G67: 研发办公
C68: F3栋 | D68: F3栋 | E68: 整栋 | F68: 3885.3 | G68: 研发办公
C69: F4栋 | D69: F4栋 | E69: 整栋 | F69: 1562.2 | G69: 研发办公
C70: F5栋 | D70: F5栋 | E70: 整栋 | F70: 3899.8 | G70: 研发办公
C71: F6栋 | D71: F6栋 | E71: 整栋 | F71: 2110.5 | G71: 研发办公
C72: F7栋 | D72: F7栋 | E72: 整栋 | F72: 1562.2 | G72: 研发办公
C73: F8栋 | D73: F8栋 | E73: 整栋 | F73: 3903.8 | G73: 研发办公
C74: F9栋 | D74: F9栋 | E74: 整栋 | F74: 1562.2 | G74: 研发办公
C75: F10栋 | D75: F10栋 | E75: 整栋 | F75: 2804.4 | G75: 研发办公
C76: F12栋 | D76: F12栋 | E76: 整栋 | F76: 1260 | G76: 研发办公
C77: F11栋 | D77: F11栋 | E77: 整栋 | F77: 1110 | G77: 研发办公
B78: 中国物联网国际创新园三期 | C78: G1栋 | D78: G1栋 | E78: 1层 | F78: 1036.9 | G78: 研发办公
E79: 2层 | F79: 1673.2 | G79: 研发办公
E80: 3层 | F80: 1673.2 | G80: 研发办公
E81: 4层 | F81: 1673.2 | G81: 研发办公
E82: 5层 | F82: 1673.2 | G82: 研发办公
E83: 6层 | F83: 1673.9 | G83: 研发办公
E84: 7层 | F84: 1673.2 | G84: 研发办公
E85: 8层 | F85: 1673.9 | G85: 研发办公
E86: 9层 | F86: 1673.9 | G86: 研发办公
E87: 10层 | F87: 1673.9 | G87: 研发办公
E88: 11层 | F88: 1673.9 | G88: 研发办公
C89: G2栋 | D89: G2栋 | E89: 1层 | F89: 1183.4 | G89: 研发办公
E90: 2层 | F90: 1450.2 | G90: 研发办公
E91: 3层 | F91: 1450.2 | G91: 研发办公
E92: 4层 | F92: 1450.2 | G92: 研发办公
E93: 5层 | F93: 1450.2 | G93: 研发办公
C94: G3栋 | D94: G3栋 | E94: 整栋 | F94: 6984.2 | G94: 研发办公
C95: G5 | D95: G5 | E95: 地下1层 | F95: 2460.3 | G95: 研发办公
E96: 1层 | F96: 5126.61 | G96: 研发办公
C97: G6栋 | D97: G6栋 | E97: 整栋 | F97: 4674.39 | G97: 研发办公
C98: G7栋 | D98: G7栋 | E98: 1层 | F98: 905.85 | G98: 研发办公
E99: 2层 | F99: 1256.6 | G99: 研发办公
E100: 3层 | F100: 1255.73 | G100: 研发办公
E101: 4层 | F101: 1255.72 | G101: 研发办公
C102: G8栋 | D102: G8栋 | E102: 1层 | F102: 1331.54 | G102: 研发办公
E103: 2层 | F103: 1437.235 | G103: 研发办公
E104: 3层 | F104: 1437.24 | G104: 研发办公
E105: 4层 | F105: 1437.24 | G105: 研发办公
E106: 5层 | F106: 1437.24 | G106: 研发办公
C107: G9栋 | D107: G9栋 | E107: 1层 | F107: 1495 | G107: 研发办公
E108: 2层 | F108: 1675.3 | G108: 研发办公
E109: 3层 | F109: 1675.3 | G109: 研发办公
E110: 4层 | F110: 1675.3 | G110: 研发办公
E111: 5层 | F111: 1675.3 | G111: 研发办公
C112: G10栋 | D112: G10栋 | E112: 1层 | F112: 932 | G112: 研发办公
E113: 2层 | F113: 1559.5 | G113: 研发办公
E114: 3层 | F114: 1602 | G114: 研发办公
E115: 4层 | F115: 1559.6 | G115: 研发办公
E116: 5层 | F116: 1559.5 | G116: 研发办公
E117: 6层 | F117: 1559.5 | G117: 研发办公
E118: 7层 | F118: 1559.5 | G118: 研发办公
E119: 8层 | F119: 1559.5 | G119: 研发办公
E120: 9层 | F120: 1561.5 | G120: 研发办公
E121: 10层 | F121: 1559.5 | G121: 研发办公
E122: 11层 | F122: 1559.5 | G122: 研发办公
B123: 中国物联网国际创新园四期 | C123: H1栋 | D123: H1栋 | E123: 2层 | F123: 667.93 | G123: 研发办公
E124: 3层 | F124: 1240.93 | G124: 研发办公
E125: 4层 | F125: 1240.93 | G125: 研发办公
E126: 5层 | F126: 1228 | G126: 研发办公
E127: 6层 | F127: 1240.93 | G127: 研发办公
E128: 7层 | F128: 1240.93 | G128: 研发办公
E129: 8层 | F129: 1240.93 | G129: 研发办公
E130: 9层 | F130: 1240.93 | G130: 研发办公
E131: 10层 | F131: 1240.93 | G131: 研发办公
E132: 11层 | F132: 1240.93 | G132: 研发办公
C133: H2栋 | D133: H2栋 | E133: 整栋 | F133: 8266.29 | G133: 研发办公
C134: H3栋 | D134: H3栋 | E134: 1层 | F134: 1313.17 | G134: 研发办公
E135: 2层 | F135: 1390.66 | G135: 研发办公
E136: 3层 | F136: 1390.66 | G136: 研发办公
E137: 4层 | F137: 1390.66 | G137: 研发办公
E138: 5层 | F138: 1390.66 | G138: 研发办公
E139: 6层 | F139: 1390.66 | G139: 研发办公
C140: H4栋 | D140: H4栋 | E140: 整栋 | F140: 5213.4 | G140: 研发办公
C141: H6栋 | D141: H6栋 | E141: 1层 | F141: 1313.17 | G141: 研发办公
E142: 2层 | F142: 1390.66 | G142: 研发办公
E143: 3层 | F143: 1390.66 | G143: 研发办公 | L143: ·
E144: 4层 | F144: 1390.66 | G144: 研发办公
E145: 5层 | F145: 1390.66 | G145: 研发办公
E146: 6层 | F146: 1390.66 | G146: 研发办公
C147: H7栋 | D147: H7栋 | E147: 整栋 | F147: 8266.29 | G147: 研发办公
C148: H5栋 | D148: H5栋 | E148: 整栋 | F148: 5206.29 | G148: 研发办公
B151: 把-前面的去掉 | C151: 载体和合同都将要处理 | D151: 系统合并后，再看人员管理有没有影响（关联区域）
B152: 房间号 | C152: 楼盘名称 | D152: 楼栋号/地块号* | E152: 关联区域* | F152: 关联楼层* | G152: 平面图房号 | H152: 面积* | I152: 用途* | J152: 物业性质* | K152: 朝向* | L152: 出租指导价（元/㎡/月） | M152: 出租指导价（元/㎡/月）区间 | N152: 可用状态* | O152: 租赁状态*
B153: 填报 | C153: 中国物联网国际创新园一期 | D153: 填报 | E153: 填报 | F153: 填报 | G153: 填报 | H153: 填报 | I153: 选择 | J153: 选择 | K153: 选择 | L153: 填报 | N153: 选择 | O153: 选择
B154: 101 | C154: 中国物联网国际创新园一期 | D154: A栋 | E154: A栋 | F154: 1层 | H154: 2771 | I154: 研发 | J154: 社会物业 | L154: 35 | N154: 可用 | O154: 正常
B155: 202 | C155: 中国物联网国际创新园一期 | D155: A栋 | E155: A栋 | F155: 2层 | H155: 1513 | I155: 研发 | J155: 社会物业 | L155: 35 | N155: 可用 | O155: 正常
B156: 201 | C156: 中国物联网国际创新园一期 | D156: A栋 | E156: A栋 | F156: 2层 | H156: 1259 | I156: 研发 | J156: 社会物业 | L156: 35 | N156: 可用 | O156: 正常
B157: 302 | C157: 中国物联网国际创新园一期 | D157: A栋 | E157: A栋 | F157: 3层 | H157: 317 | I157: 研发 | J157: 社会物业 | L157: 35 | N157: 可用 | O157: 正常
B158: 304 | C158: 中国物联网国际创新园一期 | D158: A栋 | E158: A栋 | F158: 3层 | H158: 258 | I158: 研发 | J158: 社会物业 | L158: 35 | N158: 可用 | O158: 正常
B159: 306 | C159: 中国物联网国际创新园一期 | D159: A栋 | E159: A栋 | F159: 3层 | H159: 190 | I159: 研发 | J159: 社会物业 | L159: 35 | N159: 可用 | O159: 正常
B160: 310 | C160: 中国物联网国际创新园一期 | D160: A栋 | E160: A栋 | F160: 3层 | H160: 360 | I160: 研发 | J160: 社会物业 | L160: 35 | N160: 可用 | O160: 正常
B161: 311 | C161: 中国物联网国际创新园一期 | D161: A栋 | E161: A栋 | F161: 3层 | H161: 227 | I161: 研发 | J161: 社会物业 | L161: 35 | N161: 可用 | O161: 正常
B162: 307-1 | C162: 中国物联网国际创新园一期 | D162: A栋 | E162: A栋 | F162: 3层 | H162: 223 | I162: 研发 | J162: 社会物业 | L162: 35 | N162: 可用 | O162: 正常
B163: 307-2 | C163: 中国物联网国际创新园一期 | D163: A栋 | E163: A栋 | F163: 3层 | H163: 191 | I163: 研发 | J163: 社会物业 | L163: 35 | N163: 可用 | O163: 空闲
B164: 301-1 | C164: 中国物联网国际创新园一期 | D164: A栋 | E164: A栋 | F164: 3层 | H164: 209 | I164: 研发 | J164: 社会物业 | L164: 35 | N164: 可用 | O164: 空闲
B165: 301-2 | C165: 中国物联网国际创新园一期 | D165: A栋 | E165: A栋 | F165: 3层 | H165: 177 | I165: 研发 | J165: 社会物业 | L165: 35 | N165: 可用 | O165: 空闲
B166: 301-3 | C166: 中国物联网国际创新园一期 | D166: A栋 | E166: A栋 | F166: 3层 | H166: 258 | I166: 研发 | J166: 社会物业 | L166: 35 | N166: 可用 | O166: 正常
B167: 308 | C167: 中国物联网国际创新园一期 | D167: A栋 | E167: A栋 | F167: 3层 | H167: 254 | I167: 研发 | J167: 社会物业 | L167: 35 | N167: 可用 | O167: 正常
B168: 401 | C168: 中国物联网国际创新园一期 | D168: A栋 | E168: A栋 | F168: 4层 | H168: 550.4 | I168: 研发 | J168: 社会物业 | L168: 35 | N168: 可用 | O168: 正常
B169: 402 | C169: 中国物联网国际创新园一期 | D169: A栋 | E169: A栋 | F169: 4层 | H169: 570 | I169: 研发 | J169: 社会物业 | L169: 35 | N169: 可用 | O169: 正常
B170: 406 | C170: 中国物联网国际创新园一期 | D170: A栋 | E170: A栋 | F170: 4层 | H170: 340.59 | I170: 研发 | J170: 社会物业 | L170: 35 | N170: 可用 | O170: 正常
B171: 407 | C171: 中国物联网国际创新园一期 | D171: A栋 | E171: A栋 | F171: 4层 | H171: 1461 | I171: 研发 | J171: 社会物业 | L171: 35 | N171: 可用 | O171: 正常
B172: 501 | C172: 中国物联网国际创新园一期 | D172: A栋 | E172: A栋 | F172: 5层 | H172: 672 | I172: 研发 | J172: 社会物业 | L172: 35 | N172: 可用 | O172: 正常
B173: 509 | C173: 中国物联网国际创新园一期 | D173: A栋 | E173: A栋 | F173: 5层 | H173: 331 | I173: 研发 | J173: 社会物业 | L173: 35 | N173: 可用 | O173: 正常
B174: 507 | C174: 中国物联网国际创新园一期 | D174: A栋 | E174: A栋 | F174: 5层 | H174: 331 | I174: 研发 | J174: 社会物业 | L174: 35 | N174: 可用 | O174: 正常
B175: 502 | C175: 中国物联网国际创新园一期 | D175: A栋 | E175: A栋 | F175: 5层 | H175: 604 | I175: 研发 | J175: 社会物业 | L175: 35 | N175: 可用 | O175: 正常
B176: 518 | C176: 中国物联网国际创新园一期 | D176: A栋 | E176: A栋 | F176: 5层 | H176: 227 | I176: 研发 | J176: 社会物业 | L176: 35 | N176: 可用 | O176: 正常
B177: 506 | C177: 中国物联网国际创新园一期 | D177: A栋 | E177: A栋 | F177: 5层 | H177: 800 | I177: 研发 | J177: 社会物业 | L177: 35 | N177: 可用 | O177: 正常
B178: 516 | C178: 中国物联网国际创新园一期 | D178: A栋 | E178: A栋 | F178: 5层 | H178: 144 | I178: 研发 | J178: 社会物业 | L178: 35 | N178: 可用 | O178: 正常
B179: 601 | C179: 中国物联网国际创新园一期 | D179: A栋 | E179: A栋 | F179: 6层 | H179: 534.9 | I179: 研发 | J179: 社会物业 | L179: 35 | N179: 可用 | O179: 正常
B180: 602 | C180: 中国物联网国际创新园一期 | D180: A栋 | E180: A栋 | F180: 6层 | H180: 1615.2 | I180: 研发 | J180: 社会物业 | L180: 35 | N180: 可用 | O180: 空闲
B181: 603 | C181: 中国物联网国际创新园一期 | D181: A栋 | E181: A栋 | F181: 6层 | H181: 33.7 | I181: 研发 | J181: 社会物业 | L181: 35 | N181: 可用 | O181: 空闲
B182: 605 | C182: 中国物联网国际创新园一期 | D182: A栋 | E182: A栋 | F182: 6层 | H182: 867.26 | I182: 研发 | J182: 社会物业 | L182: 35 | N182: 可用 | O182: 空闲
B183: 701 | C183: 中国物联网国际创新园一期 | D183: A栋 | E183: A栋 | F183: 7层 | H183: 3051 | I183: 研发 | J183: 社会物业 | L183: 35 | N183: 可用 | O183: 正常
B184: 805 | C184: 中国物联网国际创新园一期 | D184: A栋 | E184: A栋 | F184: 8层 | H184: 288 | I184: 研发 | J184: 社会物业 | L184: 35 | N184: 可用 | O184: 正常
B185: 802 | C185: 中国物联网国际创新园一期 | D185: A栋 | E185: A栋 | F185: 8层 | H185: 320 | I185: 研发 | J185: 社会物业 | L185: 35 | N185: 可用 | O185: 正常
B186: 808 | C186: 中国物联网国际创新园一期 | D186: A栋 | E186: A栋 | F186: 8层 | H186: 190 | I186: 研发 | J186: 社会物业 | L186: 35 | N186: 可用 | O186: 正常
B187: 801 | C187: 中国物联网国际创新园一期 | D187: A栋 | E187: A栋 | F187: 8层 | H187: 194 | I187: 研发 | J187: 社会物业 | L187: 35 | N187: 可用 | O187: 正常
B188: 804 | C188: 中国物联网国际创新园一期 | D188: A栋 | E188: A栋 | F188: 8层 | H188: 480 | I188: 研发 | J188: 社会物业 | L188: 35 | N188: 可用 | O188: 正常
B189: 901 | C189: 中国物联网国际创新园一期 | D189: A栋 | E189: A栋 | F189: 9层 | H189: 1579 | I189: 研发 | J189: 社会物业 | L189: 35 | N189: 可用 | O189: 正常
B190: 1001 | C190: 中国物联网国际创新园一期 | D190: A栋 | E190: A栋 | F190: 10层 | H190: 1579 | I190: 研发 | J190: 社会物业 | L190: 35 | N190: 可用 | O190: 正常
B191: 1101 | C191: 中国物联网国际创新园一期 | D191: A栋 | E191: A栋 | F191: 11层 | H191: 1579 | I191: 研发 | J191: 社会物业 | L191: 35 | N191: 可用 | O191: 空闲
B192: 101 | C192: 中国物联网国际创新园一期 | D192: B栋 | E192: B栋 | F192: 1层 | H192: 668 | I192: 研发 | J192: 社会物业 | L192: 35 | N192: 可用 | O192: 正常
B193: 106 | C193: 中国物联网国际创新园一期 | D193: B栋 | E193: B栋 | F193: 1层 | H193: 128 | I193: 研发 | J193: 社会物业 | L193: 35 | N193: 可用 | O193: 正常
B194: 108 | C194: 中国物联网国际创新园一期 | D194: B栋 | E194: B栋 | F194: 1层 | H194: 206 | I194: 研发 | J194: 社会物业 | L194: 35 | N194: 可用 | O194: 正常
B195: 109 | C195: 中国物联网国际创新园一期 | D195: B栋 | E195: B栋 | F195: 1层 | H195: 149 | I195: 研发 | J195: 社会物业 | L195: 35 | N195: 可用 | O195: 正常
B196: 111 | C196: 中国物联网国际创新园一期 | D196: B栋 | E196: B栋 | F196: 1层 | H196: 112 | I196: 研发 | J196: 社会物业 | L196: 35 | N196: 可用 | O196: 正常
B197: 112 | C197: 中国物联网国际创新园一期 | D197: B栋 | E197: B栋 | F197: 1层 | H197: 139 | I197: 研发 | J197: 社会物业 | L197: 35 | N197: 可用 | O197: 正常
B198: 113 | C198: 中国物联网国际创新园一期 | D198: B栋 | E198: B栋 | F198: 1层 | H198: 219 | I198: 研发 | J198: 社会物业 | L198: 35 | N198: 可用 | O198: 正常
B199: 115 | C199: 中国物联网国际创新园一期 | D199: B栋 | E199: B栋 | F199: 1层 | H199: 147 | I199: 研发 | J199: 社会物业 | L199: 35 | N199: 可用 | O199: 正常
B200: 116 | C200: 中国物联网国际创新园一期 | D200: B栋 | E200: B栋 | F200: 1层 | H200: 182 | I200: 研发 | J200: 社会物业 | L200: 35 | N200: 可用 | O200: 正常
B201: 117 | C201: 中国物联网国际创新园一期 | D201: B栋 | E201: B栋 | F201: 1层 | H201: 234 | I201: 研发 | J201: 社会物业 | L201: 35 | N201: 可用 | O201: 正常
B202: 119 | C202: 中国物联网国际创新园一期 | D202: B栋 | E202: B栋 | F202: 1层 | H202: 189 | I202: 研发 | J202: 社会物业 | L202: 35 | N202: 可用 | O202: 正常
B203: 120 | C203: 中国物联网国际创新园一期 | D203: B栋 | E203: B栋 | F203: 1层 | H203: 195 | I203: 研发 | J203: 社会物业 | L203: 35 | N203: 可用 | O203: 正常
B204: 121 | C204: 中国物联网国际创新园一期 | D204: B栋 | E204: B栋 | F204: 1层 | H204: 338 | I204: 研发 | J204: 社会物业 | L204: 35 | N204: 可用 | O204: 正常
B205: 123 | C205: 中国物联网国际创新园一期 | D205: B栋 | E205: B栋 | F205: 1层 | H205: 232 | I205: 研发 | J205: 社会物业 | L205: 35 | N205: 可用 | O205: 正常
B206: 125 | C206: 中国物联网国际创新园一期 | D206: B栋 | E206: B栋 | F206: 1层 | H206: 503 | I206: 研发 | J206: 社会物业 | L206: 30 | N206: 可用 | O206: 正常
B207: 213 | C207: 中国物联网国际创新园一期 | D207: B栋 | E207: B栋 | F207: 2层 | H207: 376 | I207: 研发 | J207: 社会物业 | L207: 35 | N207: 可用 | O207: 空闲
B208: 221 | C208: 中国物联网国际创新园一期 | D208: B栋 | E208: B栋 | F208: 2层 | H208: 582 | I208: 研发 | J208: 社会物业 | L208: 35 | N208: 可用 | O208: 正常
B209: 219-A | C209: 中国物联网国际创新园一期 | D209: B栋 | E209: B栋 | F209: 2层 | H209: 153 | I209: 研发 | J209: 社会物业 | L209: 30 | N209: 可用 | O209: 正常
B210: 219-B | C210: 中国物联网国际创新园一期 | D210: B栋 | E210: B栋 | F210: 2层 | H210: 233 | I210: 研发 | J210: 社会物业 | L210: 30 | N210: 可用 | O210: 正常
... 385 more rows

Sheet 2.合同录入
A1: 合同类型 | B1: 合同状态 | C1: 楼盘 | D1: 楼栋 | E1: 楼层 | F1: 房间号 | G1: 入驻企业 | H1: 合同面积㎡ | I1: 缴费方式 | J1: 起租时间 | K1: 到期时间 | L1: 辅助分析 | M1: 合同编号 | N1: 辅助统计 | O1: 房屋单价 | P1: 物业单价 | Q1: 法人/联系人 | R1: 联系方式 | S1: 备注
A2: 租赁合同 | B2: 生效中 | C2: 四期 | D2: H1栋 | E2: 4层 | F2: 4F | G2: 无锡旭浦能源科技有限公司 | H2: 1240.93 | I2: 季付 | J2: 2023-07-01 | K2: 2025-06-30 | L2: =J2&G2&K2 -> 45108无锡旭浦能源科技有限公司45838 | M2: C2023001 | N2: =COUNTIF(L$2:L20,L2) -> 1 | O2: 租赁单价价格规则1 | P2: 5 | Q2: 吴可可 | R2: 18652958348
A3: 租赁合同 | B3: 生效中 | C3: 四期 | D3: H1栋 | E3: 5层 | F3: 5F | G3: 无锡盛赛传感科技有限公司 | H3: 1228 | I3: 季付 | J3: 2022-06-01 | K3: 2025-05-31 | L3: 44713无锡盛赛传感科技有限公司45808 | M3: C2023002 | N3: =COUNTIF(L$2:L20,L3) -> 1 | O3: 租赁单价价格规则1 | P3: 5 | Q3: 严群丰 | R3: 13961721288
A4: 租赁合同 | B4: 生效中 | C4: 四期 | D4: H1栋 | E4: 6层 | F4: 6F | G4: 无锡翊极智能装备有限公司 | H4: 1240.93 | I4: 季付 | J4: 2022-08-01 | K4: 2025-07-31 | L4: 44774无锡翊极智能装备有限公司45869 | M4: C2023003 | N4: =COUNTIF(L$2:L20,L4) -> 1 | O4: 租赁单价价格规则1 | P4: 5 | Q4: 顾雄峰 | R4: 13817367513
A5: 租赁合同 | B5: 生效中 | C5: 四期 | D5: H1栋 | E5: 7层 | F5: 7F | G5: 捷捷微电（无锡）科技有限公司 | H5: 1240.93 | I5: 季付 | J5: 2022-04-01 | K5: 2025-03-31 | L5: 44652捷捷微电（无锡）科技有限公司45747 | M5: C2023004 | N5: =COUNTIF(L$2:L20,L5) -> 2 | O5: 租赁单价价格规则1 | P5: 5 | Q5: 周祥瑞 | R5: 18651583531 | S5: 一份合同
A6: 租赁合同 | B6: 生效中 | C6: 四期 | D6: H1栋 | E6: 8层 | F6: 8F | G6: 捷捷微电（无锡）科技有限公司 | H6: 1240.93 | I6: 季付 | J6: 2022-04-01 | K6: 2025-03-31 | L6: 44652捷捷微电（无锡）科技有限公司45747 | M6: C2023004 | N6: =COUNTIF(L$2:L20,L6) -> 2 | O6: 租赁单价价格规则1 | P6: 5 | Q6: 周祥瑞 | R6: 18651583531
A7: 租赁合同 | B7: 生效中 | C7: 四期 | D7: H1栋 | E7: 9层 | F7: 9F | G7: 江苏昊华传动控制股份有限公司 | H7: 1240.93 | I7: 季付 | J7: 2022-12-15 | K7: 2025-12-14 | L7: 44910江苏昊华传动控制股份有限公司46005 | M7: C2023005 | N7: =COUNTIF(L$2:L20,L7) -> 1 | O7: 租赁单价价格规则1 | P7: 5 | Q7: 陆长利 | R7: 13506180068
A8: 租赁合同 | B8: 生效中 | C8: 四期 | D8: H1栋 | E8: 10层 | F8: 10F | G8: 无锡天青元储智能科技有限公司 | H8: 1240.93 | I8: 季付 | J8: 2022-07-01 | K8: 2025-06-30 | L8: 44743无锡天青元储智能科技有限公司45838 | M8: C2023006 | N8: =COUNTIF(L$2:L20,L8) -> 1 | O8: 租赁单价价格规则1 | P8: 5 | Q8: 张应霞 | R8: 17361730530
A9: 租赁合同 | B9: 生效中 | C9: 四期 | D9: H1栋 | E9: 11层 | F9: 11F | G9: 无锡天青元储智能科技有限公司 | H9: 1240.93 | I9: 季付 | J9: 2022-08-01 | K9: 2025-07-31 | L9: 44774无锡天青元储智能科技有限公司45869 | M9: C2023007 | N9: =COUNTIF(L$2:L20,L9) -> 1 | O9: 租赁单价价格规则1 | P9: 5 | Q9: 张应霞 | R9: 17361730530
A10: 租赁合同 | B10: 生效中 | C10: 四期 | D10: H3栋 | E10: 1层 | F10: 1F | G10: 无锡亘芯悦科技有限公司 | H10: 1313.17 | I10: 季付 | J10: 2022-10-17 | K10: 2025-10-16 | L10: 44851无锡亘芯悦科技有限公司45946 | M10: C2023008 | N10: =COUNTIF(L$2:L20,L10) -> 2 | O10: 租赁单价价格规则1 | P10: 5 | Q10: 丁文江 | R10: 18961765262 | S10: 一份合同
A11: 租赁合同 | B11: 生效中 | C11: 四期 | D11: H3栋 | E11: 2层 | F11: 2F | G11: 无锡亘芯悦科技有限公司 | H11: 1390.66 | I11: 季付 | J11: 2022-10-17 | K11: 2025-10-16 | L11: 44851无锡亘芯悦科技有限公司45946 | M11: C2023008 | N11: =COUNTIF(L$2:L20,L11) -> 2 | O11: 租赁单价价格规则1 | P11: 5 | Q11: 丁文江 | R11: 18961765262
A12: 租赁合同 | B12: 生效中 | C12: 四期 | D12: H3栋 | E12: 6层 | F12: 6F | G12: 无锡知芯传感科技有限公司 | H12: 1390.66 | I12: 季付 | J12: 2023-06-01 | K12: 2026-05-31 | L12: 45078无锡知芯传感科技有限公司46173 | M12: C2023009 | N12: =COUNTIF(L$2:L20,L12) -> 1 | O12: 租赁单价价格规则1 | P12: 5 | Q12: 陈巧 | R12: 18601567723
A13: 租赁合同 | B13: 生效中 | C13: 四期 | D13: H4栋 | E13: 整栋 | F13: H4 | G13: 无锡英臻科技有限公司 | H13: 5213.4 | I13: 季付 | J13: 2022-09-01 | K13: 2025-08-31 | L13: 44805无锡英臻科技有限公司45900 | M13: C2023010 | N13: =COUNTIF(L$2:L20,L13) -> 1 | O13: 租赁单价价格规则1 | P13: 5 | Q13: 王辉 | R13: 13914119759
A14: 租赁合同 | B14: 生效中 | C14: 四期 | D14: H6栋 | E14: 1层 | F14: 1F | G14: 无锡芯智感科技有限公司 | H14: 1313.171 | I14: 季付 | J14: 2022-08-15 | K14: 2025-08-14 | L14: 44788无锡芯智感科技有限公司45883 | M14: C2023011 | N14: =COUNTIF(L$2:L20,L14) -> 1 | O14: 租赁单价价格规则1 | P14: 5 | Q14: 孙大千 | R14: 13681218750
A15: 租赁合同 | B15: 生效中 | C15: 四期 | D15: H6栋 | E15: 2层 | F15: 2F | G15: 无锡芯智感科技有限公司 | H15: 1390.66 | I15: 季付 | J15: 2022-12-20 | K15: 2025-12-19 | L15: 44915无锡芯智感科技有限公司46010 | M15: C2023012 | N15: =COUNTIF(L$2:L20,L15) -> 1 | O15: 租赁单价价格规则1 | P15: 5 | Q15: 孙大千 | R15: 13681218750
A16: 租赁合同 | B16: 生效中 | C16: 四期 | D16: H6栋 | E16: 3层 | F16: 3F | G16: 无锡胜脉电子有限公司 | H16: 1390.66 | I16: 季付 | J16: 2022-12-01 | K16: 2025-11-30 | L16: 44896无锡胜脉电子有限公司45991 | M16: C2023013 | N16: =COUNTIF(L$2:L20,L16) -> 2 | O16: 租赁单价价格规则1 | P16: 5 | Q16: 许伟 | R16: 13817876474 | S16: 一份合同
A17: 租赁合同 | B17: 生效中 | C17: 四期 | D17: H6栋 | E17: 4层 | F17: 4F | G17: 无锡胜脉电子有限公司 | H17: 1390.66 | I17: 季付 | J17: 2022-12-01 | K17: 2025-11-30 | L17: 44896无锡胜脉电子有限公司45991 | M17: C2023013 | N17: =COUNTIF(L$2:L20,L17) -> 2 | O17: 租赁单价价格规则1 | P17: 5 | Q17: 许伟 | R17: 13817876474
A18: 租赁合同 | B18: 生效中 | C18: 四期 | D18: H6栋 | E18: 5层 | F18: 5F | G18: 无锡胜脉电子有限公司 | H18: 1390.66 | I18: 季付 | J18: 2022-03-01 | K18: 2025-02-28 | L18: 44621无锡胜脉电子有限公司45716 | M18: C2023014 | N18: =COUNTIF(L$2:L20,L18) -> 2 | O18: 租赁单价价格规则1 | P18: 5 | Q18: 许伟 | R18: 13817876474 | S18: 一份合同
A19: 租赁合同 | B19: 生效中 | C19: 四期 | D19: H6栋 | E19: 6层 | F19: 6F | G19: 无锡胜脉电子有限公司 | H19: 1390.66 | I19: 季付 | J19: 2022-03-01 | K19: 2025-02-28 | L19: 44621无锡胜脉电子有限公司45716 | M19: C2023014 | N19: =COUNTIF(L$2:L20,L19) -> 2 | O19: 租赁单价价格规则1 | P19: 5 | Q19: 许伟 | R19: 13817876474
A20: 租赁合同 | B20: 生效中 | C20: 四期 | D20: H7栋 | E20: 整栋 | F20: H7 | G20: 无锡盛景微电子股份有限公司 | H20: 8266.29 | I20: 季付 | J20: 2022-06-01 | K20: 2025-05-31 | L20: 44713无锡盛景微电子股份有限公司45808 | M20: C2023015 | N20: =COUNTIF(L$2:L20,L20) -> 1 | O20: 租赁单价价格规则1 | P20: 5 | Q20: 张永刚 | R20: 13921128466
A22: 备注：7/18日，以上合同经章总沟通，需要根据规则进行人工录入；选择租赁模板B
A24: 租赁单价价格规则1 | C24: 截止到2023/12/31 | F24: 30
C25: 2024年1月1日至2026年12月31日 | D25: 1900-02-01 | F25: 32
C26: 2027/1/1开始 | D26: 1900-02-04 | F26: 35
B28: 模板类型为：租赁模板B
A30: 备注：合同载体与载体的比对已经完成，没有问题。
G32: 租赁单价价格规则1 | H32: 截止到2023/12/31 | J32: 30
H33: 2024年1月1日至2026年12月31日 | J33: 32
H34: 2027/1/1开始 | J34: 35
A36: 拆分样式确认：
A37: 租赁合同 | B37: 生效中 | C37: 四期 | D37: H1 | E37: 4层 | F37: H1-4F | G37: 无锡旭浦能源科技有限公司 | H37: 1240.93 | J37: 2023-07-01 | K37: 2025-06-30 | L37: =J37&G37&K37 -> 45108无锡旭浦能源科技有限公司45838 | M37: 单一合同号 | N37: =COUNTIF(L$2:L550,L37) -> 2 | O37: 租赁单价价格规则1 | P37: 5 | Q37: 吴可可 | R37: 18652958348
A39: 租赁合同 | B39: 生效中 | C39: 四期 | D39: H1 | E39: 4层 | F39: H1-4F | G39: 无锡旭浦能源科技有限公司 | H39: 1240.93 | J39: 2023-07-01 | K39: 2023-12-31 | L39: =J39&G39&K39 -> 45108无锡旭浦能源科技有限公司45291 | M39: 共用一个合同号 | N39: =COUNTIF(L$2:L551,L39) -> 1 | O39: 30 | P39: 5 | Q39: 吴可可 | R39: 18652958348
A40: 租赁合同 | B40: 生效中 | C40: 四期 | D40: H1 | E40: 4层 | F40: H1-4F | G40: 无锡旭浦能源科技有限公司 | H40: 1240.93 | J40: 2024-01-01 | K40: 2025-06-30 | L40: =J40&G40&K40 -> 45292无锡旭浦能源科技有限公司45838 | M40: 共用一个合同号 | N40: =COUNTIF(L$2:L552,L40) -> 1 | O40: 32 | P40: 5 | Q40: 吴可可 | R40: 18652958348
J42: 拆分2个时间段 | M42: 公用一个合同号 | O42: 拆分成2个具体的房屋单价

Sheet 2.合同管理-批量导入
A1: 企业名称 | B1: 合同编号 | C1: 合同类型* | D1: 园区名称 | E1: 楼盘名称 | F1: 楼栋 | G1: 房间号 | H1: 合同状态 | I1: 乙方* | J1: 比对 | K1: 丙方 | L1: 模板类型 | M1: 合同面积* | N1: 缴费方式* | O1: 合同开始日期* | P1: 合同结束日期* | Q1: 周期（月） | R1: 筹备期-天* | S1: 签约日期* | T1: 签约人* | U1: 租金单价 | V1: 月租金 | W1: 总租金额 | X1: 第一期租金 | Y1: 物业费单价* | Z1: 月物业费 | AA1: 总物业费金额 | AB1: 房屋保证金 | AC1: 第一期物业费 | AD1: 入驻款 | AE1: 入驻款缴费截止日期 | AF1: 租金账单结余(万元) | AG1: 物业费账单结余(万元)
A2: 江苏京华山一商业保理有限公司 | B2: C2023016 | C2: 租赁合同 | D2: 中国物联网国际创新园 | E2: 一期 | F2: A栋 | G2: 202 | H2: 生效中 | I2: 中设国联无锡新能源发展有限公司 | J2: =VLOOKUP(I2,A:A,1,0) -> 中设国联无锡新能源发展有限公司 | L2: 租赁模板A | M2: 1513 | N2: 季付 | O2: 2023-02-01 | P2: 2026-01-31 | S2: =O2 -> 2023-02-01 | T2: 杨乐 | U2: 35 | Y2: 7
A3: 无锡微纳产业发展有限公司 | B3: C2023017 | C3: 租赁合同 | D3: 中国物联网国际创新园 | E3: 一期 | F3: A栋 | G3: 301-3 | H3: 生效中 | I3: 无锡新企友工业外包有限公司 | J3: =VLOOKUP(I3,A:A,1,0) -> 无锡新企友工业外包有限公司 | L3: 租赁模板A | M3: 258 | N3: 季付 | O3: 2023-03-01 | P3: 2026-02-28 | S3: 2023-03-01 | T3: 钱锋 | U3: 35 | Y3: 7
A4: 中设国联无锡新能源发展有限公司 | B4: C2023018 | C4: 租赁合同 | D4: 中国物联网国际创新园 | E4: 一期 | F4: B栋 | G4: 113 | H4: 生效中 | I4: 无锡新思云众科技有限公司 | J4: =VLOOKUP(I4,A:A,1,0) -> 无锡新思云众科技有限公司 | L4: 租赁模板A | M4: 219 | N4: 季付 | O4: 2023-01-15 | P4: 2026-01-14 | S4: 2023-01-15 | T4: 陈璐 | U4: 35 | Y4: 7
A5: 无锡中科光电技术有限公司 | B5: C2023019 | C5: 租赁合同 | D5: 中国物联网国际创新园 | E5: 一期 | F5: B栋 | G5: 222 | H5: 生效中 | I5: 江苏中科君芯科技有限公司 | J5: 江苏中科君芯科技有限公司 | L5: 租赁模板A | M5: 200 | N5: 季付 | O5: 2018-01-01 | P5: 2022-12-31 | S5: 2018-01-01 | T5: 肖庆云 | U5: 35 | Y5: 7
A6: 无锡英臻科技股份有限公司 | B6: C2023020 | C6: 租赁合同 | D6: 中国物联网国际创新园 | E6: 一期 | F6: B栋 | G6: 301 | H6: 生效中 | I6: 无锡文思创新信息技术有限公司 | J6: 无锡文思创新信息技术有限公司 | L6: 租赁模板A | M6: 226 | N6: 季付 | O6: 2023-02-15 | P6: 2026-02-14 | S6: 2023-02-15 | T6: 曾金莲 | U6: 35 | Y6: 7
A7: 麦能新能源科技无锡有限公司 | B7: C2023021 | C7: 租赁合同 | D7: 中国物联网国际创新园 | E7: 一期 | F7: B栋 | G7: 416 | H7: 生效中 | I7: 无锡旭浦能源科技有限公司 | J7: 无锡旭浦能源科技有限公司 | L7: 租赁模板A | M7: 443 | N7: 季付 | O7: 2023-02-01 | P7: 2026-01-31 | S7: 2023-02-01 | T7: 吴超 | U7: 35 | Y7: 7
A8: 无锡沃格自动化科技股份有限公司 | B8: C2023022 | C8: 租赁合同 | D8: 中国物联网国际创新园 | E8: 一期 | F8: B栋 | G8: 406-A | H8: 生效中 | I8: 无锡麦姆斯咨询有限公司 | J8: 无锡麦姆斯咨询有限公司 | L8: 租赁模板A | M8: 61 | N8: 季付 | O8: 2023-02-01 | P8: 2026-01-31 | S8: 2023-02-01 | T8: 田娟 | U8: 35 | Y8: 7
A9: 江苏曼荼罗软件股份有限公司 | B9: C2023023 | C9: 租赁合同 | D9: 中国物联网国际创新园 | E9: 一期 | F9: B栋 | G9: 288 | H9: 生效中 | I9: 无锡市新吴区机关事务服务中心 | J9: =VLOOKUP(I9,A:A,1,0) ->  | L9: 租赁模板A | M9: 1215 | N9: 季付 | O9: 2020-01-01 | P9: 2022-12-31 | S9: 2020-01-01 | T9: 丁松 | U9: 35 | Y9: 0
A10: 无锡麦臻信息咨询合伙企业（有限合伙） | B10: C2023024 | C10: 物业合同 | D10: 中国物联网国际创新园 | E10: 一期 | F10: C栋 | G10: C栋 | H10: 生效中 | I10: 江苏物联网研究发展中心 | L10: 租赁模板A | M10: 24670.35 | N10: 季付 | O10: 2023-01-01 | P10: 2023-12-31 | S10: 2023-01-01 | T10: 张喜江 | U10: 0 | Y10: 5
A11: 江苏艾特曼电子科技有限公司 | B11: C2023025 | C11: 租赁合同 | D11: 中国物联网国际创新园 | E11: 二期 | F11: D2栋 | G11: 401 | H11: 生效中 | I11: 无锡紫光微电子有限公司 | J11: 无锡紫光微电子有限公司 | L11: 租赁模板A | M11: 1758 | N11: 季付 | O11: 2023-01-01 | P11: 2025-12-31 | S11: 2023-01-01 | T11: 马道杰 | U11: 35 | Y11: 7
A12: 无锡产发和生光科技创业投资合伙企业（有限合伙） | B12: C2023026 | C12: 租赁合同 | D12: 中国物联网国际创新园 | E12: 二期 | F12: D2栋 | G12: 611 | H12: 生效中 | I12: 华景传感科技（无锡）有限公司 | J12: 华景传感科技（无锡）有限公司 | L12: 租赁模板A | M12: 70.2 | N12: 季付 | O12: 2023-01-01 | P12: 2023-12-31 | S12: 2023-01-01 | T12: 吴亮 | U12: 35 | Y12: 7
A13: 江苏宙斯物联网科技集团股份有限公司 | B13: C2023026 | C13: 租赁合同 | D13: 中国物联网国际创新园 | E13: 二期 | F13: D2栋 | G13: 615 | H13: 生效中 | I13: 华景传感科技（无锡）有限公司 | J13: 华景传感科技（无锡）有限公司 | L13: 租赁模板A | M13: 123.7 | N13: 季付 | O13: 2023-01-01 | P13: 2023-12-31 | S13: 2023-01-01 | T13: 吴亮 | U13: 35 | Y13: 7
A14: 无锡昌德微电子股份有限公司 | B14: C2023027 | C14: 租赁合同 | D14: 中国物联网国际创新园 | E14: 二期 | F14: E2栋 | G14: 310 | H14: 生效中 | I14: 无锡华耀生物科技有限公司 | J14: 无锡华耀生物科技有限公司 | L14: 租赁模板A | M14: 184 | N14: 季付 | O14: 2023-03-01 | P14: 2026-02-28 | S14: 2023-03-01 | T14: 纪婷蕊 | U14: 35 | Y14: 7
A15: 艾普柯微电子（江苏）有限公司 | B15: C2023028 | C15: 租赁合同 | D15: 中国物联网国际创新园 | E15: 二期 | F15: E1栋 | G15: 302 | H15: 生效中 | I15: 无锡开云信息技术有限公司 | J15: 无锡开云信息技术有限公司 | L15: 租赁模板A | M15: 762 | N15: 季付 | O15: 2023-01-01 | P15: 2025-12-31 | S15: 2023-01-01 | T15: 郑浩然 | U15: 35 | Y15: 7
A16: 无锡汉咏科技股份有限公司 | B16: C2023029 | C16: 租赁合同 | D16: 中国物联网国际创新园 | E16: 二期 | F16: E2栋 | G16: 403 | H16: 生效中 | I16: 牛拓新材料科技（无锡）股份有限公司 | J16: 牛拓新材料科技（无锡）股份有限公司 | L16: 租赁模板A | M16: 281 | N16: 季付 | O16: 2023-03-01 | P16: 2026-02-28 | S16: 2023-03-01 | T16: 陈超 | U16: 35 | Y16: 7
A17: 无锡兰霖网络科技有限公司 | B17: C2023030 | C17: 租赁合同 | D17: 中国物联网国际创新园 | E17: 二期 | F17: E2栋 | G17: 509 | H17: 生效中 | I17: 中力航空设备（江苏）有限公司 | J17: 中力航空设备（江苏）有限公司 | L17: 租赁模板A | M17: 305 | N17: 季付 | O17: 2023-01-01 | P17: 2024-12-31 | S17: 2023-01-01 | T17: 周凤彬 | U17: 35 | Y17: 7
A18: 江苏中科物联网科技创业投资有限公司 | B18: C2023031 | C18: 租赁合同 | D18: 中国物联网国际创新园 | E18: 二期 | F18: E2栋 | G18: 525 | H18: 生效中 | I18: 无锡巨谷科技有限公司 | J18: 无锡巨谷科技有限公司 | L18: 租赁模板A | M18: 92 | N18: 季付 | O18: 2023-01-20 | P18: 2026-01-19 | S18: 2023-01-20 | T18: 李忠义 | U18: 35 | Y18: 7
A19: 无锡优拓信息技术股份有限公司 | B19: C2023032 | C19: 租赁合同 | D19: 中国物联网国际创新园 | E19: 二期 | F19: E2栋 | G19: 535 | H19: 生效中 | I19: 无锡光之谷传感技术有限公司 | J19: 无锡光之谷传感技术有限公司 | L19: 租赁模板A | M19: 70 | N19: 季付 | O19: 2023-01-01 | P19: 2025-12-31 | S19: 2023-01-01 | T19: 龙双 | U19: 35 | Y19: 7
A20: 无锡创微创业投资合伙企业（有限合伙） | B20: C2023033 | C20: 租赁合同 | D20: 中国物联网国际创新园 | E20: 三期 | F20: G1栋 | G20: 803 | H20: 生效中 | I20: 江苏曼荼罗软件股份有限公司 | J20: 江苏曼荼罗软件股份有限公司 | L20: 租赁模板A | M20: 170.9 | N20: 季付 | O20: 2023-06-19 | P20: 2023-09-18 | S20: 2023-06-19 | T20: 陆艺 | U20: 35 | Y20: 7
A21: 华英证券有限责任公司 | B21: C2023034 | C21: 租赁合同 | D21: 中国物联网国际创新园 | E21: 三期 | F21: G1栋 | G21: 806 | H21: 生效中 | I21: 无锡力捷丰科技有限公司 | J21: 无锡力捷丰科技有限公司 | L21: 租赁模板A | M21: 542.9 | N21: 季付 | O21: 2023-07-01 | P21: 2024-06-30 | S21: 2023-07-01 | T21: 楚 丰 | U21: 35 | Y21: 7
A22: 无锡布里渊电子科技有限公司 | B22: C2023034 | C22: 租赁合同 | D22: 中国物联网国际创新园 | E22: 三期 | F22: G1栋 | G22: 808 | H22: 生效中 | I22: 无锡力捷丰科技有限公司 | J22: 无锡力捷丰科技有限公司 | L22: 租赁模板A | M22: 373.4 | N22: 季付 | O22: 2023-07-01 | P22: 2024-06-30 | S22: 2023-07-01 | T22: 楚 丰 | U22: 35 | Y22: 7
A23: 无锡中科聚蓝企业管理咨询合伙企业（有限合伙） | B23: C2023035 | C23: 租赁合同 | D23: 中国物联网国际创新园 | E23: 三期 | F23: G1栋 | G23: 902 | H23: 生效中 | I23: 无锡创思感知科技有限公司 | J23: 无锡创思感知科技有限公司 | L23: 租赁模板A | M23: 372 | N23: 季付 | O23: 2023-01-01 | P23: 2025-12-31 | S23: 2023-01-01 | T23: 左丹丹 | U23: 35 | Y23: 7
A24: 无锡众臻信息咨询合伙企业（有限合伙） | B24: C2023036 | C24: 租赁合同 | D24: 中国物联网国际创新园 | E24: 三期 | F24: G1栋 | G24: 1002 | H24: 生效中 | I24: 无锡微田园网络科技有限公司 | J24: 无锡微田园网络科技有限公司 | L24: 租赁模板A | M24: 372 | N24: 季付 | O24: 2023-01-08 | P24: 2026-01-07 | S24: 2023-01-08 | T24: 邵伟 | U24: 35 | Y24: 7
A25: 无锡优顺能源开发科技有限公司 | B25: C2023037 | C25: 租赁合同 | D25: 中国物联网国际创新园 | E25: 三期 | F25: G2栋 | G25: 101 | H25: 生效中 | I25: 无锡菲光科技有限公司 | J25: 无锡菲光科技有限公司 | L25: 租赁模板A | M25: 1183.4 | N25: 季付 | O25: 2023-07-01 | P25: 2026-06-30 | S25: 2023-07-01 | T25: 薛银飞 | U25: 30 | Y25: 5
A26: 中智物联技术有限公司 | B26: C2023038 | C26: 租赁合同 | D26: 中国物联网国际创新园 | E26: 三期 | F26: G2栋 | G26: 201 | H26: 生效中 | I26: 无锡菲光科技有限公司 | J26: 无锡菲光科技有限公司 | L26: 租赁模板A | M26: 1450.2 | N26: 季付 | O26: 2023-02-01 | P26: 2026-01-31 | S26: 2023-02-01 | T26: 薛银飞 | U26: 30 | Y26: 5
A27: 无锡国联产业升级投资中心（有限合伙） | B27: C2023039 | C27: 租赁合同 | D27: 中国物联网国际创新园 | E27: 三期 | F27: G2栋 | G27: 301 | H27: 生效中 | I27: 广电计量检测（无锡）有限公司 | J27: 广电计量检测（无锡）有限公司 | L27: 租赁模板A | M27: 1450.2 | N27: 季付 | O27: 2023-03-01 | P27: 2023-12-31 | S27: 2023-03-01 | T27: 朱钧 | U27: 30 | Y27: 5
A28: 中城智慧科技有限公司 | B28: C2023040 | C28: 租赁合同 | D28: 中国物联网国际创新园 | E28: 三期 | F28: G10栋 | G28: 510 | H28: 生效中 | I28: 江苏明月软件技术股份有限公司无锡分公司 | J28: 江苏明月软件技术股份有限公司无锡分公司 | L28: 租赁模板A | M28: 382.3 | N28: 季付 | O28: 2023-01-01 | P28: 2025-12-31 | S28: 2023-01-01 | T28: 卢瑛 | U28: 35 | Y28: 7
A29: 华景传感科技（无锡）有限公司 | B29: C2023041 | C29: 租赁合同 | D29: 中国物联网国际创新园 | E29: 三期 | F29: G10栋 | G29: 808 | H29: 生效中 | I29: 爱欧意科技无锡有限公司 | J29: 爱欧意科技无锡有限公司 | L29: 租赁模板A | M29: 274.5 | N29: 季付 | O29: 2023-03-01 | P29: 2026-02-28 | S29: 2023-03-01 | T29: 张瑜 | U29: 35 | Y29: 7
A30: 无锡国联产业投资私募基金管理有限公司 | B30: C2023042 | C30: 租赁合同 | D30: 中国物联网国际创新园 | E30: 三期 | F30: G10栋 | G30: 1101 | H30: 生效中 | I30: 高铭科维科技无锡有限公司 | J30: 高铭科维科技无锡有限公司 | L30: 租赁模板A | M30: 162.9 | N30: 季付 | O30: 2016-12-15 | P30: 2021/11/30 | S30: 2016-12-15 | T30: 刘飞 | U30: 35 | Y30: 7
A31: 无锡国联浚源创业投资中心（有限合伙） | B31: C2023043 | C31: 租赁合同 | D31: 中国物联网国际创新园 | E31: 三期 | F31: G10栋 | G31: 1103 | H31: 生效中 | I31: 高铭科维科技无锡有限公司 | J31: 高铭科维科技无锡有限公司 | L31: 租赁模板A | M31: 173.2 | N31: 季付 | O31: 2019-07-01 | P31: 2022/6/30 | S31: 2019-07-01 | T31: 刘飞 | U31: 35 | Y31: 7
A32: 无锡高新人才发展集团有限公司 | B32: C2023044 | C32: 租赁合同 | D32: 中国物联网国际创新园 | E32: 三期 | F32: G10栋 | G32: 1106 | H32: 生效中 | I32: 高铭科维科技无锡有限公司 | J32: 高铭科维科技无锡有限公司 | L32: 租赁模板A | M32: 278.9 | N32: 季付 | O32: 2019-07-01 | P32: 2022-06-30 | S32: 2019-07-01 | T32: 刘飞 | U32: 35 | Y32: 7
A33: 尚贤谷物联网投资管理（无锡）有限公司 | B33: C2023045 | C33: 租赁合同 | D33: 中国物联网国际创新园 | E33: 三期 | F33: G10栋 | G33: 1110 | H33: 生效中 | I33: 江苏达尔塔数据有限公司 | J33: 江苏达尔塔数据有限公司 | L33: 租赁模板A | M33: 382.3 | N33: 季付 | O33: 2019-07-01 | P33: 2022/6/30 | S33: 2019-07-01 | T33: 刘力 | U33: 35 | Y33: 7
A34: 澳盛投资管理（无锡）有限公司 | B34: C2023046 | C34: 租赁合同 | D34: 中国物联网国际创新园 | E34: 三期 | F34: G5栋 | G34: -1层 | H34: 生效中 | I34: 龙微科技无锡有限公司 | J34: 龙微科技无锡有限公司 | L34: 租赁模板A | M34: 2460.3 | N34: 季付 | O34: 2023-01-01 | P34: 2025-12-31 | S34: 2023-01-01 | T34: 杨倩 | U34: 15 | Y34: 5
A35: 阿达智能装备（江苏）有限公司 | B35: C2023046 | C35: 租赁合同 | D35: 中国物联网国际创新园 | E35: 三期 | F35: G5栋 | G35: G5 | H35: 生效中 | I35: 龙微科技无锡有限公司 | J35: 龙微科技无锡有限公司 | L35: 租赁模板A | M35: 5126.61 | N35: 季付 | O35: 2023-01-01 | P35: 2025-12-31 | S35: 2023-01-01 | T35: 杨倩 | U35: 30 | Y35: 5
A36: 无锡派瑞新媒体投资合伙企业（有限合伙） | B36: C2023047 | C36: 租赁合同 | D36: 中国物联网国际创新园 | E36: 二期 | F36: E2栋 | G36: 417 | H36: 生效中 | I36: 无锡沃联斯科智能科技有限公司 | J36: 无锡沃联斯科智能科技有限公司 | L36: 租赁模板A | M36: 241 | N36: 季付 | O36: 2023-03-15 | P36: 2025-03-14 | S36: 2023-03-15 | T36: 张涛 | U36: 35 | Y36: 7
A37: 无锡联发产业投资中心（有限合伙） | B37: C2023048 | C37: 租赁合同 | D37: 中国物联网国际创新园 | E37: 三期 | F37: G1栋 | G37: 301 | H37: 生效中 | I37: 森特奈智能科技（无锡）有限公司 | J37: 森特奈智能科技（无锡）有限公司 | L37: 租赁模板A | M37: 214 | N37: 季付 | O37: 2023-01-01 | P37: 2025-12-31 | S37: 2023-01-01 | T37: 赵/卿 | U37: 35 | Y37: 7
A38: 无锡中金鼎讯信通科技股份有限公司 | B38: C2023049 | C38: 租赁合同 | D38: 中国物联网国际创新园 | E38: 一期 | F38: A栋 | G38: 101 | H38: 生效中 | I38: 无锡市新吴区机关事务服务中心 | L38: 租赁模板A | M38: 2771 | N38: 季付 | O38: 2020-01-01 | P38: 2025-04-30 | S38: 2020-01-01 | T38: 丁松 | U38: 35 | Y38: 8.5
A39: 江苏开盟科技有限公司 | B39: C2023050 | C39: 租赁合同 | D39: 中国物联网国际创新园 | E39: 一期 | F39: B栋 | G39: PT-101-1 | H39: 生效中 | I39: 延安知青印象农业有限公司 | L39: 租赁模板A | M39: 207.56 | N39: 季付 | O39: 2023-06-01 | P39: 2026-06-01 | S39: 2023-06-01 | T39: 田鑫 | U39: 0 | Y39: 0
A40: 无锡尚贤谷物联网投资合伙企业（有限合伙） | B40: C2023051 | C40: 租赁合同 | D40: 中国物联网国际创新园 | E40: 一期 | F40: A栋 | G40: 201 | H40: 生效中 | I40: 瓴芯电子科技（无锡）有限公司 | J40: 瓴芯电子科技（无锡）有限公司 | L40: 租赁模板A | M40: 1259 | N40: 季付 | O40: 2019-11-01 | P40: 2025-10-31 | S40: 2019-11-01 | T40: NI CHUAN | U40: 35 | Y40: 7
A41: 无锡锡产微芯半导体有限公司 | B41: C2023052 | C41: 租赁合同 | D41: 中国物联网国际创新园 | E41: 一期 | F41: A栋 | G41: 302 | H41: 生效中 | I41: 无锡掌薪网络科技有限公司 | J41: 无锡掌薪网络科技有限公司 | L41: 租赁模板A | M41: 317 | N41: 季付 | O41: 2022-01-01 | P41: 2024-12-31 | S41: 2022-01-01 | T41: 许建军 | U41: 35 | Y41: 7
A42: 江苏创芯海微科技有限公司 | B42: C2023053 | C42: 租赁合同 | D42: 中国物联网国际创新园 | E42: 一期 | F42: A栋 | G42: 304 | H42: 生效中 | I42: 无锡掌薪网络科技有限公司 | J42: 无锡掌薪网络科技有限公司 | L42: 租赁模板A | M42: 258 | N42: 季付 | O42: 2022-10-01 | P42: 2025-09-30 | S42: 2022-10-01 | T42: 许建军 | U42: 35 | Y42: 7
A43: 中科融通物联科技无锡有限公司 | B43: C2023054 | C43: 租赁合同 | D43: 中国物联网国际创新园 | E43: 一期 | F43: A栋 | G43: 306 | H43: 生效中 | I43: 无锡人才之家信息科技有限公司 | J43: 无锡人才之家信息科技有限公司 | L43: 租赁模板A | M43: 190 | N43: 季付 | O43: 2022-10-01 | P43: 2025-09-30 | S43: 2022-10-01 | T43: 杨晓峰 | U43: 35 | Y43: 7
A44: 无锡蝶和科技有限公司 | B44: C2023055 | C44: 租赁合同 | D44: 中国物联网国际创新园 | E44: 一期 | F44: A栋 | G44: 310 | H44: 生效中 | I44: 无锡奥维斯管理咨询有限公司 | L44: 租赁模板A | M44: 360 | N44: 季付 | O44: 2021-04-01 | P44: 2024-03-31 | S44: 2021-04-01 | T44: 朱新华 | U44: 35 | Y44: 7
A45: 中兴智能交通股份有限公司 | B45: C2023056 | C45: 租赁合同 | D45: 中国物联网国际创新园 | E45: 一期 | F45: A栋 | G45: 311 | H45: 生效中 | I45: 无锡中智人力资源服务有限公司 | J45: 无锡中智人力资源服务有限公司 | L45: 租赁模板A | M45: 227 | N45: 季付 | O45: 2021-06-01 | P45: 2024-05-31 | S45: 2021-06-01 | T45: 吴晓兰 | U45: 35 | Y45: 7
A46: 品冠物联科技有限公司 | B46: C2023057 | C46: 租赁合同 | D46: 中国物联网国际创新园 | E46: 一期 | F46: A栋 | G46: 307-1 | H46: 生效中 | I46: 江苏开心工作科技有限公司 | J46: 江苏开心工作科技有限公司 | L46: 租赁模板A | M46: 223 | N46: 季付 | O46: 2020-03-16 | P46: 2024-03-15 | S46: 2020-03-16 | T46: 蒋丹 | U46: 35 | Y46: 7
A47: 江苏众乐乐影视传媒有限公司 | B47: C2023058 | C47: 租赁合同 | D47: 中国物联网国际创新园 | E47: 一期 | F47: A栋 | G47: 308 | H47: 生效中 | I47: 无锡市新吴区人力资源服务行业协会 | L47: 租赁模板A | M47: 254 | N47: 季付 | O47: 2022-01-01 | P47: 2024-12-31 | S47: 2022-01-01 | T47: 蒋丹 | U47: 35 | Y47: 7
A48: 无锡中科英智投资管理有限公司 | B48: C2023059 | C48: 租赁合同 | D48: 中国物联网国际创新园 | E48: 一期 | F48: A栋 | G48: 401 | H48: 生效中 | I48: 无锡伙伴人力资源服务有限公司 | J48: 无锡伙伴人力资源服务有限公司 | L48: 租赁模板A | M48: 550.4 | N48: 季付 | O48: 2023-04-01 | P48: 2025-12-31 | S48: 2023-04-01 | T48: 朱晓燕 | U48: 35 | Y48: 7
A49: 江苏中元盛辉新能源科技有限公司 | B49: C2023060 | C49: 租赁合同 | D49: 中国物联网国际创新园 | E49: 一期 | F49: A栋 | G49: 402 | H49: 生效中 | I49: 无锡高新人才发展集团有限公司 | J49: 无锡高新人才发展集团有限公司 | L49: 租赁模板A | M49: 570 | N49: 季付 | O49: 2023-01-01 | P49: 2025-12-31 | S49: 2023-01-01 | T49: 朱晓燕 | U49: 35 | Y49: 7
A50: 无锡点石共赢咨询服务合伙企业（有限合伙） | B50: C2023061 | C50: 租赁合同 | D50: 中国物联网国际创新园 | E50: 一期 | F50: A栋 | G50: 402-1 | H50: 生效中 | I50: 无锡高新人才管理咨询有限公司 | J50: 无锡高新人才管理咨询有限公司 | L50: 租赁模板A | M50: 40 | N50: 季付 | O50: 2023-01-01 | P50: 2025-12-31 | S50: 2023-01-01 | T50: 朱晓燕 | U50: 35 | Y50: 7
A51: 无锡市恒顺金属材料有限公司 | B51: C2023062 | C51: 租赁合同 | D51: 中国物联网国际创新园 | E51: 一期 | F51: A栋 | G51: 402-2 | H51: 生效中 | I51: 无锡高新人才数字科技有限公司 | J51: 无锡高新人才数字科技有限公司 | L51: 租赁模板A | M51: 40 | N51: 季付 | O51: 2023-01-01 | P51: 2025-12-31 | S51: 2023-01-01 | T51: 朱晓燕 | U51: 35 | Y51: 7
A52: 无锡中科赛新投资合伙企业（有限合伙） | B52: C2023063 | C52: 租赁合同 | D52: 中国物联网国际创新园 | E52: 一期 | F52: A栋 | G52: 402-3 | H52: 生效中 | I52: 无锡高杰外包服务有限公司 | J52: 无锡高杰外包服务有限公司 | L52: 租赁模板A | M52: 40 | N52: 季付 | O52: 2023-01-01 | P52: 2025-12-31 | S52: 2023-01-01 | T52: 朱晓燕 | U52: 35 | Y52: 7
A53: 无锡星微科技有限公司 | B53: C2023064 | C53: 租赁合同 | D53: 中国物联网国际创新园 | E53: 一期 | F53: A栋 | G53: 406 | H53: 生效中 | I53: 无锡美偌科微电子有限公司 | J53: 无锡美偌科微电子有限公司 | L53: 租赁模板A | M53: 340.5866667 | N53: 季付 | O53: 2021-05-01 | P53: 2025-04-30 | S53: 2021-05-01 | T53: 夏中宇 | U53: 35 | Y53: 7
A54: 无锡易百客科技有限公司 | B54: C2023064 | C54: 租赁合同 | D54: 中国物联网国际创新园 | E54: 一期 | F54: A栋 | G54: 407 | H54: 生效中 | I54: 无锡美偌科微电子有限公司 | J54: 无锡美偌科微电子有限公司 | L54: 租赁模板A | M54: 1461.024 | N54: 季付 | O54: 2021-05-01 | P54: 2025-04-30 | S54: 2021-05-01 | T54: 夏中宇 | U54: 35 | Y54: 7
A55: 无锡巨天自动化技术有限公司 | B55: C2023065 | C55: 租赁合同 | D55: 中国物联网国际创新园 | E55: 一期 | F55: A栋 | G55: 501 | H55: 生效中 | I55: 无锡金源半导体科技有限公司 | L55: 租赁模板A | M55: 672 | N55: 季付 | O55: 2021-11-12 | P55: 2024-11-30 | S55: 2021-11-12 | T55: 刘阳 | U55: 35 | Y55: 7
A56: 无锡威卓智能机器人有限公司 | B56: C2023066 | C56: 租赁合同 | D56: 中国物联网国际创新园 | E56: 一期 | F56: A栋 | G56: 509 | H56: 生效中 | I56: 无锡浩真微电子有限公司 | J56: 无锡浩真微电子有限公司 | L56: 租赁模板A | M56: 331 | N56: 季付 | O56: 2021-04-01 | P56: 2024-03-31 | S56: 2021-04-01 | T56: 季富荣 | U56: 35 | Y56: 7
A57: 无锡海颂科技有限公司 | B57: C2023067 | C57: 租赁合同 | D57: 中国物联网国际创新园 | E57: 一期 | F57: A栋 | G57: 507 | H57: 生效中 | I57: 江苏洵谷智能科技有限公司 | J57: 江苏洵谷智能科技有限公司 | L57: 租赁模板A | M57: 331 | N57: 季付 | O57: 2023-05-03 | P57: 2025-05-02 | S57: 2023-05-03 | T57: 高鹲 | U57: 35 | Y57: 7
A58: 无锡小白无忧科技有限公司 | B58: C2023068 | C58: 租赁合同 | D58: 中国物联网国际创新园 | E58: 一期 | F58: A栋 | G58: 502 | H58: 生效中 | I58: 阿达智能装备（江苏）有限公司 | J58: 阿达智能装备（江苏）有限公司 | L58: 租赁模板A | M58: 604 | N58: 季付 | O58: 2022-03-29 | P58: 2025-03-28 | S58: 2022-03-29 | T58: HE YUNBO | U58: 35 | Y58: 7
A59: 无锡谱视界科技有限公司 | B59: C2023069 | C59: 租赁合同 | D59: 中国物联网国际创新园 | E59: 一期 | F59: A栋 | G59: 518 | H59: 生效中 | I59: 无锡市迪卡瑞智能科技有限公司 | J59: 无锡市迪卡瑞智能科技有限公司 | L59: 租赁模板A | M59: 227 | N59: 季付 | O59: 2020-09-01 | P59: 2025-04-30 | S59: 2020-09-01 | T59: 宋瑞俊 | U59: 35 | Y59: 7
A60: 无锡国经众明投资企业（有限合伙） | B60: C2023070 | C60: 租赁合同 | D60: 中国物联网国际创新园 | E60: 一期 | F60: A栋 | G60: 506 | H60: 生效中 | I60: 江苏京华山一商业保理有限公司 | J60: 江苏京华山一商业保理有限公司 | L60: 租赁模板A | M60: 800 | N60: 季付 | O60: 2021-04-01 | P60: 2025-03-31 | S60: 2021-04-01 | T60: 时祥 | U60: 23 | Y60: 7
A61: 无锡华鼎创业投资管理有限公司 | B61: C2023071 | C61: 租赁合同 | D61: 中国物联网国际创新园 | E61: 一期 | F61: A栋 | G61: 516 | H61: 生效中 | I61: 无锡星承云启信息技术有限公司 | J61: 无锡星承云启信息技术有限公司 | L61: 租赁模板A | M61: 144 | N61: 季付 | O61: 2022-09-01 | P61: 2025-08-31 | S61: 2022-09-01 | T61: 沈俊强 | U61: 35 | Y61: 7
A62: 无锡产发创业投资中心（有限合伙） | B62: C2023072 | C62: 租赁合同 | D62: 中国物联网国际创新园 | E62: 一期 | F62: A栋 | G62: 601 | H62: 生效中 | I62: 江苏深网科技有限公司 | J62: 江苏深网科技有限公司 | L62: 租赁模板A | M62: 534.88 | N62: 季付 | O62: 2021-10-01 | P62: 2024-09-30 | S62: 2021-10-01 | T62: 王传林 | U62: 35 | Y62: 7
A63: 无锡矽鼎科技有限公司 | B63: C2023073 | C63: 租赁合同 | D63: 中国物联网国际创新园 | E63: 一期 | F63: A栋 | G63: 701 | H63: 生效中 | I63: 无锡市艾克特电气股份有限公司 | J63: 无锡市艾克特电气股份有限公司 | L63: 租赁模板A | M63: 3051 | N63: 季付 | O63: 2022-09-01 | P63: 2023-08-31 | S63: 2022-09-01 | T63: 刘建 | U63: 35 | Y63: 7
A64: 江苏达和晟智能科技集团有限公司 | B64: C2023074 | C64: 租赁合同 | D64: 中国物联网国际创新园 | E64: 一期 | F64: A栋 | G64: 805 | H64: 生效中 | I64: 无锡布勒卡乐服务外包有限公司 | J64: 无锡布勒卡乐服务外包有限公司 | L64: 租赁模板A | M64: 288 | N64: 季付 | O64: 2021-01-01 | P64: 2023-12-31 | S64: 2021-01-01 | T64: 张德威 | U64: 35 | Y64: 7
A65: 无锡数信互融科技发展有限公司 | B65: C2023075 | C65: 租赁合同 | D65: 中国物联网国际创新园 | E65: 一期 | F65: A栋 | G65: 802 | H65: 生效中 | I65: 无锡奥利杰科技有限公司 | J65: 无锡奥利杰科技有限公司 | L65: 租赁模板A | M65: 320 | N65: 季付 | O65: 2021-12-31 | P65: 2024-12-30 | S65: 2021-12-31 | T65: 周志城 | U65: 35 | Y65: 7
A66: 中科产业投资无锡有限公司 | B66: C2023076 | C66: 租赁合同 | D66: 中国物联网国际创新园 | E66: 一期 | F66: A栋 | G66: 808 | H66: 生效中 | I66: 南京恒新天朗电子科技有限公司 | L66: 租赁模板A | M66: 190 | N66: 季付 | O66: 2022-12-01 | P66: 2025-11-30 | S66: =O66 -> 2022-12-01 | T66: 光晓山 | U66: 35 | Y66: 7
A67: 无锡优塑美科技有限公司 | B67: C2023077 | C67: 租赁合同 | D67: 中国物联网国际创新园 | E67: 一期 | F67: A栋 | G67: 801 | H67: 生效中 | I67: 上海佐越企业管理有限公司 | L67: 租赁模板A | M67: 194 | N67: 季付 | O67: 2022-04-01 | P67: 2025-03-31 | S67: 2022-04-01 | T67: 郭明敏 | U67: 35 | Y67: 7
A68: 无锡沃达科半导体技术有限公司 | B68: C2023078 | C68: 租赁合同 | D68: 中国物联网国际创新园 | E68: 一期 | F68: A栋 | G68: 804 | H68: 生效中 | I68: 无锡奥利杰科技有限公司 | J68: =VLOOKUP(I68,A:A,1,0) -> 无锡奥利杰科技有限公司 | L68: 租赁模板A | M68: 480 | N68: 季付 | O68: 2021-06-01 | P68: 2024-05-31 | S68: 2021-06-01 | T68: 周志城 | U68: 35 | Y68: 7
A69: 华景科技无锡有限公司 | B69: C2023079 | C69: 租赁合同 | D69: 中国物联网国际创新园 | E69: 一期 | F69: A栋 | G69: 901 | H69: 生效中 | I69: 无锡市新吴区机关事务服务中心 | L69: 租赁模板A | M69: 1579 | N69: 季付 | O69: 2020-01-01 | P69: 2025-03-31 | S69: 2020-01-01 | T69: 丁松 | U69: 35 | Y69: 8.5
A70: 无锡市德联投资有限公司 | B70: C2023080 | C70: 租赁合同 | D70: 中国物联网国际创新园 | E70: 一期 | F70: A栋 | G70: 1001 | H70: 生效中 | I70: 无锡市杰特电气有限公司 | J70: 无锡市杰特电气有限公司 | L70: 租赁模板A | M70: 1579 | N70: 季付 | O70: 2023-01-01 | P70: 2023-08-31 | S70: 2023-01-01 | T70: 冯钶 | U70: 35 | Y70: 7
A71: 无锡德昌投资企业（有限合伙） | B71: C2023081 | C71: 租赁合同 | D71: 中国物联网国际创新园 | E71: 一期 | F71: B栋 | G71: 101 | H71: 生效中 | I71: 无锡永逸乐机电设备有限公司 | J71: 无锡永逸乐机电设备有限公司 | L71: 租赁模板A | M71: 668 | N71: 季付 | O71: 2022-01-01 | P71: 2024-12-31 | S71: 2022-01-01 | T71: 虞婧娜 | U71: 35 | Y71: 7
A72: 无锡市时盛激光科技有限公司 | B72: C2023082 | C72: 租赁合同 | D72: 中国物联网国际创新园 | E72: 一期 | F72: B栋 | G72: 106 | H72: 生效中 | I72: 无锡通测检测技术有限公司 | J72: 无锡通测检测技术有限公司 | L72: 租赁模板A | M72: 128 | N72: 季付 | O72: 2019-02-01 | P72: 2025-01-31 | S72: 2019-02-01 | T72: 石章华 | U72: 35 | Y72: 7
A73: 江苏晟能科技股份有限公司 | B73: C2023082 | C73: 租赁合同 | D73: 中国物联网国际创新园 | E73: 一期 | F73: B栋 | G73: 109 | H73: 生效中 | I73: 无锡通测检测技术有限公司 | J73: 无锡通测检测技术有限公司 | L73: 租赁模板A | M73: 149 | N73: 季付 | O73: 2019-02-01 | P73: 2025-01-31 | S73: 2019-02-01 | T73: 石章华 | U73: 35 | Y73: 7
A74: 中兴九城网络科技无锡有限公司 | B74: C2023083 | C74: 租赁合同 | D74: 中国物联网国际创新园 | E74: 一期 | F74: B栋 | G74: 108 | H74: 生效中 | I74: 无锡通优检测技术有限公司 | J74: 无锡通优检测技术有限公司 | L74: 租赁模板A | M74: 206 | N74: 季付 | O74: 2022-06-01 | P74: 2025-05-31 | S74: 2022-06-01 | T74: 陈鹏鹏 | U74: 35 | Y74: 7
A75: 国科瑞祺物联网创业投资有限公司 | B75: C2023084 | C75: 租赁合同 | D75: 中国物联网国际创新园 | E75: 一期 | F75: B栋 | G75: 111 | H75: 生效中 | I75: 无锡凡特物联技术有限公司 | J75: 无锡凡特物联技术有限公司 | L75: 租赁模板A | M75: 112 | N75: 季付 | O75: 2023-06-15 | P75: 2024-06-14 | S75: 2023-06-15 | T75: 金哲 | U75: 35 | Y75: 7
A76: 无锡纽科电子科技股份有限公司 | B76: C2023085 | C76: 租赁合同 | D76: 中国物联网国际创新园 | E76: 一期 | F76: B栋 | G76: 112 | H76: 生效中 | I76: 无锡赛米斯半导体科技有限公司 | J76: 无锡赛米斯半导体科技有限公司 | L76: 租赁模板A | M76: 139 | N76: 季付 | O76: 2023-05-29 | P76: 2024-05-28 | S76: 2023-05-29 | T76: 陈立明 | U76: 35 | Y76: 7
A77: 瓴芯电子科技（无锡）有限公司 | B77: C2023086 | C77: 租赁合同 | D77: 中国物联网国际创新园 | E77: 一期 | F77: B栋 | G77: 115 | H77: 生效中 | I77: 广电计量检测（无锡）有限公司 | J77: 广电计量检测（无锡）有限公司 | L77: 租赁模板A | M77: 147 | N77: 季付 | O77: 2018-08-01 | P77: 2023-07-31 | S77: 2018-08-01 | T77: 黄沃文 | U77: 35 | Y77: 7
A78: 华进半导体封装先导技术研发中心有限公司 | B78: C2023087 | C78: 租赁合同 | D78: 中国物联网国际创新园 | E78: 一期 | F78: B栋 | G78: 116 | H78: 生效中 | I78: 广电计量检测（无锡）有限公司 | J78: 广电计量检测（无锡）有限公司 | L78: 租赁模板A | M78: 182 | N78: 季付 | O78: 2019-02-01 | P78: 2025-01-31 | S78: 2019-02-01 | T78: 黄沃文 | U78: 35 | Y78: 7
A79: 无锡泓瑞航天科技有限公司 | B79: C2023088 | C79: 租赁合同 | D79: 中国物联网国际创新园 | E79: 一期 | F79: B栋 | G79: 117 | H79: 生效中 | I79: 广电计量检测（无锡）有限公司 | J79: 广电计量检测（无锡）有限公司 | L79: 租赁模板A | M79: 234 | N79: 季付 | O79: 2019-05-01 | P79: 2025-04-30 | S79: 2019-05-01 | T79: 黄沃文 | U79: 35 | Y79: 7
A80: 无锡市艾克特电气股份有限公司 | B80: C2023089 | C80: 租赁合同 | D80: 中国物联网国际创新园 | E80: 一期 | F80: B栋 | G80: 119 | H80: 生效中 | I80: 广电计量检测（无锡）有限公司 | J80: 广电计量检测（无锡）有限公司 | L80: 租赁模板A | M80: 189 | N80: 季付 | O80: 2017-03-01 | P80: 2025-02-28 | S80: 2017-03-01 | T80: 黄沃文 | U80: 35 | Y80: 7
A81: 江苏中科君芯科技有限公司 | B81: C2023090 | C81: 租赁合同 | D81: 中国物联网国际创新园 | E81: 一期 | F81: B栋 | G81: 120 | H81: 生效中 | I81: 广电计量检测（无锡）有限公司 | J81: 广电计量检测（无锡）有限公司 | L81: 租赁模板A | M81: 195 | N81: 季付 | O81: 2022-10-01 | P81: 2025-09-30 | S81: 2022-10-01 | T81: 黄沃文 | U81: 35 | Y81: 7
A82: 无锡优微科技有限公司 | B82: C2023091 | C82: 租赁合同 | D82: 中国物联网国际创新园 | E82: 一期 | F82: B栋 | G82: 121 | H82: 生效中 | I82: 广电计量检测（无锡）有限公司 | J82: 广电计量检测（无锡）有限公司 | L82: 租赁模板A | M82: 338 | N82: 季付 | O82: 2021-03-01 | P82: 2024-02-29 | S82: 2021-03-01 | T82: 黄沃文 | U82: 35 | Y82: 7
A83: 江苏中科西北星信息科技有限公司 | B83: C2023091 | C83: 租赁合同 | D83: 中国物联网国际创新园 | E83: 一期 | F83: B栋 | G83: 123 | H83: 生效中 | I83: 广电计量检测（无锡）有限公司 | J83: 广电计量检测（无锡）有限公司 | L83: 租赁模板A | M83: 232 | N83: 季付 | O83: 2021-03-01 | P83: 2024-02-29 | S83: 2021-03-01 | T83: 黄沃文 | U83: 35 | Y83: 7
A84: 芯河半导体科技（无锡）有限公司 | B84: C2023091 | C84: 租赁合同 | D84: 中国物联网国际创新园 | E84: 一期 | F84: B栋 | G84: 125 | H84: 生效中 | I84: 广电计量检测（无锡）有限公司 | J84: 广电计量检测（无锡）有限公司 | L84: 租赁模板A | M84: 503 | N84: 季付 | O84: 2021-03-01 | P84: 2024-02-29 | S84: 2021-03-01 | T84: 黄沃文 | U84: 30 | Y84: 5
A85: 龙微科技无锡有限公司 | B85: C2023092 | C85: 租赁合同 | D85: 中国物联网国际创新园 | E85: 一期 | F85: B栋 | G85: 221 | H85: 生效中 | I85: 铨力微电子（无锡）有限公司 | J85: 铨力微电子（无锡）有限公司 | L85: 租赁模板A | M85: 582 | N85: 季付 | O85: 2022-10-01 | P85: 2025-09-30 | S85: 2022-10-01 | T85: 丁乙人 | U85: 35 | Y85: 7
A86: 国联昆吾九鼎（无锡）投资中心（有限合伙） | B86: C2023093 | C86: 租赁合同 | D86: 中国物联网国际创新园 | E86: 一期 | F86: B栋 | G86: 219-A | H86: 生效中 | I86: 康路联（无锡）医疗科技有限公司 | J86: 康路联（无锡）医疗科技有限公司 | L86: 租赁模板A | M86: 153 | N86: 季付 | O86: 2021-05-01 | P86: 2024-04-30 | S86: 2021-05-01 | T86: 梁金 | U86: 30 | Y86: 7
A87: 无锡安诺信通信技术有限公司 | B87: C2023094 | C87: 租赁合同 | D87: 中国物联网国际创新园 | E87: 一期 | F87: B栋 | G87: 219-B | H87: 生效中 | I87: 无锡中科光电技术有限公司 | J87: 无锡中科光电技术有限公司 | L87: 租赁模板A | M87: 233 | N87: 季付 | O87: 2019-05-01 | P87: 2025-04-30 | S87: 2019-05-01 | T87: 万学平 | U87: 30 | Y87: 7
A88: 无锡国经众贤投资企业（有限合伙） | B88: C2023095 | C88: 租赁合同 | D88: 中国物联网国际创新园 | E88: 一期 | F88: B栋 | G88: 220 | H88: 生效中 | I88: 无锡瑞科维半导体有限公司 | J88: 无锡瑞科维半导体有限公司 | L88: 租赁模板A | M88: 196 | N88: 季付 | O88: 2022-03-01 | P88: 2025-02-28 | S88: 2022-03-01 | T88: 郭琴 | U88: 35 | Y88: 7
A89: 无锡中智人力资源服务有限公司 | B89: C2023096 | C89: 租赁合同 | D89: 中国物联网国际创新园 | E89: 一期 | F89: B栋 | G89: 201 | H89: 生效中 | I89: 西克制冷（无锡）有限公司 | J89: 西克制冷（无锡）有限公司 | L89: 租赁模板A | M89: 469 | N89: 季付 | O89: 2020-07-01 | P89: 2023-06-30 | S89: 2020-07-01 | T89: 吴艳梅 | U89: 35 | Y89: 7
A90: 无锡芯享信息科技有限公司 | B90: C2023097 | C90: 租赁合同 | D90: 中国物联网国际创新园 | E90: 一期 | F90: B栋 | G90: 212 | H90: 生效中 | I90: 无锡微泰传感封测技术有限公司 | J90: 无锡微泰传感封测技术有限公司 | L90: 租赁模板A | M90: 138 | N90: 季付 | O90: 2018-08-11 | P90: 2023-08-10 | S90: 2018-08-11 | T90: 姚翠莲 | U90: 35 | Y90: 7
A91: 无锡美凯能源科技有限公司 | B91: C2023098 | C91: 租赁合同 | D91: 中国物联网国际创新园 | E91: 一期 | F91: B栋 | G91: 210 | H91: 生效中 | I91: 黑曼巴半导体（无锡）有限公司 | J91: 黑曼巴半导体（无锡）有限公司 | L91: 租赁模板A | M91: 197 | N91: 季付 | O91: 2022-01-01 | P91: 2024-12-31 | S91: 2022-01-01 | T91: 王琳妍 | U91: 35 | Y91: 7
A92: 无锡国经众新投资管理合伙企业（有限合伙） | B92: C2023099 | C92: 租赁合同 | D92: 中国物联网国际创新园 | E92: 一期 | F92: B栋 | G92: 209 | H92: 生效中 | I92: 无锡赛博芯电子科技有限公司 | J92: 无锡赛博芯电子科技有限公司 | L92: 租赁模板A | M92: 224 | N92: 季付 | O92: 2022-04-01 | P92: 2025-03-31 | S92: 2022-04-01 | T92: 胡莉 | U92: 35 | Y92: 7
A93: 无锡人才之家信息科技有限公司 | B93: C2023100 | C93: 租赁合同 | D93: 中国物联网国际创新园 | E93: 一期 | F93: B栋 | G93: 205 | H93: 生效中 | I93: 无锡通测检测技术有限公司 | J93: 无锡通测检测技术有限公司 | L93: 租赁模板A | M93: 216 | N93: 季付 | O93: 2021-05-10 | P93: 2027-05-09 | S93: 2021-05-10 | T93: 石章华 | U93: 35 | Y93: 7
A94: 无锡扬晟科技股份有限公司 | B94: C2023101 | C94: 租赁合同 | D94: 中国物联网国际创新园 | E94: 一期 | F94: B栋 | G94: 206 | H94: 生效中 | I94: 江苏瀚点智能科技有限公司 | J94: 江苏瀚点智能科技有限公司 | L94: 租赁模板A | M94: 226 | N94: 季付 | O94: 2020-07-01 | P94: 2023-06-30 | S94: 2020-07-01 | T94: 尤礼军 | U94: 35 | Y94: 7
A95: 江苏物创产业投资有限公司 | B95: C2023102 | C95: 租赁合同 | D95: 中国物联网国际创新园 | E95: 一期 | F95: B栋 | G95: 312-A | H95: 生效中 | I95: 无锡厦泰生物科技有限公司 | J95: 无锡厦泰生物科技有限公司 | L95: 租赁模板A | M95: 911 | N95: 季付 | O95: 2019-06-01 | P95: 2025-05-31 | S95: 2019-06-01 | T95: 钱怡菁 | U95: 35 | Y95: 7
A96: 无锡产发云晖创业投资合伙企业（有限合伙） | B96: C2023102 | C96: 租赁合同 | D96: 中国物联网国际创新园 | E96: 一期 | F96: B栋 | G96: 312-B | H96: 生效中 | I96: 无锡厦泰生物科技有限公司 | J96: 无锡厦泰生物科技有限公司 | L96: 租赁模板A | M96: 1370 | N96: 季付 | O96: 2019-06-01 | P96: 2025-05-31 | S96: 2019-06-01 | T96: 钱怡菁 | U96: 35 | Y96: 7
A97: 无锡中汉和物流科技有限公司 | B97: C2023103 | C97: 租赁合同 | D97: 中国物联网国际创新园 | E97: 一期 | F97: B栋 | G97: 324 | H97: 生效中 | I97: 无锡厦泰生物科技有限公司 | J97: 无锡厦泰生物科技有限公司 | L97: 租赁模板A | M97: 339 | N97: 季付 | O97: 2023-04-01 | P97: 2023-09-30 | S97: 2023-04-01 | T97: 钱怡菁 | U97: 30 | Y97: 7
A98: 无锡来龙去脉科技有限公司 | B98: C2023104 | C98: 租赁合同 | D98: 中国物联网国际创新园 | E98: 一期 | F98: B栋 | G98: 302 | H98: 生效中 | I98: 无锡通测检测技术有限公司 | J98: 无锡通测检测技术有限公司 | L98: 租赁模板A | M98: 245 | N98: 季付 | O98: 2019-10-15 | P98: 2025-10-14 | S98: 2019-10-15 | T98: 石章华 | U98: 35 | Y98: 7
A99: 无锡国联创新一号投资合伙企业（有限合伙） | B99: C2023105 | C99: 租赁合同 | D99: 中国物联网国际创新园 | E99: 一期 | F99: B栋 | G99: 329 | H99: 生效中 | I99: 江苏生活通信息技术有限公司 | J99: 江苏生活通信息技术有限公司 | L99: 租赁模板A | M99: 85 | N99: 季付 | O99: 2022-09-01 | P99: 2025-08-31 | S99: 2022-09-01 | T99: 吴京玉 | U99: 35 | Y99: 7
A100: 无锡中科富创科技孵化有限公司 | B100: C2023106 | C100: 租赁合同 | D100: 中国物联网国际创新园 | E100: 一期 | F100: B栋 | G100: 331 | H100: 生效中 | I100: 深圳尚阳通科技股份有限公司 | L100: 租赁模板A | M100: 98 | N100: 季付 | O100: 2023-06-01 | P100: 2024-05-31 | S100: 2023-06-01 | T100: 蒋容 | U100: 35 | Y100: 7
A101: 无锡飞翎电子有限公司 | B101: C2023107 | C101: 租赁合同 | D101: 中国物联网国际创新园 | E101: 一期 | F101: B栋 | G101: 332 | H101: 生效中 | I101: 无锡蚊子科技有限公司 | L101: 租赁模板A | M101: 57 | N101: 季付 | O101: 2023-07-15 | P101: 2023-10-14 | S101: 2023-07-15 | T101: 柏友文 | U101: 35 | Y101: 7 | AE101: 2023-07-15
A102: 无锡亚上科技有限公司 | B102: C2023108 | C102: 租赁合同 | D102: 中国物联网国际创新园 | E102: 一期 | F102: B栋 | G102: 333 | H102: 生效中 | I102: 无锡芯大周半导体科技有限公司 | J102: 无锡芯大周半导体科技有限公司 | L102: 租赁模板A | M102: 37 | N102: 季付 | O102: 2023-02-20 | P102: 2026-02-19 | S102: 2023-02-20 | T102: 周晋生 | U102: 35 | Y102: 7
A103: 无锡智瑞信息科技有限公司 | B103: C2023109 | C103: 租赁合同 | D103: 中国物联网国际创新园 | E103: 一期 | F103: B栋 | G103: 334 | H103: 生效中 | I103: 无锡元微数智科技有限公司 | J103: 无锡元微数智科技有限公司 | L103: 租赁模板A | M103: 37 | N103: 季付 | O103: 2022-01-01 | P103: 2024-12-31 | S103: 2022-01-01 | T103: 李爱玲 | U103: 35 | Y103: 7
A104: 江苏慧嘉博人力资源集团有限公司 | B104: C2023110 | C104: 租赁合同 | D104: 中国物联网国际创新园 | E104: 一期 | F104: B栋 | G104: 335 | H104: 生效中 | I104: 无锡矢岛自动化设备有限公司 | J104: 无锡矢岛自动化设备有限公司 | L104: 租赁模板A | M104: 42 | N104: 季付 | O104: 2021-08-01 | P104: 2024-07-31 | S104: 2021-08-01 | T104: 邵佳 | U104: 35 | Y104: 7
A105: 无锡众诺信息技术有限公司 | B105: C2023111 | C105: 租赁合同 | D105: 中国物联网国际创新园 | E105: 一期 | F105: B栋 | G105: 336 | H105: 生效中 | I105: 康路联（无锡）医疗科技有限公司 | J105: 康路联（无锡）医疗科技有限公司 | L105: 租赁模板A | M105: 38 | N105: 季付 | O105: 2020-07-01 | P105: 2023-06-30 | S105: 2020-07-01 | T105: 梁金 | U105: 35 | Y105: 7
A106: 无锡市中科芯启航产业投资合伙企业（有限合伙） | B106: C2023112 | C106: 租赁合同 | D106: 中国物联网国际创新园 | E106: 一期 | F106: B栋 | G106: 337 | H106: 生效中 | I106: 无锡超信工业外包有限公司 | J106: 无锡超信工业外包有限公司 | L106: 租赁模板A | M106: 40 | N106: 季付 | O106: 2022-01-01 | P106: 2024-12-31 | S106: 2022-01-01 | T106: 段波浪 | U106: 35 | Y106: 7
A107: 江苏启明星辰信息安全技术有限公司 | B107: C2023113 | C107: 租赁合同 | D107: 中国物联网国际创新园 | E107: 一期 | F107: B栋 | G107: 338 | H107: 生效中 | I107: 无锡市新信元科技有限公司 | J107: 无锡市新信元科技有限公司 | L107: 租赁模板A | M107: 65 | N107: 季付 | O107: 2021-01-01 | P107: 2023-12-31 | S107: 2021-01-01 | T107: 沈忠文 | U107: 35 | Y107: 7
A108: 无锡美偌科微电子有限公司 | B108: C2023114 | C108: 租赁合同 | D108: 中国物联网国际创新园 | E108: 一期 | F108: B栋 | G108: 339 | H108: 生效中 | I108: 无锡小飞物联科技有限公司 | J108: 无锡小飞物联科技有限公司 | L108: 租赁模板A | M108: 39 | N108: 季付 | O108: 2023-02-01 | P108: 2026-01-31 | S108: 2023-02-01 | T108: 韩梦娇 | U108: 35 | Y108: 7
A109: 中兴智能系统集成无锡有限公司 | B109: C2023115 | C109: 租赁合同 | D109: 中国物联网国际创新园 | E109: 一期 | F109: B栋 | G109: 340 | H109: 生效中 | I109: 无锡中南益瑞服务外包有限公司 | J109: 无锡中南益瑞服务外包有限公司 | L109: 租赁模板A | M109: 46 | N109: 季付 | O109: 2021-04-20 | P109: 2024-04-19 | S109: 2021-04-20 | T109: 张伟 | U109: 35 | Y109: 7
A110: 无锡创星孵化器管理有限公司 | B110: C2023116 | C110: 租赁合同 | D110: 中国物联网国际创新园 | E110: 一期 | F110: B栋 | G110: 419 | H110: 生效中 | I110: 无锡则安电力科技有限公司 | J110: 无锡则安电力科技有限公司 | L110: 租赁模板A | M110: 320 | N110: 季付 | O110: 2023-05-01 | P110: 2025-04-30 | S110: 2023-05-01 | T110: 曹宾 | U110: 30 | Y110: 7
A111: 无锡品冠衣联网信息技术有限公司 | B111: C2023117 | C111: 租赁合同 | D111: 中国物联网国际创新园 | E111: 一期 | F111: B栋 | G111: 415 | H111: 生效中 | I111: 江苏达和晟智能科技集团有限公司 | J111: 江苏达和晟智能科技集团有限公司 | L111: 租赁模板A | M111: 360 | N111: 季付 | O111: 2022-04-03 | P111: 2025-04-02 | S111: 2022-04-03 | T111: 李永春 | U111: 35 | Y111: 7
A112: 无锡辩日咨询服务合伙企业（有限合伙） | B112: C2023118 | C112: 租赁合同 | D112: 中国物联网国际创新园 | E112: 一期 | F112: B栋 | G112: 421 | H112: 生效中 | I112: 橙色谷（江苏）科创发展有限公司 | J112: 橙色谷（江苏）科创发展有限公司 | L112: 租赁模板A | M112: 261 | N112: 季付 | O112: 2020-06-01 | P112: 2023-05-31 | S112: 2020-06-01 | T112: 殷飞 | U112: 35 | Y112: 7
A113: 无锡图灵视频科技有限公司 | B113: C2023119 | C113: 租赁合同 | D113: 中国物联网国际创新园 | E113: 一期 | F113: B栋 | G113: 401-A | H113: 生效中 | I113: 五分人才管理咨询（无锡）有限公司 | J113: 五分人才管理咨询（无锡）有限公司 | L113: 租赁模板A | M113: 56 | N113: 季付 | O113: 2019-03-16 | P113: 2025-03-15 | S113: 2019-03-16 | T113: 鲁贤志 | U113: 35 | Y113: 7
A114: 江苏多益能源科技有限公司 | B114: C2023120 | C114: 租赁合同 | D114: 中国物联网国际创新园 | E114: 一期 | F114: B栋 | G114: 402-A | H114: 生效中 | I114: 无锡招彩旺旺信息技术有限公司 | J114: 无锡招彩旺旺信息技术有限公司 | L114: 租赁模板A | M114: 59 | N114: 季付 | O114: 2021-12-12 | P114: 2024-12-11 | S114: 2021-12-12 | T114: 邹浩冰 | U114: 35 | Y114: 7
A115: 江苏奥立信数字科技有限公司 | B115: C2023121 | C115: 租赁合同 | D115: 中国物联网国际创新园 | E115: 一期 | F115: B栋 | G115: 401-B | H115: 生效中 | I115: 无锡凯丰企业管理顾问有限公司 | J115: 无锡凯丰企业管理顾问有限公司 | L115: 租赁模板A | M115: 40 | N115: 季付 | O115: 2023-04-01 | P115: 2025-03-31 | S115: 2023-04-01 | T115: 黄汉楠 | U115: 35 | Y115: 7
A116: 无锡保利得信息技术合伙企业（有限合伙） | B116: C2023122 | C116: 租赁合同 | D116: 中国物联网国际创新园 | E116: 一期 | F116: B栋 | G116: 402-B | H116: 生效中 | I116: 无锡天原信息技术有限公司 | J116: 无锡天原信息技术有限公司 | L116: 租赁模板A | M116: 61 | N116: 季付 | O116: 2023-07-01 | P116: 2024-06-30 | S116: 2023-07-01 | T116: 张立青 | U116: 35 | Y116: 7
A117: 无锡物创咨询管理合伙企业（有限合伙） | B117: C2023123 | C117: 租赁合同 | D117: 中国物联网国际创新园 | E117: 一期 | F117: B栋 | G117: 403-A | H117: 生效中 | I117: 无锡行先网络科技有限公司 | J117: 无锡行先网络科技有限公司 | L117: 租赁模板A | M117: 40 | N117: 季付 | O117: 2018-10-01 | P117: 2024-09-30 | S117: 2018-10-01 | T117: 郭国亮 | U117: 35 | Y117: 7
A118: 无锡悦启航科技合伙企业（有限合伙） | B118: C2023124 | C118: 租赁合同 | D118: 中国物联网国际创新园 | E118: 一期 | F118: B栋 | G118: 404-A | H118: 生效中 | I118: 江苏航顺集成电路技术有限公司 | J118: 江苏航顺集成电路技术有限公司 | L118: 租赁模板A | M118: 61 | N118: 季付 | O118: 2020-12-01 | P118: 2023-11-30 | S118: 2020-12-01 | T118: 唐伟 | U118: 35 | Y118: 7
A119: 无锡米芯微电子技术有限公司 | B119: C2023125 | C119: 租赁合同 | D119: 中国物联网国际创新园 | E119: 一期 | F119: B栋 | G119: 403-B | H119: 生效中 | I119: 无锡市中力神盾防雷技术有限公司 | J119: 无锡市中力神盾防雷技术有限公司 | L119: 租赁模板A | M119: 40 | N119: 季付 | O119: 2022/3/1 | P119: 2025/02/28 | S119: 2022/3/1 | T119: 许惠岗 | U119: 35 | Y119: 7
A120: 无锡凯盟威电子科技有限公司 | B120: C2023126 | C120: 租赁合同 | D120: 中国物联网国际创新园 | E120: 一期 | F120: B栋 | G120: 404-B | H120: 生效中 | I120: 无锡天原信息技术有限公司 | J120: 无锡天原信息技术有限公司 | L120: 租赁模板A | M120: 57 | N120: 季付 | O120: 2023-08-01 | P120: 2024-06-30 | S120: 2023-08-01 | T120: 张立青 | U120: 35 | Y120: 7
A121: 无锡锐格思信息技术有限公司 | B121: C2023127 | C121: 租赁合同 | D121: 中国物联网国际创新园 | E121: 一期 | F121: B栋 | G121: 405 | H121: 生效中 | I121: 无锡雪云数据科技有限公司 | J121: 无锡雪云数据科技有限公司 | L121: 租赁模板A | M121: 43 | N121: 季付 | O121: 2020-11-01 | P121: 2023-10-31 | S121: 2020-11-01 | T121: 巩雪 | U121: 35 | Y121: 7
A122: 无锡红杉恒业股权投资合伙企业（有限合伙） | B122: C2023128 | C122: 租赁合同 | D122: 中国物联网国际创新园 | E122: 一期 | F122: B栋 | G122: 406-B | H122: 生效中 | I122: 无锡百财企业咨询有限公司 | L122: 租赁模板A | M122: 59 | N122: 季付 | O122: 2023-02-16 | P122: 2026-02-15 | S122: 2023-02-16 | T122: 董小葵 | U122: 35 | Y122: 7
A123: 无锡逸启航科技合伙企业（有限合伙） | B123: C2023129 | C123: 租赁合同 | D123: 中国物联网国际创新园 | E123: 一期 | F123: B栋 | G123: 413 | H123: 生效中 | I123: 无锡兴华慧筑科技有限公司 | J123: 无锡兴华慧筑科技有限公司 | L123: 租赁模板A | M123: 95 | N123: 季付 | O123: 2022-12-15 | P123: 2025-12-14 | S123: 2022-12-15 | T123: 王振华 | U123: 35 | Y123: 7
A124: 江苏中设辉通智慧停车科技有限公司 | B124: C2023130 | C124: 租赁合同 | D124: 中国物联网国际创新园 | E124: 一期 | F124: B栋 | G124: 412 | H124: 生效中 | I124: 无锡云裳衣联网科技有限公司 | J124: 无锡云裳衣联网科技有限公司 | L124: 租赁模板A | M124: 120 | N124: 季付 | O124: 2022-07-01 | P124: 2025-06-30 | S124: 2022-07-01 | T124: 李洋 | U124: 35 | Y124: 7
A125: 无锡红杉兴业股权投资合伙企业（有限合伙） | B125: C2023131 | C125: 租赁合同 | D125: 中国物联网国际创新园 | E125: 一期 | F125: B栋 | G125: 410 | H125: 生效中 | I125: 江苏圣捷集科技有限公司 | J125: 江苏圣捷集科技有限公司 | L125: 租赁模板A | M125: 112 | N125: 季付 | O125: 2022/4/1 | P125: 2025/03/31 | S125: 2022/4/1 | T125: 朱盛军 | U125: 35 | Y125: 7
A126: 无锡飞谱电子信息技术有限公司 | B126: C2023132 | C126: 租赁合同 | D126: 中国物联网国际创新园 | E126: 一期 | F126: B栋 | G126: 409 | H126: 生效中 | I126: 无锡焕芯科技有限公司 | J126: 无锡焕芯科技有限公司 | L126: 租赁模板A | M126: 77 | N126: 季付 | O126: 2022-03-01 | P126: 2025-02-28 | S126: 2022-03-01 | T126: 杜铭 | U126: 35 | Y126: 7
A127: 江苏中科羿链通信技术有限公司 | B127: C2023133 | C127: 租赁合同 | D127: 中国物联网国际创新园 | E127: 一期 | F127: B栋 | G127: 408 | H127: 生效中 | I127: 无锡旭浦能源科技有限公司 | J127: 无锡旭浦能源科技有限公司 | L127: 租赁模板A | M127: 114 | N127: 季付 | O127: 2022-06-15 | P127: 2025-06-14 | S127: 2022-06-15 | T127: 吴可可 | U127: 35 | Y127: 7
A128: 无锡市瀚为科技有限公司 | B128: C2023134 | C128: 租赁合同 | D128: 中国物联网国际创新园 | E128: 一期 | F128: B栋 | G128: 407 | H128: 生效中 | I128: 无锡中启半导体有限公司 | J128: 无锡中启半导体有限公司 | L128: 租赁模板A | M128: 79 | N128: 季付 | O128: 2021-09-01 | P128: 2024-08-31 | S128: 2021-09-01 | T128: 穆亚芳 | U128: 35 | Y128: 7
A129: 无锡浩森舟科技有限公司 | B129: C2023135 | C129: 租赁合同 | D129: 中国物联网国际创新园 | E129: 一期 | F129: B栋 | G129: 401 | H129: 生效中 | I129: 无锡布里渊电子科技有限公司 | J129: 无锡布里渊电子科技有限公司 | L129: 租赁模板A | M129: 902 | N129: 季付 | O129: 2022-08-01 | P129: 2025-07-31 | S129: 2022-08-01 | T129: 韦波 | U129: 35 | Y129: 7
A130: 无锡开云信息技术有限公司 | B130: C2023136 | C130: 租赁合同 | D130: 中国物联网国际创新园 | E130: 二期 | F130: D2栋 | G130: 101 | H130: 生效中 | I130: 无锡安特源科技股份有限公司 | J130: 无锡安特源科技股份有限公司 | L130: 租赁模板A | M130: 1176 | N130: 季付 | O130: 2021-01-01 | P130: 2024-12-31 | S130: =O130 -> 2021-01-01 | T130: 许若鹏 | U130: 23 | Y130: 7
A131: 无锡思佰益私募基金管理有限公司 | B131: C2023137 | C131: 租赁合同 | D131: 中国物联网国际创新园 | E131: 二期 | F131: D2栋 | G131: 201 | H131: 生效中 | I131: 无锡厦泰生物科技有限公司 | J131: 无锡厦泰生物科技有限公司 | L131: 租赁模板A | M131: 1495.5 | N131: 季付 | O131: 2022-11-01 | P131: 2025-10-31 | S131: 2022-11-01 | T131: 钱怡菁 | U131: 35 | Y131: 7
A132: 无锡流深光电科技有限公司 | B132: C2023138 | C132: 租赁合同 | D132: 中国物联网国际创新园 | E132: 二期 | F132: D2栋 | G132: 307 | H132: 生效中 | I132: 中城智慧科技有限公司 | J132: =VLOOKUP(I132,A:A,1,0) -> 中城智慧科技有限公司 | L132: 租赁模板A | M132: 490 | N132: 季付 | O132: 2017-08-01 | P132: 2025-07-31 | S132: 2017-08-01 | T132: 聂明 | U132: 35 | Y132: 7
A133: 无锡沃克特科技有限公司 | B133: C2023139 | C133: 租赁合同 | D133: 中国物联网国际创新园 | E133: 二期 | F133: D2栋 | G133: 303 | H133: 生效中 | I133: 无锡医迈德科技有限公司 | J133: 无锡医迈德科技有限公司 | L133: 租赁模板A | M133: 480 | N133: 季付 | O133: 2019-06-01 | P133: 2025-05-31 | S133: 2019-06-01 | T133: 朱宏宽 | U133: 35 | Y133: 7
A134: 无锡美桥电子科技有限公司 | B134: C2023140 | C134: 租赁合同 | D134: 中国物联网国际创新园 | E134: 二期 | F134: D2栋 | G134: 305 | H134: 生效中 | I134: 无锡赢科软件技术有限公司 | J134: 无锡赢科软件技术有限公司 | L134: 租赁模板A | M134: 437 | N134: 季付 | O134: 2023-01-01 | P134: 2025-12-31 | S134: 2023-01-01 | T134: 江礼辉 | U134: 35 | Y134: 7
A135: 智驰华芯（无锡）传感科技有限公司 | B135: C2023141 | C135: 租赁合同 | D135: 中国物联网国际创新园 | E135: 二期 | F135: D2栋 | G135: 301 | H135: 生效中 | I135: 无锡迎嘉信息技术有限公司 | J135: 无锡迎嘉信息技术有限公司 | L135: 租赁模板A | M135: 440 | N135: 季付 | O135: 2014-08-25 | P135: 2025-08-24 | S135: 2014-08-25 | T135: 陈杰 | U135: 35 | Y135: 7
A136: 无锡安特源科技股份有限公司 | B136: C2023142 | C136: 租赁合同 | D136: 中国物联网国际创新园 | E136: 二期 | F136: D2栋 | G136: 501 | H136: 生效中 | I136: 江苏中科君芯科技有限公司 | J136: 江苏中科君芯科技有限公司 | L136: 租赁模板A | M136: 1758.5 | N136: 季付 | O136: 2021-09-01 | P136: 2024-08-31 | S136: 2021-09-01 | T136: 肖庆云 | U136: 35 | Y136: 7
A137: 无锡飞蓝航空科技有限公司 | B137: C2023143 | C137: 租赁合同 | D137: 中国物联网国际创新园 | E137: 二期 | F137: D2栋 | G137: 601 | H137: 生效中 | I137: 无锡慕鱼人力资源服务有限公司 | J137: 无锡慕鱼人力资源服务有限公司 | L137: 租赁模板A | M137: 51 | N137: 季付 | O137: 2020-06-15 | P137: 2023/6/14 | S137: 2020-06-15 | T137: 高永梅 | U137: 35 | Y137: 7
A138: 丽泽电池科技（无锡）有限公司 | B138: C2023144 | C138: 租赁合同 | D138: 中国物联网国际创新园 | E138: 二期 | F138: D2栋 | G138: 602 | H138: 生效中 | I138: 无锡金尚汽车技术开发有限公司 | J138: 无锡金尚汽车技术开发有限公司 | L138: 租赁模板A | M138: 51 | N138: 季付 | O138: 2021-11-16 | P138: 2024/11/15 | S138: 2021-11-16 | T138: 孙春华 | U138: 35 | Y138: 7
A139: 无锡众创投资管理有限公司 | B139: C2023145 | C139: 租赁合同 | D139: 中国物联网国际创新园 | E139: 二期 | F139: D2栋 | G139: 603 | H139: 生效中 | I139: 无锡家珵环保制品有限公司 | J139: 无锡家珵环保制品有限公司 | L139: 租赁模板A | M139: 49.8 | N139: 季付 | O139: 2023-04-01 | P139: 2025-03-31 | S139: 2023-04-01 | T139: 李晓平 | U139: 35 | Y139: 7
A140: 江苏哲勤科技有限公司 | B140: C2023146 | C140: 租赁合同 | D140: 中国物联网国际创新园 | E140: 二期 | F140: D2栋 | G140: 604 | H140: 生效中 | I140: 无锡广汇鑫电子科技有限公司 | L140: 租赁模板A | M140: 53.6 | N140: 季付 | O140: 2023-04-01 | P140: 2025-03-31 | S140: 2023-04-01 | T140: 徐继双 | U140: 35 | Y140: 7
A141: 无锡创星众创企业管理咨询合伙企业（有限合伙） | B141: C2023147 | C141: 租赁合同 | D141: 中国物联网国际创新园 | E141: 二期 | F141: D2栋 | G141: 605 | H141: 生效中 | I141: 无锡中科维智数据科技有限公司 | J141: 无锡中科维智数据科技有限公司 | L141: 租赁模板A | M141: 53.6 | N141: 季付 | O141: 2022-07-01 | P141: 2025-06-30 | S141: 2022-07-01 | T141: 孙晓丽 | U141: 35 | Y141: 7
A142: 无锡奥利杰科技有限公司 | B142: C2023147 | C142: 租赁合同 | D142: 中国物联网国际创新园 | E142: 二期 | F142: D2栋 | G142: 606 | H142: 生效中 | I142: 无锡中科维智数据科技有限公司 | J142: 无锡中科维智数据科技有限公司 | L142: 租赁模板A | M142: 47.2 | N142: 季付 | O142: 2022-07-01 | P142: 2025-06-30 | S142: 2022-07-01 | T142: 孙晓丽 | U142: 35 | Y142: 7
A143: 无锡永逸乐机电设备有限公司 | B143: C2023148 | C143: 租赁合同 | D143: 中国物联网国际创新园 | E143: 二期 | F143: D2栋 | G143: 607 | H143: 生效中 | I143: 问天鼎讯量子科技（无锡）有限公司 | J143: 问天鼎讯量子科技（无锡）有限公司 | L143: 租赁模板A | M143: 51 | N143: 季付 | O143: 2020-11-01 | P143: 2023/10/31 | S143: 2020-11-01 | T143: 黎斌 | U143: 35 | Y143: 7
A144: 无锡大账房信息技术有限公司 | B144: C2023149 | C144: 租赁合同 | D144: 中国物联网国际创新园 | E144: 二期 | F144: D2栋 | G144: 609 | H144: 生效中 | I144: 无锡康讯微电子科技有限公司 | J144: 无锡康讯微电子科技有限公司 | L144: 租赁模板A | M144: 72.7 | N144: 季付 | O144: 2021-07-01 | P144: 2024/6/30 | S144: 2021-07-01 | T144: 张洁 | U144: 35 | Y144: 7
A145: 无锡锡产瑞成企业管理有限公司 | B145: C2023150 | C145: 租赁合同 | D145: 中国物联网国际创新园 | E145: 二期 | F145: D2栋 | G145: 610 | H145: 生效中 | I145: 江苏领创智科技发展有限公司 | L145: 租赁模板A | M145: 63.8 | N145: 季付 | O145: 2020-12-01 | P145: 2023/11/30 | S145: 2020-12-01 | T145: 施吉 | U145: 35 | Y145: 7
A146: 江苏慧乔信息科技有限公司 | B146: C2023151 | C146: 租赁合同 | D146: 中国物联网国际创新园 | E146: 二期 | F146: D2栋 | G146: 612 | H146: 生效中 | I146: 无锡卡思优派工业服务外包有限公司 | J146: 无锡卡思优派工业服务外包有限公司 | L146: 租赁模板A | M146: 62.5 | N146: 季付 | O146: 2021-07-01 | P146: 2024-06-30 | S146: 2021-07-01 | T146: 魏亮 | U146: 35 | Y146: 7
A147: 无锡感讯微电子有限公司 | B147: C2023152 | C147: 租赁合同 | D147: 中国物联网国际创新园 | E147: 二期 | F147: D2栋 | G147: 617 | H147: 生效中 | I147: 无锡行行智研科技有限公司 | J147: 无锡行行智研科技有限公司 | L147: 租赁模板A | M147: 63.8 | N147: 季付 | O147: 2023-03-01 | P147: 2026-02-28 | S147: 2023-03-01 | T147: 仓剑 | U147: 35 | Y147: 7
A148: 西克制冷（无锡）有限公司 | B148: C2023153 | C148: 租赁合同 | D148: 中国物联网国际创新园 | E148: 二期 | F148: D2栋 | G148: 618 | H148: 生效中 | I148: 无锡中营康园自动化设备有限公司 | J148: 无锡中营康园自动化设备有限公司 | L148: 租赁模板A | M148: 49.8 | N148: 季付 | O148: 2023-06-01 | P148: 2024-05-31 | S148: 2023-06-01 | T148: 曲延庆 | U148: 35 | Y148: 7
A149: 麦臻新能源科技无锡有限公司 | B149: C2023154 | C149: 租赁合同 | D149: 中国物联网国际创新园 | E149: 二期 | F149: D2栋 | G149: 620 | H149: 生效中 | I149: 无锡华恩泰物联网科技有限责任公司 | J149: 无锡华恩泰物联网科技有限责任公司 | L149: 租赁模板A | M149: 97 | N149: 季付 | O149: 2021-11-15 | P149: 2024/11/14 | S149: 2021-11-15 | T149: 王文娜 | U149: 35 | Y149: 7
A150: 无锡专心智制科技有限公司 | B150: C2023155 | C150: 租赁合同 | D150: 中国物联网国际创新园 | E150: 二期 | F150: D2栋 | G150: 621 | H150: 生效中 | I150: 无锡芯利世科技有限公司 | J150: 无锡芯利世科技有限公司 | L150: 租赁模板A | M150: 122.5 | N150: 季付 | O150: 2023-05-08 | P150: 2025-05-07 | S150: 2023-05-08 | T150: 王悦 | U150: 35 | Y150: 7
A151: 无锡华睿众合投资中心（有限合伙） | B151: C2023156 | C151: 租赁合同 | D151: 中国物联网国际创新园 | E151: 二期 | F151: D2栋 | G151: 622 | H151: 生效中 | I151: 无锡腾云驾数技术服务有限公司 | J151: 无锡腾云驾数技术服务有限公司 | L151: 租赁模板A | M151: 122.5 | N151: 季付 | O151: 2022-09-01 | P151: 2025-08-31 | S151: 2022-09-01 | T151: 马松松 | U151: 35 | Y151: 7
A152: 无锡紫光微电子有限公司 | B152: C2023157 | C152: 租赁合同 | D152: 中国物联网国际创新园 | E152: 二期 | F152: D2栋 | G152: 623 | H152: 生效中 | I152: 无锡智信云信息科技有限公司 | J152: 无锡智信云信息科技有限公司 | L152: 租赁模板A | M152: 97 | N152: 季付 | O152: 2023-06-01 | P152: 2025-05-31 | S152: 2023-06-01 | T152: 陈泽琼 | U152: 35 | Y152: 7
A153: 无锡融弘国联股权投资有限公司 | B153: C2023158 | C153: 租赁合同 | D153: 中国物联网国际创新园 | E153: 二期 | F153: D2栋 | G153: 624 | H153: 生效中 | I153: 无锡智尧信息科技有限公司 | J153: 无锡智尧信息科技有限公司 | L153: 租赁模板A | M153: 123.7 | N153: 季付 | O153: 2023-06-01 | P153: 2025-05-31 | S153: 2023-06-01 | T153: 冯建萍 | U153: 35 | Y153: 7
A154: 无锡菩芯电子科技有限公司 | B154: C2023159 | C154: 物业合同 | D154: 中国物联网国际创新园 | E154: 二期 | F154: D1栋 | G154: 101 | H154: 生效中 | I154: 华进半导体封装先导技术研发中心有限公司 | J154: 华进半导体封装先导技术研发中心有限公司 | L154: 租赁模板A | M154: 1797.5 | N154: 季付 | O154: 2023-01-01 | P154: 2023-12-31 | S154: 2023-01-01 | T154: 苏建光 | U154: 0 | Y154: 5
A155: 无锡创芯投资合伙企业（有限合伙） | B155: C2023159 | C155: 物业合同 | D155: 中国物联网国际创新园 | E155: 二期 | F155: D1栋 | G155: 201 | H155: 生效中 | I155: 华进半导体封装先导技术研发中心有限公司 | J155: 华进半导体封装先导技术研发中心有限公司 | L155: 租赁模板A | M155: 1591.5 | N155: 季付 | O155: 2023-01-01 | P155: 2023-12-31 | S155: 2023-01-01 | T155: 苏建光 | U155: 0 | Y155: 5
A156: 无锡精质视觉科技有限公司 | B156: C2023159 | C156: 物业合同 | D156: 中国物联网国际创新园 | E156: 二期 | F156: D1栋 | G156: 301 | H156: 生效中 | I156: 华进半导体封装先导技术研发中心有限公司 | J156: 华进半导体封装先导技术研发中心有限公司 | L156: 租赁模板A | M156: 1542 | N156: 季付 | O156: 2023-01-01 | P156: 2023-12-31 | S156: 2023-01-01 | T156: 苏建光 | U156: 0 | Y156: 5
A157: 江苏行云信息科技有限公司 | B157: C2023159 | C157: 物业合同 | D157: 中国物联网国际创新园 | E157: 二期 | F157: D1栋 | G157: 401 | H157: 生效中 | I157: 华进半导体封装先导技术研发中心有限公司 | J157: 华进半导体封装先导技术研发中心有限公司 | L157: 租赁模板A | M157: 1542 | N157: 季付 | O157: 2023-01-01 | P157: 2023-12-31 | S157: 2023-01-01 | T157: 苏建光 | U157: 0 | Y157: 5
A158: 中科智库物联网技术研究院江苏有限公司 | B158: C2023159 | C158: 物业合同 | D158: 中国物联网国际创新园 | E158: 二期 | F158: D1栋 | G158: 501 | H158: 生效中 | I158: 华进半导体封装先导技术研发中心有限公司 | J158: 华进半导体封装先导技术研发中心有限公司 | L158: 租赁模板A | M158: 1542 | N158: 季付 | O158: 2023-01-01 | P158: 2023-12-31 | S158: 2023-01-01 | T158: 苏建光 | U158: 0 | Y158: 5
A159: 无锡国联集成电路投资中心（有限合伙） | B159: C2023159 | C159: 物业合同 | D159: 中国物联网国际创新园 | E159: 二期 | F159: D1栋 | G159: 601 | H159: 生效中 | I159: 华进半导体封装先导技术研发中心有限公司 | J159: 华进半导体封装先导技术研发中心有限公司 | L159: 租赁模板A | M159: 1431.24 | N159: 季付 | O159: 2023-01-01 | P159: 2023-12-31 | S159: 2023-01-01 | T159: 苏建光 | U159: 0 | Y159: 5
A160: 无锡智行华芯高科技合伙企业（有限合伙） | B160: C2023160 | C160: 租赁合同 | D160: 中国物联网国际创新园 | E160: 二期 | F160: E2栋 | G160: 101 | H160: 生效中 | I160: 无锡市时盛激光科技有限公司 | J160: 无锡市时盛激光科技有限公司 | L160: 租赁模板A | M160: 217 | N160: 季付 | O160: 2022-02-15 | P160: 2025/2/14 | S160: 2022-02-15 | T160: 周训全 | U160: 35 | Y160: 7
A161: 无锡新创吉联股权投资合伙企业（有限合伙） | B161: C2023161 | C161: 租赁合同 | D161: 中国物联网国际创新园 | E161: 二期 | F161: E2栋 | G161: 102-1 | H161: 生效中 | I161: 无锡纳诺光子技术有限公司 | J161: 无锡纳诺光子技术有限公司 | L161: 租赁模板A | M161: 143.5 | N161: 季付 | O161: 2021-01-01 | P161: 2023/12/31 | S161: 2021-01-01 | T161: 江华明 | U161: 30 | Y161: 5
A162: 睿创微纳（无锡）技术有限公司 | B162: C2023162 | C162: 租赁合同 | D162: 中国物联网国际创新园 | E162: 二期 | F162: E2栋 | G162: 102-2 | H162: 生效中 | I162: 无锡市时盛激光科技有限公司 | J162: 无锡市时盛激光科技有限公司 | L162: 租赁模板A | M162: 76.5 | N162: 季付 | O162: 2022-01-01 | P162: 2024-12-31 | S162: 2022-01-01 | T162: 周训全 | U162: 35 | Y162: 7
A163: 无锡中科明略科技有限公司 | B163: C2023162 | C163: 租赁合同 | D163: 中国物联网国际创新园 | E163: 二期 | F163: E2栋 | G163: 104 | H163: 生效中 | I163: 无锡市时盛激光科技有限公司 | J163: 无锡市时盛激光科技有限公司 | L163: 租赁模板A | M163: 437 | N163: 季付 | O163: 2022-01-01 | P163: 2024-12-31 | S163: 2022-01-01 | T163: 周训全 | U163: 35 | Y163: 7
A164: 无锡中科芯启程产业投资合伙企业（有限合伙） | B164: C2023163 | C164: 租赁合同 | D164: 中国物联网国际创新园 | E164: 二期 | F164: E2栋 | G164: 106 | H164: 生效中 | I164: 华英证券有限责任公司 | J164: 华英证券有限责任公司 | L164: 租赁模板A | M164: 292 | N164: 季付 | O164: 2023-04-01 | P164: 2024-03-30 | S164: 2023-04-01 | T164: 葛小波 | U164: 35 | Y164: 7
A165: 无锡麦姆斯咨询有限公司 | B165: C2023164 | C165: 租赁合同 | D165: 中国物联网国际创新园 | E165: 二期 | F165: E2栋 | G165: 108 | H165: 生效中 | I165: 无锡凯必特斯半导体科技有限公司 | J165: 无锡凯必特斯半导体科技有限公司 | L165: 租赁模板A | M165: 485 | N165: 季付 | O165: 2018-08-01 | P165: 2023/7/31 | S165: 2018-08-01 | T165: 王丕松 | U165: 35 | Y165: 7
A166: 江苏生活通信息技术有限公司 | B166: C2023165 | C166: 租赁合同 | D166: 中国物联网国际创新园 | E166: 二期 | F166: E2栋 | G166: 109 | H166: 生效中 | I166: 无锡光之谷传感技术有限公司 | J166: 无锡光之谷传感技术有限公司 | L166: 租赁模板A | M166: 514 | N166: 季付 | O166: 2021-01-15 | P166: 2023/12/14 | S166: 2021-01-15 | T166: 陈晶晶 | U166: 35 | Y166: 7
A167: 无锡影速半导体科技有限公司 | B167: C2023166 | C167: 租赁合同 | D167: 中国物联网国际创新园 | E167: 二期 | F167: E2栋 | G167: 111 | H167: 生效中 | I167: 无锡谱视界科技有限公司 | J167: 无锡谱视界科技有限公司 | L167: 租赁模板A | M167: 868 | N167: 季付 | O167: 2021-10-08 | P167: 2024/10/7 | S167: 2021-10-08 | T167: 李子婧 | U167: 35 | Y167: 7
A168: 无锡军创工程技术有限公司 | B168: C2023167 | C168: 租赁合同 | D168: 中国物联网国际创新园 | E168: 二期 | F168: E2栋 | G168: 112 | H168: 生效中 | I168: 无锡物联网创新中心有限公司 | J168: 无锡物联网创新中心有限公司 | L168: 租赁模板A | M168: 2280.55 | N168: 季付 | O168: 2023-07-01 | P168: 2024-06-30 | S168: 2023-07-01 | T168: 蒋国雄 | U168: 35 | Y168: 7
A169: 无锡国发云轫创业投资有限公司 | B169: C2023168 | C169: 租赁合同 | D169: 中国物联网国际创新园 | E169: 二期 | F169: E2栋 | G169: 107 | H169: 生效中 | I169: 有芯智能科技（无锡）有限公司 | J169: 有芯智能科技（无锡）有限公司 | L169: 租赁模板A | M169: 334 | N169: 季付 | O169: 2022-05-15 | P169: 2025-05-14 | S169: 2022-05-15 | T169: 李志平 | U169: 35 | Y169: 7
A170: 江苏极熵物联科技有限公司 | B170: C2023169 | C170: 租赁合同 | D170: 中国物联网国际创新园 | E170: 二期 | F170: E2栋 | G170: 201 | H170: 生效中 | I170: 立潮半导体科技（江苏无锡）有限公司 | J170: 立潮半导体科技（江苏无锡）有限公司 | L170: 租赁模板A | M170: 590 | N170: 季付 | O170: 2023-02-15 | P170: 2026-02-14 | S170: 2023-02-15 | T170: 鲍学磊 | U170: 35 | Y170: 7
A171: 无锡思杰软件有限公司 | B171: C2023170 | C171: 租赁合同 | D171: 中国物联网国际创新园 | E171: 二期 | F171: E2栋 | G171: 205 | H171: 生效中 | I171: 无锡优驱自动控制科技有限公司 | J171: 无锡优驱自动控制科技有限公司 | L171: 租赁模板A | M171: 1142 | N171: 季付 | O171: 2022-07-01 | P171: 2025-06-30 | S171: 2022-07-01 | T171: 谢涌泉 | U171: 35 | Y171: 7
A172: 无锡峰睿投资有限公司 | B172: C2023171 | C172: 租赁合同 | D172: 中国物联网国际创新园 | E172: 二期 | F172: E2栋 | G172: 211 | H172: 生效中 | I172: 矽朋微电子（无锡）有限公司 | J172: 矽朋微电子（无锡）有限公司 | L172: 租赁模板A | M172: 556 | N172: 季付 | O172: 2022-11-01 | P172: 2025-10-31 | S172: 2022-11-01 | T172: 陈阜东 | U172: 35 | Y172: 7
A173: 无锡赛默斐视科技有限公司 | B173: C2023172 | C173: 租赁合同 | D173: 中国物联网国际创新园 | E173: 二期 | F173: E2栋 | G173: 213 | H173: 生效中 | I173: 无锡优塑美科技有限公司 | J173: 无锡优塑美科技有限公司 | L173: 租赁模板A | M173: 563 | N173: 季付 | O173: 2018-09-01 | P173: 2024-08-31 | S173: 2018-09-01 | T173: 陈敏 | U173: 35 | Y173: 7
A174: 无锡谱视群英科技中心（有限合伙） | B174: C2023173 | C174: 租赁合同 | D174: 中国物联网国际创新园 | E174: 二期 | F174: E2栋 | G174: 215 | H174: 生效中 | I174: 江苏中科数泰科技有限公司 | J174: 江苏中科数泰科技有限公司 | L174: 租赁模板A | M174: 556 | N174: 季付 | O174: 2019-02-01 | P174: 2025-03-31 | S174: 2019-02-01 | T174: 晏文 | U174: 35 | Y174: 7
A175: 无锡先迪德宝电子有限公司 | B175: C2023174 | C175: 租赁合同 | D175: 中国物联网国际创新园 | E175: 二期 | F175: E2栋 | G175: 216 | H175: 生效中 | I175: 温森美（无锡）设备技术有限公司 | J175: 温森美（无锡）设备技术有限公司 | L175: 租赁模板A | M175: 312 | N175: 季付 | O175: 2022-08-01 | P175: 2025-07-31 | S175: 2022-08-01 | T175: LEE HYUNGSEOK | U175: 35 | Y175: 7
A176: 无锡泓瑞信息科技有限公司 | B176: C2023175 | C176: 租赁合同 | D176: 中国物联网国际创新园 | E176: 二期 | F176: E2栋 | G176: 304 | H176: 生效中 | I176: 无锡力捷丰科技有限公司 | J176: 无锡力捷丰科技有限公司 | L176: 租赁模板A | M176: 444 | N176: 季付 | O176: 2021-12-16 | P176: 2024/12/15 | S176: 2021-12-16 | T176: 楚丰 | U176: 35 | Y176: 7
A177: 无锡克莱沃智能装备有限公司 | B177: C2023176 | C177: 租赁合同 | D177: 中国物联网国际创新园 | E177: 二期 | F177: E2栋 | G177: 306 | H177: 生效中 | I177: 图灵威视智能科技（无锡）有限公司 | J177: 图灵威视智能科技（无锡）有限公司 | L177: 租赁模板A | M177: 288 | N177: 季付 | O177: 2022-05-15 | P177: 2025-05-14 | S177: 2022-05-15 | T177: 刘亚楠 | U177: 35 | Y177: 7
A178: 无锡朗邦网络科技有限公司 | B178: C2023177 | C178: 租赁合同 | D178: 中国物联网国际创新园 | E178: 二期 | F178: E2栋 | G178: 308 | H178: 生效中 | I178: 中科融通物联科技无锡有限公司 | J178: 中科融通物联科技无锡有限公司 | L178: 租赁模板A | M178: 330 | N178: 季付 | O178: 2022-07-01 | P178: 2025-06-30 | S178: 2022-07-01 | T178: 郭春光 | U178: 35 | Y178: 7
A179: 无锡建瓴投资合伙企业（有限合伙） | B179: C2023178 | C179: 租赁合同 | D179: 中国物联网国际创新园 | E179: 二期 | F179: E2栋 | G179: 312 | H179: 生效中 | I179: 无锡苏博网络信息管理有限公司 | J179: 无锡苏博网络信息管理有限公司 | L179: 租赁模板A | M179: 196 | N179: 季付 | O179: 2022-10-08 | P179: 2023-10-07 | S179: 2022-10-08 | T179: 吴昊 | U179: 35 | Y179: 7
A180: 无锡中科创星投资合伙企业（有限合伙） | B180: C2023179 | C180: 租赁合同 | D180: 中国物联网国际创新园 | E180: 二期 | F180: E2栋 | G180: 314 | H180: 生效中 | I180: 无锡汇才企业管理有限公司 | J180: 无锡汇才企业管理有限公司 | L180: 租赁模板A | M180: 243 | N180: 季付 | O180: 2021-06-01 | P180: 2024/5/31 | S180: 2021-06-01 | T180: 王黎明 | U180: 35 | Y180: 7
A181: 无锡中科君芯企业管理合伙企业（有限合伙） | B181: C2023180 | C181: 租赁合同 | D181: 中国物联网国际创新园 | E181: 二期 | F181: E2栋 | G181: 316 | H181: 生效中 | I181: 江苏安友生物科技有限公司 | J181: 江苏安友生物科技有限公司 | L181: 租赁模板A | M181: 290 | N181: 季付 | O181: 2022-11-01 | P181: 2025-10-31 | S181: 2022-11-01 | T181: 殷/玫 | U181: 35 | Y181: 7
A182: 无锡凯必特斯半导体科技有限公司 | B182: C2023181 | C182: 租赁合同 | D182: 中国物联网国际创新园 | E182: 二期 | F182: E2栋 | G182: 318 | H182: 生效中 | I182: 江苏米孚数字科技有限公司 | J182: 江苏米孚数字科技有限公司 | L182: 租赁模板A | M182: 525 | N182: 季付 | O182: 2021-05-01 | P182: 2024/4/30 | S182: 2021-05-01 | T182: 张继锋 | U182: 35 | Y182: 7
A183: 无锡微软艾柏通讯技术有限公司 | B183: C2023182 | C183: 租赁合同 | D183: 中国物联网国际创新园 | E183: 二期 | F183: E2栋 | G183: 320 | H183: 生效中 | I183: 中讯通康信息科技无锡有限公司 | J183: 中讯通康信息科技无锡有限公司 | L183: 租赁模板A | M183: 138 | N183: 季付 | O183: 2022-10-25 | P183: 2025-10-24 | S183: 2022-10-25 | T183: 曹华云 | U183: 35 | Y183: 7
A184: 无锡中水通实业投资合伙企业（有限合伙） | B184: C2023183 | C184: 租赁合同 | D184: 中国物联网国际创新园 | E184: 二期 | F184: E2栋 | G184: 322 | H184: 生效中 | I184: 西门子（中国）有限公司无锡创新中心 | J184: 西门子（中国）有限公司无锡创新中心 | L184: 租赁模板A | M184: 502 | N184: 季付 | O184: 2020-06-30 | P184: 2025/6/29 | S184: 2020-06-30 | T184: 吴永新 | U184: 35 | Y184: 7
A185: 无锡国联新创私募投资基金有限公司 | B185: C2023184 | C185: 租赁合同 | D185: 中国物联网国际创新园 | E185: 二期 | F185: E2栋 | G185: 324 | H185: 生效中 | I185: 天芯互联科技有限公司无锡分公司 | L185: 租赁模板A | M185: 832 | N185: 季付 | O185: 2021-01-01 | P185: 2023/12/31 | S185: 2021-01-01 | T185: 江京 | U185: 35 | Y185: 7
A186: 无锡旭浦能源科技有限公司 | B186: C2023185 | C186: 租赁合同 | D186: 中国物联网国际创新园 | E186: 二期 | F186: E2栋 | G186: 329 | H186: 生效中 | I186: 无锡群联电子技术有限公司 | J186: 无锡群联电子技术有限公司 | L186: 租赁模板A | M186: 548 | N186: 季付 | O186: 2023-06-15 | P186: 2025-06-14 | S186: 2023-06-15 | T186: 张朋程 | U186: 35 | Y186: 7
A187: 江苏瀚点智能科技有限公司 | B187: C2023186 | C187: 租赁合同 | D187: 中国物联网国际创新园 | E187: 二期 | F187: E1栋 | G187: 301 | H187: 生效中 | I187: 无锡飞谱电子信息技术有限公司 | J187: 无锡飞谱电子信息技术有限公司 | L187: 租赁模板A | M187: 1201 | N187: 季付 | O187: 2022-12-01 | P187: 2025-11-30 | S187: 2022-12-01 | T187: 王道祥 | U187: 35 | Y187: 7
A188: 江苏彰旗物联网科技有限公司 | B188: C2023187 | C188: 租赁合同 | D188: 中国物联网国际创新园 | E188: 二期 | F188: E2栋 | G188: 401 | H188: 生效中 | I188: 无锡秩熵物联网科技有限公司 | J188: 无锡秩熵物联网科技有限公司 | L188: 租赁模板A | M188: 295 | N188: 季付 | O188: 2022-10-01 | P188: 2025-09-30 | S188: 2022-10-01 | T188: 许涵 | U188: 35 | Y188: 7
A189: 盛奕半导体科技（无锡）有限公司 | B189: C2023188 | C189: 租赁合同 | D189: 中国物联网国际创新园 | E189: 二期 | F189: E2栋 | G189: 405 | H189: 生效中 | I189: 无锡海迪斯智能科技有限公司 | J189: 无锡海迪斯智能科技有限公司 | L189: 租赁模板A | M189: 226 | N189: 季付 | O189: 2022-12-05 | P189: 2025-12-04 | S189: 2022-12-05 | T189: 郑保国 | U189: 35 | Y189: 7
A190: 问天鼎讯量子科技（无锡）有限公司 | B190: C2023189 | C190: 租赁合同 | D190: 中国物联网国际创新园 | E190: 二期 | F190: E2栋 | G190: 407 | H190: 生效中 | I190: 无锡弘鼎软件科技有限公司 | J190: 无锡弘鼎软件科技有限公司 | L190: 租赁模板A | M190: 202 | N190: 季付 | O190: 2021-12-01 | P190: 2024/11/30 | S190: 2021-12-01 | T190: 张梓韦 | U190: 35 | Y190: 7
A191: 无锡生科一号咨询服务合伙企业（有限合伙） | B191: C2023190 | C191: 租赁合同 | D191: 中国物联网国际创新园 | E191: 二期 | F191: E2栋 | G191: 409 | H191: 生效中 | I191: 海菲克智能科技（江苏）有限公司 | J191: 海菲克智能科技（江苏）有限公司 | L191: 租赁模板A | M191: 305 | N191: 季付 | O191: 2022-01-01 | P191: 2024/12/31 | S191: 2022-01-01 | T191: 沈新稚 | U191: 35 | Y191: 7
A192: 江苏深网科技有限公司 | B192: C2023191 | C192: 租赁合同 | D192: 中国物联网国际创新园 | E192: 二期 | F192: E2栋 | G192: 411 | H192: 生效中 | I192: 无锡漆好环保新材料研究有限公司 | J192: 无锡漆好环保新材料研究有限公司 | L192: 租赁模板A | M192: 303 | N192: 季付 | O192: 2021-08-01 | P192: 2024/7/31 | S192: 2021-08-01 | T192: 丰景 | U192: 35 | Y192: 7
A193: 江苏无锡国鹏航空投资中心（有限合伙） | B193: C2023192 | C193: 租赁合同 | D193: 中国物联网国际创新园 | E193: 二期 | F193: E2栋 | G193: 413 | H193: 生效中 | I193: 无锡吉数网络有限公司 | J193: 无锡吉数网络有限公司 | L193: 租赁模板A | M193: 198 | N193: 季付 | O193: 2023-03-15 | P193: 2026-03-14 | S193: 2023-03-15 | T193: 曹文渊 | U193: 35 | Y193: 7
A194: 摩诃科技无锡有限公司 | B194: C2023193 | C194: 租赁合同 | D194: 中国物联网国际创新园 | E194: 二期 | F194: E2栋 | G194: 415 | H194: 生效中 | I194: 无锡灵瑞科技有限公司 | J194: 无锡灵瑞科技有限公司 | L194: 租赁模板A | M194: 274 | N194: 季付 | O194: 2021-12-01 | P194: 2024/11/30 | S194: =O194 -> 2021-12-01 | T194: 王胜利 | U194: 35 | Y194: 7
A195: 无锡超信工业外包有限公司 | B195: C2023194 | C195: 租赁合同 | D195: 中国物联网国际创新园 | E195: 二期 | F195: E2栋 | G195: 419 | H195: 生效中 | I195: 无锡图灵视频科技有限公司 | J195: 无锡图灵视频科技有限公司 | L195: 租赁模板A | M195: 258 | N195: 季付 | O195: 2017-05-04 | P195: 2025-05-03 | S195: 2017-05-04 | T195: 钟星 | U195: 35 | Y195: 7
A196: 无锡医迈德科技有限公司 | B196: C2023195 | C196: 租赁合同 | D196: 中国物联网国际创新园 | E196: 二期 | F196: E2栋 | G196: 421 | H196: 生效中 | I196: 无锡超行星视频科技有限公司 | J196: =VLOOKUP(I196,A:A,1,0) -> 无锡超行星视频科技有限公司 | L196: 租赁模板A | M196: 310 | N196: 季付 | O196: 2022-01-01 | P196: 2024/12/31 | S196: 2022-01-01 | T196: 钟星 | U196: 35 | Y196: 7
A197: 无锡瓴博科技合伙企业（有限合伙） | B197: C2023196 | C197: 租赁合同 | D197: 中国物联网国际创新园 | E197: 二期 | F197: E2栋 | G197: 423 | H197: 生效中 | I197: 迈锐数据（无锡）有限公司 | J197: 迈锐数据（无锡）有限公司 | L197: 租赁模板A | M197: 318 | N197: 季付 | O197: 2019-10-15 | P197: 2025-10-14 | S197: 2019-10-15 | T197: 刘刚 | U197: 35 | Y197: 7
A198: 无锡吉成生物科技有限公司 | B198: C2023197 | C198: 租赁合同 | D198: 中国物联网国际创新园 | E198: 二期 | F198: E1栋 | G198: 403 | H198: 生效中 | I198: 无锡中金鼎讯信通科技股份有限公司 | J198: 无锡中金鼎讯信通科技股份有限公司 | L198: 租赁模板A | M198: 243 | N198: 季付 | O198: 2021-01-01 | P198: 2023/12/31 | S198: 2021-01-01 | T198: 赵宏伟 | U198: 23 | Y198: 7
A199: 江苏壹佳环球品牌管理有限公司 | B199: C2023198 | C199: 租赁合同 | D199: 中国物联网国际创新园 | E199: 二期 | F199: E1栋 | G199: 407 | H199: 生效中 | I199: 问天鼎讯量子科技（无锡）有限公司 | J199: 问天鼎讯量子科技（无锡）有限公司 | L199: 租赁模板A | M199: 500 | N199: 季付 | O199: 2021-01-01 | P199: 2023/12/31 | S199: 2021-01-01 | T199: 黎斌 | U199: 35 | Y199: 7
A200: 中科创新物联网产业无锡有限公司 | B200: C2023199 | C200: 租赁合同 | D200: 中国物联网国际创新园 | E200: 二期 | F200: E2栋 | G200: 501 | H200: 生效中 | I200: 无锡聚信息科技有限公司 | L200: 租赁模板A | M200: 296 | N200: 季付 | O200: 2022-11-01 | P200: 2025-10-31 | S200: 2022-11-01 | T200: 陆正昌 | U200: 35 | Y200: 7
... 1550 more rows

Sheet 3.企业信息
A1: #数据初始化# 1.红色列为必填项，黑色列为选填项； 2.字段说明： 1）币别：包含人民币、美元，必须选择一项，否则系统将无法识别； 2）注册日期：格式 如2023/05/01 3）经营范围：请保持在2000字以内，超出部分系统将无法显示； 4）全年研发投入（万元）、全年技改投入（万元）、拥有知识产权个数、四技合同金额（技术开发）（万元）、四技合同金额（转让）（万元）、四技合同金额（服务）（万元）、四技合同金额（咨询）（万元）请填写数字； 5）入驻类型：在园,挂靠,异地生产,飞地，“入驻类型”列请严格按照类型必须选择一项，否则系统将无法识别；
A3: 企业名称 | B3: 统一社会信用代码 | C3: 注册资金（万元） | D3: 币别 | E3: 注册时间 | F3: 法定代表人 | G3: 法人电话 | H3: 企业联系人 | I3: 联系人手机 | J3: 联系人邮箱 | K3: 财务负责人 | L3: 负责人电话 | M3: 注册地址 | N3: 经营地址 | O3: 经营范围 | P3: 全年研发投入（万元） | Q3: 全年技改投入（万元） | R3: 拥有知识产权个数 | S3: 四技合同金额（技术开发）（万元） | T3: 四技合同金额（转让）（万元） | U3: 四技合同金额（服务）（万元） | V3: 四技合同金额（咨询）（万元） | W3: 入驻类型 | X3: 入驻状态 | Y3: 入驻园区日期
A4: 江苏京华山一商业保理有限公司 | B4: 913200003216275096 | C4: 20000 | D4: 人民币 | E4: 2014-11-24 | F4: 时祥 | G4: 17712366278 | H4: =VLOOKUP(A4,'合同信息 '!$F$1:$M$438,7,0) -> 时祥 | I4: =VLOOKUP(A4,'合同信息 '!$F$1:$M$438,8,0) -> 13852598000 | J4: ada.sun@cpycf.com | M4: 无锡新区菱湖大道200号 | O4: 以受让应收账款的方式提供贸易融资;应收账款的收付结算、管理与催收;销售分户账管理;与本公司业务相关的信用风险担保;客户资信调查与评估;相关咨询服务。（依法须经批准的项目,经相关部门批准后方可开展经营活动） | W4: 在园 | X4: 已入驻
A5: 无锡微纳产业发展有限公司 | B5: 913202146829857231 | C5: 40000 | D5: 人民币 | E5: 2008-11-24 | F5: 杨渊斌 | G5: 0510-85388856 | H5: =VLOOKUP(A5,'合同信息 '!$F$1:$M$438,7,0) ->  | I5: =VLOOKUP(A5,'合同信息 '!$F$1:$M$438,8,0) ->  | J5: wre@wnd.gov.cn | M5: 无锡新吴区菱湖大道200-10 | O5: 许可项目:房地产开发经营（依法须经批准的项目,经相关部门批准后方可开展经营活动,具体经营项目以审批结果为准） 一般项目:园区管理服务;物业管理;非居住房地产租赁;以自有资金从事投资活动;创业投资（限投资未上市企业）;股权投资;自有资金投资的资产管理服务;科技中介服务;科技推广和应用服务;业务培训（不含教育培训、职业技能培训等需取得许可的培训）;信息咨询服务（不含许可类信息咨询服务）;信息技术咨询服务;企业管理咨询;广告设计、代理;广告制作;会议及展览服务（除依法须经批准的项目外,凭营业执照依法自主开展经营活动） | W5: 在园 | X5: 已入驻
A6: 中设国联无锡新能源发展有限公司 | B6: 91320214321157594X | C6: 47899.83 | D6: 人民币 | E6: 2014-11-04 | F6: 杨乐 | G6: 0510-85385355 | H6: =VLOOKUP(A6,'合同信息 '!$F$1:$M$438,7,0) -> 杨乐 | I6: =VLOOKUP(A6,'合同信息 '!$F$1:$M$438,8,0) -> 13771121286 | J6: 498885733@cmec-gl.com | M6: 无锡市新吴区菱湖大道200号中国传感网国际创新区A栋202 | O6: 新能源项目投资和管理;新能源系统工程的设计、安装和施工;新能源技术开发、技术咨询、技术服务;专用设备、通用设备的安装、销售;合同能源管理。（依法须经批准的项目,经相关部门批准后方可开展经营活动） | W6: 在园 | X6: 已入驻
A7: 无锡中科光电技术有限公司 | B7: 91320214579517104U | C7: 2031.4194 | D7: 人民币 | E7: 2011-08-02 | F7: 万学平 | G7: 0510-88570950 | H7: =VLOOKUP(A7,'合同信息 '!$F$1:$M$438,7,0) -> 万学平 | I7: =VLOOKUP(A7,'合同信息 '!$F$1:$M$438,8,0) -> 0510-88570950 | J7: sysinfo@cas-pe.com | M7: 无锡新吴区菱湖大道200号C座 | O7: 光机电一体化产品和相关软件的研究、开发、生产（限分支机构）、安装、销售;计算机软件开发、销售;系统集成;技术咨询、技术服务;自营和代理各类商品和技术的进出口业务;汽车（不含九座以下乘用车）技术开发、技术服务和销售。（依法须经批准的项目,经相关部门批准后方可开展经营活动） | W7: 在园 | X7: 已入驻
A8: 无锡英臻科技股份有限公司 | B8: 91320214693333296Q | C8: 6000 | D8: 人民币 | E8: 2009-08-07 | F8: 王辉 | G8: 0510-81816208 | H8: =VLOOKUP(A8,'合同信息 '!$F$1:$M$438,7,0) ->  | I8: =VLOOKUP(A8,'合同信息 '!$F$1:$M$438,8,0) ->  | J8: bei.huang@igen-tech.com | M8: 无锡市新吴区景贤路6号中国物联网国际创新园H4 | O8: 新能源开发管理（包括光伏、储能和用电侧管理）;计算机软硬件、电子产品、数码产品的技术开发、技术转让、技术咨询、技术服务、销售（不含专营、专控、专卖商品及限制项目）;计算机网络工程（除专项审批）;数据库及计算机网络服务;电子产品、无线网络设备、楼宇自动化设备和射频电子标签产品的研发、销售;嵌入式系统软件的开发、培训;应用软件服务;销售（含网上销售）、安装、调试自行研发的产品、计算机、软件及辅助设备、通讯设备;自营和代理各类商品及技术的进出口（国家限定公司经营或禁止进出口的商品和技术除外）;增值电信业务。（依法须经批准的项目,经相关部门批准后方可开展经营活动） 一般项目:电子元器件制造（除依法须经批准的项目外,凭营业执照依法自主开展经营活动） | W8: 在园 | X8: 已入驻
A9: 麦能新能源科技无锡有限公司 | B9: 91320213MA1MDD2M81 | C9: 1000 | D9: 人民币 | E9: 2015-12-28 | F9: 王辉 | G9: 0510-81816208 | H9: =VLOOKUP(A9,'合同信息 '!$F$1:$M$438,7,0) ->  | I9: =VLOOKUP(A9,'合同信息 '!$F$1:$M$438,8,0) ->  | J9: admin@igen-tech.com | M9: 无锡市新吴区菱湖大道200号F4 | O9: 一般项目：技术服务、技术开发、技术咨询、技术交流、技术转让、技术推广；光伏设备及元器件销售；物联网设备销售；光伏发电设备租赁；太阳能发电技术服务；软件开发；软件销售；信息技术咨询服务；广告制作；广告设计、代理；人工智能硬件销售（除依法须经批准的项目外，凭营业执照依法自主开展经营活动） | W9: 挂靠
A10: 无锡沃格自动化科技股份有限公司 | B10: 91320200050281007L | C10: 2350.1602 | D10: 人民币 | E10: 2012-08-09 | F10: 郑俭 | G10: 0510-81193060 | H10: =VLOOKUP(A10,'合同信息 '!$F$1:$M$438,7,0) ->  | I10: =VLOOKUP(A10,'合同信息 '!$F$1:$M$438,8,0) ->  | J10: Gina@novo-auto.com | M10: 无锡新区菱湖大道200号中国传感网国际创新园B栋222 | O10: 工业自动控制系统装置、机械设备的研发、装配及生产、销售;机械设备的安装、维修并提供技术咨询、技术服务;通用机械及配件、汽车零配件、电子元器件的销售;自营和代理各类商品及技术的进出口业务（国家限定企业经营或禁止进出口的商品和技术除外）。（依法须经批准的项目,经相关部门批准后方可开展经营活动） | W10: 异地生产
A11: 江苏曼荼罗软件股份有限公司 | B11: 913202007635507481 | C11: 5892.0832 | D11: 人民币 | E11: 2004-06-09 | F11: 鲁冰青 | G11: 0510-82553099 | H11: =VLOOKUP(A11,'合同信息 '!$F$1:$M$438,7,0) -> 陆艺 | I11: =VLOOKUP(A11,'合同信息 '!$F$1:$M$438,8,0) -> 13915280061 | J11: sunjie@mandalat.com.cn | M11: 无锡新区菱湖大道200号创新园F区5号楼 | O11: 计算机软硬件的技术开发、技术服务、技术转让、技术咨询;计算机系统集成;自营和代理各类商品及技术的进出口业务（但国家限定企业经营或禁止进出口的商品及技术除外）。（依法须经批准的项目,经相关部门批准后方可开展经营活动） | W11: 在园 | X11: 已入驻
A12: 无锡麦臻信息咨询合伙企业（有限合伙） | B12: 91320214MA27D4UK3W | C12: 2632.5 | D12: 人民币 | E12: 2021-11-09 | F12: 华竹平 | G12: 0510-81816208 | H12: =VLOOKUP(A12,'合同信息 '!$F$1:$M$438,7,0) ->  | I12: =VLOOKUP(A12,'合同信息 '!$F$1:$M$438,8,0) ->  | J12: admin@igen-tech.com | M12: 无锡市新吴区菱湖大道200号F4 | O12: 一般项目:信息咨询服务（不含许可类信息咨询服务）;企业管理;企业管理咨询（除依法须经批准的项目外,凭营业执照依法自主开展经营活动） | W12: 挂靠
A13: 江苏艾特曼电子科技有限公司 | B13: 91320214053516342U | C13: 3100 | D13: 人民币 | E13: 2012-09-17 | F13: 李泽雍 | G13: 0510-81817004 | H13: =VLOOKUP(A13,'合同信息 '!$F$1:$M$438,7,0) ->  | I13: =VLOOKUP(A13,'合同信息 '!$F$1:$M$438,8,0) ->  | J13: hr@atmems.com | M13: 无锡新区菱湖大道200号国际创新园C楼辅楼 | O13: 晶圆级、系统级封装工艺开发;集成电路、MEMS微电子机械系统产品的工艺开发及产品销售;惯性、红外、压力、声学等传感器的测试平台及相关设备和软件的开发、技术服务;新型纺织材料的研发以及相关产品的制造、加工与销售;自营各类商品和技术的进出口业务（国家限定公司经营或禁止进出口的商品和技术除外）。（依法须经批准的项目,经相关部门批准后方可开展经营活动） | W13: 在园 | X13: 已入驻
A14: 无锡产发和生光科技创业投资合伙企业（有限合伙） | B14: 91320214MA2762515Y | C14: 20100 | D14: 人民币 | E14: 2021-09-30 | F14: 方正和生投资有限责任公司（委派代表 李尧琦） | G14: 13270131680 | H14: =VLOOKUP(A14,'合同信息 '!$F$1:$M$438,7,0) ->  | I14: =VLOOKUP(A14,'合同信息 '!$F$1:$M$438,8,0) ->  | J14: - | M14: 无锡市新吴区菱湖大道200号E1-202-34 | O14: 一般项目:创业投资（限投资未上市企业）;以私募基金从事股权投资、投资管理、资产管理等活动（须在中国证券投资基金业协会完成登记备案后方可从事经营活动）（除依法须经批准的项目外,凭营业执照依法自主开展经营活动） | W14: 挂靠
A15: 江苏宙斯物联网科技集团股份有限公司 | B15: 913202005823087688 | C15: 1400 | D15: 人民币 | E15: 2011-09-15 | F15: 顾东 | G15: 0510-82780056 | H15: =VLOOKUP(A15,'合同信息 '!$F$1:$M$438,7,0) ->  | I15: =VLOOKUP(A15,'合同信息 '!$F$1:$M$438,8,0) ->  | J15: zhouyan@cyberinco.com | M15: 无锡新区太湖国际科技园菱湖大道200号中国传感网国际创新园E幢 | O15: 许可项目:第一类增值电信业务;第二类增值电信业务;在线数据处理与交易处理业务（经营类电子商务）;互联网直播技术服务;互联网信息服务（依法须经批准的项目,经相关部门批准后方可开展经营活动,具体经营项目以审批结果为准）一般项目:物联网应用服务;物联网技术服务;物联网技术研发;物联网设备销售;物联网设备制造;通信设备制造;计算机软硬件及辅助设备零售;数字技术服务;软件开发;技术服务、技术开发、技术咨询、技术交流、技术转让、技术推广;信息系统集成服务;软件销售;信息咨询服务（不含许可类信息咨询服务）;数字内容制作服务（不含出版发行）;互联网数据服务;互联网销售（除销售需要许可的商品）;广告制作;广告设计、代理;广告发布;数字广告制作;数字广告设计、代理;数字广告发布;经济贸易咨询;国内贸易代理;代驾服务;机动车驾驶员培训;单用途商业预付卡代理销售;日用口罩（非医用）销售;汽车装饰用品销售;日用杂品销售;日用品销售;玩具销售;文具用品零售;办公用品销售;箱包销售;鞋帽零售;服装服饰零售;新鲜蔬菜零售;新鲜水果零售;食品互联网销售（仅销售预包装食品）;食品销售（仅销售预包装食品）;日用陶瓷制品销售;工艺美术品及礼仪用品销售（象牙及其制品除外）;体育用品及器材零售;塑料制品销售;金属材料销售;日用玻璃制品销售;仪器仪表销售;电工仪器仪表销售;五金产品零售;橡胶制品销售;化工产品销售（不含许可类化工产品）;建筑材料销售（除依法须经批准的项目外,凭营业执照依法自主开展经营活动） | W15: 挂靠
A16: 无锡昌德微电子股份有限公司 | B16: 91320200240501154L | C16: 2000 | D16: 人民币 | E16: 1995-12-04 | F16: 黄昌民 | G16: 13906192675 | H16: =VLOOKUP(A16,'合同信息 '!$F$1:$M$438,7,0) -> 黄昌民 | I16: =VLOOKUP(A16,'合同信息 '!$F$1:$M$438,8,0) -> 13706197971 | J16: hchangmin@cdwdz.com | M16: 无锡市新吴区菱湖大道200号中国物联网国家创新园E1栋901 | O16: 集成电路、半导体分立器件、电力电子元器件的设计、销售;机电一体化产品的销售;机械设备租赁（不含融资租赁）;自营和代理各类商品及技术的进出口业务（国家限定企业经营或禁止进出口的商品和技术除外）。（依法须经批准的项目,经相关部门批准后方可开展经营活动） | W16: 在园 | X16: 已入驻
A17: 艾普柯微电子（江苏）有限公司 | B17: 9131000058521410XD | C17: 1771.0714 | D17: 人民币 | E17: 2011-10-25 | F17: 李碧洲 | G17: 0510-85221033 | H17: =VLOOKUP(A17,'合同信息 '!$F$1:$M$438,7,0) -> 李碧洲 | I17: =VLOOKUP(A17,'合同信息 '!$F$1:$M$438,8,0) -> 18621367698 | J17: yichen_dong@epticore.com | M17: 无锡市新吴区菱湖大道200-5号楼5层 | O17: 集成电路及相关电子产品、仪器仪表的设计、研发、销售,并提供相关的技术咨询、技术服务,从事货物及技术的进出口业务。（依法须经批准的项目,经相关部门批准后方可开展经营活动） | W17: 在园 | X17: 已入驻
A18: 无锡汉咏科技股份有限公司 | B18: 91320200551184029Y | C18: 3695 | D18: 人民币 | E18: 2010-02-25 | F18: 王茂坚 | G18: 18921519216 | H18: =VLOOKUP(A18,'合同信息 '!$F$1:$M$438,7,0) ->  | I18: =VLOOKUP(A18,'合同信息 '!$F$1:$M$438,8,0) ->  | J18: hybusi@heyoov.com | M18: 无锡菱湖大道200号中国传感网国际创新园G1-608号 | O18: 计算机软件、物联网技术的开发、技术转让、技术咨询、技术服务;信息系统集成服务;建筑工程设计;工程项目管理服务;电子产品、通讯及广播电视设备（不含卫星广播电视地面接收设施及发射装置）、计算机软硬件及辅助设备的研发及销售;从事经营性互联网文化活动;网络游戏研发生产、网络游戏上网运营、网络游戏虚拟货币发行;自营和代理各类商品及技术的进出口业务,但国家限定企业经营或禁止进出口的商品和技术除外;经营电信业务（按许可证所列范围确定）;设计、制作、代理和发布各类广告。（依法须经批准的项目,经相关部门批准后方可开展经营活动） | W18: 挂靠
A19: 无锡兰霖网络科技有限公司 | B19: 91320213691345656N | C19: 300 | D19: 人民币 | E19: 2009-07-02 | F19: 邵伟 | G19: 0510-81022267 | H19: =VLOOKUP(A19,'合同信息 '!$F$1:$M$438,7,0) ->  | I19: =VLOOKUP(A19,'合同信息 '!$F$1:$M$438,8,0) ->  | J19: 408714302@qq.com | M19: 无锡市新吴区菱湖大道200号G1-1002 | O19: 电子产品、通信器材的设计和销售;计算机系统集成;计算机软硬件、农产品、食品的销售;机械设备出租;互联网上从事各类商品的销售（不含许可项目）;网络平台、网络技术的开发;软件开发;技术开发、技术转让、技术咨询、技术服务;互联网信息服务。（依法须经批准的项目,经相关部门批准后方可开展经营活动） | W19: 挂靠
A20: 江苏中科物联网科技创业投资有限公司 | B20: 913202145592540282 | C20: 20000 | D20: 人民币 | E20: 2010-07-14 | F20: 栾年生 | G20: 0510-85383398 | H20: =VLOOKUP(A20,'合同信息 '!$F$1:$M$438,7,0) ->  | I20: =VLOOKUP(A20,'合同信息 '!$F$1:$M$438,8,0) ->  | J20: 1458394262@qq.com | M20: 无锡新区太湖国际科技园菱湖大道200号微纳传感网国际创新园C楼 | O20: 创业投资业务;代理其他创业投资企业等机构或个人的创业投资业务;创业投资咨询业务;为创业企业提供管理服务业务;参与设立创业投资企业与创业投资管理顾问机构。（依法须经批准的项目,经相关部门批准后方可开展经营活动） | W20: 在园 | X20: 已入驻
A21: 无锡优拓信息技术股份有限公司 | B21: 913202005781199569 | C21: 1000 | D21: 人民币 | E21: 2011-06-30 | F21: 李宝麟 | G21: 025-85383079 | H21: =VLOOKUP(A21,'合同信息 '!$F$1:$M$438,7,0) ->  | I21: =VLOOKUP(A21,'合同信息 '!$F$1:$M$438,8,0) ->  | J21: liuyuanyuan@you2game.com | M21: 无锡新区太湖国际科技园菱湖大道200号中国传感网国际创新园E幢 | O21: 计算机软硬件的技术开发、技术咨询、技术服务、技术转让;培训服务（不含发证、不含国家统一认可的职业证书类培训）;以服务外包方式从事计算机开发;电子产品、通讯产品（不含卫星电视广播地面接收设施）的销售;自营和代理各类商品及技术的进出口（国家限定企业经营或禁止进出口的商品和技术除外）;利用信息网络经营游戏产品;增值电信业务（凭有效许可证经营）。（依法须经批准的项目,经相关部门批准后方可开展经营活动） | W21: 挂靠
A22: 无锡创微创业投资合伙企业（有限合伙） | B22: 91320214MA25Q2R208 | C22: 8000 | D22: 人民币 | E22: 2021-04-15 | F22: 无锡高新技术创业投资股份有限公司（委派代表 戴新） | G22: 0510-85069508 | H22: =VLOOKUP(A22,'合同信息 '!$F$1:$M$438,7,0) ->  | I22: =VLOOKUP(A22,'合同信息 '!$F$1:$M$438,8,0) ->  | J22: lwy@wxvc.com.cn | M22: 无锡市新吴区菱湖大道200-10（E1）栋202-26 | O22: 一般项目:创业投资（限投资未上市企业）（除依法须经批准的项目外,凭营业执照依法自主开展经营活动） | W22: 挂靠
A23: 华英证券有限责任公司 | B23: 91320214717884755C | C23: 20000 | D23: 人民币 | E23: 2011-04-20 | F23: 葛小波 | G23: 0510-85200510 | H23: =VLOOKUP(A23,'合同信息 '!$F$1:$M$438,7,0) -> 葛小波 | I23: =VLOOKUP(A23,'合同信息 '!$F$1:$M$438,8,0) -> 13812536001 | J23: office@huayingsc.com | M23: 无锡市新吴区菱湖大道200号中国物联网国际创新园F12栋 | O23: 许可项目:证券业务;债券市场业务（依法须经批准的项目,经相关部门批准后方可开展经营活动,具体经营项目以审批结果为准） 一般项目:证券财务顾问服务（除依法须经批准的项目外,凭营业执照依法自主开展经营活动） | W23: 在园 | X23: 已入驻
A24: 无锡布里渊电子科技有限公司 | B24: 91320211313880491L | C24: 1000 | D24: 人民币 | E24: 2014-08-22 | F24: 韦波 | G24: 18861501932 | H24: =VLOOKUP(A24,'合同信息 '!$F$1:$M$438,7,0) -> 韦波 | I24: =VLOOKUP(A24,'合同信息 '!$F$1:$M$438,8,0) -> 18626352029 | J24: wb@buliyuan.com | M24: 无锡市新吴区菱湖大道200号B401 | O24: 一般项目：技术服务、技术开发、技术咨询、技术交流、技术转让、技术推广；电子产品销售；仪器仪表制造；仪器仪表销售；智能仪器仪表制造；智能仪器仪表销售；软件开发；软件销售；专用设备制造（不含许可类专业设备制造）；工业控制计算机及系统制造；工业控制计算机及系统销售；工业自动控制系统装置制造；工业自动控制系统装置销售；安防设备制造；安防设备销售；工程和技术研究和试验发展；安全系统监控服务；家用电器销售；家用电器研发；家用电器制造；计算机软硬件及外围设备制造；物联网应用服务；物联网技术研发；物联网技术服务；物联网设备制造；物联网设备销售；工业互联网数据服务；通信设备制造；互联网销售（除销售需要许可的商品）（除依法须经批准的项目外，凭营业执照依法自主开展经营活动） | W24: 在园 | X24: 已入驻
A25: 无锡中科聚蓝企业管理咨询合伙企业（有限合伙） | B25: 91320214MA254NQD1N | C25: 6285.0623 | D25: 人民币 | E25: 2021-01-27 | F25: 无锡爱蓝企业管理咨询有限公司 | G25: 0510-88570960 | H25: =VLOOKUP(A25,'合同信息 '!$F$1:$M$438,7,0) ->  | I25: =VLOOKUP(A25,'合同信息 '!$F$1:$M$438,8,0) ->  | J25: sysinfo@cas-pe.com | M25: 无锡市新吴区菱湖大道200号E1-202-21 | O25: 一般项目：企业管理咨询；企业管理（除依法须经批准的项目外，凭营业执照依法自主开展经营活动） | W25: 挂靠
A26: 无锡众臻信息咨询合伙企业（有限合伙） | B26: 91320200MA1MHN3W5R | C26: 160 | D26: 人民币 | E26: 2016-04-08 | F26: 王辉 | G26: 0510-81816208 | H26: =VLOOKUP(A26,'合同信息 '!$F$1:$M$438,7,0) ->  | I26: =VLOOKUP(A26,'合同信息 '!$F$1:$M$438,8,0) ->  | J26: admin@igen-tech.com | M26: 无锡市新吴区菱湖大道200号F4 | O26: 贸易咨询;企业管理咨询。（依法须经批准的项目,经相关部门批准后方可开展经营活动） | W26: 挂靠
A27: 无锡优顺能源开发科技有限公司 | B27: 91320206MA1MNUUG8G | C27: 1000 | D27: 人民币 | E27: 2016-06-29 | F27: 傅坚 | G27: 0510-88250630 | H27: =VLOOKUP(A27,'合同信息 '!$F$1:$M$438,7,0) ->  | I27: =VLOOKUP(A27,'合同信息 '!$F$1:$M$438,8,0) ->  | J27: 13764444166@163.com | M27: 无锡市新吴区菱湖大道200号E2-103-1108 | O27: 从事电子科技领域内的技术开发、技术服务、技术咨询、技术转让；太阳能组件、太阳能电池用浆料、电池片、电子材料、光伏产品及系统的研发、技术咨询、销售；新能源电站项目的开发、设计、建设、管理、咨询、服务；利用自有资金对新能源电站项目进行投资；合同能源管理；光伏系统检测仪器、清洁设备、节能环保设备的研发及销售；新能源系统、智能检测系统、电动汽车充电设备、智能终端产品、无线网络技术、无线传感设备、无线网络设备、自动控制设备、物联网技术、物联网系统软件及设备的研发、设计、咨询、销售、及维护；新能源电站设备的系统集成和组装；光伏设备及元器件的制造以及销售；自营和代理各类商品及技术的进出口业务（国家限定企业经营或禁止进出口的商品和技术除外）。（依法须经批准的项目，经相关部门批准后方可开展经营活动） | W27: 挂靠
A28: 中智物联技术有限公司 | B28: 913202146700269393 | C28: 20000 | D28: 人民币 | E28: 2008-01-15 | F28: 谢忠信 | G28: 0755-86926868 | H28: =VLOOKUP(A28,'合同信息 '!$F$1:$M$438,7,0) ->  | I28: =VLOOKUP(A28,'合同信息 '!$F$1:$M$438,8,0) ->  | J28: gsnb@szkwrobot.com | M28: 无锡市新区菱湖大道200号中国传感网国际创新园F4 | O28: 基于物联网系统的软硬件设计、开发、销售和系统承包；从事电子软硬件产品和计算机软硬件产品、移动通讯设备、自动识别产品、射频识别系统及产品、移动手持终端产品、自动化网络设备及系统的开发、设计、销售、集成、科技及商业信息咨询服务。（依法须经批准的项目，经相关部门批准后方可开展经营活动） | W28: 挂靠
A29: 无锡国联产业升级投资中心（有限合伙） | B29: 91320200MA1Q24E11H | C29: 50000 | D29: 人民币 | E29: 2017-08-08 | F29: 无锡国联产业投资私募基金管理有限公司 | G29: 0510-85185760 | H29: =VLOOKUP(A29,'合同信息 '!$F$1:$M$438,7,0) ->  | I29: =VLOOKUP(A29,'合同信息 '!$F$1:$M$438,8,0) ->  | J29: info@glxcpe.com | M29: 无锡市新吴区菱湖大道200号中国传感网国际创新园E2-103 | O29: 利用自有资金对外投资。（依法须经批准的项目,经相关部门批准后方可开展经营活动）。 | W29: 挂靠
A30: 中城智慧科技有限公司 | B30: 91320213302071373J | C30: 12222 | D30: 人民币 | E30: 2014-05-24 | F30: 聂明 | G30: 021-60875668 | H30: =VLOOKUP(A30,'合同信息 '!$F$1:$M$438,7,0) -> 聂明 | I30: =VLOOKUP(A30,'合同信息 '!$F$1:$M$438,8,0) -> 13901208876 | J30: zonghe@zcsmart.com | M30: 无锡新吴区菱湖大道200号中国传感网国际创新园D2-307 | O30: 智能卡的开发、系统集成、技术咨询和技术转让;POS机及银行终端机具的研发并提供技术服务;通用设备及配件、五金产品、仪器仪表、电气机械及器材、电子产品、物联网产品、通信设备（不含卫星广播电视地面接收设施及发射装置）的销售;自营和代理各类商品和技术的进出口业务（国家限定企业经营或禁止进出口的商品和技术除外）;区块链技术开发与应用、推广;数据处理和分析;软件开发与推广;云计算技术的研发、转让、咨询、服务;物联网技术研发;智能终端设备研发、设计和销售。（依法须经批准的项目,经相关部门批准后方可开展经营活动）许可项目:第二类增值电信业务;电气安装服务（依法须经批准的项目,经相关部门批准后方可开展经营活动,具体经营项目以审批结果为准） | W30: 在园 | X30: 已入驻
A31: 华景传感科技（无锡）有限公司 | B31: 91320211553790065B | C31: 3602.9768 | D31: 人民币 | E31: 2010-04-09 | F31: 缪建民 | G31: 0510-85622282 | H31: =VLOOKUP(A31,'合同信息 '!$F$1:$M$438,7,0) -> 吴亮 | I31: =VLOOKUP(A31,'合同信息 '!$F$1:$M$438,8,0) -> 15161695069 | J31: qiugz@svsens.com | M31: 无锡市新吴区菱湖大道200号中国传感网国际创新园F2 | O31: 传感设备的研发、生产、制造;物联网的技术开发、技术咨询、技术服务、技术转让;自营和代理各类商品及技术的进出口业务（国家限定企业经营或禁止进出口的商品和技术除外）。（依法须经批准的项目,经相关部门批准后方可开展经营活动） | W31: 在园 | X31: 已入驻
A32: 无锡国联产业投资私募基金管理有限公司 | B32: 9132021479331907XR | C32: 120000 | D32: 人民币 | E32: 2006-09-21 | F32: 郭秉宇 | G32: 0510-82830019 | H32: =VLOOKUP(A32,'合同信息 '!$F$1:$M$438,7,0) ->  | I32: =VLOOKUP(A32,'合同信息 '!$F$1:$M$438,8,0) ->  | J32: info@wuxicapital.com.cn | M32: 无锡市新吴区菱湖大道200号中国传感网国际创新园E1-202 | O32: 一般项目:私募股权投资基金管理、创业投资基金管理服务（须在中国证券投资基金业协会完成登记备案后方可从事经营活动）;创业投资（限投资未上市企业）;以自有资金从事投资活动;以私募基金从事股权投资、投资管理、资产管理等活动（须在中国证券投资基金业协会完成登记备案后方可从事经营活动）（除依法须经批准的项目外,凭营业执照依法自主开展经营活动） | W32: 挂靠
A33: 无锡国联浚源创业投资中心（有限合伙） | B33: 91320200553819024U | C33: 28200 | D33: 人民币 | E33: 2010-04-16 | F33: 厦门浚源创业投资基金管理合伙企业（有限合伙） | G33: 0510-82700340 | H33: =VLOOKUP(A33,'合同信息 '!$F$1:$M$438,7,0) ->  | I33: =VLOOKUP(A33,'合同信息 '!$F$1:$M$438,8,0) ->  | J33: dingjt@jycapital.cn | M33: 无锡市新吴区菱湖大道200号中国传感网国际创新园E2-103 | O33: 创业投资业务;创业投资咨询业务;为创业企业提供创业管理服务业务;参与设立创业投资企业与创业投资管理顾问机构。（依法须经批准的项目,经相关部门批准后方可开展经营活动） | W33: 挂靠
A34: 无锡高新人才发展集团有限公司 | B34: 913202147333033751 | C34: 5000 | D34: 人民币 | E34: 2001-11-28 | F34: 严茵 | G34: 0510-85213833 | H34: =VLOOKUP(A34,'合同信息 '!$F$1:$M$438,7,0) -> 朱晓燕 | I34: =VLOOKUP(A34,'合同信息 '!$F$1:$M$438,8,0) -> 15052250111 | J34: zxy@nchr.com.cn | M34: 无锡新吴区菱湖大道200号中国传感网国际创新园A楼402室 | O34: 许可项目:职业中介活动;第二类增值电信业务（依法须经批准的项目,经相关部门批准后方可开展经营活动,具体经营项目以审批结果为准） 一般项目:人力资源服务（不含职业中介活动、劳务派遣服务）;社会经济咨询服务;市场调查;健康咨询服务（不含诊疗服务）;劳务服务（不含劳务派遣）;生产线管理服务;承接档案服务外包;信息咨询服务（不含许可类信息咨询服务）;会议及展览服务;市场营销策划;企业管理咨询;安全咨询服务;企业管理;单位后勤管理服务;法律咨询（不含依法须律师事务所执业许可的业务）;广告设计、代理;广告制作;商务代理代办服务;采购代理服务;组织文化艺术交流活动;数据处理服务;计算机系统服务;技术服务、技术开发、技术咨询、技术交流、技术转让、技术推广;科技推广和应用服务;数据处理和存储支持服务;信息技术咨询服务;软件外包服务;软件开发;信息系统集成服务;信息系统运行维护服务;园区管理服务（除依法须经批准的项目外,凭营业执照依法自主开展经营活动） | W34: 在园 | X34: 已入驻
A35: 尚贤谷物联网投资管理（无锡）有限公司 | B35: 91320214MA26AB190E | C35: 20000 | D35: 人民币 | E35: 2021-06-17 | F35: 许天 | G35: 0510-85368770 | H35: =VLOOKUP(A35,'合同信息 '!$F$1:$M$438,7,0) ->  | I35: =VLOOKUP(A35,'合同信息 '!$F$1:$M$438,8,0) ->  | J35: jiangli@wiotipc.org.cn | M35: 无锡市新吴区菱湖大道200号E1-901 | O35: 一般项目:私募股权投资基金管理、创业投资基金管理服务（须在中国证券投资基金业协会完成登记备案后方可从事经营活动）;自有资金投资的资产管理服务;股权投资;以自有资金从事投资活动;创业投资（限投资未上市企业）;市场调查（不含涉外调查）;企业管理咨询（除依法须经批准的项目外,凭营业执照依法自主开展经营活动） | W35: 挂靠
A36: 澳盛投资管理（无锡）有限公司 | B36: 913202145969880205 | C36: 1500 | D36: 人民币 | E36: 2012-06-19 | F36: 马晓微 | G36: 0510-66055077 | H36: =VLOOKUP(A36,'合同信息 '!$F$1:$M$438,7,0) ->  | I36: =VLOOKUP(A36,'合同信息 '!$F$1:$M$438,8,0) ->  | J36: 365743951@qq.com | M36: 无锡新区菱湖大道200号A座3层 | O36: 智能交通、物联网、电子商务、软件开发、新材料、环保、节能、新能源、软件及服务外包、国内外领先技术项目的商务咨询、投资咨询、投资管理。（依法须经批准的项目,经相关部门批准后方可开展经营活动） | W36: 挂靠
A37: 阿达智能装备（江苏）有限公司 | B37: 91320214MA7HGDC048 | C37: 3000 | D37: 人民币 | E37: 2022-01-30 | F37: HE YUNBO | G37: 0510-85299969 | H37: =VLOOKUP(A37,'合同信息 '!$F$1:$M$438,7,0) -> HE YUNBO | I37: =VLOOKUP(A37,'合同信息 '!$F$1:$M$438,8,0) -> 15207550012 | J37: ada@ada-ie.com | M37: 无锡市新吴区菱湖大道200号A502 | O37: 一般项目：电子专用设备制造；软件开发；工业自动控制系统装置制造；电动机制造；电机制造；电子测量仪器制造；光学仪器制造；仪器仪表制造；信息系统集成服务；信息技术咨询服务；电子、机械设备维护（不含特种设备）；计算机软硬件及外围设备制造；半导体照明器件制造；半导体分立器件制造；集成电路制造；半导体器件专用设备制造；半导体器件专用设备销售（除依法须经批准的项目外，凭营业执照依法自主开展经营活动） | W37: 在园 | X37: 已入驻
A38: 无锡派瑞新媒体投资合伙企业（有限合伙） | B38: 91320205MA1X03CU98 | C38: 10000 | D38: 人民币 | E38: 2018-08-01 | F38: 共青城派瑞新媒投资管理合伙企业（有限合伙） | G38: 010-67301888 | H38: =VLOOKUP(A38,'合同信息 '!$F$1:$M$438,7,0) ->  | I38: =VLOOKUP(A38,'合同信息 '!$F$1:$M$438,8,0) ->  | J38: 63377690@qq.com | M38: 无锡市新吴区菱湖大道200-11（E2）栋516-3 | O38: 投资管理、股权投资、创业投资。（依法须经批准的项目,经相关部门批准后方可开展经营活动） | W38: 挂靠
A39: 无锡联发产业投资中心（有限合伙） | B39: 91320214MA25WWXD3E | C39: 10000 | D39: 人民币 | E39: 2021-04-30 | F39: 无锡国联产业投资私募基金管理有限公司 | G39: 0510-85185760 | H39: =VLOOKUP(A39,'合同信息 '!$F$1:$M$438,7,0) ->  | I39: =VLOOKUP(A39,'合同信息 '!$F$1:$M$438,8,0) ->  | J39: info@glxcpe.com | M39: 无锡市新吴区菱湖大道200-10（E1）栋202-27 | O39: 一般项目：以自有资金从事投资活动（除依法须经批准的项目外，凭营业执照依法自主开展经营活动） | W39: 挂靠
A40: 无锡中金鼎讯信通科技股份有限公司 | B40: 9132021307471484XE | C40: 3600 | D40: 人民币 | E40: 2013-08-06 | F40: 赵宏伟 | G40: 0510-68789595 | H40: =VLOOKUP(A40,'合同信息 '!$F$1:$M$438,7,0) -> 赵宏伟 | I40: =VLOOKUP(A40,'合同信息 '!$F$1:$M$438,8,0) -> 13910112188 | J40: chuxf@bjzjdx.com | M40: 无锡新吴区菱湖大道200号中国物联网国际创新园E1-403 | O40: 许可项目:建设工程施工;计算机信息系统安全专用产品销售（依法须经批准的项目,经相关部门批准后方可开展经营活动,具体经营项目以审批结果为准）一般项目:技术服务、技术开发、技术咨询、技术交流、技术转让、技术推广;信息技术咨询服务;通信设备制造;软件开发;网络与信息安全软件开发;信息系统集成服务;计算机软硬件及辅助设备零售;数字视频监控系统销售;信息安全设备销售;网络设备销售;光通信设备销售;互联网设备销售;信息系统运行维护服务;物联网技术服务;5G通信技术服务;软件外包服务;通信设备销售;网络设备制造;互联网安全服务;网络技术服务;储能技术服务;商用密码产品销售（除依法须经批准的项目外,凭营业执照依法自主开展经营活动） | W40: 在园 | X40: 已入驻
A41: 江苏开盟科技有限公司 | B41: 91320214585527245R | C41: 2200 | D41: 人民币 | E41: 2011-10-24 | F41: 张国锋 | G41: 0510-81000790 | H41: =VLOOKUP(A41,'合同信息 '!$F$1:$M$438,7,0) -> 张国锋 | I41: =VLOOKUP(A41,'合同信息 '!$F$1:$M$438,8,0) -> 13915265056 | J41: 1316480@qq.com | M41: 无锡市新吴区菱湖大道200号G1-603 | O41: 许可项目:建筑智能化工程施工;建筑智能化系统设计;住宅室内装饰装修;建筑劳务分包（依法须经批准的项目,经相关部门批准后方可开展经营活动,具体经营项目以审批结果为准）一般项目:技术服务、技术开发、技术咨询、技术交流、技术转让、技术推广;物联网技术研发;软件开发;集成电路设计;电气安装服务;安全技术防范系统设计施工服务;信息系统运行维护服务;计算机系统服务;信息系统集成服务;摄像及视频制作服务;物联网设备销售;软件销售;数字视频监控系统销售;网络设备销售;计算机软硬件及辅助设备批发;移动通信设备销售;智能无人飞行器销售;办公用品销售（除依法须经批准的项目外,凭营业执照依法自主开展经营活动） | W41: 在园 | X41: 已入驻
A42: 无锡尚贤谷物联网投资合伙企业（有限合伙） | B42: 91320214MA7HPG048G | C42: 26100 | D42: 人民币 | E42: 2022-01-30 | F42: 无锡国联资本运营私募基金管理有限公司 | G42: - | H42: =VLOOKUP(A42,'合同信息 '!$F$1:$M$438,7,0) ->  | I42: =VLOOKUP(A42,'合同信息 '!$F$1:$M$438,8,0) ->  | J42: info@wuxicapital.com.cn | M42: 无锡市新吴区菱湖大道200号E1-202-48 | O42: 一般项目:以自有资金从事投资活动（除依法须经批准的项目外,凭营业执照依法自主开展经营活动） | W42: 挂靠
A43: 无锡锡产微芯半导体有限公司 | B43: 91320214MA1YGXW434 | C43: 330071.4286 | D43: 人民币 | E43: 2019-06-04 | F43: 叶甜春 | G43: 0510-8199826 | H43: =VLOOKUP(A43,'合同信息 '!$F$1:$M$438,7,0) -> 叶甜春 | I43: =VLOOKUP(A43,'合同信息 '!$F$1:$M$438,8,0) -> 13810468593 | J43: SPARC@ic-sparc.com | M43: 无锡市新吴区菱湖大道200号中国传感网国际创新园E1-10层 | O43: 半导体器件与集成电路设计、开发和销售;电子元器件的研发;机械设备、计算机软硬件及外部设备的销售;计算机软件开发;半导体科技领域内的技术开发、技术咨询、技术服务、技术转让;自营和代理货物及技术的进出口业务（国家限定公司经营或禁止进出口的商品和技术除外）。（依法须经批准的项目,经相关部门批准后方可开展经营活动） | W43: 在园 | X43: 已入驻
A44: 江苏创芯海微科技有限公司 | B44: 91320214MA21PJLJ9R | C44: 1000 | D44: 人民币 | E44: 2020-06-11 | F44: 顾先立 | G44: 0510-85378880 | H44: =VLOOKUP(A44,'合同信息 '!$F$1:$M$438,7,0) ->  | I44: =VLOOKUP(A44,'合同信息 '!$F$1:$M$438,8,0) ->  | J44: guxianli@wiot.tech | M44: 无锡市新吴区菱湖大道200号E2-112 | O44: 一般项目:技术服务、技术开发、技术咨询、技术交流、技术转让、技术推广;工程和技术研究和试验发展;电子元器件批发;电子专用设备销售;电子专用设备制造;仪器仪表制造;电子产品销售;机械设备销售;通讯设备销售;通讯设备修理;计算机软硬件及辅助设备批发;计算机及办公设备维修;软件开发;软件销售;信息系统运行维护服务（除依法须经批准的项目外,凭营业执照依法自主开展经营活动） | W44: 挂靠
A45: 中科融通物联科技无锡有限公司 | B45: 9132021306763311XR | C45: 10000 | D45: 人民币 | E45: 2013-04-28 | F45: 陈晓莉 | G45: 0510-68789388 | H45: =VLOOKUP(A45,'合同信息 '!$F$1:$M$438,7,0) -> 郭春光 | I45: =VLOOKUP(A45,'合同信息 '!$F$1:$M$438,8,0) -> 15006170282 | J45: miaolin@ubisys.com.cn | M45: 无锡市新吴区菱湖大道200号中国物联网国际创新园E2-308号 | O45: 计算机及网络设备、安防设备、通信设备的技术开发、技术转让、技术服务（不含互联网信息服务）、技术咨询、安装、销售;软件开发、销售;电子产品设计、制造、销售;信息系统集成;安全技术防范工程、建筑智能化工程、电子工程设计、施工;机房设备设计、安装;应用软件、电子设备及器材租赁（不含融资租赁）。（依法须经批准的项目,经相关部门批准后方可开展经营活动） | W45: 在园 | X45: 已入驻
A46: 无锡蝶和科技有限公司 | B46: 913202145502811939 | C46: 8625.0259 | D46: 人民币 | E46: 2010-02-02 | F46: 陈济海 | G46: 0510-66618288 | H46: =VLOOKUP(A46,'合同信息 '!$F$1:$M$438,7,0) ->  | I46: =VLOOKUP(A46,'合同信息 '!$F$1:$M$438,8,0) ->  | J46: qiantingting@dihmed.com | M46: 无锡市新吴区菱湖大道200号中国传感网国际创新园G8栋4楼 | O46: 计算机软硬件的开发、销售;基础软件服务;应用软件服务;计算机系统服务;技术开发、技术咨询、技术转让、技术服务;计算机网络技术的开发;智能卡、电子产品、机械设备的销售;智能卡应用系统的维护;以服务外包方式从事软件开发;机电自动化设备维修、技术研发、技术服务;自动化产品的生产、销售;自营和代理各类商品和技术的进出口（国家限定公司经营或禁止进出口的商品和技术除外）;设计、制作、代理和发布国内广告业务。（依法须经批准的项目,经相关部门批准后方可开展经营活动） | W46: 挂靠
A47: 中兴智能交通股份有限公司 | B47: 913202007226045783 | C47: 7326.3158 | D47: 人民币 | E47: 2000-04-24 | F47: 邓华 | G47: 0510-66055077 | H47: =VLOOKUP(A47,'合同信息 '!$F$1:$M$438,7,0) ->  | I47: =VLOOKUP(A47,'合同信息 '!$F$1:$M$438,8,0) ->  | J47: dongli@zte-its.com | M47: 无锡新区太湖国际科技园菱湖大道200号中国传感网国际创新园A楼 | O47: 交通运输领域、城市智能交通领域、物联网领域、铁路、地铁、城市轨道交通、公路、厂矿、港口码头、机场的有线无线通信系统、视频监控系统、环保及防灾报警系统、计算机信息系统、信号自动控制系统、安全和交通监控设备、传感和终端设备、应用软件的技术开发、销售、咨询、转让、服务;通信工程施工总承包;信息系统集成;停车场管理;停车场服务;自营和代理各类商品及技术的进出口业务（国家限定企业经营或禁止进出口的商品和技术除外,不含分销及其他国家禁止、限制类项目,涉及行政许可的凭有效许可证明经营）。（依法须经批准的项目,经相关部门批准后方可开展经营活动） | W47: 挂靠
A48: 品冠物联科技有限公司 | B48: 91320214330829129L | C48: 5000 | D48: 人民币 | E48: 2015-02-03 | F48: 蒋宗清 | G48: 0510-85381619 | H48: =VLOOKUP(A48,'合同信息 '!$F$1:$M$438,7,0) -> 蒋宗清 | I48: =VLOOKUP(A48,'合同信息 '!$F$1:$M$438,8,0) -> 13511070896 | J48: huangmeijie@thinkgo.cc | M48: 无锡市新吴区太科园菱湖大道200号中国传感网创新园G10-301 | O48: 许可项目:货物进出口;技术进出口;进出口代理;文件、资料等其他印刷品印刷（依法须经批准的项目,经相关部门批准后方可开展经营活动,具体经营项目以审批结果为准） 一般项目:物联网技术研发;物联网技术服务;电子产品销售;电子专用设备销售;机械设备销售;机械设备研发;软件开发;软件销售;信息系统集成服务;计算机系统服务;通用设备制造（不含特种设备制造）;通用设备修理;专用设备制造（不含许可类专业设备制造）;专用设备修理;计算机软硬件及辅助设备批发;其他电子器件制造;租赁服务（不含出版物出租）;金属结构制造;金属结构销售;物料搬运装备销售;物料搬运装备制造;智能物料搬运装备销售;智能仓储装备销售（除依法须经批准的项目外,凭营业执照依法自主开展经营活动） | W48: 在园 | X48: 已入驻
A49: 江苏众乐乐影视传媒有限公司 | B49: 91320214314136883L | C49: 1234.5667 | D49: 人民币 | E49: 2014-09-18 | F49: 黄璐璐 | G49: 0510-85388782 | H49: =VLOOKUP(A49,'合同信息 '!$F$1:$M$438,7,0) ->  | I49: =VLOOKUP(A49,'合同信息 '!$F$1:$M$438,8,0) ->  | J49: zmj@zllfilm.com | M49: 无锡市新吴区菱湖大道200号F11栋三楼创星孵化器A2 | O49: 影视文化项目的策划;广播电视节目制作（凭有效许可证经营）;影视剧本创作、策划;影视制作;影视特效的设计与制作。（依法须经批准的项目,经相关部门批准后方可开展经营活动） | W49: 挂靠
A50: 无锡中科英智投资管理有限公司 | B50: 91320213MA1MDDGH66 | C50: 1000 | D50: 人民币 | E50: 2015-12-28 | F50: 朱振兴 | G50: 0510-85383398 | H50: =VLOOKUP(A50,'合同信息 '!$F$1:$M$438,7,0) ->  | I50: =VLOOKUP(A50,'合同信息 '!$F$1:$M$438,8,0) ->  | J50: 1458394262@qq.com | M50: 无锡菱湖大道200号中国传感网国际创新园C栋1楼 | O50: 股权投资;投资管理。（依法须经批准的项目,经相关部门批准后方可开展经营活动） | W50: 挂靠
A51: 江苏中元盛辉新能源科技有限公司 | B51: 91320214MA1MGU198R | C51: 3000 | D51: 人民币 | E51: 2016-03-25 | F51: 侍崇波 | G51: 0510-85385858 | H51: =VLOOKUP(A51,'合同信息 '!$F$1:$M$438,7,0) ->  | I51: =VLOOKUP(A51,'合同信息 '!$F$1:$M$438,8,0) ->  | J51: donge.qin@sino-sola.com | M51: 无锡新吴区菱湖大道200号中国传感网国际创新园G1-503 | O51: 新能源材料研发;太阳能电站及组件的研发、设计、组装、安装、销售及运行维护;高、低压成套开关设备的组装、安装、销售及运行维护;光伏照明系统、光伏充电系统的研发、安装、销售及运行维护;技术咨询服务;自营和代理各类商品及技术的进出口业务（国家限定公司经营或禁止进出口的商品及技术除外）。（依法须经批准的项目,经相关部门批准后方可开展经营活动）许可项目:发电、输电、供电业务（依法须经批准的项目,经相关部门批准后方可开展经营活动,具体经营项目以审批结果为准）一般项目:合同能源管理（除依法须经批准的项目外,凭营业执照依法自主开展经营活动） | W51: 挂靠
A52: 无锡点石共赢咨询服务合伙企业（有限合伙） | B52: 91320214MA26X80LXB | C52: 2000 | D52: 人民币 | E52: 2021-08-25 | F52: 沈广平 | G52: 0510-85185760 | H52: =VLOOKUP(A52,'合同信息 '!$F$1:$M$438,7,0) ->  | I52: =VLOOKUP(A52,'合同信息 '!$F$1:$M$438,8,0) ->  | J52: info@glxcpe.com | M52: 无锡市新吴区菱湖大道200-11（E1）栋202-37 | O52: 一般项目：社会经济咨询服务；以自有资金从事投资活动（除依法须经批准的项目外，凭营业执照依法自主开展经营活动） | W52: 挂靠
A53: 无锡市恒顺金属材料有限公司 | B53: 91320200135927444B | C53: 26000 | D53: 人民币 | E53: 1993-07-16 | F53: 张飙 | G53: 0510-83071991 | H53: =VLOOKUP(A53,'合同信息 '!$F$1:$M$438,7,0) ->  | I53: =VLOOKUP(A53,'合同信息 '!$F$1:$M$438,8,0) ->  | J53: qianz@gljsss.com | M53: 无锡市新吴区菱湖大道200号中国物联网国际创新园E1-201 | O53: 国内贸易、货物进出口贸易;自有房屋的租赁服务;焦炭的销售。（依法须经批准的项目,经相关部门批准后方可开展经营活动）一般项目:金属矿石销售（除依法须经批准的项目外,凭营业执照依法自主开展经营活动） | W53: 挂靠
A54: 无锡中科赛新投资合伙企业（有限合伙） | B54: 9132020058666337XE | C54: 20650 | D54: 人民币 | E54: 2011-12-01 | F54: 无锡馥海投资管理有限公司 | G54: 0510-85383398 | H54: =VLOOKUP(A54,'合同信息 '!$F$1:$M$438,7,0) ->  | I54: =VLOOKUP(A54,'合同信息 '!$F$1:$M$438,8,0) ->  | J54: 1458394262@qq.com | M54: 无锡市新吴区菱湖大道200号中国传感网国际创新园C1座203 | O54: 利用自有资金对外投资。（依法须经批准的项目,经相关部门批准后方可开展经营活动） | W54: 挂靠
A55: 无锡星微科技有限公司 | B55: 91320214330966457E | C55: 923.61815 | D55: 人民币 | E55: 2015-03-11 | F55: 陆敏杰 | G55: 0510-85389676 | H55: =VLOOKUP(A55,'合同信息 '!$F$1:$M$438,7,0) ->  | I55: =VLOOKUP(A55,'合同信息 '!$F$1:$M$438,8,0) ->  | J55: qianlin@xivitech.net.cn | M55: 无锡新吴区菱湖大道200号F11栋二楼创新孵化器A06 | O55: 许可项目:货物进出口;技术进出口（依法须经批准的项目,经相关部门批准后方可开展经营活动,具体经营项目以审批结果为准）一般项目:机电耦合系统研发;物料搬运装备制造;通用设备制造（不含特种设备制造）;制药专用设备制造;工业机器人制造;智能基础制造装备制造;电子专用设备制造;半导体器件专用设备制造;电子元器件与机电组件设备制造;电机制造;电机及其控制系统研发;电气设备销售;专业设计服务;软件开发;工业自动控制系统装置销售（除依法须经批准的项目外,凭营业执照依法自主开展经营活动） | W55: 挂靠
A56: 无锡易百客科技有限公司 | B56: 91320214MA1MT8R35N | C56: 147.291 | D56: 人民币 | E56: 2016-08-26 | F56: 李东旭 | G56: 19952219808 | H56: =VLOOKUP(A56,'合同信息 '!$F$1:$M$438,7,0) -> 李东旭 | I56: =VLOOKUP(A56,'合同信息 '!$F$1:$M$438,8,0) -> 19952219808 | J56: 947715076@qq.com | M56: 无锡市新吴区菱湖大道200号中国传感网国际创新园G10-803 | O56: 计算机软硬件、电子产品的技术开发、技术转让、技术咨询、技术服务、销售；助动自行车、自行车、汽车及车辆配件的销售、出租、维修；信息系统集成服务；企业营销策划；经济与商务咨询服务（不含投资咨询）；综合布线工程、智能化安装工程的施工。（依法须经批准的项目，经相关部门批准后方可开展经营活动） | W56: 在园 | X56: 已入驻
A57: 无锡巨天自动化技术有限公司 | B57: 91320214566878875N | C57: 200 | D57: 人民币 | E57: 2010-12-20 | F57: 刘瑞 | G57: 0510-83786898 | H57: =VLOOKUP(A57,'合同信息 '!$F$1:$M$438,7,0) ->  | I57: =VLOOKUP(A57,'合同信息 '!$F$1:$M$438,8,0) ->  | J57: jtzdh-sxz@163.com | M57: 无锡市新区菱湖大道200号E2-409 | O57: 自动化设备及产品的研发、销售;普通机械、电子产品、低压电器、电线电缆、仪器仪表的销售并提供售后维修服务;自动化软硬件系统工程开发,并提供技术服务;自营和代理各类商品及技术的进出口业务（国家限定企业经营或禁止进出口的商品和技术除外）。（依法须经批准的项目,经相关部门批准后方可开展经营活动） | W57: 挂靠
A58: 无锡威卓智能机器人有限公司 | B58: 91320214MA1P1XDW1B | C58: 2350 | D58: 人民币 | E58: 2017-05-22 | F58: HE JIZHONG | G58: 0510-85384033 | H58: =VLOOKUP(A58,'合同信息 '!$F$1:$M$438,7,0) ->  | I58: =VLOOKUP(A58,'合同信息 '!$F$1:$M$438,8,0) ->  | J58: jenny@weldroid.com | M58: 无锡市新吴区菱湖大道200号D2-600-266 | O58: 智能机器人、通用设备、专用设备、电子产品、仪器仪表的研发、销售、进出口及技术服务;电子产品及元器件的维修、检测;软件开发、销售。（依法须经批准的项目,经相关部门批准后方可开展经营活动） | W58: 挂靠
A59: 无锡海颂科技有限公司 | B59: 91320200MA1WK1KC5X | C59: 500 | D59: 人民币 | E59: 2018-05-18 | F59: 林雪松 | G59: 13758228318 | H59: =VLOOKUP(A59,'合同信息 '!$F$1:$M$438,7,0) -> 林雪松 | I59: =VLOOKUP(A59,'合同信息 '!$F$1:$M$438,8,0) -> 13758228318 | J59: xsl@hysumtech.com | M59: 无锡市新吴区菱湖大道200号G8-301 | O59: 机电产品、电器配件、计算机软硬件的技术开发、技术咨询、技术服务、技术转让;超声波焊接技术的研发;环保工程的设计、施工;电力电子元器件、金属切割及焊接设备、模具、塑料加工专用设备的制造、加工、研发、销售、安装;通用机械及配件、金属材料、金属制品、塑料制品、仪器仪表的销售;自营和代理各类商品及技术进出口业务（国家限定企业经营或禁止进出口的商品和技术除外）。（依法须经批准的项目,经相关部门批准后方可开展经营活动） 一般项目:汽车零部件及配件制造;汽车零部件研发（除依法须经批准的项目外,凭营业执照依法自主开展经营活动） | W59: 在园 | X59: 已入驻
A60: 无锡小白无忧科技有限公司 | B60: 913202143309952586 | C60: 425.5319 | D60: 人民币 | E60: 2015-03-04 | F60: 金唯栋 | G60: 13961859953 | H60: =VLOOKUP(A60,'合同信息 '!$F$1:$M$438,7,0) ->  | I60: =VLOOKUP(A60,'合同信息 '!$F$1:$M$438,8,0) ->  | J60: victor.jin@xiaobaiwuyou.com | M60: 无锡市新吴区菱湖大道200号F11二楼创星孵化器E1 | O60: 计算机、电子专业的技术开发、技术服务；计算机网络工程；计算机软硬件的开发及销售；信息科技专业领域内的技术开发、技术服务；通信网络工程；通信系统设备的销售、安装、调试、维护；电子产品及耗材、通讯设备（不含卫星地面接收设施和发射装置）、计算机辅助设备、通用机械及配件的销售及维修服务；润滑油、汽车及其配件、摩托车、日用品、百货、办公用品的销售；知识产权咨询服务；工商登记代理；企业管理服务（不含投资与资产管理）；办公设备租赁；设计、制作、代理和发布国内各类广告；自营和代理各类商品及技术的进出口业务（国家限定企业经营或禁止进出口的商品和技术除外）。（依法须经批准的项目，经相关部门批准后方可开展经营活动） | W60: 挂靠
A61: 无锡谱视界科技有限公司 | B61: 91320214MA25QW1M0F | C61: 1000 | D61: 人民币 | E61: 2021-04-19 | F61: 杨飞 | G61: 0510-85290662 | H61: =VLOOKUP(A61,'合同信息 '!$F$1:$M$438,7,0) -> 李子婧 | I61: =VLOOKUP(A61,'合同信息 '!$F$1:$M$438,8,0) -> 18751558662 | J61: xm.gu@specvision.com.cn | M61: 无锡市新吴区菱湖大道200号E2-111 | O61: 一般项目:技术服务、技术开发、技术咨询、技术交流、技术转让、技术推广;光电子器件制造;电力电子元器件制造;集成电路芯片及产品制造;集成电路芯片及产品销售;电子测量仪器制造;电子元器件批发;电子元器件零售;电子测量仪器销售;光学仪器制造;光学玻璃制造;光学玻璃销售;光学仪器销售;机械零件、零部件加工;机械零件、零部件销售;通用零部件制造;功能玻璃和新型光学材料销售;电子元器件与机电组件设备制造;电子元器件与机电组件设备销售;核子及核辐射测量仪器制造;导航、测绘、气象及海洋专用仪器制造;导航、测绘、气象及海洋专用仪器销售;集成电路设计;专业设计服务;会议及展览服务（除依法须经批准的项目外,凭营业执照依法自主开展经营活动） | W61: 在园 | X61: 已入驻
A62: 无锡国经众明投资企业（有限合伙） | B62: 91320200MA1NAUU07U | C62: 3280 | D62: 人民币 | E62: 2017-01-16 | F62: 无锡国经投资管理有限公司 | G62: 0510-85858678 | H62: =VLOOKUP(A62,'合同信息 '!$F$1:$M$438,7,0) ->  | I62: =VLOOKUP(A62,'合同信息 '!$F$1:$M$438,8,0) ->  | J62: 71523207@qq.com | M62: 无锡市新吴区菱湖大道200号中国传感网国际创新园E2-103 | O62: 利用自有资金对外投资。（依法须经批准的项目,经相关部门批准后方可开展经营活动）。 | W62: 挂靠
A63: 无锡华鼎创业投资管理有限公司 | B63: 91320204302141415J | C63: 10000 | D63: 人民币 | E63: 2014-05-21 | F63: 李玲娟 | G63: 0510-82698712 | H63: =VLOOKUP(A63,'合同信息 '!$F$1:$M$438,7,0) ->  | I63: =VLOOKUP(A63,'合同信息 '!$F$1:$M$438,8,0) ->  | J63: bying@wxvcg.com | M63: 无锡市新吴区菱湖大道200号中国传感网国际创新园E1-202-14 | O63: 一般项目:私募股权投资基金管理、创业投资基金管理服务（须在中国证券投资基金业协会完成登记备案后方可从事经营活动）;股权投资;以自有资金从事投资活动;企业管理咨询;创业投资（限投资未上市企业）;财务咨询（除依法须经批准的项目外,凭营业执照依法自主开展经营活动） | W63: 挂靠
A64: 无锡产发创业投资中心（有限合伙） | B64: 91320214MA237YPC1U | C64: 40000 | D64: 人民币 | E64: 2020-11-20 | F64: 无锡华鼎创业投资管理有限公司（委派代表 李玲娟） | G64: 0510-82698712 | H64: =VLOOKUP(A64,'合同信息 '!$F$1:$M$438,7,0) ->  | I64: =VLOOKUP(A64,'合同信息 '!$F$1:$M$438,8,0) ->  | J64: bying@wxvcg.com | M64: 无锡市新吴区菱湖大道200号中国传感网国际创新园E1-202-1401 | O64: 一般项目:创业投资（限投资未上市企业）;以自有资金从事投资活动;企业管理咨询;股权投资（除依法须经批准的项目外,凭营业执照依法自主开展经营活动） | W64: 挂靠
A65: 无锡矽鼎科技有限公司 | B65: 91320213678987777M | C65: 1235.3 | D65: 人民币 | E65: 2008-08-18 | F65: 陈海雷 | G65: 0510-81015338 | H65: =VLOOKUP(A65,'合同信息 '!$F$1:$M$438,7,0) ->  | I65: =VLOOKUP(A65,'合同信息 '!$F$1:$M$438,8,0) ->  | J65: henryc@cynovogroup.com | M65: 无锡市菱湖大道200号中国传感网国际创新园G10-1110 | O65: 计算机软硬件和互联网终端设备、无线数据终端、移动数据终端设备及移动通信设备的研发、生产及销售;仪器仪表、货币专用设备的研发、生产、销售及技术服务;以服务外包方式从事计算机软硬件的开发;培训服务（不含发证）;自营和代理各类商品和技术的进出口（国家限定公司经营或禁止进出口的商品和技术除外）。（依法须经批准的项目,经相关部门批准后方可开展经营活动） | W65: 挂靠
A66: 江苏达和晟智能科技集团有限公司 | B66: 91320214MA7HTGNJ96 | C66: 2000 | D66: 人民币 | E66: 2022-03-01 | F66: 李永春 | G66: 18306199294 | H66: =VLOOKUP(A66,'合同信息 '!$F$1:$M$438,7,0) -> 李永春 | I66: =VLOOKUP(A66,'合同信息 '!$F$1:$M$438,8,0) -> 13915409168 | J66: 18306199294@163.com | M66: 无锡市新吴区菱湖大道200-27（B）栋415 | O66: 许可项目:建设工程施工;互联网信息服务;在线数据处理与交易处理业务（经营类电子商务）;食品销售（依法须经批准的项目,经相关部门批准后方可开展经营活动,具体经营项目以审批结果为准） 一般项目:技术服务、技术开发、技术咨询、技术交流、技术转让、技术推广;机械电气设备销售;电力电子元器件销售;机械电气设备制造;电力电子元器件制造;机械设备销售;普通机械设备安装服务;以自有资金从事投资活动;业务培训（不含教育培训、职业技能培训等需取得许可的培训）;货物进出口;技术进出口;进出口代理;国内贸易代理;销售代理;社会调查（不含涉外调查）;企业管理;企业管理咨询;普通货物仓储服务（不含危险化学品等需许可审批的项目）;信息咨询服务（不含许可类信息咨询服务）;租赁服务（不含许可类租赁服务）;物联网技术研发;物联网技术服务;软件开发;广告设计、代理;广告发布;广告制作;数据处理服务;图文设计制作;文化娱乐经纪人服务;会议及展览服务;经济贸易咨询;企业形象策划;教育咨询服务（不含涉许可审批的教育培训活动）;人力资源服务（不含职业中介活动、劳务派遣服务）;健康咨询服务（不含诊疗服务）;远程健康管理服务;日用百货销售;化妆品批发;化妆品零售;珠宝首饰批发;珠宝首饰零售;文具用品批发;文具用品零售;办公用品销售;工艺美术品及礼仪用品销售（象牙及其制品除外）;电子产品销售;通讯设备销售;玩具销售;服装服饰批发;服装服饰零售;箱包销售;鞋帽批发;鞋帽零售;体育用品及器材批发;体育用品及器材零售;针纺织品销售;家用电器销售;厨具卫具及日用杂品批发;五金产品批发;五金产品零售;保健食品（预包装）销售（除依法须经批准的项目外,凭营业执照依法自主开展经营活动） | W66: 在园 | X66: 已入驻
A67: 无锡数信互融科技发展有限公司 | B67: 913202143238264645 | C67: 1163.756 | D67: 人民币 | E67: 2014-12-05 | F67: 罗杰 | G67: 0510-81819731 | H67: =VLOOKUP(A67,'合同信息 '!$F$1:$M$438,7,0) -> 罗杰 | I67: =VLOOKUP(A67,'合同信息 '!$F$1:$M$438,8,0) -> 13811735057 | J67: liyanyan@ifre.co | M67: 无锡新区菱湖大道200号中国传感网国际创新园B335号 | O67: 基础软件开发、应用软件开发;技术开发、技术转让、技术咨询、技术服务;计算机软硬件及相关配件的销售;网络科技研发;数据处理及存储服务。（依法须经批准的项目,经相关部门批准后方可开展经营活动） | W67: 在园 | X67: 已入驻
A68: 中科产业投资无锡有限公司 | B68: 91320214MA1XF8XD9K | C68: 5000 | D68: 人民币 | E68: 2018-11-12 | F68: 孙方刚 | G68: 0510-85381345 | H68: =VLOOKUP(A68,'合同信息 '!$F$1:$M$438,7,0) ->  | I68: =VLOOKUP(A68,'合同信息 '!$F$1:$M$438,8,0) ->  | J68: edu@ciotc.org | M68: 无锡市新吴区菱湖大道200号C栋6楼 | O68: 创业投资;行业性实业投资;利用自有资金对外投资;会议及展览服务;物联网技术研究;教学实验仪器的开发和销售;面向成年人开展的培训服务（不含发证、不含国家统一认可的职业证书类培训）;技术咨询;市场调研;计算机软件开发。 （依法须经批准的项目,经相关部门批准后方可开展经营活动） | W68: 挂靠
A69: 无锡优塑美科技有限公司 | B69: 91320214579501532C | C69: 2280 | D69: 人民币 | E69: 2011-07-27 | F69: 陈敏 | G69: 0510-85216039 | H69: =VLOOKUP(A69,'合同信息 '!$F$1:$M$438,7,0) -> 陈敏 | I69: =VLOOKUP(A69,'合同信息 '!$F$1:$M$438,8,0) -> 13921299581 | J69: lianxiang.wang@foryouep.com | M69: 无锡市新吴区菱湖大道200号中国传感网国际创新园E2-213 | O69: ＬＥＤ照明产品及配件、高分子材料及产品、塑料制品、机械设备、电子产品、建材、纺织品、皮革制品、化妆品、化工设备及产品（不含危险品）、金属制品、五金交电的研发、销售、生产（限分支机构经营）；危险化学品经营（按许可证所列范围和方式经营）；技术服务、技术开发、技术咨询、 技术转让；企业管理咨询服务（不含投资咨询）；自营各类商品和技术的进出口（国家限定公司经营或禁止进出口的商品和技术除外）。（依法须经批准的项目，经相关部门批准后方可开展经营活动） | W69: 在园 | X69: 已入驻
A70: 无锡沃达科半导体技术有限公司 | B70: 91320214MA1W3R788R | C70: 2306.785 | D70: 人民币 | E70: 2018-02-08 | F70: 黄炜 | G70: 0510-85387565 | H70: =VLOOKUP(A70,'合同信息 '!$F$1:$M$438,7,0) -> 黄炜 | I70: =VLOOKUP(A70,'合同信息 '!$F$1:$M$438,8,0) -> 13961758258 | J70: sunyuping@voltaic.com.cn | M70: 无锡市新吴区菱湖大道200号中国物联网国际创新园G8-401 | O70: 一般项目:技术服务、技术开发、技术咨询、技术交流、技术转让、技术推广;集成电路芯片及产品制造;集成电路芯片及产品销售;集成电路设计;货物进出口;技术进出口（除依法须经批准的项目外,凭营业执照依法自主开展经营活动） | W70: 在园 | X70: 已入驻
A71: 华景科技无锡有限公司 | B71: 91320214MA1NCC6P03 | C71: 5000 | D71: 人民币 | E71: 2017-02-03 | F71: MIAO JIANMIN（缪建民） | G71: 0510-85622282 | H71: =VLOOKUP(A71,'合同信息 '!$F$1:$M$438,7,0) ->  | I71: =VLOOKUP(A71,'合同信息 '!$F$1:$M$438,8,0) ->  | J71: qiugz@svsens.com | M71: 无锡市新吴区菱湖大道200号中国传感网国际创新园F2 | O71: 物联网传感器、集成电路的研发、加工、制造;物联网传感器、电子元器件、电子产品的设计、技术开发、技术服务;电子产品的批发;自营和代理各类商品和技术的进出口（国家限定公司经营或禁止进出口的商品和技术除外）。（依法须经批准的项目,经相关部门批准后方可开展经营活动） | W71: 挂靠
A72: 无锡市德联投资有限公司 | B72: 91320214691328127Y | C72: 10000 | D72: 人民币 | E72: 2009-06-22 | F72: 吴卫华 | G72: 0510-82830135 | H72: =VLOOKUP(A72,'合同信息 '!$F$1:$M$438,7,0) ->  | I72: =VLOOKUP(A72,'合同信息 '!$F$1:$M$438,8,0) ->  | J72: 89015641@qq.com | M72: 无锡新区太湖国际科技园菱湖大道200号中国微纳国际创新园1号楼 | O72: 对外投资、受托资产管理、投资咨询、财务咨询、经济信息咨询。（依法须经批准的项目,经相关部门批准后方可开展经营活动） | W72: 挂靠
A73: 无锡德昌投资企业（有限合伙） | B73: 9132020033103001XT | C73: 260 | D73: 人民币 | E73: 2015-04-03 | F73: 黄昌民 | G73: 13906192675 | H73: =VLOOKUP(A73,'合同信息 '!$F$1:$M$438,7,0) ->  | I73: =VLOOKUP(A73,'合同信息 '!$F$1:$M$438,8,0) ->  | J73: hchangmin@cdwdz.com | M73: 无锡市新吴区菱湖大道200-E1-901 | O73: 利用自有资金对外投资。（依法须经批准的项目,经相关部门批准后方可开展经营活动） | W73: 挂靠
A74: 无锡市时盛激光科技有限公司 | B74: 91320211051871850D | C74: 500 | D74: 人民币 | E74: 2012-08-22 | F74: 周训全 | G74: 0510-85172008 | H74: =VLOOKUP(A74,'合同信息 '!$F$1:$M$438,7,0) -> 周训全 | I74: =VLOOKUP(A74,'合同信息 '!$F$1:$M$438,8,0) -> 18961720099 | J74: 199918707@qq.com | M74: 无锡市新吴区菱湖大道200号E2-104 | O74: 一般项目:工业自动控制系统装置制造;工业自动控制系统装置销售;电子元器件与机电组件设备制造;电子元器件与机电组件设备销售;金属切割及焊接设备制造;金属切割及焊接设备销售;机械设备研发;机械设备销售;软件开发;技术服务、技术开发、技术咨询、技术交流、技术转让、技术推广（除依法须经批准的项目外,凭营业执照依法自主开展经营活动） | W74: 在园 | X74: 已入驻
A75: 江苏晟能科技股份有限公司 | B75: 91320214346236854R | C75: 1250 | D75: 人民币 | E75: 2015-06-30 | F75: 倪晓宇 | G75: 0510-88101258 | H75: =VLOOKUP(A75,'合同信息 '!$F$1:$M$438,7,0) -> 倪晓宇 | I75: =VLOOKUP(A75,'合同信息 '!$F$1:$M$438,8,0) -> 13585085897 | J75: bid@iyoungsun.com | M75: 无锡市新吴区菱湖大道200号中国传感网国际创新园F10 | O75: 许可项目:发电业务、输电业务、供（配）电业务（依法须经批准的项目,经相关部门批准后方可开展经营活动,具体经营项目以审批结果为准） 一般项目:技术服务、技术开发、技术咨询、技术交流、技术转让、技术推广;软件开发;软件销售;信息系统集成服务;储能技术服务;技术推广服务;合同能源管理;节能管理服务;数据处理服务;大数据服务（除依法须经批准的项目外,凭营业执照依法自主开展经营活动） | W75: 在园 | X75: 已入驻
A76: 中兴九城网络科技无锡有限公司 | B76: 91320214061876866J | C76: 1790.938 | D76: 人民币 | E76: 2013-02-07 | F76: 殷建勇 | G76: 18762638816 | H76: =VLOOKUP(A76,'合同信息 '!$F$1:$M$438,7,0) ->  | I76: =VLOOKUP(A76,'合同信息 '!$F$1:$M$438,8,0) ->  | J76: 18762638816@163.com | M76: 无锡市新吴区菱湖大道200号F11栋三楼创星孵化器A7 | O76: 许可项目:第一类增值电信业务;第二类增值电信业务;建设工程施工;互联网游戏服务;互联网信息服务（依法须经批准的项目,经相关部门批准后方可开展经营活动,具体经营项目以审批结果为准）一般项目:技术服务、技术开发、技术咨询、技术交流、技术转让、技术推广;网络技术服务;网络与信息安全软件开发;计算机系统服务;网络设备销售;信息系统集成服务;互联网安全服务;物联网技术服务;物联网技术研发;电子元器件批发;软件开发;电子元器件零售;互联网设备销售;光通信设备销售;工业控制计算机及系统销售;电子元器件与机电组件设备销售;电子测量仪器销售;集成电路销售;云计算设备销售;信息安全设备销售;数字视频监控系统销售;信息系统运行维护服务;专业设计服务;信息技术咨询服务;技术进出口;进出口代理;货物进出口;电子产品销售;机械零件、零部件销售;显示器件销售;光电子器件销售;新材料技术研发;家用电器安装服务;音响设备销售;家用视听设备销售;家用电器销售;数字文化创意技术装备销售;计算机软硬件及辅助设备批发;计算机软硬件及辅助设备零售;游艺用品及室内游艺器材销售（除依法须经批准的项目外,凭营业执照依法自主开展经营活动） | W76: 挂靠
A77: 国科瑞祺物联网创业投资有限公司 | B77: 91320214560328987T | C77: 38144.8801 | D77: 人民币 | E77: 2010-07-22 | F77: 孙华 | G77: 010-82607629 | H77: =VLOOKUP(A77,'合同信息 '!$F$1:$M$438,7,0) ->  | I77: =VLOOKUP(A77,'合同信息 '!$F$1:$M$438,8,0) ->  | J77: casim@casim.cn | M77: 无锡市新吴区太湖国际科技园菱湖大道200号中国微纳传感网国际创新园B楼 | O77: 创业投资,创业投资咨询,为创业企业提供创业管理服务。（依法须经批准的项目,经相关部门批准后方可开展经营活动） | W77: 挂靠
A78: 无锡纽科电子科技股份有限公司 | B78: 91320214066282805K | C78: 500 | D78: 人民币 | E78: 2013-04-23 | F78: 邹志荣 | G78: 0510-85389552 | H78: =VLOOKUP(A78,'合同信息 '!$F$1:$M$438,7,0) ->  | I78: =VLOOKUP(A78,'合同信息 '!$F$1:$M$438,8,0) ->  | J78: finance001@newic-china.com | M78: 无锡市新吴区菱湖大道200号中国传感网国际创新园D2-608（经营场所:无锡市新吴区菱湖大道180号-10-B4） | O78: 物联网领域射频元器件的技术开发及产品的制造和销售;电子电感元器件、电子变压器的设计、制造和销售;自营和代理各类商品及技术的进出口（国家限定公司经营或禁止进出口的商品和技术除外）;注塑件的设计、生产、制造、销售（限分支机构经营）。（依法须经批准的项目,经相关部门批准后方可开展经营活动） | W78: 异地生产
A79: 瓴芯电子科技（无锡）有限公司 | B79: 91320214MA1PBBBM14 | C79: 1000 | D79: 人民币 | E79: 2017-07-04 | F79: NI CHUAN | G79: 0510-68101580 | H79: =VLOOKUP(A79,'合同信息 '!$F$1:$M$438,7,0) -> NI CHUAN | I79: =VLOOKUP(A79,'合同信息 '!$F$1:$M$438,8,0) -> 18068298716 | J79: jennie.qian@len-technology.com | M79: 无锡市新吴区菱湖大道200号中国传感网国际创新园A-201号 | O79: 集成电路、软件的设计、开发、销售、进出口;集成电路芯片的封装、测试、销售;集成电路的故障分析服务;电子产品的技术开发、销售、进出口;电子元器件的销售、进出口;集成芯片的技术开发、技术转让。（依法须经批准的项目,经相关部门批准后方可开展经营活动） | W79: 在园 | X79: 已入驻
A80: 华进半导体封装先导技术研发中心有限公司 | B80: 913202130551581209 | C80: 36042.32 | D80: 人民币 | E80: 2012-09-29 | F80: 叶甜春 | G80: 0510-66679352 | H80: =VLOOKUP(A80,'合同信息 '!$F$1:$M$438,7,0) -> 苏建光 | I80: =VLOOKUP(A80,'合同信息 '!$F$1:$M$438,8,0) -> 13961887136 | J80: ceo@ncap-cn.com | M80: 无锡市新吴区太湖国际科技园菱湖大道200号中国传感网国际创新园D1栋 | O80: 一般项目:技术服务、技术开发、技术咨询、技术交流、技术转让、技术推广;集成电路制造;集成电路销售;信息系统集成服务;集成电路设计;计算机软硬件及外围设备制造;集成电路芯片及产品制造;集成电路芯片及产品销售;知识产权服务（专利代理服务除外）;技术进出口;货物进出口;以自有资金从事投资活动（除依法须经批准的项目外,凭营业执照依法自主开展经营活动） | W80: 在园 | X80: 已入驻
A81: 无锡泓瑞航天科技有限公司 | B81: 91320213576282530J | C81: 2143 | D81: 人民币 | E81: 2011-07-11 | F81: 王小军 | G81: 0510-85387830 | H81: =VLOOKUP(A81,'合同信息 '!$F$1:$M$438,7,0) -> 杨登强 | I81: =VLOOKUP(A81,'合同信息 '!$F$1:$M$438,8,0) -> 18906195727 | J81: hrhtkjwx@sina.com | M81: 无锡新吴区菱湖大道200号传感网国际创新园G6 | O81: 航天技术应用及技术服务;真空、低温、电子类设备与表面工程产品的设计、开发、制造和销售;自营和代理各类商品和技术的进出口（国家限定公司经营或禁止进出口的商品和技术除外）。（依法须经批准的项目,经相关部门批准后方可开展经营活动） | W81: 在园 | X81: 已入驻
A82: 无锡市艾克特电气股份有限公司 | B82: 91320200071039797X | C82: 1145 | D82: 人民币 | E82: 2013-06-17 | F82: 宋明忻 | G82: 0510-85380261 | H82: =VLOOKUP(A82,'合同信息 '!$F$1:$M$438,7,0) -> 刘建 | I82: =VLOOKUP(A82,'合同信息 '!$F$1:$M$438,8,0) -> 18961882930 | J82: fengke@jact.cc | M82: 无锡市新吴区菱湖大道200号中国传感网国际创新园A-1001 | O82: 工业自动控制系统装置、电机、输配电及控制设备、汽车零部件及配件的研发、生产和销售;物联网设备、集成电路、新能源汽车驱动控制系统的研发与设计;软件的开发、技术服务与销售;信息系统集成服务;自营和代理各类商品及技术的进出口业务（国家限定企业经营或禁止进出口的商品和技术除外）。（依法须经批准的项目,经相关部门批准后方可开展经营活动） | W82: 在园 | X82: 已入驻
A83: 江苏中科君芯科技有限公司 | B83: 91320213585596419Y | C83: 1957.2463 | D83: 人民币 | E83: 2011-11-17 | F83: 连永懿 | G83: 0510-81884888 | H83: =VLOOKUP(A83,'合同信息 '!$F$1:$M$438,7,0) -> 肖庆云 | I83: =VLOOKUP(A83,'合同信息 '!$F$1:$M$438,8,0) -> 13902972899 | J83: junshine@cas-junshine.com | M83: 无锡新区菱湖大道200号中国传感网国际创新园D2-501 | O83: 电子元器件及系统设备的研发、销售、技术服务;物联网传感网等相关领域的系统集成、产品或设备的研发和运营服务。（依法须经批准的项目,经相关部门批准后方可开展经营活动）一般项目:技术进出口;货物进出口（除依法须经批准的项目外,凭营业执照依法自主开展经营活动） | W83: 在园 | X83: 已入驻
A84: 无锡优微科技有限公司 | B84: 91320214MA257KKY3K | C84: 3000 | D84: 人民币 | E84: 2021-02-10 | F84: 邢小亮 | G84: 0510-88350925 | H84: =VLOOKUP(A84,'合同信息 '!$F$1:$M$438,7,0) ->  | I84: =VLOOKUP(A84,'合同信息 '!$F$1:$M$438,8,0) ->  | J84: jixiaomian@uw-ic.com | M84: 无锡市新吴区菱湖大道200号G8-405 | O84: 许可项目:货物进出口;技术进出口;进出口代理（依法须经批准的项目,经相关部门批准后方可开展经营活动,具体经营项目以审批结果为准）一般项目:技术服务、技术开发、技术咨询、技术交流、技术转让、技术推广;电子专用材料研发;机械设备研发;集成电路制造;半导体分立器件制造;电力电子元器件制造;机械零件、零部件加工;通用设备制造（不含特种设备制造）;专用设备制造（不含许可类专业设备制造）;集成电路设计;集成电路销售;半导体分立器件销售;电力电子元器件销售;机械零件、零部件销售;软件销售;机械设备租赁;软件开发;通用设备修理;专用设备修理（除依法须经批准的项目外,凭营业执照依法自主开展经营活动） | W84: 挂靠
A85: 江苏中科西北星信息科技有限公司 | B85: 91320214582272072G | C85: 2250 | D85: 人民币 | E85: 2011-09-06 | F85: 王蒙 | G85: 0510-81817224 | H85: =VLOOKUP(A85,'合同信息 '!$F$1:$M$438,7,0) ->  | I85: =VLOOKUP(A85,'合同信息 '!$F$1:$M$438,8,0) ->  | J85: zkxbx@ciotc.org | M85: 无锡市新吴区菱湖大道200号中国传感网国际创新园C1座7楼 | O85: 计算机软、硬件开发及应用;计算机控制有关的软、硬件产品及成套设备的开发、生产及销售;大数据的应用技术开发和处理;数据库技术服务;行业信息化解决方案的开发和应用技术开发;大计算机系统集成;电子产品和机械设备的研发、销售;计算机控制工程和工程检测服务;自动化、智能化成套设备的设计、安装和调试;防盗报警、电子监控工程的设计、施工及维修;技术咨询及服务;健康管理咨询（不得从事诊疗活动）、养老服务咨询、健康信息咨询;养老看护服务;家政服务;展览展示服务;电子商务技术研发;人工智能技术产品、智能家居产品、电子产品、通讯设备（不含卫星广播地面接收设施及发射装置）研发、设计和销售,技术服务、技术咨询、技术转让;电信增值业务;企业管理咨询服务;第一类、第二类、第三类医疗器械的销售（凭有效许可证经营）;自营和代理各类商品及技术的进出口业务（国家限定企业经营或禁止进出口的商品和技术除外）。（依法须经批准的项目,经相关部门批准后方可开展经营活动） | W85: 在园 | X85: 已入驻
A86: 芯河半导体科技（无锡）有限公司 | B86: 91320214MA1YD36232 | C86: 1878.553 | D86: 人民币 | E86: 2019-05-14 | F86: 王晓明 | G86: 0510-85388273 | H86: =VLOOKUP(A86,'合同信息 '!$F$1:$M$438,7,0) -> 王晓明 | I86: =VLOOKUP(A86,'合同信息 '!$F$1:$M$438,8,0) -> 18761613082 | J86: lizheng@galachip.com | M86: 无锡市新吴区菱湖大道200号中国传感网国际创新园E1-701 | O86: 集成电路设计、研发、销售;半导体产品的销售;计算机软硬件、电信设备和通讯网络系统及软件的设计、开发、销售;计算机系统集成;电子科技、信息科技、计算机科技领域的技术开发、技术咨询、技术服务;自营和代理各类商品及技术的进出口业务（国家限定企业经营或禁止进出口的商品和技术除外）。（依法须经批准的项目,经相关部门批准后方可开展经营活动） | W86: 在园 | X86: 已入驻
A87: 龙微科技无锡有限公司 | B87: 913202133021285602 | C87: 3497.3529 | D87: 人民币 | E87: 2014-06-09 | F87: 殷宗平 | G87: 0510-85260888 | H87: =VLOOKUP(A87,'合同信息 '!$F$1:$M$438,7,0) -> 杨倩 | I87: =VLOOKUP(A87,'合同信息 '!$F$1:$M$438,8,0) -> 18552505685 | J87: xuxiao@longwaytec.com | M87: 无锡市新吴区菱湖大道200号中国传感网国际创新园G5号 | O87: 一般项目:技术服务、技术开发、技术咨询、技术交流、技术转让、技术推广;电子元器件制造;电子元器件批发;电子元器件零售;集成电路芯片及产品制造;集成电路芯片及产品销售;物联网技术研发;物联网设备制造;物联网设备销售;智能仪器仪表制造;智能仪器仪表销售;计算机软硬件及辅助设备批发;计算机软硬件及辅助设备零售;软件开发;货物进出口;技术进出口;进出口代理（除依法须经批准的项目外,凭营业执照依法自主开展经营活动） | W87: 在园 | X87: 已入驻
A88: 国联昆吾九鼎（无锡）投资中心（有限合伙） | B88: 91320200694474568J | C88: 20000 | D88: 人民币 | E88: 2009-08-27 | F88: 无锡上鼎久鼎投资管理有限公司 | G88: 010-56570999 | H88: =VLOOKUP(A88,'合同信息 '!$F$1:$M$438,7,0) ->  | I88: =VLOOKUP(A88,'合同信息 '!$F$1:$M$438,8,0) ->  | J88: peservice@jdcapital.com | M88: 无锡市新吴区菱湖大道200号中国传感网国际创新园E2-103 | O88: 行业性实业投资。（依法须经批准的项目,经相关部门批准后方可开展经营活动） | W88: 挂靠
A89: 无锡安诺信通信技术有限公司 | B89: 913202133390515365 | C89: 5000 | D89: 人民币 | E89: 2015-05-21 | F89: 赵剑开 | G89: 0510-68799783 | H89: =VLOOKUP(A89,'合同信息 '!$F$1:$M$438,7,0) ->  | I89: =VLOOKUP(A89,'合同信息 '!$F$1:$M$438,8,0) ->  | J89: wxzxzz@anosi.cn | M89: 无锡市新区菱湖大道200号中国传感网国际创新园G7栋一层 | O89: 软件开发及销售;技术转让、技术咨询、技术服务;计算机软硬件及辅助设备、仓储设备、物流设备的销售;计算机和辅助设备修理;通信设备修理;信息技术咨询;信息系统集成服务;仓储服务。（依法须经批准的项目,经相关部门批准后方可开展经营活动） | W89: 挂靠
A90: 无锡国经众贤投资企业（有限合伙） | B90: 91320211MA1TA2MPX9 | C90: 5000 | D90: 人民币 | E90: 2017-11-15 | F90: 无锡国经投资管理有限公司 | G90: 0510-85858678 | H90: =VLOOKUP(A90,'合同信息 '!$F$1:$M$438,7,0) ->  | I90: =VLOOKUP(A90,'合同信息 '!$F$1:$M$438,8,0) ->  | J90: 71523207@qq.com | M90: 无锡市新吴区菱湖大道200号中国传感网国际创新园E2-103 | O90: 利用自有资金对外投资。（依法须经批准的项目,经相关部门批准后方可开展经营活动） | W90: 挂靠
A91: 无锡中智人力资源服务有限公司 | B91: 913202145795271774 | C91: 200 | D91: 人民币 | E91: 2011-08-02 | F91: 寇春丽 | G91: 0510-81817301 | H91: =VLOOKUP(A91,'合同信息 '!$F$1:$M$438,7,0) -> 吴晓兰 | I91: =VLOOKUP(A91,'合同信息 '!$F$1:$M$438,8,0) -> 18651868665 | J91: kcl@ciicjs.com | M91: 无锡市菱湖大道200号中国传感网国际创新园A311 | O91: 许可项目:劳务派遣服务;职业中介活动（依法须经批准的项目,经相关部门批准后方可开展经营活动,具体经营项目以审批结果为准） 一般项目:人力资源服务（不含职业中介活动、劳务派遣服务）;薪酬管理服务;工程管理服务;科技中介服务;咨询策划服务;财务咨询;认证咨询;企业管理咨询;信息咨询服务（不含许可类信息咨询服务）;票据信息咨询服务;市场营销策划;教育咨询服务（不含涉许可审批的教育培训活动）;社会经济咨询服务;信息技术咨询服务;自费出国留学中介服务;法律咨询（不含依法须律师事务所执业许可的业务）;技术服务、技术开发、技术咨询、技术交流、技术转让、技术推广;标准化服务;税务服务;科技推广和应用服务;版权代理;承接档案服务外包;数据处理服务;数据处理和存储支持服务;生产线管理服务;劳务服务（不含劳务派遣）;专业设计服务;业务培训（不含教育培训、职业技能培训等需取得许可的培训）;组织文化艺术交流活动;组织体育表演活动;软件外包服务;基于云平台的业务外包服务;接受金融机构委托从事信息技术和流程外包服务（不含金融信息服务）;商务代理代办服务;市场主体登记注册代理;招投标代理服务;政府采购代理服务;市场调查（不含涉外调查）;企业管理;翻译服务;酒店管理（除依法须经批准的项目外,凭营业执照依法自主开展经营活动） 限分支机构经营:知识产权服务（专利代理服务除外） | W91: 在园 | X91: 已入驻
A92: 无锡芯享信息科技有限公司 | B92: 91320214MA1WUNMW6U | C92: 1045.873 | D92: 人民币 | E92: 2018-07-10 | F92: 沈聪聪 | G92: 0510-83739999 | H92: =VLOOKUP(A92,'合同信息 '!$F$1:$M$438,7,0) -> 徐培培 | I92: =VLOOKUP(A92,'合同信息 '!$F$1:$M$438,8,0) -> 13806181464 | J92: xxpr@xnebula.com | M92: 无锡市新吴区菱湖大道200号中国传感网国际创新园G10-1006 | O92: 一般项目:信息系统集成服务;信息技术咨询服务;信息系统运行维护服务;数据处理服务;工业互联网数据服务;物联网技术服务;物联网技术研发;网络技术服务;物联网应用服务;网络与信息安全软件开发;软件开发;技术服务、技术开发、技术咨询、技术交流、技术转让、技术推广;软件销售;网络设备销售;通讯设备销售;物联网设备销售;计算机软硬件及辅助设备零售;工业控制计算机及系统销售;信息安全设备销售;电子产品销售;办公用品销售;五金产品零售;货物进出口;技术进出口（除依法须经批准的项目外,凭营业执照依法自主开展经营活动） | W92: 在园 | X92: 已入驻
A93: 无锡美凯能源科技有限公司 | B93: 91320213593919716E | C93: 1092.6573 | D93: 人民币 | E93: 2012-04-06 | F93: 牟英峰 | G93: 0510-81193051 | H93: =VLOOKUP(A93,'合同信息 '!$F$1:$M$438,7,0) ->  | I93: =VLOOKUP(A93,'合同信息 '!$F$1:$M$438,8,0) ->  | J93: 2237377827@qq.com | M93: 无锡新吴区菱湖大道200号中国传感网国际创新园B-201号 | O93: 能源技术及产品、能源技术系统软件、嵌入式软件、并网逆变器技术及产品的研发、生产、销售;能源技术咨询与技术服务;自营和代理各类商品及技术的进出口业务（国家限定公司经营或禁止进出口的商品和技术除外）。（依法须经批准的项目,经相关部门批准后方可开展经营活动） | W93: 挂靠
A94: 无锡国经众新投资管理合伙企业（有限合伙） | B94: 91320200MA1MD4B35C | C94: 4250 | D94: 人民币 | E94: 2015-09-18 | F94: 无锡国经投资管理有限公司 | G94: 0510-85858678 | H94: =VLOOKUP(A94,'合同信息 '!$F$1:$M$438,7,0) ->  | I94: =VLOOKUP(A94,'合同信息 '!$F$1:$M$438,8,0) ->  | J94: 71523207@qq.com | M94: 无锡市新吴区菱湖大道200号中国传感网国际创新园E2-103 | O94: 利用自有资金对外投资;投资咨询（不含证券、期货类）。（依法须经批准的项目,经相关部门批准后方可开展经营活动） | W94: 挂靠
A95: 无锡人才之家信息科技有限公司 | B95: 913202147986075055 | C95: 345 | D95: 人民币 | E95: 2007-02-15 | F95: 杨晓峰 | G95: 0510-85226111 | H95: =VLOOKUP(A95,'合同信息 '!$F$1:$M$438,7,0) -> 杨晓峰 | I95: =VLOOKUP(A95,'合同信息 '!$F$1:$M$438,8,0) -> 13813691833 | J95: fbzb@rczj.cn | M95: 无锡市新吴区菱湖大道200号中国传感网国际创新园A-302号 | O95: 计算机软硬件开发；境内职业中介；商务信息咨询（不含投资咨询）；酒店管理咨询服务；设计、制作、代理及发布国内各类广告业务；承接服务外包；企业营销策划；劳务派遣经营；第二类增值电信业务中的因特网信息服务业（因特网信息服务不含新闻、出版、教育、医疗保健、药品和医疗器械、互联网电子公告服务等内容）。（依法须经批准的项目，经相关部门批准后方可开展经营活动）一般项目：商务代理代办服务；汽车新车销售；机动车检验检测服务；汽车租赁；机动车修理和维护；代驾服务；专业保洁、清洗、消毒服务；家政服务；建筑物清洁服务；生产线管理服务；装卸搬运（除依法须经批准的项目外，凭营业执照依法自主开展经营活动） | W95: 在园 | X95: 已入驻
A96: 无锡扬晟科技股份有限公司 | B96: 91320214554610089T | C96: 5000 | D96: 人民币 | E96: 2010-04-21 | F96: 倪晓宇 | G96: 0510-88102309 | H96: =VLOOKUP(A96,'合同信息 '!$F$1:$M$438,7,0) ->  | I96: =VLOOKUP(A96,'合同信息 '!$F$1:$M$438,8,0) ->  | J96: bid@iyoungsun.com | M96: 无锡新吴区菱湖大道200号中国传感网国际创新园G10-903、910 | O96: 计算机软硬件的技术开发、技术咨询、技术服务及技术转让;新能源技术开发、技术转让;新能源汽车充换电设施的研发、生产、销售;节能技术的研发、技术转让、技术咨询及技术服务;电气机械及器材的研发、销售及运行维护服务;工程测量服务;数据处理和存储服务;承装（修、试）电力设施业务;计算机软硬件及辅助设备零售;设计、制作、代理、发布各类广告业务;标识标牌的加工销售。（依法须经批准的项目,经相关部门批准后方可开展经营活动）。一般项目:机械电气设备制造（除依法须经批准的项目外,凭营业执照依法自主开展经营活动） | W96: 在园 | X96: 已入驻
A97: 江苏物创产业投资有限公司 | B97: 91320214MABTAACA3B | C97: 3000 | D97: 人民币 | E97: 2022-06-28 | F97: 齐玉峰 | G97: - | H97: =VLOOKUP(A97,'合同信息 '!$F$1:$M$438,7,0) ->  | I97: =VLOOKUP(A97,'合同信息 '!$F$1:$M$438,8,0) ->  | J97: - | M97: 无锡市新吴区菱湖大道200号E2-112 | O97: 一般项目:股权投资;创业投资（限投资未上市企业）;以自有资金从事投资活动;自有资金投资的资产管理服务;信息咨询服务（不含许可类信息咨询服务）;信息技术咨询服务（除依法须经批准的项目外,凭营业执照依法自主开展经营活动） | W97: 挂靠
A98: 无锡产发云晖创业投资合伙企业（有限合伙） | B98: 91320214MA7HY4PT89 | C98: 10000 | D98: 人民币 | E98: 2022-01-29 | F98: 东台云畅投资管理合伙企业（有限合伙） | G98: - | H98: =VLOOKUP(A98,'合同信息 '!$F$1:$M$438,7,0) ->  | I98: =VLOOKUP(A98,'合同信息 '!$F$1:$M$438,8,0) ->  | J98: - | M98: 无锡市新吴区菱湖大道200号E1-202-45 | O98: 一般项目:创业投资（限投资未上市企业）;以私募基金从事股权投资、投资管理、资产管理等活动（须在中国证券投资基金业协会完成登记备案后方可从事经营活动）（除依法须经批准的项目外,凭营业执照依法自主开展经营活动） | W98: 挂靠
A99: 无锡中汉和物流科技有限公司 | B99: 91320214MA1MFFUW46 | C99: 5000 | D99: 人民币 | E99: 2016-02-24 | F99: 许红兵 | G99: 0510-85380006 | H99: =VLOOKUP(A99,'合同信息 '!$F$1:$M$438,7,0) -> 许红兵 | I99: =VLOOKUP(A99,'合同信息 '!$F$1:$M$438,8,0) -> 85380006 | J99: postmaster@zhhwlkj.com | M99: 无锡市菱湖大道200号中国传感网国际创新园G10-401 | O99: 智能自动化设备、计算机软硬件的技术开发、技术咨询、技术转让;自动分拣设备、仓储自动化设备、输送设备及配件、电子产品、计算机软硬件的销售;企业管理咨询服务（不含投资咨询）。（依法须经批准的项目,经相关部门批准后方可开展经营活动） | W99: 在园 | X99: 已入驻
A100: 无锡来龙去脉科技有限公司 | B100: 91320214MA20BF8E76 | C100: 1000 | D100: 人民币 | E100: 2019-11-01 | F100: 贺建 | G100: 13405893332 | H100: =VLOOKUP(A100,'合同信息 '!$F$1:$M$438,7,0) -> 贺建 | I100: =VLOOKUP(A100,'合同信息 '!$F$1:$M$438,8,0) -> 17312786806 | J100: 813556902@qq.com | M100: 无锡市新吴区菱湖大道200号中国传感网国际创新园E2-103 | O100: 技术开发、技术咨询、技术转让、技术服务、技术推广;计算机软件开发及维护;设计、制作、代理、发布广告;互联网文化活动。（依法须经批准的项目,经相关部门批准后方可开展经营活动） | W100: 在园 | X100: 已入驻
A101: 无锡国联创新一号投资合伙企业（有限合伙） | B101: 91320205MA25C7DY07 | C101: 10000 | D101: 人民币 | E101: 2021-03-09 | F101: 无锡国联资本运营私募基金管理有限公司 | G101: 0510-82830985 | H101: =VLOOKUP(A101,'合同信息 '!$F$1:$M$438,7,0) ->  | I101: =VLOOKUP(A101,'合同信息 '!$F$1:$M$438,8,0) ->  | J101: info@wuxicapital.com.cn | M101: 无锡市新吴区菱湖大道200号中国传感网国际创新园E1-202-63 | O101: 一般项目:股权投资;以自有资金从事投资活动（除依法须经批准的项目外,凭营业执照依法自主开展经营活动） | W101: 挂靠
A102: 无锡中科富创科技孵化有限公司 | B102: 913202143460860085 | C102: 500 | D102: 人民币 | E102: 2015-06-24 | F102: 栾年生 | G102: 0510-85383398 | H102: =VLOOKUP(A102,'合同信息 '!$F$1:$M$438,7,0) ->  | I102: =VLOOKUP(A102,'合同信息 '!$F$1:$M$438,8,0) ->  | J102: 1458394262@qq.com | M102: 无锡新吴区菱湖大道200号中国传感网国际创新园C座2楼 | O102: 一般项目：创业空间服务；信息技术咨询服务；技术服务、技术开发、技术咨询、技术交流、技术转让、技术推广；市场营销策划；企业形象策划；会议及展览服务；软件开发；市场调查；科技中介服务；信息咨询服务（不含许可类信息咨询服务）；企业管理；物联网技术服务（除依法须经批准的项目外，凭营业执照依法自主开展经营活动） | W102: 挂靠
A103: 无锡飞翎电子有限公司 | B103: 91320214748158756F | C103: 362.4564 | D103: 美元 | E103: 2003-04-14 | F103: 肖毅 | G103: 0510-83704003 | H103: =VLOOKUP(A103,'合同信息 '!$F$1:$M$438,7,0) ->  | I103: =VLOOKUP(A103,'合同信息 '!$F$1:$M$438,8,0) ->  | J103: info@midea.com.cn | M103: 无锡新区太湖国际科技园菱湖大道200号中国传感网国际创新园内 | O103: 软件产品的开发，新型电子元器件（新型机电元件）的开发生产；生产税控收款机；普通货运；电机产品的开发、设计、制造、销售。（依法须经批准的项目，经相关部门批准后方可开展经营活动） | W103: 挂靠
A104: 无锡亚上科技有限公司 | B104: 91320213MA1PYG7B58 | C104: 1000 | D104: 人民币 | E104: 2017-07-24 | F104: 段伟 | G104: 13520647688 | H104: =VLOOKUP(A104,'合同信息 '!$F$1:$M$438,7,0) ->  | I104: =VLOOKUP(A104,'合同信息 '!$F$1:$M$438,8,0) ->  | J104: david@qingtuapp.com | M104: 无锡市新吴区菱湖大道200号D2-600-32 | O104: 一般项目:技术服务、技术开发、技术咨询、技术交流、技术转让、技术推广;网络技术服务;软件开发;软件销售;软件外包服务;市场营销策划;计算机软硬件及辅助设备批发;工业自动控制系统装置销售;智能控制系统集成;信息系统集成服务;计算机系统服务;电子产品销售;电气设备销售;仪器仪表销售;货物进出口;技术进出口;进出口代理（除依法须经批准的项目外,凭营业执照依法自主开展经营活动） | W104: 挂靠
A105: 无锡智瑞信息科技有限公司 | B105: 913202140879385004 | C105: 1200 | D105: 人民币 | E105: 2014-02-19 | F105: 陈怡洁 | G105: 0510-81813067 | H105: =VLOOKUP(A105,'合同信息 '!$F$1:$M$438,7,0) ->  | I105: =VLOOKUP(A105,'合同信息 '!$F$1:$M$438,8,0) ->  | J105: 36074243@QQ.COM | M105: 无锡市新吴区菱湖大道200号中国传感网国际创新园A307-2号 | O105: 许可项目:职业中介活动（依法须经批准的项目,经相关部门批准后方可开展经营活动,具体经营项目以审批结果为准）一般项目:技术服务、技术开发、技术咨询、技术交流、技术转让、技术推广;人力资源服务（不含职业中介活动、劳务派遣服务）;生产线管理服务;电力电子元器件销售;电力电子元器件制造;电子产品销售;企业管理;企业管理咨询;会议及展览服务;信息咨询服务（不含许可类信息咨询服务）;接受金融机构委托从事信息技术和流程外包服务（不含金融信息服务）;生物化工产品技术研发;润滑油销售;普通货物仓储服务（不含危险化学品等需许可审批的项目）;数字内容制作服务（不含出版发行）;摄像及视频制作服务（除依法须经批准的项目外,凭营业执照依法自主开展经营活动） | W105: 在园 | X105: 已入驻
A106: 江苏慧嘉博人力资源集团有限公司 | B106: 91320213301981703T | C106: 1000 | D106: 人民币 | E106: 2014-05-15 | F106: 蒋丹 | G106: 18921183025 | H106: =VLOOKUP(A106,'合同信息 '!$F$1:$M$438,7,0) ->  | I106: =VLOOKUP(A106,'合同信息 '!$F$1:$M$438,8,0) ->  | J106: - | M106: 无锡市新吴区菱湖大道200号中国传感网国际创新园A307-1 | O106: 境内职业中介服务（凭许可证经营）；以承继服务外包方式从事电子元器件、机械零部件、计算机软件的技术开发、生产、包装、检测；软件开发与技术服务（不含互联网信息服务）；技术转让；社保代理服务；企业管理服务（不含投资与资产管理）；物业管理；家政服务；绿化养护服务；健康咨询服务（不含诊疗性质）；清洁服务；会议及展览服务；信息系统集成服务；信息技术咨询服务；市场调查服务；心理咨询（不含诊疗性质）；搬运装卸服务；仓储服务；建筑装饰装修工程施工。（依法须经批准的项目，经相关部门批准后方可开展经营活动） | W106: 挂靠
A107: 无锡众诺信息技术有限公司 | B107: 91320203581089719Q | C107: 200 | D107: 人民币 | E107: 2011-08-30 | F107: 王有 | G107: 13400005851 | H107: =VLOOKUP(A107,'合同信息 '!$F$1:$M$438,7,0) ->  | I107: =VLOOKUP(A107,'合同信息 '!$F$1:$M$438,8,0) ->  | J107: manystep@126.com | M107: 无锡市新吴区菱湖大道200号E2-103-1023 | O107: 通讯信息技术、计算机、软件的技术开发、技术服务、技术咨询；信息系统集成服务；计算机、软件及辅助设备的销售；企业管理咨询；企业营销策划；电脑加工图片服务；代理记账；会计服务、税务服务、企业登记代理服务。（依法须经批准的项目，经相关部门批准后方可开展经营活动） | W107: 挂靠
A108: 无锡市中科芯启航产业投资合伙企业（有限合伙） | B108: 91320214MA22FBMA60 | C108: 5000 | D108: 人民币 | E108: 2020-09-16 | F108: 无锡中科英智投资管理有限公司 | G108: 0510-85383398 | H108: =VLOOKUP(A108,'合同信息 '!$F$1:$M$438,7,0) ->  | I108: =VLOOKUP(A108,'合同信息 '!$F$1:$M$438,8,0) ->  | J108: 1458394262@qq.com | M108: 无锡市新吴区菱湖大道200号中国传感网国际创新园C1座209 | O108: 一般项目：以自有资金从事投资活动；创业投资（除依法须经批准的项目外，凭营业执照依法自主开展经营活动） | W108: 挂靠
A109: 江苏启明星辰信息安全技术有限公司 | B109: 91320214MA1XCRQL5M | C109: 5000 | D109: 人民币 | E109: 2018-10-26 | F109: 傅毅 | G109: 15850536476 | H109: =VLOOKUP(A109,'合同信息 '!$F$1:$M$438,7,0) ->  | I109: =VLOOKUP(A109,'合同信息 '!$F$1:$M$438,8,0) ->  | J109: fuyi@venustech.com.cn | M109: 无锡市新吴区菱湖大道200号中国传感网国际创新园E2-103 | O109: 电子信息技术、计算机网络技术、计算机软硬件的技术开发、技术服务、技术转让、技术咨询;展览展示服务;会议服务;计算机网络工程;五金产品、电子元器件、计算机软硬件的销售;自有房屋租赁;面向成年人开展的计算机技术培训（不含国家统一认可的执业证书类培训）;自营和代理各类商品及技术的进出口（国家限定公司经营或禁止进出口的商品和技术除外）;机械设备租赁。（依法须经批准的项目,经相关部门批准后方可开展经营活动） | W109: 挂靠
A110: 无锡美偌科微电子有限公司 | B110: 91320214323896382H | C110: 2225 | D110: 人民币 | E110: 2014-12-22 | F110: 夏中宇 | G110: 0510-81021569 | H110: =VLOOKUP(A110,'合同信息 '!$F$1:$M$438,7,0) -> 夏中宇 | I110: =VLOOKUP(A110,'合同信息 '!$F$1:$M$438,8,0) -> 13585000628 | J110: sale@mir-power.com | M110: 无锡市新吴区菱湖大道200号中国物联网国际创新园A-406、A-407 | O110: 集成电路、功率元件及其应用系统的设计、开发、生产、销售、技术咨询及技术服务;集成电路相关应用软件的技术咨询及技术服务;自营和代理各类商品和技术的进出口（国家限定公司经营或禁止进出口的商品和技术除外）。（依法须经批准的项目,经相关部门批准后方可开展经营活动） | W110: 在园 | X110: 已入驻
A111: 中兴智能系统集成无锡有限公司 | B111: 91320214074656299W | C111: 5000 | D111: 人民币 | E111: 2013-07-18 | F111: 刘海峰 | G111: 0510-66055077 | H111: =VLOOKUP(A111,'合同信息 '!$F$1:$M$438,7,0) ->  | I111: =VLOOKUP(A111,'合同信息 '!$F$1:$M$438,8,0) ->  | J111: wuyh@zte-its.com | M111: 无锡市新吴区菱湖大道200号中国传感网国际创新园A-607 | O111: 计算机系统集成;物联网技术的研发;通讯软硬件、企业管理软件的技术开发、技术咨询、技术转让;计算机软件的销售;通信系统设计、安装;计算机系统服务;安全技术防范系统工程设计、施工、维修;电气设备与信号设备的安装;自营和代理各类商品及技术的进出口（国家限定公司经营或禁止进出口的商品和技术除外）;股权投资。（依法须经批准的项目,经相关部门批准后方可开展经营活动） | W111: 挂靠
A112: 无锡创星孵化器管理有限公司 | B112: 91320213MA1MBP2K38 | C112: 350 | D112: 人民币 | E112: 2015-11-26 | F112: 刘人杰 | G112: 0510-85389232 | H112: =VLOOKUP(A112,'合同信息 '!$F$1:$M$438,7,0) -> 刘人杰 | I112: =VLOOKUP(A112,'合同信息 '!$F$1:$M$438,8,0) -> 13665157322 | J112: service@starcafe.cc | M112: 无锡市菱湖大道200号中国传感网国际创新园F11楼 | O112: 许可项目:餐饮服务（依法须经批准的项目,经相关部门批准后方可开展经营活动,具体经营项目以审批结果为准）一般项目:创业空间服务;企业管理咨询;以自有资金从事投资活动;物联网技术服务;市场调查（不含涉外调查）;会议及展览服务;市场营销策划;业务培训（不含教育培训、职业技能培训等需取得许可的培训）;企业形象策划;物业管理;非居住房地产租赁;餐饮管理;食品经营（仅销售预包装食品）（除依法须经批准的项目外,凭营业执照依法自主开展经营活动） | W112: 在园 | X112: 已入驻
A113: 无锡品冠衣联网信息技术有限公司 | B113: 91320214MA1YCX6R41 | C113: 18000 | D113: 人民币 | E113: 2019-05-13 | F113: 蒋宗清 | G113: 0510-85381619 | H113: =VLOOKUP(A113,'合同信息 '!$F$1:$M$438,7,0) -> 蒋宗清 | I113: =VLOOKUP(A113,'合同信息 '!$F$1:$M$438,8,0) -> 1351107896 | J113: huangmeijie@thinkgo.cc | M113: 无锡市新吴区菱湖大道200号中国传感网国际创新园G10-706 | O113: 许可项目:房地产开发经营;建筑智能化系统设计;建筑智能化工程施工（依法须经批准的项目,经相关部门批准后方可开展经营活动,具体经营项目以审批结果为准） 一般项目:物联网技术研发;物联网技术服务;物联网应用服务;信息系统集成服务;计算机系统服务;软件开发;软件销售;工程和技术研究和试验发展;机械设备研发;机械设备销售;电子产品销售;电子专用设备销售;通用设备制造（不含特种设备制造）;通用设备修理;专用设备制造（不含许可类专业设备制造）;专用设备修理;土地使用权租赁;非居住房地产租赁;物业管理;会议及展览服务;组织文化艺术交流活动;市场营销策划;以自有资金从事投资活动（除依法须经批准的项目外,凭营业执照依法自主开展经营活动） | W113: 在园 | X113: 已入驻
A114: 无锡辩日咨询服务合伙企业（有限合伙） | B114: 91320214MA2225RY7E | C114: 2000 | D114: 人民币 | E114: 2020-07-23 | F114: 张伟民 | G114: 0510-85185760 | H114: =VLOOKUP(A114,'合同信息 '!$F$1:$M$438,7,0) ->  | I114: =VLOOKUP(A114,'合同信息 '!$F$1:$M$438,8,0) ->  | J114: info@glxcpe.com | M114: 无锡市新吴区菱湖大道200号中国传感网国际创新园E1-202-9 | O114: 一般项目:社会经济咨询服务;以自有资金从事投资活动（除依法须经批准的项目外,凭营业执照依法自主开展经营活动） | W114: 挂靠
A115: 无锡图灵视频科技有限公司 | B115: 91320214MA1NQEH91H | C115: 1000 | D115: 人民币 | E115: 2017-04-10 | F115: 钟星 | G115: 0510-85381702 | H115: =VLOOKUP(A115,'合同信息 '!$F$1:$M$438,7,0) -> 钟星 | I115: =VLOOKUP(A115,'合同信息 '!$F$1:$M$438,8,0) -> 18061601251 | J115: xing@turingvideo.com | M115: 无锡市新吴区菱湖大道200号中国传感网国际创新园E2-419 | O115: 工程和技术研究与试验发展;技术开发、技术转让、技术推广、技术服务、技术咨询;产品设计;软件开发;基础软件、应用服务软件;机械设备、电子产品、五金交电、计算机软件及辅助设备、日用杂货的销售;数据处理（数据处理中的银行卡中心、PUE值在1.5以上的云计算数据中心除外）;会议服务;企业策划、设计;市场调查;自营和代理各类商品及技术的进出口（国家限定公司经营或禁止进出口的商品及技术除外）。（依法须经批准的项目,经相关部门批准后方可开展经营活动） | W115: 在园 | X115: 已入驻
A116: 江苏多益能源科技有限公司 | B116: 91320214MA1X46DT7C | C116: 1000 | D116: 人民币 | E116: 2018-08-29 | F116: 姜占锋 | G116: 0510-85383299 | H116: =VLOOKUP(A116,'合同信息 '!$F$1:$M$438,7,0) ->  | I116: =VLOOKUP(A116,'合同信息 '!$F$1:$M$438,8,0) ->  | J116: yuemengwei@allenergy.com.cn | M116: 无锡市新吴区菱湖大道200号中国传感网国际创新园E1-501 | O116: 分布式光伏电站、风力发电站、储能电站的开发、建设、运行、维护、技术咨询;电力设施销售、维护;系统集成;储能系统涉及的原材料（不含危险品）及零部件、锂离子动力电池研发、设计、销售;太阳能组件、电池片及相关原材料的销售;自营和代理各类商品及技术的进出口业务（国家限定企业经营或禁止进出口的商品和技术除外）。（依法须经批准的项目,经相关部门批准后方可开展经营活动）一般项目:电池制造;通用零部件制造;新能源原动设备制造;输配电及控制设备制造;电子元器件与机电组件设备制造;能量回收系统研发（除依法须经批准的项目外,凭营业执照依法自主开展经营活动） | W116: 挂靠
A117: 江苏奥立信数字科技有限公司 | B117: 91320214MA25LMGT94 | C117: 1000 | D117: 人民币 | E117: 2021-04-06 | F117: 吴凯 | G117: 0510-85220581 | H117: =VLOOKUP(A117,'合同信息 '!$F$1:$M$438,7,0) -> 曾庆斌 | I117: =VLOOKUP(A117,'合同信息 '!$F$1:$M$438,8,0) -> 18605314315 | J117: miaoshuyuan@olxin.cn | M117: 无锡市新吴区菱湖大道200-8号G1-306 | O117: 一般项目：技术服务、技术开发、技术咨询、技术交流、技术转让、技术推广；工业互联网数据服务；云计算装备技术服务；计算机系统服务；数据处理服务；数据处理和存储支持服务；物联网技术研发；物联网技术服务；物联网应用服务；信息系统集成服务；信息技术咨询服务；智能控制系统集成；工业工程设计服务；工程管理服务；工程技术服务（规划管理、勘察、设计、监理除外）；合同能源管理；节能管理服务；社会经济咨询服务；企业管理咨询；商务代理代办服务；销售代理；国内贸易代理；物联网设备销售；电子元器件与机电组件设备销售；工业自动控制系统装置销售；电子产品销售；工业控制计算机及系统销售；计算机软硬件及辅助设备批发；计算机软硬件及辅助设备零售（除依法须经批准的项目外，凭营业执照依法自主开展经营活动） | W117: 在园 | X117: 已入驻
A118: 无锡保利得信息技术合伙企业（有限合伙） | B118: 91320200346270729T | C118: 3000 | D118: 人民币 | E118: 2015-06-30 | F118: 王蒙 | G118: 0510-81817224 | H118: =VLOOKUP(A118,'合同信息 '!$F$1:$M$438,7,0) ->  | I118: =VLOOKUP(A118,'合同信息 '!$F$1:$M$438,8,0) ->  | J118: fucy@ciotc.org | M118: 无锡市新吴区菱湖大道200号中国传感网国际创新园C1座701室 | O118: 计算机信息系统技术开发、技术咨询、技术服务;物联网技术开发、技术咨询;数据处理服务;企业管理信息咨询服务。（依法须经批准的项目,经相关部门批准后方可开展经营活动） | W118: 挂靠
A119: 无锡物创咨询管理合伙企业（有限合伙） | B119: 91320214MA22FJ9L5M | C119: 3000 | D119: 人民币 | E119: 2020-09-16 | F119: 万文珍 | G119: 0510-85378880 | H119: =VLOOKUP(A119,'合同信息 '!$F$1:$M$438,7,0) ->  | I119: =VLOOKUP(A119,'合同信息 '!$F$1:$M$438,8,0) ->  | J119: cxzx@wiot.tech | M119: 无锡市新吴区菱湖大道200号E2-112 | O119: 一般项目:信息咨询服务（不含许可类信息咨询服务）;企业管理咨询;技术服务、技术开发、技术咨询、技术交流、技术转让、技术推广;软件开发（除依法须经批准的项目外,凭营业执照依法自主开展经营活动） | W119: 挂靠
A120: 无锡悦启航科技合伙企业（有限合伙） | B120: 91320214MA255XE523 | C120: 1400 | D120: 人民币 | E120: 2021-02-02 | F120: 夏中宇 | G120: 0510-81021569 | H120: =VLOOKUP(A120,'合同信息 '!$F$1:$M$438,7,0) ->  | I120: =VLOOKUP(A120,'合同信息 '!$F$1:$M$438,8,0) ->  | J120: youxy@mir-power.com | M120: 无锡市新吴区菱湖大道200号28-A406 | O120: 一般项目：技术服务、技术开发、技术咨询、技术交流、技术转让、技术推广；集成电路芯片及产品销售；半导体分立器件销售；以自有资金从事投资活动（除依法须经批准的项目外，凭营业执照依法自主开展经营活动） | W120: 挂靠
A121: 无锡米芯微电子技术有限公司 | B121: 91320214MA201GPA0B | C121: 500 | D121: 人民币 | E121: 2019-09-04 | F121: 路安安 | G121: 13358117210 | H121: =VLOOKUP(A121,'合同信息 '!$F$1:$M$438,7,0) -> 路安安 | I121: =VLOOKUP(A121,'合同信息 '!$F$1:$M$438,8,0) -> 13358117210 | J121: - | M121: 无锡市新吴区菱湖大道200号G1-403 | O121: 微电子技术、软件的技术开发、技术服务、技术咨询、技术转让；集成电路产品的技术开发、技术转让、技术服务、技术咨询；半导体分立器件、集成电路、模具的制造；电子工业专用设备的制造。（依法须经批准的项目，经相关部门批准后方可开展经营活动） | W121: 在园 | X121: 已入驻
A122: 无锡凯盟威电子科技有限公司 | B122: 91320203074727931A | C122: 200 | D122: 人民币 | E122: 2013-08-07 | F122: 刘健 | G122: 18921105816 | H122: =VLOOKUP(A122,'合同信息 '!$F$1:$M$438,7,0) -> 刘健 | I122: =VLOOKUP(A122,'合同信息 '!$F$1:$M$438,8,0) -> 18621663839 | J122: 543225860@qq.com | M122: 无锡市新吴区菱湖大道200号G10-606 | O122: 一般项目:技术服务、技术开发、技术咨询、技术交流、技术转让、技术推广;电子元器件批发;计算机软硬件及辅助设备批发;工业控制计算机及系统销售;软件开发;信息系统集成服务;集成电路设计;集成电路销售;集成电路芯片及产品销售;业务培训（不含教育培训、职业技能培训等需取得许可的培训）（除依法须经批准的项目外,凭营业执照依法自主开展经营活动） | W122: 在园 | X122: 已入驻
A123: 无锡锐格思信息技术有限公司 | B123: 91320213585533258G | C123: 600 | D123: 人民币 | E123: 2011-10-31 | F123: 刘华立 | G123: 0510-81817399 | H123: =VLOOKUP(A123,'合同信息 '!$F$1:$M$438,7,0) ->  | I123: =VLOOKUP(A123,'合同信息 '!$F$1:$M$438,8,0) ->  | J123: zhaorong.zhang@rigosys.com | M123: 无锡菱湖大道200号中国传感网国际创新园C2-3F | O123: 技术开发、技术服务、技术咨询、技术转让;电子产品、软件、（数据）通信设备、宽带接入设备、网络安全设备、网关、智能化技术设备、智能家居设备、云计算产品、互联网及物联网信息技术产品、无线电通信设备（不含卫星地面接收设备）、采集终端、低压电器产品、计算机及安全自动化监控设备生产、销售及安装、调试、维修,及前述产品的配套设备、零部件、配套软件的生产和销售;计算机应用领域的系统集成和服务;电力自动化设备的技术研发、技术服务、销售;自营和代理各类商品和技术的进出口（国家限定公司经营或禁止进出口的商品和技术除外）。（依法须经批准的项目,经相关部门批准后方可开展经营活动） | W123: 在园 | X123: 已入驻
A124: 无锡红杉恒业股权投资合伙企业（有限合伙） | B124: 913202005668158153 | C124: 95774.5 | D124: 人民币 | E124: 2010-12-03 | F124: 上海喆煊投资中心（有限合伙） | G124: 010-65615668 | H124: =VLOOKUP(A124,'合同信息 '!$F$1:$M$438,7,0) ->  | I124: =VLOOKUP(A124,'合同信息 '!$F$1:$M$438,8,0) ->  | J124: AIC@sequoiacap.com | M124: 无锡市新吴区菱湖大道200号中国传感网国际创新园E2-103-3 | O124: 利用自有资金对外投资。（依法须经批准的项目,经相关部门批准后方可开展经营活动） | W124: 挂靠
A125: 无锡逸启航科技合伙企业（有限合伙） | B125: 91320214MA255J0A6M | C125: 600 | D125: 人民币 | E125: 2021-02-01 | F125: 夏中宇 | G125: 0510-81021569 | H125: =VLOOKUP(A125,'合同信息 '!$F$1:$M$438,7,0) ->  | I125: =VLOOKUP(A125,'合同信息 '!$F$1:$M$438,8,0) ->  | J125: youxy@mir-power.com | M125: 无锡市新吴区菱湖大道200号28-A406 | O125: 一般项目：技术服务、技术开发、技术咨询、技术交流、技术转让、技术推广；集成电路芯片及产品销售；半导体分立器件销售；以自有资金从事投资活动（除依法须经批准的项目外，凭营业执照依法自主开展经营活动） | W125: 挂靠
A126: 江苏中设辉通智慧停车科技有限公司 | B126: 91320211MA1YM9QG0B | C126: 2000 | D126: 人民币 | E126: 2019-06-28 | F126: 陈凤军 | G126: 0510-83278988 | H126: =VLOOKUP(A126,'合同信息 '!$F$1:$M$438,7,0) ->  | I126: =VLOOKUP(A126,'合同信息 '!$F$1:$M$438,8,0) ->  | J126: jszs@jszs-group.com | M126: 无锡市新吴区菱湖大道200号中国传感网国际创新园G1-402室 | O126: 停车场智能管理系统的技术开发、技术服务、技术咨询;停车场管理服务;停车场规划、设计、技术咨询;专业化设计服务;专用设备租赁（不含融资性租赁）;专用设备、机械式停车设备、仪器仪表的销售;保洁服务;设计、制作、代理、发布各类广告业务;计算机系统服务;为电动汽车提供充电服务。（依法须经批准的项目,经相关部门批准后方可开展经营活动） | W126: 挂靠
A127: 无锡红杉兴业股权投资合伙企业（有限合伙） | B127: 91320200562995038Q | C127: 83880.885 | D127: 人民币 | E127: 2010-10-21 | F127: 上海喆煊投资中心（有限合伙）（委派代表:周逵） | G127: 010-65615668 | H127: =VLOOKUP(A127,'合同信息 '!$F$1:$M$438,7,0) ->  | I127: =VLOOKUP(A127,'合同信息 '!$F$1:$M$438,8,0) ->  | J127: AIC@sequoiacap.com | M127: 无锡市新吴区菱湖大道200号中国传感网国际创新园E2-103-4 | O127: 利用自有资金对外投资。（依法须经批准的项目,经相关部门批准后方可开展经营活动） | W127: 挂靠
A128: 无锡飞谱电子信息技术有限公司 | B128: 91320214398339900W | C128: 656.91 | D128: 人民币 | E128: 2014-07-10 | F128: 王道祥 | G128: 0510-88575846 | H128: =VLOOKUP(A128,'合同信息 '!$F$1:$M$438,7,0) -> 王道祥 | I128: =VLOOKUP(A128,'合同信息 '!$F$1:$M$438,8,0) -> 15800642656 | J128: support@rst-em.com | M128: 无锡市新吴区菱湖大道200号中国物联网国际创新园E1-803号 | O128: 集成电路研发制造;印刷电路板制造;基础软件服务;应用软件服务;工程与技术研究与试验发展;计算机硬件及软件的研发、设计、销售、租赁（不含融资租赁）;软件技术咨询。（依法须经批准的项目,经相关部门批准后方可开展经营活动） | W128: 在园 | X128: 已入驻
A129: 江苏中科羿链通信技术有限公司 | B129: 91320214MA1MLUC1X0 | C129: 3980 | D129: 人民币 | E129: 2015-09-23 | F129: 朱瑞 | G129: 18816200904 | H129: =VLOOKUP(A129,'合同信息 '!$F$1:$M$438,7,0) ->  | I129: =VLOOKUP(A129,'合同信息 '!$F$1:$M$438,8,0) ->  | J129: 670616757@qq.com | M129: 无锡新吴区菱湖大道200号中国传感网国际创新园C栋10楼 | O129: 通信系统工程的咨询、设计、安装及技术服务;电子信息技术的研究与开发;网络设备、通信设备、电子产品的销售。（依法须经批准的项目,经相关部门批准后方可开展经营活动）一般项目:通信设备制造（除依法须经批准的项目外,凭营业执照依法自主开展经营活动） | W129: 挂靠
A130: 无锡市瀚为科技有限公司 | B130: 91320214MA1MGK7U0U | C130: 2000 | D130: 人民币 | E130: 2016-03-22 | F130: 杨义海 | G130: 0510-81021579 | H130: =VLOOKUP(A130,'合同信息 '!$F$1:$M$438,7,0) ->  | I130: =VLOOKUP(A130,'合同信息 '!$F$1:$M$438,8,0) ->  | J130: 1015973676@qq.com | M130: 无锡市菱湖大道200号中国传感网国际创新园A栋406室 | O130: 集成电路和功率器件的设计、制造和销售；电子产品的设计、制造和销售；软件设计及系统解决方案销售；专业技术服务。（依法须经批准的项目，经相关部门批准后方可开展经营活动） | W130: 挂靠
A131: 无锡浩森舟科技有限公司 | B131: 91320214MA1WUFKK3B | C131: 100 | D131: 人民币 | E131: 2018-07-09 | F131: 王伟 | G131: 0510-68074665 | H131: =VLOOKUP(A131,'合同信息 '!$F$1:$M$438,7,0) ->  | I131: =VLOOKUP(A131,'合同信息 '!$F$1:$M$438,8,0) ->  | J131: 15190244413@qq.com | M131: 无锡市新吴区菱湖大道200号F11栋二楼 | O131: 模具、工装夹具、注塑产品的开发、加工、销售；金属材料及构件、机械设备、电子零部件、电器设备及配件、塑料材料的销售；自营和代理各类商品及技术的进出口业务（国家限定企业经营或禁止进出口的商品和技术除外）。（依法须经批准的项目，经相关部门批准后方可开展经营活动） | W131: 挂靠
A132: 无锡开云信息技术有限公司 | B132: 913202140893641849 | C132: 500 | D132: 人民币 | E132: 2014-01-13 | F132: 郑浩然 | G132: 0510-85229289 | H132: =VLOOKUP(A132,'合同信息 '!$F$1:$M$438,7,0) -> 郑浩然 | I132: =VLOOKUP(A132,'合同信息 '!$F$1:$M$438,8,0) -> 13914136591 | J132: kyzsl@shetuan365.cn | M132: 无锡市新吴区菱湖大道200号中国传感网国际创新园E1-302号 | O132: 许可项目:互联网信息服务;第二类增值电信业务;检验检测服务;广播电视节目制作经营;信息网络传播视听节目（依法须经批准的项目,经相关部门批准后方可开展经营活动,具体经营项目以审批结果为准） 一般项目:软件开发;软件销售;技术服务、技术开发、技术咨询、技术交流、技术转让、技术推广;互联网数据服务;数据处理和存储支持服务;区块链技术相关软件和服务;会议及展览服务;科技中介服务;信息咨询服务（不含许可类信息咨询服务）;企业管理;信息系统集成服务;信息系统运行维护服务;计算机软硬件及辅助设备零售（除依法须经批准的项目外,凭营业执照依法自主开展经营活动） | W132: 在园 | X132: 已入驻
A133: 无锡思佰益私募基金管理有限公司 | B133: 91320214MA1PC95J91 | C133: 400 | D133: 人民币 | E133: 2017-07-07 | F133: 王永刚 | G133: 021-68776855 | H133: =VLOOKUP(A133,'合同信息 '!$F$1:$M$438,7,0) ->  | I133: =VLOOKUP(A133,'合同信息 '!$F$1:$M$438,8,0) ->  | J133: xzhu@sbigroup.co.jp | M133: 无锡市新吴区菱湖大道200号中国传感网国际创新园D2-602号 | O133: 一般项目：私募股权投资基金管理、创业投资基金管理服务（须在中国证券投资基金业协会完成登记备案后方可从事经营活动）（除依法须经批准的项目外，凭营业执照依法自主开展经营活动） | W133: 挂靠
A134: 无锡流深光电科技有限公司 | B134: 91320203MA1MAPCU32 | C134: 340.700749 | D134: 人民币 | E134: 2015-11-03 | F134: 孙伟伟 | G134: 0510-88232723 | H134: =VLOOKUP(A134,'合同信息 '!$F$1:$M$438,7,0) ->  | I134: =VLOOKUP(A134,'合同信息 '!$F$1:$M$438,8,0) ->  | J134: 39014940@qq.com | M134: 无锡市新吴区菱湖大道200号中国传感网国际创新园E2-405 | O134: 电子元器件、电子产品的技术开发、技术转让、技术咨询、技术服务、生产及销售;信息系统集成服务;自营和代理各类商品及技术的进出口业务（国家限定企业经营或禁止进出口的商品和技术除外）。（依法须经批准的项目,经相关部门批准后方可开展经营活动） | W134: 挂靠
A135: 无锡沃克特科技有限公司 | B135: 91320211346186770J | C135: 1200 | D135: 人民币 | E135: 2015-06-23 | F135: 顾小龙 | G135: 0510-66725980 | H135: =VLOOKUP(A135,'合同信息 '!$F$1:$M$438,7,0) ->  | I135: =VLOOKUP(A135,'合同信息 '!$F$1:$M$438,8,0) ->  | J135: 40604974@qq.com | M135: 无锡市新吴区菱湖大道200号中国传感网国际创新园A501 | O135: 一般项目:技术服务、技术开发、技术咨询、技术交流、技术转让、技术推广;电子元器件制造;信息咨询服务（不含许可类信息咨询服务）;信息系统集成服务;建筑材料销售;建筑装饰材料销售;机械电气设备销售;电力设施器材销售;机械零件、零部件销售;机械设备销售;电子产品销售;通讯设备销售;计算机软硬件及辅助设备批发;计算机软硬件及辅助设备零售;初级农产品收购;办公设备销售;金属材料销售;金属制品销售;第一类医疗器械销售;第二类医疗器械销售;针纺织品销售;服装服饰零售;服装服饰批发;仪器仪表销售;食品销售（仅销售预包装食品）（除依法须经批准的项目外,凭营业执照依法自主开展经营活动） | W135: 挂靠
A136: 无锡美桥电子科技有限公司 | B136: 91320214MA1XJ38874 | C136: 1000 | D136: 人民币 | E136: 2018-11-28 | F136: 阮祥磊 | G136: 0510-68773577 | H136: =VLOOKUP(A136,'合同信息 '!$F$1:$M$438,7,0) ->  | I136: =VLOOKUP(A136,'合同信息 '!$F$1:$M$438,8,0) ->  | J136: - | M136: 无锡市新吴区菱湖大道200号B401 | O136: 电子产品的研究、开发、技术咨询、技术转让及技术服务；光纤传感设备、火灾探测报警设备、安全监测设备、物联网传感器、采集卡、激光模组、光学模组、计算机、软件及辅助设备、仪器仪表、家用电器、护理用品、家用电力器具、保健电器具、数码产品、美容仪器产品（除需要申请医疗器械生产经营许可证的医疗器械外）的研发、生产、加工、销售（含网络销售）及技术咨询服务；自营和代理各类商品及技术的进出口（国家限定公司经营或禁止进出口的商品和技术除外）。（依法须经批准的项目，经相关部门批准后方可开展经营活动） | W136: 挂靠
A137: 智驰华芯（无锡）传感科技有限公司 | B137: 91320214MA1X2TDW33 | C137: 1282.35 | D137: 人民币 | E137: 2018-08-21 | F137: 胡国俊 | G137: 0510-82709868 | H137: =VLOOKUP(A137,'合同信息 '!$F$1:$M$438,7,0) -> 胡国俊 | I137: =VLOOKUP(A137,'合同信息 '!$F$1:$M$438,8,0) -> 15255193297 | J137: sds@sds-wuxi.com | M137: 无锡市新吴区菱湖大道200号中国传感网国际创新园F6 | O137: 软件开发;信息技术咨询服务;半导体分立器件、集成电路、电子元件及组件、工业仪器仪表、光学仪器、汽车零部件及配件制造;集成电路设计。（依法须经批准的项目,经相关部门批准后方可开展经营活动） 一般项目:智能仪器仪表销售;电子元器件零售;导航、测绘、气象及海洋专用仪器制造;导航、测绘、气象及海洋专用仪器销售（除依法须经批准的项目外,凭营业执照依法自主开展经营活动） | W137: 在园 | X137: 已入驻
A138: 无锡安特源科技股份有限公司 | B138: 91320200589957779N | C138: 1312.6263 | D138: 人民币 | E138: 2012-01-29 | F138: 许若鹏 | G138: 0510-85382428 | H138: =VLOOKUP(A138,'合同信息 '!$F$1:$M$438,7,0) -> 许若鹏 | I138: =VLOOKUP(A138,'合同信息 '!$F$1:$M$438,8,0) -> 15961838578 | J138: xiameng@adpowertech.com | M138: 无锡市新区菱湖大道200号中国传感网国际创新园D2-101、D2-201号房屋 | O138: 电子产品、通用机械及配件、仪器仪表、计算机配件的设计开发、销售;灯具及配件的设计、销售及照明工程的施工;自营和代理各类商品及技术的进出口（国家限定公司经营或禁止进出口的商品和技术除外）;LED驱动电源的生产。（依法须经批准的项目,经相关部门批准后方可开展经营活动） | W138: 在园 | X138: 已入驻
A139: 无锡飞蓝航空科技有限公司 | B139: 91320214314045631U | C139: 500 | D139: 人民币 | E139: 2014-10-22 | F139: 姜宇峰 | G139: 13817462958 | H139: =VLOOKUP(A139,'合同信息 '!$F$1:$M$438,7,0) ->  | I139: =VLOOKUP(A139,'合同信息 '!$F$1:$M$438,8,0) ->  | J139: jyf1983@163.com | M139: 无锡新吴区太湖国际科技园菱湖大道200号中国传感网国际创新园B335 | O139: 飞机及其零部件的设计、研发、销售、技术咨询和技术服务;航空及其相关物联领域电子通讯设备、自动识别产品、射频识别系统及产品、移动手持终端产品、仪器仪表、自动化设备及系统的研发、生产、销售及咨询;自营和代理各类商品及技术的进出口业务（国家限定公司经营或禁止进出口的商品及技术除外）。（依法须经批准的项目,经相关部门批准后方可开展经营活动） | W139: 挂靠
A140: 丽泽电池科技（无锡）有限公司 | B140: 91320214MACECKEF3K | C140: 1000 | D140: 人民币 | E140: 2023-04-10 | F140: 戴雯娜 | G140: 0510-85550533 | H140: =VLOOKUP(A140,'合同信息 '!$F$1:$M$438,7,0) ->  | I140: =VLOOKUP(A140,'合同信息 '!$F$1:$M$438,8,0) ->  | J140: info@lize.ltd | M140: 无锡市新吴区菱湖大道200号D2-600-715 | O140: 一般项目：技术服务、技术开发、技术咨询、技术交流、技术转让、技术推广；电池制造；电池零配件生产；电池销售；电池零配件销售；充电桩销售；包装服务；专业设计服务；输配电及控制设备制造；货物进出口；技术进出口；进出口代理；蓄电池租赁（除依法须经批准的项目外，凭营业执照依法自主开展经营活动） | W140: 挂靠
A141: 无锡众创投资管理有限公司 | B141: 91320214338784260U | C141: 180 | D141: 人民币 | E141: 2015-04-08 | F141: 刘人杰 | G141: 0510-85389232 | H141: =VLOOKUP(A141,'合同信息 '!$F$1:$M$438,7,0) ->  | I141: =VLOOKUP(A141,'合同信息 '!$F$1:$M$438,8,0) ->  | J141: servicce@starcafe.cc | M141: 无锡市菱湖大道200号中国传感网国际创新园F11楼 | O141: 利用自有资金对外投资;企业管理咨询;物联网技术的研发;市场调查;会务服务;展览展示服务;市场营销策划;企业形象策划;物业管理（凭有效资质证书经营）;自有房屋租赁。（依法须经批准的项目,经相关部门批准后方可开展经营活动） | W141: 挂靠
A142: 江苏哲勤科技有限公司 | B142: 913202115580702351 | C142: 1000 | D142: 人民币 | E142: 2010-07-08 | F142: 崔小波 | G142: 0510-66955570 | H142: =VLOOKUP(A142,'合同信息 '!$F$1:$M$438,7,0) ->  | I142: =VLOOKUP(A142,'合同信息 '!$F$1:$M$438,8,0) ->  | J142: tong@cngiga.com | M142: 无锡市新吴区菱湖大道200号中国传感网国际创新园G1-706-1 | O142: 计算机网络系统集成;计算机软硬件的技术开发、技术转让、技术咨询、技术服务;企业管理咨询服务;水、电安装;电子产品、通信设备（不含卫星广播电视地面接收设施及发射装置）、视频设备、计算机及辅助设备、仪器仪表、电气机械及器材、通用设备、专用设备、五金产品、金属材料、润滑油、化工产品（不含危险品）的销售;制冷、空调设备,空气净化设备的安装、销售、维修、租赁及技术服务;智能化安装工程的设计、施工;实验分析仪器的设计、制造（不含需领取许可证的项目）;计算机网络工程的施工及安装;自营和代理各类商品及技术的进出口业务（国家限定企业经营或禁止进出口的商品和技术除外）。（依法须经批准的项目,经相关部门批准后方可开展经营活动） | W142: 挂靠
A143: 无锡创星众创企业管理咨询合伙企业（有限合伙） | B143: 91320200MA1MB0068X | C143: 125 | D143: 人民币 | E143: 2015-11-09 | F143: 无锡众创投资管理有限公司 | G143: 0510-85389232 | H143: =VLOOKUP(A143,'合同信息 '!$F$1:$M$438,7,0) ->  | I143: =VLOOKUP(A143,'合同信息 '!$F$1:$M$438,8,0) ->  | J143: servicce@starcafe.cc | M143: 无锡菱湖大道200号中国传感网国际创新园F11栋 | O143: 企业管理咨询（不含投资咨询）；物联网技术的研发；市场调查；会务服务；展览展示服务；市场营销策划；面向成人开展的培训服务（不含发证、不含国家统一认可的职业证书类培训）；企业形象策划；物业管理（凭有效证书经营）；自有房屋租赁。（依法须经批准的项目，经相关部门批准后方可开展经营活动） | W143: 挂靠
A144: 无锡奥利杰科技有限公司 | B144: 913202147802711426 | C144: 1100 | D144: 人民币 | E144: 2005-10-20 | F144: 周志城 | G144: 0510-85221389 | H144: =VLOOKUP(A144,'合同信息 '!$F$1:$M$438,7,0) -> 周志城 | I144: =VLOOKUP(A144,'合同信息 '!$F$1:$M$438,8,0) -> 13395111011 | J144: org@org-elec.com | M144: 无锡新区菱湖大道200号中国传感网国际创新园A804室 | O144: ＬＥＤ照明产品、灯具照明产品、灯饰及配件产品的研发；信息技术咨询服务；电子产品、电源、ＬＥＤ照明解决方案；计算机软件安装、数据处理和储存服务；信息系统集成服务，软件开发设计、集成电路设计及上述产品的批发、进出口业务。（以上商品进出口不涉及国营贸易、进出口配额许可证、出口配额招标、出口许可证等专项管理的商品，涉及行政许可的，凭有效许可证明经营）（依法须经批准的项目，经相关部门批准后方可开展经营活动） | W144: 在园 | X144: 已入驻
A145: 无锡永逸乐机电设备有限公司 | B145: 91320214079893074D | C145: 1200 | D145: 人民币 | E145: 2013-10-14 | F145: 钱洁 | G145: 0510-85386576 | H145: =VLOOKUP(A145,'合同信息 '!$F$1:$M$438,7,0) -> 虞婧娜 | I145: =VLOOKUP(A145,'合同信息 '!$F$1:$M$438,8,0) -> 13861456657 | J145: bolong_yjn888@163.com | M145: 无锡市新吴区菱湖大道200号中国传感网国际创新园B101号 | O145: 电气机械及器材、通用机械及配件的技术开发、销售、安装、维修及技术咨询;物联网的技术开发、设计、咨询、服务;金属材料及制品、橡塑制品、化工产品及原料（不含危险品）、五金产品、电子产品及通讯设备（不含卫星地面接收设施和发射装置）、润滑油、润滑脂、胶黏剂、风力发电机叶片的涂料、油漆（危险化学品经营许可证限定范围）的技术开发、销售;电线、电缆的技术开发、安装及销售;自营和代理各类商品及技术的进出口业务（国家限定企业经营或紧张进出口的商品和技术除外）。（依法须经批准的项目,经相关部门批准后方可开展经营活动）许可项目:电线、电缆制造（依法须经批准的项目,经相关部门批准后方可开展经营活动,具体经营项目以审批结果为准）一般项目:电子元器件制造;金属结构制造（除依法须经批准的项目外,凭营业执照依法自主开展经营活动） | W145: 在园 | X145: 已入驻
A146: 无锡大账房信息技术有限公司 | B146: 91320213MA1XH53L69 | C146: 200 | D146: 人民币 | E146: 2018-11-22 | F146: 王有 | G146: 13400005851 | H146: =VLOOKUP(A146,'合同信息 '!$F$1:$M$438,7,0) ->  | I146: =VLOOKUP(A146,'合同信息 '!$F$1:$M$438,8,0) ->  | J146: manystep@126.com | M146: 无锡市新吴区菱湖大道200号E2-103-1022 | O146: 通讯信息技术、计算机、软件的技术开发、技术服务、技术咨询;会计服务;税务服务;工商登记代理服务;信息系统集成服务;计算机、软件及辅助设备的销售;企业管理咨询;企业营销策划;电脑加工图片服务。（依法须经批准的项目,经相关部门批准后方可开展经营活动） 许可项目:代理记账（依法须经批准的项目,经相关部门批准后方可开展经营活动,具体经营项目以审批结果为准） | W146: 挂靠
A147: 无锡锡产瑞成企业管理有限公司 | B147: 91340100MA2MQP0D76 | C147: 665366.5 | D147: 人民币 | E147: 2015-11-11 | F147: 连永懿 | G147: 010-85326007 | H147: =VLOOKUP(A147,'合同信息 '!$F$1:$M$438,7,0) ->  | I147: =VLOOKUP(A147,'合同信息 '!$F$1:$M$438,8,0) ->  | J147: cyyu@ic-sparc.com | M147: 无锡市新吴区菱湖大道200-10号中国传感网国际创新园E1-1006 | O147: 企业资产管理,投资管理,投资咨询,投资实业。（依法须经批准的项目,经相关部门批准后方可开展经营活动） | W147: 挂靠
A148: 江苏慧乔信息科技有限公司 | B148: 91320214088255584N | C148: 1100 | D148: 人民币 | E148: 2014-03-26 | F148: 于林 | G148: 15152214722 | H148: =VLOOKUP(A148,'合同信息 '!$F$1:$M$438,7,0) -> 于林 | I148: =VLOOKUP(A148,'合同信息 '!$F$1:$M$438,8,0) -> 15152214722 | J148: 3095255007@qq.com | M148: 无锡市新吴区菱湖大道200号中国物联网创新园G1-406 | O148: 许可项目:建设工程施工;建设工程设计;输电、供电、受电电力设施的安装、维修和试验（依法须经批准的项目,经相关部门批准后方可开展经营活动,具体经营项目以审批结果为准） 一般项目:技术服务、技术开发、技术咨询、技术交流、技术转让、技术推广;图文设计制作;办公服务;专业设计服务;数字技术服务;集成电路设计;安防设备销售;电子产品销售;办公设备销售;移动终端设备销售;光通信设备销售;通信设备销售;货物进出口;技术进出口;进出口代理;智能车载设备销售;自动售货机销售;教学专用仪器销售;停车场服务;充电桩销售;电动汽车充电基础设施运营;机动车充电销售;软件开发（除依法须经批准的项目外,凭营业执照依法自主开展经营活动） | W148: 在园 | X148: 已入驻
A149: 无锡感讯微电子有限公司 | B149: 91310000583407151J | C149: 500 | D149: 人民币 | E149: 2011-10-08 | F149: 缪建民（MIAO JIANMIN） | G149: 021-50808008 | H149: =VLOOKUP(A149,'合同信息 '!$F$1:$M$438,7,0) ->  | I149: =VLOOKUP(A149,'合同信息 '!$F$1:$M$438,8,0) ->  | J149: zhouqj@mlsenstech.com | M149: 无锡市新吴区菱湖大道200-17（F2）栋301 | O149: 一般项目:传感器产品、传感系统、传感设备、集成电路的研发,物联网传感器和软件的开发、设计,并提供相关的技术服务、技术咨询和技术转让,电子产品的批发、进出口、佣金代理（拍卖除外）。（除依法须经批准的项目外,凭营业执照自主开展经营活动） | W149: 挂靠
A150: 西克制冷（无锡）有限公司 | B150: 91320214MA1YNMQP5U | C150: 1000 | D150: 人民币 | E150: 2019-07-08 | F150: 吴焱君 | G150: 13282823666 | H150: =VLOOKUP(A150,'合同信息 '!$F$1:$M$438,7,0) -> 吴艳梅 | I150: =VLOOKUP(A150,'合同信息 '!$F$1:$M$438,8,0) -> 13958006159 | J150: president@hzxike.com | M150: 无锡市新吴区菱湖大道200号中国物联网国际创新园B-201 | O150: 节能制冷机组、空调机组、冷凝器、蒸发器及零部件的生产、安装、维修、技术服务及咨询;制冷设备、空调设备及配件的销售;冷库设备工程安装与施工;制冷氟利昂、控制元件、电子产品的销售;自营和代理各类商品及技术的进出口（国家限定企业经营或禁止进出口的商品及技术除外）。 | W150: 在园 | X150: 已入驻
A151: 麦臻新能源科技无锡有限公司 | B151: 91320214MA22F5FT0G | C151: 1000 | D151: 人民币 | E151: 2020-09-15 | F151: 王辉 | G151: 0510-81816208 | H151: =VLOOKUP(A151,'合同信息 '!$F$1:$M$438,7,0) ->  | I151: =VLOOKUP(A151,'合同信息 '!$F$1:$M$438,8,0) ->  | J151: admin@igen-tech.com | M151: 无锡市新吴区菱湖大道200号F4 | O151: 一般项目:技术服务、技术开发、技术咨询、技术交流、技术转让、技术推广;光伏设备及元器件销售;光伏设备及元器件制造;物联网设备销售;光伏发电设备租赁;租赁服务（不含出版物出租）;太阳能发电技术服务;软件开发;软件销售;信息技术咨询服务;广告制作;广告设计、代理;人工智能硬件销售（除依法须经批准的项目外,凭营业执照依法自主开展经营活动） | W151: 挂靠
A152: 无锡专心智制科技有限公司 | B152: 91320214MA1WT4XR8J | C152: 1000 | D152: 人民币 | E152: 2018-06-29 | F152: 宋波 | G152: 0510-68799783 | H152: =VLOOKUP(A152,'合同信息 '!$F$1:$M$438,7,0) -> 宋波 | I152: =VLOOKUP(A152,'合同信息 '!$F$1:$M$438,8,0) -> 17715691376 | J152: wxzxzz@anosi.cn | M152: 无锡市新吴区菱湖大道200号中国传感网国际创新园G7-401 | O152: 技术开发、技术推广、技术转让、技术咨询、技术服务；物联网信息服务；信息系统集成服务；文化用品、日用品、医疗器械、通信设备、电子产品、安防设备、机械设备、计算机、仪器仪表、物联网设备的维修、制造、销售（含网上销售）及安装服务；企业管理服务（不含投资管理）。（依法须经批准的项目，经相关部门批准后方可开展经营活动）一般项目：软件开发；软件销售；物联网技术研发；物联网技术服务；物联网应用服务；工业互联网数据服务；大数据服务；在线能源监测技术研发；节能管理服务（除依法须经批准的项目外，凭营业执照依法自主开展经营活动） | W152: 在园 | X152: 已入驻
A153: 无锡华睿众合投资中心（有限合伙） | B153: 91320214MA22ADTG8G | C153: 3750 | D153: 人民币 | E153: 2020-08-26 | F153: 北京华睿互联投资管理有限公司 | G153: 15852807123 | H153: =VLOOKUP(A153,'合同信息 '!$F$1:$M$438,7,0) ->  | I153: =VLOOKUP(A153,'合同信息 '!$F$1:$M$438,8,0) ->  | J153: guyu@vfortune.com.cn | M153: 无锡市新吴区菱湖大道200号中国传感网国际创新园E1-202-11 | O153: 一般项目：以自有资金从事投资活动（除依法须经批准的项目外，凭营业执照依法自主开展经营活动） | W153: 挂靠
A154: 无锡紫光微电子有限公司 | B154: 913202143138987208 | C154: 3000 | D154: 人民币 | E154: 2014-08-19 | F154: 马道杰 | G154: 0510-85217533 | H154: =VLOOKUP(A154,'合同信息 '!$F$1:$M$438,7,0) -> 马道杰 | I154: =VLOOKUP(A154,'合同信息 '!$F$1:$M$438,8,0) -> 15961832572 | J154: hr@tsinghuaicwx.com | M154: 无锡市新吴区菱湖大道200号中国传感网国际创新园D2栋四层 | O154: 半导体集成电路和器件、电子产品、仪器仪表的研发、设计、生产和销售；利用自有资产对外投资；自营各类商品及技术的进出口（国家限定公司经营或禁止进出口的商品和技术除外）。（依法须经批准的项目，经相关部门批准后方可开展经营活动） | W154: 在园 | X154: 已入驻
A155: 无锡融弘国联股权投资有限公司 | B155: 91320214696799913M | C155: 200 | D155: 人民币 | E155: 2009-11-19 | F155: 王欧 | G155: 0510-83692288 | H155: =VLOOKUP(A155,'合同信息 '!$F$1:$M$438,7,0) ->  | I155: =VLOOKUP(A155,'合同信息 '!$F$1:$M$438,8,0) ->  | J155: Fang.Song@everbright.com | M155: 无锡新吴区菱湖大道200号传感网国际创新园E2-103 | O155: 一般项目:股权投资（除依法须经批准的项目外,凭营业执照依法自主开展经营活动） | W155: 挂靠
A156: 无锡菩芯电子科技有限公司 | B156: 9132021309408411XU | C156: 200 | D156: 人民币 | E156: 2014-04-03 | F156: 张海涛 | G156: 18901510792 | H156: =VLOOKUP(A156,'合同信息 '!$F$1:$M$438,7,0) ->  | I156: =VLOOKUP(A156,'合同信息 '!$F$1:$M$438,8,0) ->  | J156: 2604215815@qq.com | M156: 无锡市菱湖大道200号中国传感网国际创新园D2-402 | O156: 电子产品及通讯设备（不含卫星地面接收设施和发射装置）、电气机械及器材的研究与开发、技术服务、技术转让、技术咨询、制造及销售;利用自有资金对外投资;投资咨询（不含期货、证券类）;受托资产管理（不含国有资产）;自营和代理各类商品及技术的进出口业务（国家限定企业经营或禁止进出口的商品和技术除外）;培训服务（不含发证、不含国家统一认可的职业证书类培训）。（依法须经批准的项目,经相关部门批准后方可开展经营活动） | W156: 挂靠
A157: 无锡创芯投资合伙企业（有限合伙） | B157: 91320200MA1NY30N14 | C157: 100 | D157: 人民币 | E157: 2017-05-09 | F157: 栾年生 | G157: 0510-85383398 | H157: =VLOOKUP(A157,'合同信息 '!$F$1:$M$438,7,0) ->  | I157: =VLOOKUP(A157,'合同信息 '!$F$1:$M$438,8,0) ->  | J157: 1458394262@qq.com | M157: 无锡市菱湖大道200号中国传感网国际创新园C栋1楼 | O157: 利用自有资金对外投资。（依法须经批准的项目，经相关部门批准后方可开展经营活动） | W157: 挂靠
A158: 无锡精质视觉科技有限公司 | B158: 91320214MA1MQLTU8M | C158: 1960.78 | D158: 人民币 | E158: 2016-07-29 | F158: 蒋乐 | G158: 18015336139 | H158: =VLOOKUP(A158,'合同信息 '!$F$1:$M$438,7,0) -> 蒋乐 | I158: =VLOOKUP(A158,'合同信息 '!$F$1:$M$438,8,0) -> 18015336139 | J158: 785753869@qq.com | M158: 无锡新吴区菱湖大道200号中国传感网国际创新园G10-206号 | O158: 许可项目：货物进出口；技术进出口；进出口代理（依法须经批准的项目，经相关部门批准后方可开展经营活动，具体经营项目以审批结果为准）一般项目：软件开发；软件销售；工业自动控制系统装置制造；工业自动控制系统装置销售；人工智能应用软件开发；信息技术咨询服务（除依法须经批准的项目外，凭营业执照依法自主开展经营活动） | W158: 在园 | X158: 已入驻
A159: 江苏行云信息科技有限公司 | B159: 913202143461128789 | C159: 1000 | D159: 人民币 | E159: 2015-06-15 | F159: 李锋 | G159: 13861777727 | H159: =VLOOKUP(A159,'合同信息 '!$F$1:$M$438,7,0) -> 李锋 | I159: =VLOOKUP(A159,'合同信息 '!$F$1:$M$438,8,0) -> 13861777727 | J159: alan@xingyuntech.com | M159: 无锡新吴区菱湖大道200号中国传感网国际创新园G10-410 | O159: 许可项目:计算机信息系统安全专用产品销售（依法须经批准的项目,经相关部门批准后方可开展经营活动,具体经营项目以审批结果为准）一般项目:信息技术咨询服务;信息系统集成服务;信息系统运行维护服务;信息安全设备制造;智能控制系统集成;物联网技术服务;物联网技术研发;大数据服务;软件开发;软件销售;软件外包服务;区块链技术相关软件和服务;信息安全设备销售;企业管理咨询;云计算设备销售;人工智能硬件销售;人工智能应用软件开发;智能机器人销售;工业机器人安装、维修;网络与信息安全软件开发;云计算装备技术服务;互联网销售（除销售需要许可的商品）;劳动保护用品销售;数据处理服务;数据处理和存储支持服务;工业互联网数据服务;线下数据处理服务;互联网数据服务;虚拟现实设备制造;计算机软硬件及外围设备制造;可穿戴智能设备销售;网络设备销售;机械设备销售;通信设备销售;电子产品销售;工业控制计算机及系统销售;智能无人飞行器销售;绘图、计算及测量仪器销售（除依法须经批准的项目外,凭营业执照依法自主开展经营活动） | W159: 在园 | X159: 已入驻
A160: 中科智库物联网技术研究院江苏有限公司 | B160: 91320214323630197P | C160: 1000 | D160: 人民币 | E160: 2015-01-15 | F160: 刘顺艇 | G160: 18914140008 | H160: =VLOOKUP(A160,'合同信息 '!$F$1:$M$438,7,0) ->  | I160: =VLOOKUP(A160,'合同信息 '!$F$1:$M$438,8,0) ->  | J160: 18914140008@189.cn | M160: 无锡市新吴区菱湖大道200号中国传感网国际创新园C栋2楼 | O160: 一般项目:物联网应用服务;物联网技术服务;物联网技术研发;软件开发;农业科学研究和试验发展;区块链技术相关软件和服务;工业设计服务;机械设备研发;智能机器人的研发;人工智能理论与算法软件开发;信息技术咨询服务;技术服务、技术开发、技术咨询、技术交流、技术转让、技术推广;会议及展览服务（除依法须经批准的项目外,凭营业执照依法自主开展经营活动） | W160: 挂靠
A161: 无锡国联集成电路投资中心（有限合伙） | B161: 91320200MA1XJ1G58R | C161: 300000 | D161: 人民币 | E161: 2018-11-28 | F161: 无锡国联产业投资私募基金管理有限公司 | G161: 0510-82830019 | H161: =VLOOKUP(A161,'合同信息 '!$F$1:$M$438,7,0) ->  | I161: =VLOOKUP(A161,'合同信息 '!$F$1:$M$438,8,0) ->  | J161: info@wuxicapital.com.cn | M161: 无锡市新吴区菱湖大道200号中国传感网国际创新园E1-202-62 | O161: 利用自有资金对集成电路行业进行投资。（依法须经批准的项目,经相关部门批准后方可开展经营活动） | W161: 挂靠
A162: 无锡智行华芯高科技合伙企业（有限合伙） | B162: 91320214MA1X5TP98Y | C162: 402.92 | D162: 人民币 | E162: 2018-09-10 | F162: 胡国俊 | G162: 0510-82709868 | H162: =VLOOKUP(A162,'合同信息 '!$F$1:$M$438,7,0) ->  | I162: =VLOOKUP(A162,'合同信息 '!$F$1:$M$438,8,0) ->  | J162: sds@sds-wuxi.com | M162: 无锡市新吴区菱湖大道200号中国传感网国际创新园F6 | O162: 集成电路设计,软件开发,行业性实业投资。（依法须经批准的项目,经相关部门批准后方可开展经营活动） | W162: 挂靠
A163: 无锡新创吉联股权投资合伙企业（有限合伙） | B163: 91320214MA7DN62810 | C163: 1033 | D163: 人民币 | E163: 2021-12-20 | F163: 无锡国联新创私募投资基金有限公司 | G163: 0510-85185760 | H163: =VLOOKUP(A163,'合同信息 '!$F$1:$M$438,7,0) ->  | I163: =VLOOKUP(A163,'合同信息 '!$F$1:$M$438,8,0) ->  | J163: info@glxcpe.com | M163: 无锡市新吴区菱湖大道200号E1-202-42 | O163: 一般项目:以自有资金从事投资活动（除依法须经批准的项目外,凭营业执照依法自主开展经营活动） | W163: 挂靠
A164: 睿创微纳（无锡）技术有限公司 | B164: 91320214MA22UTXQ8B | C164: 10000 | D164: 人民币 | E164: 2020-10-29 | F164: 王鹏 | G164: 0510-85386643 | H164: =VLOOKUP(A164,'合同信息 '!$F$1:$M$438,7,0) ->  | I164: =VLOOKUP(A164,'合同信息 '!$F$1:$M$438,8,0) ->  | J164: jiajia.hu@raytrontek.com | M164: 无锡市新吴区菱湖大道200号中国传感网国际创新园G8-403-A | O164: 一般项目:技术服务、技术开发、技术咨询、技术交流、技术转让、技术推广;集成电路芯片设计及服务;集成电路芯片及产品制造;集成电路芯片及产品销售;电子元器件制造;半导体分立器件制造;半导体分立器件销售;光电子器件制造;光电子器件销售;电子元器件与机电组件设备制造;电子元器件与机电组件设备销售;光学仪器制造;光学仪器销售;太赫兹检测技术研发;软件开发;软件销售;信息技术咨询服务（除依法须经批准的项目外,凭营业执照依法自主开展经营活动） | W164: 挂靠
A165: 无锡中科明略科技有限公司 | B165: 91320214MA205JKH6U | C165: 2000 | D165: 人民币 | E165: 2019-09-27 | F165: 李峰 | G165: 13776606705 | H165: =VLOOKUP(A165,'合同信息 '!$F$1:$M$438,7,0) ->  | I165: =VLOOKUP(A165,'合同信息 '!$F$1:$M$438,8,0) ->  | J165: huawenjun@mininglamp.com | M165: 无锡市新吴区菱湖大道200号中国传感网国际创新园C1-801 | O165: 软件开发;技术开发、技术转让、技术咨询、技术服务、技术推广;计算机系统服务;数据处理;计算机维修;基础软件服务;应用软件服务;信息系统集成服务;面向成年人开展的计算机技术培训服务（不含国家统一认可的职业证书类培训）;企业管理咨询（不含投资咨询）;信息安全设备、电子产品、计算机、软件及辅助设备、通讯设备的销售;自营和代理各类商品和技术的进出口（国家限定公司经营或禁止进出口的商品和技术除外）。（依法须经批准的项目,经相关部门批准后方可开展经营活动） | W165: 挂靠
A166: 无锡中科芯启程产业投资合伙企业（有限合伙） | B166: 91320214MA253QWX64 | C166: 5000 | D166: 人民币 | E166: 2021-01-22 | F166: 无锡中科英智投资管理有限公司 | G166: 0510-85383398 | H166: =VLOOKUP(A166,'合同信息 '!$F$1:$M$438,7,0) ->  | I166: =VLOOKUP(A166,'合同信息 '!$F$1:$M$438,8,0) ->  | J166: 1458394262@qq.com | M166: 无锡市新吴区菱湖大道200号中国传感网国际创新园C1座203 | O166: 一般项目:以自有资金从事投资活动;创业投资（限投资未上市企业）（除依法须经批准的项目外,凭营业执照依法自主开展经营活动） | W166: 挂靠
A167: 无锡麦姆斯咨询有限公司 | B167: 91320214085047499G | C167: 117.6471 | D167: 人民币 | E167: 2013-12-06 | F167: 王懿 | G167: 0510-83481111 | H167: =VLOOKUP(A167,'合同信息 '!$F$1:$M$438,7,0) -> 田娟 | I167: =VLOOKUP(A167,'合同信息 '!$F$1:$M$438,8,0) -> 13196572937 | J167: WANGYi@MEMSConsulting.com | M167: 无锡市新吴区菱湖大道200号中国传感网国际创新园B-406-A | O167: 许可项目:技术进出口（依法须经批准的项目,经相关部门批准后方可开展经营活动,具体经营项目以审批结果为准）一般项目:信息咨询服务（不含许可类信息咨询服务）;科技中介服务;技术服务、技术开发、技术咨询、技术交流、技术转让、技术推广;物联网技术服务;教育咨询服务（不含涉许可审批的教育培训活动）;从事科技培训的营利性民办培训机构（除面向中小学生开展的学科类、语言类文化教育培训）;市场调查;会议及展览服务;市场营销策划;软件开发（除依法须经批准的项目外,凭营业执照依法自主开展经营活动） | W167: 在园 | X167: 已入驻
A168: 江苏生活通信息技术有限公司 | B168: 91320206585504529D | C168: 1000 | D168: 人民币 | E168: 2011-10-28 | F168: 吴京玉 | G168: 0510-85218383 | H168: =VLOOKUP(A168,'合同信息 '!$F$1:$M$438,7,0) -> 吴京玉 | I168: =VLOOKUP(A168,'合同信息 '!$F$1:$M$438,8,0) -> 13656183128 | J168: wanglin@jsujingyu.com | M168: 无锡市新吴区菱湖大道200号中国物联网国际创新园B-329 | O168: 一般项目:技术服务、技术开发、技术咨询、技术交流、技术转让、技术推广;软件开发;计算机系统服务;计算机软硬件及辅助设备零售;日用品销售;汽车零配件批发;润滑油销售;食品销售（仅销售预包装食品）;广告设计、代理;广告发布;广告制作;市场营销策划;会议及展览服务;企业管理咨询;货物进出口;技术进出口;进出口代理（除依法须经批准的项目外,凭营业执照依法自主开展经营活动） | W168: 在园 | X168: 已入驻
A169: 无锡影速半导体科技有限公司 | B169: 91320214323618980Q | C169: 5000 | D169: 人民币 | E169: 2015-01-13 | F169: 肖燕青 | G169: 0510-66903355 | H169: =VLOOKUP(A169,'合同信息 '!$F$1:$M$438,7,0) -> 肖燕青 | I169: =VLOOKUP(A169,'合同信息 '!$F$1:$M$438,8,0) -> 18600090096 | J169: zhunn@ysphotech.com | M169: 无锡新吴区菱湖大道200号中国传感网国际创新园F3栋1-3层 | O169: 集成电路生产设备研发、设计、制造、销售、维修及技术服务、咨询;精密机械设备及零部件、光学仪器的设计、制造、销售及维修;集成电路软件的设计、销售;自营和代理各类商品和技术的进出口（国家限定公司经营或禁止进出口的商品和技术除外）。（依法须经批准的项目,经相关部门批准后方可开展经营活动） | W169: 在园 | X169: 已入驻
A170: 无锡军创工程技术有限公司 | B170: 9132021467489491X4 | C170: 1000 | D170: 人民币 | E170: 2008-05-12 | F170: 叶春明 | G170: 0510-81015188 | H170: =VLOOKUP(A170,'合同信息 '!$F$1:$M$438,7,0) ->  | I170: =VLOOKUP(A170,'合同信息 '!$F$1:$M$438,8,0) ->  | J170: junchuang@wxjc-epc.com | M170: 无锡市新吴区菱湖大道200号中国传感网国际创新园G1-502 | O170: 许可项目:建设工程设计;建筑智能化系统设计;建设工程施工（依法须经批准的项目,经相关部门批准后方可开展经营活动,具体经营项目以审批结果为准） 一般项目:技术服务、技术开发、技术咨询、技术交流、技术转让、技术推广;网络与信息安全软件开发;软件开发;机械电气设备销售;合同能源管理;电气设备销售;五金产品零售;消防器材销售;电子产品销售;气体、液体分离及纯净设备销售;机械设备租赁;普通机械设备安装服务;家用电器销售;家用电器零配件销售;家用电器安装服务（除依法须经批准的项目外,凭营业执照依法自主开展经营活动） | W170: 挂靠
A171: 无锡国发云轫创业投资有限公司 | B171: 91320200MA1XQRGE06 | C171: 3500 | D171: 人民币 | E171: 2019-01-08 | F171: 王志行 | G171: 0510-82831178 | H171: =VLOOKUP(A171,'合同信息 '!$F$1:$M$438,7,0) ->  | I171: =VLOOKUP(A171,'合同信息 '!$F$1:$M$438,8,0) ->  | J171: info@wuxicapital.com.cn | M171: 无锡市新吴区菱湖大道200号中国传感网国际创新园E1-202-61 | O171: 创业投资业务;创业投资咨询业务;为创业企业提供创业管理服务业务;参与设立创业投资企业与创业投资管理机构。（依法须经批准的项目,经相关部门批准后方可开展经营活动） | W171: 挂靠
A172: 江苏极熵物联科技有限公司 | B172: 91320214MA1NEYNEX0 | C172: 1176.470588 | D172: 人民币 | E172: 2017-02-23 | F172: 孙东来 | G172: 0510-85385099 | H172: =VLOOKUP(A172,'合同信息 '!$F$1:$M$438,7,0) -> 孙东来 | I172: =VLOOKUP(A172,'合同信息 '!$F$1:$M$438,8,0) -> 13795356873 | J172: hr@maxtropy.com | M172: 无锡市新吴区菱湖大道200号中国传感网国际创新园E1-503 | O172: 一般项目：技术服务、技术开发、技术咨询、技术交流、技术转让、技术推广；科技推广和应用服务；信息系统集成服务；信息系统运行维护服务；新兴能源技术研发；人工智能行业应用系统集成服务；人工智能通用应用系统；软件开发；软件销售；计算机系统服务；智能控制系统集成；工业互联网数据服务；物联网技术研发；物联网技术服务；碳减排、碳转化、碳捕捉、碳封存技术研发；节能管理服务；太阳能发电技术服务；企业管理咨询；社会经济咨询服务；信息技术咨询服务；电力电子元器件制造；电力电子元器件销售；配电开关控制设备制造；配电开关控制设备销售；输配电及控制设备制造；智能输配电及控制设备销售；电池制造；电池销售；蓄电池租赁；太阳能热利用产品销售；充电桩销售；智能家庭消费设备制造；光伏设备及元器件销售；智能仪器仪表制造；智能仪器仪表销售；物联网设备制造；物联网设备销售；集成电路制造；集成电路设计；集成电路销售；电子元器件制造；电子元器件零售；电子产品销售；机械电气设备销售；新能源原动设备销售；货物进出口；技术进出口；集中式快速充电站；电动汽车充电基础设施运营；停车场服务（除依法须经批准的项目外，凭营业执照依法自主开展经营活动） | W172: 在园 | X172: 已入驻
A173: 无锡思杰软件有限公司 | B173: 91320214MA1NYLW30G | C173: 1000 | D173: 人民币 | E173: 2017-05-10 | F173: 田峰 | G173: 0510-58385676 | H173: =VLOOKUP(A173,'合同信息 '!$F$1:$M$438,7,0) ->  | I173: =VLOOKUP(A173,'合同信息 '!$F$1:$M$438,8,0) ->  | J173: 33144969@qq.com | M173: 无锡市新吴区菱湖大道200号中国传感网国际创新园G1-406 | O173: 计算机软硬件的研发、销售：电子产品、电脑及耗材的销售；计算机网络工程及应用软件技术开发、技术服务；增值电信业务（业务覆盖范围：江苏省，且互联网信息服务不含新闻、出版、教育、医疗保健、药品和医疗器械、文化、广播电影电视节目、电子公告内容）；自营和代理各类商品及技术的进出口业务（国家限定企业经营或禁止进出口的商品和技术除外）。（依法须经批准的项目，经相关部门批准后方可开展经营活动） | W173: 挂靠
A174: 无锡峰睿投资有限公司 | B174: 91320214MA1PC0GF1J | C174: 550 | D174: 人民币 | E174: 2017-07-06 | F174: 李丰 | G174: 13611015827 | H174: =VLOOKUP(A174,'合同信息 '!$F$1:$M$438,7,0) ->  | I174: =VLOOKUP(A174,'合同信息 '!$F$1:$M$438,8,0) ->  | J174: sunqiang@freesvc.com | M174: 无锡市新吴区菱湖大道200号中国传感网国际创新园D2-608号 | O174: 利用自有资金对外投资;企业管理服务。（依法须经批准的项目,经相关部门批准后方可开展经营活动） | W174: 挂靠
A175: 无锡赛默斐视科技有限公司 | B175: 91320214087928871P | C175: 1000 | D175: 人民币 | E175: 2014-03-14 | F175: 邹逸 | G175: 15312232356 | H175: =VLOOKUP(A175,'合同信息 '!$F$1:$M$438,7,0) ->  | I175: =VLOOKUP(A175,'合同信息 '!$F$1:$M$438,8,0) ->  | J175: 493619815@qq.com | M175: 无锡市新吴区菱湖大道200号中国传感网国际创新园E2-101 | O175: 工业自动控制系统装置、电子产品、计算机软件的研究、开发、技术转让、技术咨询、技术服务及销售；信息系统集成服务。（依法须经批准的项目，经相关部门批准后方可开展经营活动） | W175: 挂靠
A176: 无锡谱视群英科技中心（有限合伙） | B176: 91320214MA25MTWD47 | C176: 580.75 | D176: 人民币 | E176: 2021-04-09 | F176: 杨飞 | G176: 0510-85290662 | H176: =VLOOKUP(A176,'合同信息 '!$F$1:$M$438,7,0) ->  | I176: =VLOOKUP(A176,'合同信息 '!$F$1:$M$438,8,0) ->  | J176: f.yang@specvision.com.cn | M176: 无锡市新吴区菱湖大道200号E2-111 | O176: 一般项目:技术服务、技术开发、技术咨询、技术交流、技术转让、技术推广;企业管理咨询;会议及展览服务;市场营销策划;企业形象策划;市场调查（不含涉外调查）（除依法须经批准的项目外,凭营业执照依法自主开展经营活动） | W176: 挂靠
A177: 无锡先迪德宝电子有限公司 | B177: 9132021472655466XY | C177: 2320 | D177: 人民币 | E177: 2001-01-21 | F177: 郑宝龙 | G177: 0510-82706686 | H177: =VLOOKUP(A177,'合同信息 '!$F$1:$M$438,7,0) ->  | I177: =VLOOKUP(A177,'合同信息 '!$F$1:$M$438,8,0) ->  | J177: 18762609290@139.com | M177: 无锡新吴区太湖国际科技园菱湖大道200号中国传感网国际创新园F1-A | O177: 电子产品、通讯及广播电视设备（不含卫星电视广播地面接收设施及发射装置）、通用机械及配件、五金产品、金属材料、化工产品及原料（不含危险品）、针纺织品的销售;百货零售;电子产品的制造;计算机软件、电子产品的技术开发、技术转让、技术服务;自营和代理各类商品及技术的进出口业务（国家限定企业经营或禁止进出口的商品及技术除外）;防伪溯源系统工程开发。（依法须经批准的项目,经相关部门批准后方可开展经营活动） | W177: 挂靠
A178: 无锡泓瑞信息科技有限公司 | B178: 913202143021767301 | C178: 1000 | D178: 人民币 | E178: 2014-06-12 | F178: 周全 | G178: 0510-82736412 | H178: =VLOOKUP(A178,'合同信息 '!$F$1:$M$438,7,0) ->  | I178: =VLOOKUP(A178,'合同信息 '!$F$1:$M$438,8,0) ->  | J178: 000000@qq.com | M178: 无锡新区太湖国际科技园菱湖大道200号中国传感网国际创新园E2-417 | O178: 计算机网络工程;网络技术领域内的技术服务、技术开发、技术咨询、技术转让;日用百货、工艺品、家用电器、化妆品、办公用品、五金交电、电子产品、通讯器材（除卫星电视广播地面接收设施）的销售;计算机软件及辅助设备的销售;会务服务;企业管理咨询、商务信息咨询。（依法须经批准的项目,经相关部门批准后方可开展经营活动） | W178: 挂靠
A179: 无锡克莱沃智能装备有限公司 | B179: 91320214MA22FLFC5X | C179: 500 | D179: 人民币 | E179: 2020-09-16 | F179: 苏荃 | G179: 0510-83129869 | H179: =VLOOKUP(A179,'合同信息 '!$F$1:$M$438,7,0) -> 苏荃 | I179: =VLOOKUP(A179,'合同信息 '!$F$1:$M$438,8,0) -> 15251612007 | J179: kelaiwozn@163.com | M179: 无锡市新吴区菱湖大道200号G1-1108 | O179: 许可项目:货物进出口;技术进出口;进出口代理（依法须经批准的项目,经相关部门批准后方可开展经营活动,具体经营项目以审批结果为准）一般项目:计算机软硬件及外围设备制造;技术服务、技术开发、技术咨询、技术交流、技术转让、技术推广;计算机软硬件及辅助设备零售;信息系统集成服务;专业设计服务;普通机械设备安装服务;软件开发;集成电路设计;数据处理和存储支持服务;工程和技术研究和试验发展;对外承包工程;雷达及配套设备制造;雷达、无线电导航设备专业修理;工业设计服务;工业机器人制造;智能机器人的研发;智能基础制造装备制造;人工智能基础软件开发;人工智能应用软件开发;智能控制系统集成;工业自动控制系统装置制造;工业自动控制系统装置销售;通用设备制造（不含特种设备制造）;通用零部件制造;专用设备制造（不含许可类专业设备制造）;电子测量仪器制造;电子测量仪器销售;仪器仪表制造;仪器仪表修理;仪器仪表销售;机械设备研发（除依法须经批准的项目外,凭营业执照依法自主开展经营活动） | W179: 在园 | X179: 已入驻
A180: 无锡朗邦网络科技有限公司 | B180: 91320214MA21A99N6G | C180: 500 | D180: 人民币 | E180: 2020-04-21 | F180: 李华辉 | G180: 18951503039 | H180: =VLOOKUP(A180,'合同信息 '!$F$1:$M$438,7,0) ->  | I180: =VLOOKUP(A180,'合同信息 '!$F$1:$M$438,8,0) ->  | J180: lihuahui@qiyuerp.com | M180: 无锡市新吴区菱湖大道200号E2-112-245 | O180: 一般项目:网络与信息安全软件开发;网络设备销售;办公服务;信息技术咨询服务;技术服务、技术开发、技术咨询、技术交流、技术转让、技术推广;企业管理;版权代理;知识产权服务;科技中介服务;科技指导;软件开发;计算机软硬件及辅助设备批发;软件销售;网络技术服务（除依法须经批准的项目外,凭营业执照依法自主开展经营活动） | W180: 挂靠
A181: 无锡建瓴投资合伙企业（有限合伙） | B181: 91320200MA1P5MC644 | C181: 25 | D181: 人民币 | E181: 2017-06-08 | F181: 姚小巍 | G181: 0510-68101580 | H181: =VLOOKUP(A181,'合同信息 '!$F$1:$M$438,7,0) ->  | I181: =VLOOKUP(A181,'合同信息 '!$F$1:$M$438,8,0) ->  | J181: jennie.qian@len-technology.com | M181: 无锡新吴区菱湖大道200号F11栋二楼 | O181: 利用自有资金对外投资。（依法须经批准的项目，经相关部门批准后方可开展经营活动） | W181: 挂靠
A182: 无锡中科创星投资合伙企业（有限合伙） | B182: 91320214MA1UTTMDX6 | C182: 10000 | D182: 人民币 | E182: 2017-12-29 | F182: 无锡中科英智投资管理有限公司 | G182: 0510-85383398 | H182: =VLOOKUP(A182,'合同信息 '!$F$1:$M$438,7,0) ->  | I182: =VLOOKUP(A182,'合同信息 '!$F$1:$M$438,8,0) ->  | J182: 1458394262@qq.com | M182: 无锡市新吴区菱湖大道200号中国传感网国际创新园C1座209 | O182: 利用自有资金对外投资。（依法须经批准的项目，经相关部门批准后方可开展经营活动） | W182: 挂靠
A183: 无锡中科君芯企业管理合伙企业（有限合伙） | B183: 91320200091492265J | C183: 1 | D183: 人民币 | E183: 2014-01-28 | F183: 无锡中科锡产企业管理有限责任公司（委派代表 连永懿） | G183: 0510-81884888 | H183: =VLOOKUP(A183,'合同信息 '!$F$1:$M$438,7,0) ->  | I183: =VLOOKUP(A183,'合同信息 '!$F$1:$M$438,8,0) ->  | J183: junshine@cas-junshine.com | M183: 无锡新区菱湖大道200号中国传感网国际创新园D2-503 | O183: 企业管理（不含投资与资产管理）。（依法须经批准的项目,经相关部门批准后方可开展经营活动） | W183: 挂靠
A184: 无锡凯必特斯半导体科技有限公司 | B184: 91320214321171652D | C184: 2000 | D184: 人民币 | E184: 2014-11-03 | F184: 鲜于居 | G184: 18651579618 | H184: =VLOOKUP(A184,'合同信息 '!$F$1:$M$438,7,0) -> 王丕松 | I184: =VLOOKUP(A184,'合同信息 '!$F$1:$M$438,8,0) -> 13656191264 | J184: 18651579618@qq.com | M184: 无锡新吴区菱湖大道200号中国传感网国际创新园E2-108 | O184: 电子产品、通用机械设备、五金产品的研发、销售；加热带、阀门、半导体设备零部件、电子工业专用设备的组装、维修；自营和代理各类商品和技术的进出口业务（国家限定公司经营或禁止进出口的商品和技术除外）；技术服务。（依法须经批准的项目，经相关部门批准后方可开展经营活动） | W184: 在园 | X184: 已入驻
A185: 无锡微软艾柏通讯技术有限公司 | B185: 91320214MA1W3XKG2G | C185: 1000 | D185: 人民币 | E185: 2018-02-09 | F185: 仇上玉 | G185: 15150111853 | H185: =VLOOKUP(A185,'合同信息 '!$F$1:$M$438,7,0) ->  | I185: =VLOOKUP(A185,'合同信息 '!$F$1:$M$438,8,0) ->  | J185: - | M185: 无锡市新吴区菱湖大道200号B区202 | O185: 科技企业孵化;通信网络支撑系统技术服务;技术推广;软件开发;云计算;传感网信息技术服务;物联网信息技术服务;新一代宽带无线移动通信系统开发;数据处理;计算机系统服务;基础软件服务、应用软件服务;网络技术服务;企业策划、设计;公共关系服务;会议服务;信息安全服务;承办展览展示活动;电脑动画设计;组织文化艺术交流活动（不含营业性演出）;设计、制作、代理、发布国内广告;房屋租赁（不含融资租赁）。（依法须经批准的项目,经相关部门批准后方可开展经营活动） | W185: 挂靠
A186: 无锡中水通实业投资合伙企业（有限合伙） | B186: 91320200MA1MK65A8P | C186: 450 | D186: 人民币 | E186: 2016-04-29 | F186: 熊承惠 | G186: 13093011282 | H186: =VLOOKUP(A186,'合同信息 '!$F$1:$M$438,7,0) ->  | I186: =VLOOKUP(A186,'合同信息 '!$F$1:$M$438,8,0) ->  | J186: 1129901693@qq.com | M186: 无锡市菱湖大道200号中国传感网国际创新园G10-610 | O186: 行业性实业投资；企业管理咨询（不含投资咨询）；物联网领域的技术开发、技术转让、技术咨询；计算机软件的技术开发和技术转让。（依法须经批准的项目，经相关部门批准后方可开展经营活动） | W186: 挂靠
A187: 无锡国联新创私募投资基金有限公司 | B187: 91320214MA257MR64E | C187: 1200 | D187: 人民币 | E187: 2021-02-10 | F187: 沈广平 | G187: 0510-85185760 | H187: =VLOOKUP(A187,'合同信息 '!$F$1:$M$438,7,0) ->  | I187: =VLOOKUP(A187,'合同信息 '!$F$1:$M$438,8,0) ->  | J187: info@glxcpe.com | M187: 无锡市新吴区菱湖大道200-10号中国传感网国际创新园E1-202-905 | O187: 一般项目:私募股权投资基金管理、创业投资基金管理服务（须在中国证券投资基金业协会完成登记备案后方可从事经营活动）;股权投资;创业投资（限投资未上市企业）;以自有资金从事投资活动;企业管理咨询（除依法须经批准的项目外,凭营业执照依法自主开展经营活动） | W187: 挂靠
A188: 无锡旭浦能源科技有限公司 | B188: 91320211MA1QEY386G | C188: 500 | D188: 人民币 | E188: 2017-09-04 | F188: 吴可可 | G188: 13395133150 | H188: =VLOOKUP(A188,'合同信息 '!$F$1:$M$438,7,0) -> 吴超 | I188: =VLOOKUP(A188,'合同信息 '!$F$1:$M$438,8,0) -> 18662777776 | J188: oscar.wu@soltaro.cn | M188: 无锡市新吴区菱湖大道200号中国传感网国际创新园B416号 | O188: 新能源应用技术的开发;电池的研发、设计、销售;光伏设备及元器件、逆变器的研发、技术咨询、技术服务、销售;自营和代理各类商品和技术的进出口业务（国家限定公司经营或禁止进出口的商品和技术除外）。（依法须经批准的项目,经相关部门批准后方可开展经营活动） | W188: 在园 | X188: 已入驻
A189: 江苏瀚点智能科技有限公司 | B189: 913202115524732952 | C189: 1180 | D189: 人民币 | E189: 2010-03-19 | F189: 尤礼军 | G189: 15895329291 | H189: =VLOOKUP(A189,'合同信息 '!$F$1:$M$438,7,0) -> 尤礼军 | I189: =VLOOKUP(A189,'合同信息 '!$F$1:$M$438,8,0) -> 13912383338 | J189: 735721829@qq.com | M189: 无锡市新吴区菱湖大道200号中国传感网国际创新园B-206 | O189: 许可项目：建筑智能化系统设计；建筑智能化工程施工；消防技术服务；消防设施工程施工；各类工程建设活动；住宅室内装饰装修（依法须经批准的项目，经相关部门批准后方可开展经营活动，具体经营项目以审批结果为准）一般项目：软件开发；技术服务、技术开发、技术咨询、技术交流、技术转让、技术推广；计算机软硬件及外围设备制造；电子元器件制造；物联网设备制造；安防设备制造；电子（气）物理设备及其他电子设备制造；信息系统集成服务；物联网技术服务；物联网应用服务；数据处理和存储支持服务；住宅水电安装维护服务；环保咨询服务；集成电路设计；计算机软硬件及辅助设备批发；计算机软硬件及辅助设备零售；电子产品销售；安防设备销售；消防器材销售；环境保护专用设备销售；制冷、空调设备销售；电气机械设备销售；建筑材料销售；五金产品零售；电线、电缆经营；第二类医疗器械销售；食用农产品批发（除依法须经批准的项目外，凭营业执照依法自主开展经营活动） | W189: 在园 | X189: 已入驻
A190: 江苏彰旗物联网科技有限公司 | B190: 91320211MA1NNR869Q | C190: 2000 | D190: 人民币 | E190: 2017-03-30 | F190: 蒋宇峰 | G190: 0510-88238020 | H190: =VLOOKUP(A190,'合同信息 '!$F$1:$M$438,7,0) -> 钱美新 | I190: =VLOOKUP(A190,'合同信息 '!$F$1:$M$438,8,0) -> 15961845337 | J190: 1351628382@qq.com | M190: 无锡市新吴区菱湖大道200号中国传感网国际创新园G10-802 | O190: 物联网系统开发、制造、销售及设计服务;集成电路设计、制造、销售;自营和代理各类商品和技术的进出口（国家限定企业经营或禁止进出口的商品和技术除外）。（依法须经批准的项目,经相关部门批准后方可开展经营活动） | W190: 在园 | X190: 已入驻
A191: 盛奕半导体科技（无锡）有限公司 | B191: 91320214MA1XD32R1A | C191: 500 | D191: 人民币 | E191: 2018-10-29 | F191: 王贝易 | G191: 0510-88362775 | H191: =VLOOKUP(A191,'合同信息 '!$F$1:$M$438,7,0) -> 王贝易 | I191: =VLOOKUP(A191,'合同信息 '!$F$1:$M$438,8,0) -> 18621667765 | J191: yuyanhong@sy-semitech.com | M191: 无锡市新吴区菱湖大道200号中国物联网国际创新园F7号 | O191: 半导体技术开发、技术服务、技术咨询、技术转让;半导体设备的生产、销售、安装、维修、检测;电子产品、机电设备、机械设备及配件、仪器仪表、化工原料及产品（危险化学品经营凭许可证）、金属材料、环保设备、金属制品、橡塑制品、机电设备、五金交电、建筑建材、化工原料（除危险品）、消防器材、包装材料、家具用品、办公用品、日用百货、清洁用品的销售;自营和代理各类商品和技术的进出口（国家限定公司经营或禁止进出口的商品和技术除外）。（依法须经批准的项目,经相关部门批准后方可开展经营活动）许可项目:各类工程建设活动（依法须经批准的项目,经相关部门批准后方可开展经营活动,具体经营项目以审批结果为准）一般项目:工程管理服务（除依法须经批准的项目外,凭营业执照依法自主开展经营活动） | W191: 在园 | X191: 已入驻
A192: 问天鼎讯量子科技（无锡）有限公司 | B192: 91320214MA22JETH8N | C192: 2000 | D192: 人民币 | E192: 2020-09-24 | F192: 黎斌 | G192: 0510-68789595 | H192: =VLOOKUP(A192,'合同信息 '!$F$1:$M$438,7,0) -> 黎斌 | I192: =VLOOKUP(A192,'合同信息 '!$F$1:$M$438,8,0) -> 13855169313 | J192: chuxf@bjzjdx.com | M192: 无锡市新吴区菱湖大道200号中国物联网国际创新园D2-607 | O192: 许可项目:各类工程建设活动（依法须经批准的项目,经相关部门批准后方可开展经营活动,具体经营项目以审批结果为准）一般项目:技术服务、技术开发、技术咨询、技术交流、技术转让、技术推广;通信设备制造;光通信设备制造;通信传输设备专业修理;通信交换设备专业修理;通信设备销售;光通信设备销售;互联网设备制造;网络设备制造;云计算设备制造;物联网设备制造;计算机软硬件及外围设备制造;卫星通信服务;国内贸易代理;销售代理;工业控制计算机及系统销售;电子产品销售;软件开发;信息系统集成服务;信息技术咨询服务;计算机及通讯设备租赁;物联网设备销售;网络设备销售;会议及展览服务;工业控制计算机及系统制造;集成电路制造;集成电路芯片及产品制造;集成电路销售;物联网技术研发;物联网技术服务;信息安全设备制造;信息安全设备销售;网络与信息安全软件开发;互联网安全服务;计算机软硬件及辅助设备批发;物联网应用服务;计算机系统服务;计算机软硬件及辅助设备零售;软件销售;信息系统运行维护服务;互联网设备销售（除依法须经批准的项目外,凭营业执照依法自主开展经营活动） | W192: 在园 | X192: 已入驻
A193: 无锡生科一号咨询服务合伙企业（有限合伙） | B193: 91320214MA23QR7Q6C | C193: 6000 | D193: 人民币 | E193: 2020-12-10 | F193: - | G193: 0510-85185760 | H193: =VLOOKUP(A193,'合同信息 '!$F$1:$M$438,7,0) ->  | I193: =VLOOKUP(A193,'合同信息 '!$F$1:$M$438,8,0) ->  | J193: info@glxcpe.com | M193: 无锡市新吴区菱湖大道200号中国传感网国际创新园E1-202-901 | O193: 一般项目：社会经济咨询服务；以自有资金从事投资活动（除依法须经批准的项目外，凭营业执照依法自主开展经营活动） | W193: 挂靠
A194: 江苏深网科技有限公司 | B194: 91320214MA20EJA45X | C194: 1000 | D194: 人民币 | E194: 2019-11-18 | F194: 王传林 | G194: 13915358105 | H194: =VLOOKUP(A194,'合同信息 '!$F$1:$M$438,7,0) -> 王传林 | I194: =VLOOKUP(A194,'合同信息 '!$F$1:$M$438,8,0) -> 13915358105 | J194: xiely@jsdeepnet.com | M194: 无锡市新吴区菱湖大道200号中国物联网国际创新园A601号 | O194: 计算机网络及软硬件的技术开发、技术转让、技术服务；系统集成；信息技术咨询服务；数据处理和存储服务；计算机软硬件及辅助设备的销售；自营和代理各类商品及技术的进出口（国家限定公司经营或禁止进出口的商品和技术除外）。（依法须经批准的项目，经相关部门批准后方可开展经营活动） | W194: 在园 | X194: 已入驻
A195: 江苏无锡国鹏航空投资中心（有限合伙） | B195: 91320214MA26T03T0P | C195: 100100 | D195: 人民币 | E195: 2021-08-13 | F195: 无锡国曦投资有限公司 | G195: 0510-82740100 | H195: =VLOOKUP(A195,'合同信息 '!$F$1:$M$438,7,0) ->  | I195: =VLOOKUP(A195,'合同信息 '!$F$1:$M$438,8,0) ->  | J195: 1335498427@qq.com | M195: 无锡市新吴区菱湖大道200-10号中国传感网国际创新园E1-202-29 | O195: 一般项目:以自有资金从事投资活动（除依法须经批准的项目外,凭营业执照依法自主开展经营活动） | W195: 挂靠
A196: 摩诃科技无锡有限公司 | B196: 91320214MA1MUDEB7J | C196: 1000 | D196: 人民币 | E196: 2016-09-14 | F196: 许爱花 | G196: 0510-85385215 | H196: =VLOOKUP(A196,'合同信息 '!$F$1:$M$438,7,0) -> 于洋 | I196: =VLOOKUP(A196,'合同信息 '!$F$1:$M$438,8,0) -> 18914989168 | J196: zhuli@imohe.com | M196: 无锡市新吴区菱湖大道200号中国物联网国际创新园G10-801 | O196: 一般项目:软件开发;软件销售;软件外包服务;网络与信息安全软件开发;人工智能应用软件开发;工业互联网数据服务;工业机器人制造;工业控制计算机及系统制造;工业控制计算机及系统销售;信息技术咨询服务;信息系统运行维护服务;技术服务、技术开发、技术咨询、技术交流、技术转让、技术推广;数字技术服务;业务培训（不含教育培训、职业技能培训等需取得许可的培训）;技术进出口（除依法须经批准的项目外,凭营业执照依法自主开展经营活动） | W196: 在园 | X196: 已入驻
A197: 无锡超信工业外包有限公司 | B197: 913202143392037208 | C197: 500 | D197: 人民币 | E197: 2015-06-05 | F197: 段波浪 | G197: 0510-88520666 | H197: =VLOOKUP(A197,'合同信息 '!$F$1:$M$438,7,0) -> 段波浪 | I197: =VLOOKUP(A197,'合同信息 '!$F$1:$M$438,8,0) -> 15852804026 | J197: zoegao@mail.chaosin.com | M197: 无锡市新吴区菱湖大道200号中国物联网国际创新园A301-1 | O197: 许可项目:货物进出口;技术进出口;进出口代理;职业中介活动;劳务派遣服务（依法须经批准的项目,经相关部门批准后方可开展经营活动,具体经营项目以审批结果为准）一般项目:人力资源服务（不含职业中介活动）;软件开发;技术服务、技术开发、技术咨询、技术交流、技术转让、技术推广;社会经济咨询服务;供应链管理服务;信息技术咨询服务;单位后勤管理服务;电子元器件制造;电力电子元器件制造;电子元器件与机电组件设备销售;通用设备制造（不含特种设备制造）;电器辅件制造;光伏设备及元器件制造;日用杂品制造;文具制造;体育用品制造;照明器具制造;服饰制造;劳动保护用品生产;计算器设备制造;光电子器件制造;电子专用材料制造;半导体照明器件制造;集成电路芯片设计及服务;数控机床制造;机械零件、零部件加工;铸造机械制造;气压动力机械及元件制造;变压器、整流器和电感器制造;安防设备制造;气体压缩机械制造;电机制造（除依法须经批准的项目外,凭营业执照依法自主开展经营活动） | W197: 在园 | X197: 已入驻
A198: 无锡医迈德科技有限公司 | B198: 91320214346080298E | C198: 1000 | D198: 人民币 | E198: 2015-06-19 | F198: 朱宏宽 | G198: 0510-85386822 | H198: =VLOOKUP(A198,'合同信息 '!$F$1:$M$438,7,0) -> 朱宏宽 | I198: =VLOOKUP(A198,'合同信息 '!$F$1:$M$438,8,0) -> 13911076973 | J198: 346007703@qq.com | M198: 无锡新吴区菱湖大道200号中国传感网国际创新园D2-303 | O198: 技术推广服务；经济贸易咨询；医疗器械的研发；通用机械配件、电子元器件的销售；计算机软件的研发、销售、技术服务；组织文化艺术交流活动；会议会展服务。（依法须经批准的项目，经相关部门批准后方可开展经营活动） | W198: 在园 | X198: 已入驻
A199: 无锡瓴博科技合伙企业（有限合伙） | B199: 91320214MA27CAXJ51 | C199: 2492 | D199: 人民币 | E199: 2021-11-04 | F199: 无锡瓴域科技合伙企业（有限合伙） | G199: 0510-68101580 | H199: =VLOOKUP(A199,'合同信息 '!$F$1:$M$438,7,0) ->  | I199: =VLOOKUP(A199,'合同信息 '!$F$1:$M$438,8,0) ->  | J199: jennie.qian@len-technology.com | M199: 无锡市新吴区菱湖大道200-28（A）栋201 | O199: 一般项目：技术服务、技术开发、技术咨询、技术交流、技术转让、技术推广；信息技术咨询服务；企业管理；企业管理咨询（除依法须经批准的项目外，凭营业执照依法自主开展经营活动） | W199: 挂靠
A200: 无锡吉成生物科技有限公司 | B200: 91320214MA1P83J63H | C200: 1000 | D200: 人民币 | E200: 2017-06-20 | F200: 朱成 | G200: 18914162535 | H200: =VLOOKUP(A200,'合同信息 '!$F$1:$M$438,7,0) -> 朱成 | I200: =VLOOKUP(A200,'合同信息 '!$F$1:$M$438,8,0) -> 13861811199 | J200: 1196692864@QQ.COM | M200: 无锡市新吴区菱湖大道200号中国传感网国际创新园E1-805 | O200: 生物技术、医疗器械、计算机软硬件、网络技术的研发、技术服务、技术咨询、技术转让；医疗用品及器材、电子产品的销售；医疗仪器设备及器械修理；商务咨询服务（不含投资咨询）；自营和代理各类商品及技术的进出口业务（国家限定企业经营或禁止进出口的商品和技术除外）。依法须经批准的项目，经相关部门批准后方可开展经营活动） | W200: 在园 | X200: 已入驻
A201: 江苏壹佳环球品牌管理有限公司 | B201: 91320213MA1WU2M31K | C201: 1000 | D201: 人民币 | E201: 2018-07-05 | F201: 胡诸鸿 | G201: 0510-82828199 | H201: =VLOOKUP(A201,'合同信息 '!$F$1:$M$438,7,0) ->  | I201: =VLOOKUP(A201,'合同信息 '!$F$1:$M$438,8,0) ->  | J201: huzhuhong@yijiagt.com | M201: 无锡市新吴区菱湖大道200号中国传感网国际创新园E2-506 | O201: 电子产品及通讯设备（不含卫星地面接收设施和发射装置）、计算机、软件及辅助设备的研究与开发、技术咨询、技术转让及销售;信息系统集成服务;母婴用品、食品、医疗器械、家用电器、文化用品、照相器材、化妆品、清洁用品、办公用品、体育用品、针纺织品、服装、日用品、家具、珠宝首饰、眼镜、玩具、汽车零配件、仪器仪表、陶瓷制品、花卉、苗木、装饰装潢材料的销售;自营和代理各类商品及技术的进出口业务（国家限定公司经营或禁止进出口的商品和技术除外）;仓储服务。（依法须经批准的项目,经相关部门批准后方可开展经营活动） 许可项目:第一类增值电信业务;第二类增值电信业务;在线数据处理与交易处理业务（经营类电子商务）（依法须经批准的项目,经相关部门批准后方可开展经营活动,具体经营项目以审批结果为准） 一般项目:人力资源服务（不含职业中介活动、劳务派遣服务）;物联网技术研发;贸易经纪;政府采购代理服务;科技推广和应用服务;科技中介服务;品牌管理;广告设计、代理;图文设计制作;办公服务（标志牌、铜牌的设计、制作服务,奖杯、奖牌、奖章、锦旗的设计、制作）;专业设计服务;第二类医疗器械销售;软件开发;信息系统集成服务;技术服务、技术开发、技术咨询、技术交流、技术转让、技术推广（除依法须经批准的项目外,凭营业执照依法自主开展经营活动） | W201: 挂靠
... 1555 more rows

Sheet 4.企业标签
A1: #数据初始化# 1、“* ”为必填栏位
B3: 科技属性标签 | C3: 通用属性标签 | D3: 融资进度标签 | E3: 人才属性标签 | F3: 商务属性标签
B4: 填报 | C4: 填报 | D4: 填报 | E4: 填报 | F4: 填报
B5: 集成电路 | C5: 物流 | D5: A轮 | E5: 太湖人才 | F5: 规上
B6: 物联网 | E6: 雏鹰2022 | F6: 规下
E7: 雏鹰2023
F10: 说明
B11: 标签类型 | C11: 是否对企业可见 | D11: 有效期 | F11: 1、针对有效期的标签，需要对其进行具体分类；标签+有效期
B12: 科技属性标签 | C12: 选择 | D12: 选择 | F12: 2、标签梳理完成后，可针对标签进行企业批量导入。
C13: 可见 | D13: 有 | F13: 示例： | G13: 集成电路 | H13: 企业名称 | I13: 企业信用代码
C14: 不可见 | D14: 无 | G14: 集成电路
G15: 集成电路
B16: 标签类型 | C16: 是否对企业可见 | D16: 有效期 | G16: 集成电路
B17: 通用属性标签 | C17: 选择 | D17: 选择
C18: 可见 | D18: 有 | G18: 雏鹰2022 | H18: 企业名称 | I18: 企业信用代码
C19: 不可见 | D19: 无 | G19: 雏鹰2022
G20: 雏鹰2022
B21: 标签类型 | C21: 是否对企业可见 | D21: 有效期 | G21: 雏鹰2022
B22: 融资进度标签 | C22: 选择 | D22: 选择
C23: 可见 | D23: 有 | G23: 雏鹰2023 | H23: 企业名称 | I23: 企业信用代码
C24: 不可见 | D24: 无 | G24: 雏鹰2023
G25: 雏鹰2023
B26: 标签类型 | C26: 是否对企业可见 | D26: 有效期 | G26: 雏鹰2023
B27: 人才属性标签 | C27: 选择 | D27: 选择
C28: 可见 | D28: 有
C29: 不可见 | D29: 无
B31: 标签类型 | C31: 是否对企业可见 | D31: 有效期
B32: 商务属性标签 | C32: 选择 | D32: 选择
C33: 可见 | D33: 有
C34: 不可见 | D34: 无

Sheet 5.经发数据导入
A1: #数据初始化#
A2: 1.请不要增加、删除、修改表格列，否则系统将无法识别；
A3: 2.红色列为必填项，黑色列为选填项；
A4: 3.字段说明：
A5: 1）统一信用代码：请确保填写正确，否则系统将无法识别；
A6: 2）税收（万元）、营收（万元）：请填写数字（整数位）。
A7: 3）不同年份的数据，请用【年份】栏位标识即可。比如：2023.01
A9: 企业名称 | B9: 统一信用代码 | C9: 税收（万元） | D9: 营收（万元） | E9: 年份
A10: 江苏中电创新环境科技有限公司 | B10: 913202133140424571 | D10: 18411.11324 | E10: 2022.02
A11: 无锡飞翎电子有限公司 | B11: 91320214748158756F | D11: 31492.31399 | E11: 2022.02
A12: 北京中石伟业科技无锡有限公司 | B12: 913202140645565771 | D12: 13295.13905 | E12: 2022.02
A13: 华英证券有限责任公司 | B13: 91320214717884755C | D13: 41119.00901 | E13: 2022.02
A14: 无锡时代天使生物科技有限公司 | B14: 91320214MA1WUTF30A | D14: 3323.031544 | E14: 2022.02
A15: 无锡市恒顺金属材料有限公司 | B15: 91320200135927444B | D15: 21020.06334 | E15: 2022.02
A16: 无锡盛景微电子股份有限公司 | B16: 91320214MA1MHNE46U | D16: 3136.81131 | E16: 2022.02
A17: 无锡英菲感知技术有限公司 | B17: 91320214MA1MQKN609 | D17: 9716.54037 | E17: 2022.02
A18: 无锡厦泰生物科技有限公司 | B18: 91320214MA1P2A2K6H | D18: 2948.376025 | E18: 2022.02
A19: 无锡天青元储智能科技有限公司 | B19: 91320214MA7JNNRL98 | D19: 0 | E19: 2022.02
A20: 无锡国联产业投资有限公司 | B20: 9132021479331907XR | D20: 1090.015725 | E20: 2022.02
A21: 无锡旭浦能源科技有限公司 | B21: 91320211MA1QEY386G | D21: 0.164359 | E21: 2022.02
A22: 江苏昊华传动控制股份有限公司 | B22: 91320200722228330W | D22: 4328.910827 | E22: 2022.02
A23: 无锡英臻科技有限公司 | B23: 91320214693333296Q | D23: 3050.966714 | E23: 2022.02
A24: 无锡市牛拓化工新材料有限公司 | B24: 91320214586600133K | D24: 5544.530476 | E24: 2022.02
A25: 捷捷微电（无锡）科技有限公司 | B25: 91320214MA21X47B7U | D25: 5179.687847 | E25: 2022.02
A26: 无锡中智人力资源服务有限公司 | B26: 913202145795271774 | D26: 1001.713341 | E26: 2022.02
A27: 无锡超信工业外包有限公司 | B27: 913202143392037208 | D27: 2210.265567 | E27: 2022.02
A28: 无锡人才之家信息科技有限公司 | B28: 913202147986075055 | D28: 1694.751913 | E28: 2022.02
A29: 无锡微纳产业发展有限公司 | B29: 913202146829857231 | D29: 2511.940906 | E29: 2022.02
A30: 无锡智瑞信息科技有限公司 | B30: 913202140879385004 | D30: 2871.626855 | E30: 2022.02
A31: 无锡纽科电子科技股份有限公司 | B31: 91320214066282805K | D31: 3233.635497 | E31: 2022.02
A32: 无锡中科光电技术有限公司 | B32: 91320214579517104U | D32: 2089.038166 | E32: 2022.02
A33: 盛奕半导体科技（无锡）有限公司 | B33: 91320214MA1XD32R1A | D33: 2198.172762 | E33: 2022.02
A34: 无锡掌薪网络科技有限公司 | B34: 91320214MA1TCN2T3B | D34: 2437.848024 | E34: 2022.02
A35: 品冠物联科技有限公司 | B35: 91320214330829129L | D35: 1412.533495 | E35: 2022.02
A36: 广州广电计量检测无锡有限公司 | B36: 91320213063215391J | D36: 1273.049596 | E36: 2022.02
A37: 无锡优顺能源开发科技有限公司 | B37: 91320206MA1MNUUG8G | D37: 0 | E37: 2022.02
A38: 中设国联无锡新能源发展有限公司 | B38: 91320214321157594X | D38: 548.158785 | E38: 2022.02
A39: 无锡亚天光电科技有限公司 | B39: 9132021169789949XF | D39: 756.68423 | E39: 2022.02
A40: 无锡安特源科技股份有限公司 | B40: 91320200589957779N | D40: 2678.870076 | E40: 2022.02
A41: 无锡永逸乐机电设备有限公司 | B41: 91320214079893074D | D41: 2137.954201 | E41: 2022.02
A42: 无锡天云数据中心科技有限公司 | B42: 913202133309078520 | D42: 3311.649699 | E42: 2022.02
A43: 中设国联无锡光伏电站运维管理有限公司 | B43: 91320214MA1MU4003A | D43: 890.521892 | E43: 2022.02
A44: 华进半导体封装先导技术研发中心有限公司 | B44: 913202130551581209 | D44: 1815.71158 | E44: 2022.02
A45: 无锡泽太微电子有限公司 | B45: 91320214570377010C | D45: 1305.43749 | E45: 2022.02
A46: 无锡慕鱼人力资源服务有限公司 | B46: 91320214MA21PFY99K | D46: 1874.023229 | E46: 2022.02
A47: 无锡紫光微电子有限公司 | B47: 913202143138987208 | D47: 1290.630873 | E47: 2022.02
A48: 无锡盛畅光伏材料有限公司 | B48: 9132021434610988X6 | D48: 15.810973 | E48: 2022.02
A49: 无锡汇才企业管理有限公司 | B49: 91320214MA1MK1HT6B | D49: 887.007804 | E49: 2022.02
A50: 无锡市兴洲劳务派遣有限公司 | B50: 91320214759699742D | D50: 1062.50386 | E50: 2022.02
A51: 无锡卡思优派工业服务外包有限公司 | B51: 91320202338994049T | D51: 811.393883 | E51: 2022.02
A52: 无锡昌德微电子股份有限公司 | B52: 91320200240501154L | D52: 1107.193782 | E52: 2022.02
A53: 无锡迈泰科技有限公司 | B53: 91320214MA1MM6005G | D53: 705.976902 | E53: 2022.02
A54: 无锡索威电气科技有限公司 | B54: 91320200MA1WK1KC5X | D54: 279.595169 | E54: 2022.02
A55: 龙微科技无锡有限公司 | B55: 913202133021285602 | D55: 490.55503 | E55: 2022.02
A56: 无锡优塑美科技有限公司 | B56: 91320214579501532C | D56: 1196.240637 | E56: 2022.02
A57: 无锡专心智制科技有限公司 | B57: 91320214MA1WT4XR8J | D57: 53.591248 | E57: 2022.02
A58: 江苏多益能源科技有限公司 | B58: 91320214MA1X46DT7C | D58: 824.535612 | E58: 2022.02
A59: 无锡市艾克特电气股份有限公司 | B59: 91320200071039797X | D59: 926.307995 | E59: 2022.02
A60: 江苏中科君芯科技有限公司 | B60: 91320213585596419Y | D60: 306.641061 | E60: 2022.02
A61: 江苏中元盛辉新能源科技有限公司 | B61: 91320214MA1MGU198R | D61: 245.759129 | E61: 2022.02
A62: 无锡速芯微电子有限公司 | B62: 91320214MA1UXNX17D | D62: 377.639392 | E62: 2022.02
A63: 江苏芯潭微电子有限公司 | B63: 91320213MA1MBEW516 | D63: 2450.486616 | E63: 2022.02
A64: 无锡数信互融科技发展有限公司 | B64: 913202143238264645 | D64: 418.784722 | E64: 2022.02
A65: 觉芯电子（无锡）有限公司 | B65: 91320214MA20CXF79R | D65: 461.515166 | E65: 2022.02
A66: 江苏曼荼罗软件股份有限公司 | B66: 913202007635507481 | D66: 226.849057 | E66: 2022.02
A67: 无锡美偌科微电子有限公司 | B67: 91320214323896382H | D67: 834.496263 | E67: 2022.02
A68: 无锡国联新创私募投资基金有限公司 | B68: 91320214MA257MR64E | D68: 0.870858 | E68: 2022.02
A69: 无锡物联网创新中心有限公司 | B69: 91320200MA1WYURK0Q | D69: 114.807617 | E69: 2022.02
A70: 美迅（无锡）通信科技有限公司 | B70: 91320214MA20X8643W | D70: 246.680482 | E70: 2022.02
A71: 无锡知荣电子有限公司 | B71: 91320214MA1UXLKW2J | D71: 632.903969 | E71: 2022.02
A72: 江苏开心工作科技有限公司 | B72: 91320214355021513C | D72: 880.471566 | E72: 2022.02
A73: 无锡布勒卡乐服务外包有限公司 | B73: 91320214MA23GTFW7A | D73: 572.890573 | E73: 2022.02
A74: 无锡钧茂聚晟新能源科技有限公司 | B74: 91320214MA21Q4WAXF | D74: 213.9305 | E74: 2022.02
A75: 无锡中金鼎讯信通科技股份有限公司 | B75: 9132021307471484XE | D75: 658.698729 | E75: 2022.02
A76: 无锡高杰外包服务有限公司 | B76: 91320214566888221T | D76: 100.155204 | E76: 2022.02
A77: 无锡瑞科维半导体有限公司 | B77: 91320214MA25UF077A | D77: 417.133653 | E77: 2022.02
A78: 无锡阿莱夫科技有限公司 | B78: 91320214MA1PYN0MXY | D78: 5.309735 | E78: 2022.02
A79: 瓴芯电子科技（无锡）有限公司 | B79: 91320214MA1PBBBM14 | D79: 245.652755 | E79: 2022.02
A80: 中兴智能交通股份有限公司 | B80: 913202007226045783 | D80: 656.924229 | E80: 2022.02
A81: 无锡艾立德智能科技有限公司 | B81: 91320214569136017C | D81: 765.235395 | E81: 2022.02
A82: 无锡锐格思信息技术有限公司 | B82: 91320213585533258G | D82: 285.882478 | E82: 2022.02
A83: 无锡扬晟科技股份有限公司 | B83: 91320214554610089T | D83: 94.288524 | E83: 2022.02
A84: 江苏创莱特科技有限公司 | B84: 91320214MA27J4YAXU | D84: 0 | E84: 2022.02
A85: 无锡沃格自动化科技股份有限公司 | B85: 91320200050281007L | D85: 409.286643 | E85: 2022.02
A86: 无锡迅杰光远科技有限公司 | B86: 91320211MA1MK2G56U | D86: 140.241252 | E86: 2022.02
A87: 无锡云裳衣联网科技有限公司 | B87: 91320214MA1XQRN6X3 | D87: 147.793829 | E87: 2022.02
A88: 无锡新企友工业外包有限公司 | B88: 91320205MA1T7M6H0G | D88: 313.001298 | E88: 2022.02
A89: 无锡万益莱科技有限公司 | B89: 91320211MA1WMHDD3P | D89: 2.128664 | E89: 2022.02
A90: 江苏泓杉农牧科技有限公司 | B90: 91320214MA214P95XW | D90: 3.099061 | E90: 2022.02
A91: 江苏停哪儿信息科技有限公司 | B91: 91320205MA1MQLQL5Q | D91: 376.200623 | E91: 2022.02
A92: 江苏京华山一商业保理有限公司 | B92: 913200003216275096 | D92: 271.682082 | E92: 2022.02
A93: 无锡微格思科技有限公司 | B93: 913202140844467978 | D93: 836.185545 | E93: 2022.02
A94: 无锡盛和信物联科技有限公司 | B94: 91320214MA1N937F4L | D94: 222.891142 | E94: 2022.02
A95: 无锡海恩智立科技有限公司 | B95: 91320214074735157Q | D95: 369.274948 | E95: 2022.02
A96: 无锡赛米斯半导体科技有限公司 | B96: 91320214MA1XDADP4J | D96: 232.597632 | E96: 2022.02
A97: 华景科技无锡有限公司 | B97: 91320214MA1NCC6P03 | D97: 40.13372 | E97: 2022.02
A98: 无锡精质视觉科技有限公司 | B98: 91320214MA1MQLTU8M | D98: 170.862833 | E98: 2022.02
A99: 无锡力华智能科技有限公司 | B99: 913202116617956212 | D99: 138.243608 | E99: 2022.02
A100: 无锡和达创芯科技有限公司 | B100: 91320214MA1N5G6681 | D100: 434.238669 | E100: 2022.02
A101: 无锡徽科特测控技术有限公司 | B101: 91320214590016343G | D101: 200.590181 | E101: 2022.02
A102: 无锡方讯通物联科技有限公司 | B102: 91320214MA223RP79R | D102: 160.499124 | E102: 2022.02
A103: 无锡鼎驰信息科技有限公司 | B103: 91320214MA1YKB0339 | D103: 177.345127 | E103: 2022.02
A104: 无锡增意光电有限公司 | B104: 91320214MA1Y5KW486 | D104: 49.513276 | E104: 2022.02
A105: 无锡寰渠机械科技有限公司 | B105: 91320214MAC5E53J8T | D105: 0 | E105: 2022.02
A106: 无锡速客网络科技有限公司 | B106: 91320214079850533X | D106: 97.726953 | E106: 2022.02
A107: 海菲克智能科技（江苏）有限公司 | B107: 91320214MA26A1JC20 | D107: 65.399559 | E107: 2022.02
A108: 无锡市新信元科技有限公司 | B108: 91320206MA1MCXC003 | D108: 217.23825 | E108: 2022.02
A109: 江苏哲勤科技有限公司 | B109: 913202115580702351 | D109: 111.917819 | E109: 2022.02
A110: 盛航磁动力科技（无锡）有限公司 | B110: 91320214MA26HUD62F | D110: 0 | E110: 2022.02
A111: 无锡乐东微电子有限公司 | B111: 913202147439274806 | D111: 392.265658 | E111: 2022.02
A112: 无锡利昇智能装备有限公司 | B112: 91320214MA223NH18Q | D112: 250.730973 | E112: 2022.02
A113: 江苏众乐乐影视传媒有限公司 | B113: 91320214314136883L | D113: 691.713516 | E113: 2022.02
A114: 江苏中科西北星信息科技有限公司 | B114: 91320214582272072G | D114: 202.428962 | E114: 2022.02
A115: 江苏鼎志电子科技有限公司 | B115: 91320214MA1N20852X | D115: 42.292536 | E115: 2022.02
A116: 无锡凯必特斯半导体科技有限公司 | B116: 91320214321171652D | D116: 393.656157 | E116: 2022.02
A117: 中航物业管理有限公司无锡分公司 | B117: 913202145714327045 | D117: 143.152369 | E117: 2022.02
A118: 无锡易兑科技有限公司 | B118: 91320213089328087C | D118: 414.288176 | E118: 2022.02
A119: 中力航空设备（江苏）有限公司 | B119: 91320214MA20DHYP9G | D119: 148.888545 | E119: 2022.02
A120: 江苏米孚数字科技有限公司 | B120: 91321111MA1MRN3Q09 | D120: 0 | E120: 2022.02
A121: 西克制冷（无锡）有限公司 | B121: 91320214MA1YNMQP5U | D121: 0 | E121: 2022.02
A122: 无锡力捷丰科技有限公司 | B122: 91320214550264705E | D122: 101.975246 | E122: 2022.02
A123: 无锡载德工业自动化技术有限公司 | B123: 91320214MA2633LP9L | D123: 12.003222 | E123: 2022.02
A124: 无锡影速半导体科技有限公司 | B124: 91320214323618980Q | D124: 80.513702 | E124: 2022.02
A125: 无锡市杰特电气有限公司 | B125: 91320214MA25TTMC0Q | D125: 0 | E125: 2022.02
A126: 无锡医迈德科技有限公司 | B126: 91320214346080298E | D126: 119.445844 | E126: 2022.02
A127: 无锡仪科芯电子有限公司 | B127: 91320211MA1R96QN28 | D127: 138.636918 | E127: 2022.02
A128: 无锡艾普科微电子有限公司 | B128: 91320213302002263W | D128: 8.752851 | E128: 2022.02
A129: 江苏锐钢科技有限公司 | B129: 91320214MA7E5NKQ2N | D129: 0 | E129: 2022.02
A130: 江苏大元素广告传媒有限公司 | B130: 91320214MA1N8X222Q | D130: 240.558462 | E130: 2022.02
A131: 江苏神达智能科技有限公司 | B131: 91320214MA276M819M | D131: 0 | E131: 2022.02
A132: 无锡星微科技有限公司 | B132: 91320214330966457E | D132: 385.413593 | E132: 2022.02
A133: 国科瑞祺物联网创业投资有限公司 | B133: 91320214560328987T | D133: 4518.339623 | E133: 2022.02
A134: 无锡布里渊电子科技有限公司 | B134: 91320211313880491L | D134: 73.008849 | E134: 2022.02
A135: 无锡灵瑞科技有限公司 | B135: 91320214672536211H | D135: 206.300734 | E135: 2022.02
A136: 艾普柯微电子（江苏）有限公司 | B136: 9131000058521410XD | D136: 182.824999 | E136: 2022.02
A137: 暖博士新材料（无锡）有限公司 | B137: 91320214MA1MY6YN57 | D137: 194.044791 | E137: 2022.02
A138: 无锡锡产微芯半导体有限公司 | B138: 91320214MA1YGXW434 | D138: 0 | E138: 2022.02
A139: 无锡比益特科技有限公司 | B139: 913202140815673662 | D139: 23.953564 | E139: 2022.02
A140: 无锡芯享信息科技有限公司 | B140: 91320214MA1WUNMW6U | D140: 134.061534 | E140: 2022.02
A141: 江苏宙斯物联网科技集团股份有限公司 | B141: 913202005823087688 | D141: 211.24504 | E141: 2022.02
A142: 无锡中科微电子工业技术研究院有限责任公司 | B142: 913202145602566028 | D142: 179.852257 | E142: 2022.02
A143: 无锡胜脉电子有限公司 | B143: 91320213MA1WNA4U1Y | D143: 314.904275 | E143: 2022.02
A144: 海尔数字科技（无锡）有限公司 | B144: 91320214MA1X4EU26R | D144: 283.423774 | E144: 2022.02
A145: 远洋亿家物业服务股份有限公司无锡分公司 | B145: 91320214MA1UQUJU64 | D145: 116.078209 | E145: 2022.02
A146: 华景传感科技（无锡）有限公司 | B146: 91320211553790065B | D146: 21.523166 | E146: 2022.02
A147: 无锡鼎润机电科技有限公司 | B147: 9132021469549005X8 | D147: 49.283597 | E147: 2022.02
A148: 无锡合能会展有限公司 | B148: 91320214346080511H | D148: 63.983983 | E148: 2022.02
A149: 无锡仪电电气科技有限公司 | B149: 91320214MA1YD8RX41 | D149: 142.830515 | E149: 2022.02
A150: 无锡奥利杰科技有限公司 | B150: 913202147802711426 | D150: 350.154991 | E150: 2022.02
A151: 无锡东德自动化科技有限公司 | B151: 9132021331371619XR | D151: 138.018234 | E151: 2022.02
A152: 无锡伙伴人力资源服务有限公司 | B152: 91320214739590088L | D152: 483.280679 | E152: 2022.02
A153: 无锡艾飞讯电子科技有限公司 | B153: 91320214MA1NDTWL59 | D153: 350.727752 | E153: 2022.02
A154: 无锡宇国光电技术有限公司 | B154: 91320214582303078N | D154: 116.523189 | E154: 2022.02
A155: 江苏双雕金属科技有限公司 | B155: 91320214MA27R0DJ29 | D155: 0 | E155: 2022.02
A156: 无锡通测检测技术有限公司 | B156: 91320214MA1WF7WU8F | D156: 88.930185 | E156: 2022.02
A157: 江苏玛雅软创信息科技有限公司 | B157: 91320214MA7JPCMH5H | D157: 0 | E157: 2022.02
A158: 无锡赛默斐视科技有限公司 | B158: 91320214087928871P | D158: 177.610625 | E158: 2022.02
A159: 江苏慧乔信息科技有限公司 | B159: 91320214088255584N | D159: 97.716627 | E159: 2022.02
A160: 无锡国联华丰节能技术有限公司 | B160: 9132021305860101XJ | D160: 131.981988 | E160: 2022.02
A161: 江苏宏业鑫工程技术有限公司 | B161: 91320214MA1NJBH44H | D161: 218.053629 | E161: 2022.02
A162: 华芯检测（无锡）有限公司 | B162: 91320214MA2094WB4C | D162: 180.754446 | E162: 2022.02
A163: 无锡磁强沃格真空装备有限公司 | B163: 91320214MA1YRRR10F | D163: 67.08917 | E163: 2022.02
A164: 江苏云媒数字科技有限公司 | B164: 9132021433085683XW | D164: 30.40107 | E164: 2022.02
A165: 江苏翰源环境科技咨询有限公司 | B165: 91320214MA1YYGWG3Y | D165: 43.988871 | E165: 2022.02
A166: 无锡迅林贸易有限公司 | B166: 91320214MA7N2C5C46 | D166: 0 | E166: 2022.02
A167: 江苏沅申电力科技有限公司 | B167: 91320214MA1W8EEL0C | D167: 0 | E167: 2022.02
A168: 无锡米芯微电子技术有限公司 | B168: 91320214MA201GPA0B | D168: 19.734957 | E168: 2022.02
A169: 江苏奥立信数字科技有限公司 | B169: 91320214MA25LMGT94 | D169: 180.352903 | E169: 2022.02
A170: 无锡经纬软件科技有限公司 | B170: 91320214MA24RD7520 | D170: 0 | E170: 2022.02
A171: 无锡创思感知科技有限公司 | B171: 9132021407469093X0 | D171: 44.042423 | E171: 2022.02
A172: 江苏佳视达光电科技有限公司 | B172: 91320214MA1W6HDXX0 | D172: 19.842476 | E172: 2022.02
A173: 无锡博成智能装备有限公司 | B173: 913202140662462228 | D173: 0 | E173: 2022.02
A174: 无锡合普瑞科技有限公司 | B174: 913202145603347463 | D174: 80.276273 | E174: 2022.02
A175: 江芯动力科技（江苏）有限公司 | B175: 91320214MAC27L401N | D175: 0 | E175: 2022.02
A176: 无锡优驱自动控制科技有限公司 | B176: 91320211MA27ATR61A | D176: 55.666425 | E176: 2022.02
A177: 江苏虞嘉新材料有限公司 | B177: 91320214MA26D56Q19 | D177: 43.982302 | E177: 2022.02
A178: 迈锐数据（无锡）有限公司 | B178: 91320214MA1YYCWW3E | D178: 10.867257 | E178: 2022.02
A179: 无锡聚日信息科技有限公司 | B179: 91320214MA206D3D4A | D179: 78.663621 | E179: 2022.02
A180: 江苏艾福睿信息科技有限公司 | B180: 91330102MA2CF7AM6C | D180: 0.847579 | E180: 2022.02
A181: 无锡中启半导体有限公司 | B181: 91320213MA1YGHBW5D | D181: 85.467123 | E181: 2022.02
A182: 爱欧意科技无锡有限公司 | B182: 91320214MA1UYT983B | D182: 45.472332 | E182: 2022.02
A183: 森特奈智能科技（无锡）有限公司 | B183: 91320214MA20JB9X12 | D183: 0 | E183: 2022.02
A184: 无锡小天鹅网络科技有限公司 | B184: 913202147635534204 | D184: 46.99579 | E184: 2022.02
A185: 无锡意诚致信科技有限公司 | B185: 913202130534595366 | D185: 89.307133 | E185: 2022.02
A186: 江苏行云信息科技有限公司 | B186: 913202143461128789 | D186: 343.925583 | E186: 2022.02
A187: 三和泰（无锡）半导体专用设备有限公司 | B187: 91320211689193163P | D187: 169.093131 | E187: 2022.02
A188: 无锡盛赛传感科技有限公司 | B188: 91320214346180088L | D188: 156.210225 | E188: 2022.02
A189: 无锡市中力神盾防雷技术有限公司 | B189: 91320214562928070W | D189: 52.888786 | E189: 2022.02
A190: 铨力微电子（无锡）有限公司 | B190: 91320214MA27JTXT7H | D190: 0 | E190: 2022.02
A191: 无锡点彩新材料科技有限公司 | B191: 91320205MA1WYU1CXB | D191: 156.331405 | E191: 2022.02
A192: 无锡芯成微控半导体有限公司 | B192: 91320214MA23MLUX18 | D192: 0 | E192: 2022.02
A193: 无锡凡动科技有限公司 | B193: 91320214MA7GU1000K | D193: 28.301886 | E193: 2022.02
A194: 无锡徽能环保科技有限公司 | B194: 91320214MA22G3227W | D194: 144.438847 | E194: 2022.02
A195: 无锡博腾电子科技有限公司 | B195: 91320214MA1MMKRM52 | D195: 82.064548 | E195: 2022.02
A196: 无锡乾川工业外包服务有限公司 | B196: 91320214MA26X5X69X | D196: 156.823558 | E196: 2022.02
A197: 无锡幸福绿城停车管理有限公司 | B197: 91320214MA7LJ39K1G | D197: 0 | E197: 2022.02
A198: 麦能新能源科技无锡有限公司 | B198: 91320213MA1MDD2M81 | D198: 54.018481 | E198: 2022.02
A199: 黑曼巴半导体（无锡）有限公司 | B199: 91320214MA1YCTWH79 | D199: 3.6 | E199: 2022.02
A200: 无锡友信锡地劳务派遣有限公司 | B200: 91320203591198679E | D200: 445.269835 | E200: 2022.02
A201: 无锡威卓智能机器人有限公司 | B201: 91320214MA1P1XDW1B | D201: 0 | E201: 2022.02
... 19097 more rows

Sheet 7.发票抬头正常-797笔
A1: 企业名称 | B1: 发票抬头 | C1: 纳税人识别号 | D1: 发票地址电话 | E1: 邮箱 | F1: 开户行及账号
A2: 江苏云和飞尚软件技术有限公司 | B2: 江苏云和飞尚软件技术有限公司 | C2: 9132021406763768XQ | D2: 无锡菱湖大道200号 13812512105 | F2: 农行新区支行 635001040223589
A3: 中兴九城网络科技无锡有限公司 | B3: 中兴九城网络科技无锡有限公司 | C3: 91320214061876866J | D3: 无锡新区菱湖大道200号中国传感网创新园E1-601 | F3: 农行无锡新区支行 635001040222987
A4: 江苏五彩石文化发展有限公司 | B4: 江苏五彩石文化发展有限公司 | C4: 91320214MA1MJ8AQ0R | D4: 无锡市新吴区菱湖大道200号中国传感网国际创新园G10-502 13771536996 | F4: 中国建设银行股份有限公司高新技术开发区支行 32050161543600000175
A5: 无锡迎嘉信息技术有限公司 | B5: 无锡迎嘉信息技术有限公司 | C5: 9132021439838308X7 | D5: 无锡新区菱湖大道200号中国传感网国际创新园D2-301室 0510-85386565 | F5: 交通银行无锡东门支行 322000634018010141942
A6: 中城智慧科技有限公司 | B6: 中城智慧科技有限公司 | C6: 91320213302071373J | D6: 无锡市新吴区菱湖大道200号中国传感网国际创新园D2—307 | F6: 农行无锡新区支行635001040226079
A7: 无锡融谐信息技术有限公司 | B7: 无锡融谐信息技术有限公司 | C7: 9132021434651579XN | D7: 无锡菱湖大道200号中国传感网国际创新园G-508室 王小燕15251537905 | F7: 招商银行新区支行 510903335710501
A8: 无锡米习餐饮管理有限公司 | B8: 无锡米习餐饮管理有限公司 | C8: 91320213321162983M | D8: 无锡新区菱湖大道200号中国传感网国际创新园B区 18951580096 | F8: 中国农业银行科技支行 635601040013466
A9: 无锡惴姆科技有限公司 | B9: 无锡惴姆科技有限公司 | C9: 9132021306951451X2 | D9: 无锡新区菱湖大道中国传感网国际创新园E2栋529室 0510-85381615 | F9: 中国工商银行无锡南长支行 1103020909200789188
A10: 无锡安诺信通信技术有限公司 | B10: 无锡安诺信通信技术有限公司 | C10: 913202133390515365 | D10: 无锡市新区菱湖大道200号中国传感网国际创新园G7栋一层 0510-68799783 | F10: 中国农业银行股份有限公司无锡科技支行 10635601040015842
A11: 无锡星微科技有限公司 | B11: 无锡星微科技有限公司 | C11: 91320214330966457E | D11: 无锡市菱湖大道200号中国传感网国际创新园D2-603 0510-85389907 | F11: 建行无锡高新技术开发区支行 32001615436052531754
A12: 无锡医迈德科技有限公司 | B12: 无锡医迈德科技有限公司 | C12: 91320214346080298E | D12: 无锡新区菱湖大道200号中国传感网国际创新园F2一层 0510-85380591 | F12: 农行无锡科技支行10635601040016196
A13: 经纬软信科技无锡有限公司 | B13: 经纬软信科技无锡有限公司 | C13: 320200302202898 | D13: 无锡新区菱湖大道200号中国传感网国际创新园E2-421 13812526650 | F13: 农业银行新区支行10635001040226251
A14: 无锡晶森物联科技有限公司 | B14: 无锡晶森物联科技有限公司 | C14: 320200699380579 | D14: 无锡新区菱湖大道200号中国传感网国际创新园E-431 0510-81020345 | F14: 中国农业银行无锡新都会支行635501040007411
A15: 无锡昆仑海岸物联科技有限公司 | B15: 无锡昆仑海岸物联科技有限公司 | C15: 91320214071074349C | D15: 无锡新区菱湖大道200号中国传感网国际创新园D2-4层0510-85381611 | F15: 建行无锡新安支行32001617146059686868
A16: 无锡玄人网络科技有限公司 | B16: 无锡玄人网络科技有限公司 | C16: 320200592562575 | D16: 无锡新区菱湖大道200号中国传感网国际创新园E2-310 68001044 | F16: 中国农业银行新吴区支行635001040221534
A17: 江苏江测检测技术服务有限公司 | B17: 江苏江测检测技术服务有限公司 | C17: 91320214302159404F | D17: 无锡新区菱湖大道200号中国传感网国际创新园D2-307 0510-81156581 | F17: 中国农业银行股份有限公司无锡新吴区支行 10365001040226020
A18: 无锡楠鼎信息技术有限公司 | B18: 无锡楠鼎信息技术有限公司 | C18: 91320214346321039G | D18: 无锡新区菱湖大道200号中国传感网国际创新园E1-302 15061894559 | F18: 兴业银行股份有限公司无锡支行 408410100100405659
A19: 无锡联盛合众光伏系统技术咨询有限公司 | B19: 无锡联盛合众光伏系统技术咨询有限公司 | C19: 91320214338973686D | D19: 无锡新区菱湖大道200号中国传感网国际创新园E1-507 0510-81819111 | F19: 中国银行无锡分行544366893697
A20: 无锡十一绿色智能建筑系统工程有限公司 | B20: 无锡十一绿色智能建筑系统工程有限公司 | C20: 913202143141842284 | D20: 无锡新区菱湖大道200号中国传感网国际创新园D2-305 0510-88899002 | F20: 农行科技支行635601040013045
A21: 无锡中金鼎讯信通科技股份有限公司 | B21: 无锡中金鼎讯信通科技股份有限公司 | C21: 9132021307471484XE | D21: 无锡新吴区菱湖大道200号中国物联网国际创新园E1-403 0510-68789595 | F21: 中国农业银行股份有限公司无锡科技支行 10635601040008698
A22: 无锡中电工业自动化设备有限公司 | B22: 无锡中电工业自动化设备有限公司 | C22: 913202147732386199 | D22: 无锡新区菱湖大道200号中国传感网国际创新园E1-501 0510-82124960 | F22: 农行无锡科技支行635601040008193
A23: 无锡力捷丰科技有限公司 | B23: 无锡力捷丰科技有限公司 | C23: 91320214550264705E | D23: 无锡新吴区菱湖大道200号中国物联网国际创新园E2-304号 0510-81813667 | F23: 农业银行无锡新都会支行 10635501040007296
A24: 无锡聚为科技有限公司 | B24: 无锡聚为科技有限公司 | C24: 91320213055171042Q | D24: 无锡新区菱湖大道200号G10-610 0510-85441265 | F24: 中国银行无锡科技支行 635601040016030
A25: 江苏物联网研究发展中心 | B25: 江苏物联网研究发展中心 | C25: 1232020046637256X7 | D25: 无锡新区菱湖大道200号中国传感网国际创新园C座 0510-85383338 | F25: 中国农业银行股份有限公司无锡新都会支行 635501040007718
A26: 江苏联融信息技术有限公司 | B26: 江苏联融信息技术有限公司 | C26: 320200072722272 | D26: 无锡新区菱湖大道200号中国传感网国际创新园E2-5楼 0510-85381119 | F26: 江苏银行无锡东林支行 27110188000074509
A27: 无锡市中力神盾防雷技术有限公司 | B27: 无锡市中力神盾防雷技术有限公司 | C27: 91320214562928070W | D27: 无锡新区菱湖大道200号中国传感网国际创新园B-4层 510-85382601 | F27: 农行无锡太科园支行 10653401040008245
A28: 无锡昌德微电子股份有限公司 | B28: 无锡昌德微电子股份有限公司 | C28: 91320200240501154L | D28: 无锡市新吴区菱湖大道200号中国物联网国家创新园E1栋901 0510-85160109 | F28: 交通银行无锡西郊支行 322000614018170154947
A29: 禾苗通信技术无锡有限公司 | B29: 禾苗通信技术无锡有限公司 | C29: 91320214552477106E | D29: 无锡新区菱湖大道200号中国传感网国际创新园一号楼 0510-85386295 | F29: 中国农业银行无锡太科园支行 653401040007957
A30: 江苏久协万洲软件科技有限公司 | B30: 江苏久协万洲软件科技有限公司 | C30: 320200302142354 | D30: 无锡新区菱湖大道200号中国传感网国际创新园B421 0510-85389318 | F30: 建行新安支行 32001617146059008888
A31: 无锡市艾克特电气股份有限公司 | B31: 无锡市艾克特电气股份有限公司 | C31: 91320200071039797X | D31: 无锡菱湖大道200号中国传感网国际创新园A栋1101室 0510-85380261 | F31: 农行无锡科技支行 10-635601040010439
A32: 无锡亚天光电科技有限公司 | B32: 无锡亚天光电科技有限公司 | C32: 9132021169789949XF | D32: 无锡市新吴区菱湖大道200号中国传感网国际创新园G1-606号 0510-66619199 | F32: 中国工商银行无锡瑞景道支行 1103025609000076293
A33: 无锡盛景微电子股份有限公司 | B33: 无锡盛景微电子股份有限公司 | C33: 91320214MA1MHNE46U | D33: 无锡市新吴区菱湖大道200号中国传感网国际创新园G1-208号 0510-85388869 | F33: 中国农业银行股份有限公司无锡新吴支行 635001040232572
A34: 无锡达斯特科技有限公司 | B34: 无锡达斯特科技有限公司 | C34: 91320214313957153Y | D34: 无锡市新区菱湖大道200号,中国传感网国际创新园D2-605 0510-85385535 | F34: 华夏银行无锡新区支行 12556000000533728
A35: 无锡海大科技有限公司 | B35: 无锡海大科技有限公司 | C35: 91320214074689306W | D35: 无锡市新区南丰工业配套园B区 0510-88559911 | F35: 江苏银行无锡梅村支行 20750188000044010
A36: 无锡景明电子科技有限公司 | B36: 无锡景明电子科技有限公司 | C36: 320200346332467 | D36: 无锡市新区菱湖大道200号中国传感网国际创新园E2-320 | F36: 农行科技支行 10635601040016147
A37: 无锡欧贝德劳务派遣有限公司 | B37: 无锡欧贝德劳务派遣有限公司 | C37: 91320214558050023A | D37: 无锡新区菱湖大道200号中国传感网国际创新园G10-702 18961877675 | F37: 中国银行新区支行511858198690
A38: 无锡矽鼎科技有限公司 | B38: 无锡矽鼎科技有限公司 | C38: 91320213678987777M | D38: 无锡新区菱湖大道200号中国传感网国际创新园G10-1110 | F38: 农行无锡新都会支行 635501040001489
A39: 深圳市安云信息科技有限公司 | B39: 深圳市安云信息科技有限公司 | C39: 440301732040569 | D39: 深圳市海山区粤兴二道6B武汉大学深圳产学研究大楼B402 0755-86718805 | F39: 招行深圳创维大厦支行 812082018110001
A40: 无锡锐鹰人力资源有限公司 | B40: 无锡锐鹰人力资源有限公司 | C40: 91320213595649916M | D40: 无锡新区菱湖大道200号中国传感网国际创新园B339、B340号 0510-85131410 | F40: 农业银行科技支行 635601040006056
A41: 无锡浚源资本管理中心（有限合伙） | B41: 无锡浚源资本管理中心（有限合伙） | C41: 913202005537542592 | D41: 无锡新区菱湖大道200号中国传感网国际创新园B403-B 0510-82700340 | F41: 农行无锡保利支行 10630601040204821
A42: 无锡市汇科鑫节能技术有限公司 | B42: 无锡市汇科鑫节能技术有限公司 | C42: 913202143018482911 | D42: 无锡新区菱湖大道200号中国传感网国际创新园B栋406-A 0510-85386077 | F42: 中国农业银行股份有限公司无锡科技支行 10-635601040011841
A43: 无锡健泽科技有限公司 | B43: 无锡健泽科技有限公司 | C43: 320200321303336 | D43: 无锡新区菱湖大道200号中国传感网国际创新园B栋405 0510-85386101 | F43: 农业银行新区支行 635001040227788
A44: 衡度信息科技（无锡）有限公司 | B44: 衡度信息科技（无锡）有限公司 | C44: 91320213MA1MBPH72X | D44: 无锡新区菱湖大道200号中国传感网国际创新园B403-A 0510-81819731 | F44: 江苏银行无锡新区支行 20710188000183612
A45: 无锡速迪科技有限公司 | B45: 无锡速迪科技有限公司 | C45: 9132021334620262X6 | D45: 无锡新区菱湖大道200号中国传感网国际创新园B栋119室 0510-85387463 | F45: 中国农业银行无锡太科园支行 10653401040009649
A46: 无锡凯丰企业管理顾问有限公司 | B46: 无锡凯丰企业管理顾问有限公司 | C46: 91320214679811095A | D46: 无锡新区菱湖大道200号中国传感网国际创新园B337、B338 | F46: 建行长江北路支行 32001615440052500595
A47: 无锡影速半导体科技有限公司 | B47: 无锡影速半导体科技有限公司 | C47: 91320214323618980Q | D47: 无锡新吴区菱湖大道200号中国传感网国际创新园F3栋1-3层 0510-66903355 | F47: 江苏银行无锡新区支行 20710188000176807
A48: 无锡天原信息技术有限公司 | B48: 无锡天原信息技术有限公司 | C48: 913202145691603834 | D48: 无锡新吴区菱湖大道200号#中国传感网国际创新园B404-B 0510-81819350 | F48: 中国农业银行股份有限公司无锡科技支行 635601040001073
A49: 无锡市计量测试院 | B49: 无锡市计量测试院 | C49: 123202004662852983 | D49: 无锡市锡山区东亭春新东路8号 | F49: 交行锡山支行 322000650018108029939
A50: 无锡艾斐凌科技有限公司 | B50: 无锡艾斐凌科技有限公司 | C50: 913202143212636299 | D50: 无锡新区太湖科技园菱湖大道200号中国传感网国际创新园E2栋301室 0510-85387635 | F50: 江苏银行无锡新区 20710188000295647
A51: 无锡中科泛在信息技术研发中心有限公司 | B51: 无锡中科泛在信息技术研发中心有限公司 | C51: 9132021455933794X1 | D51: 无锡新吴区菱湖大道200号#中国传感网国际创新园C座5楼 0510-85381463 | F51: 工行泰伯支行 1103030309000021649
A52: 江苏中微凌云科技股份有限公司 | B52: 江苏中微凌云科技股份有限公司 | C52: 913202005678282986 | D52: 无锡新吴区菱湖大道200号#中国传感网国际创新园A区7楼 0510-81817318 | F52: 农行无锡科技支行 635601040005512
A53: 无锡同方微电子有限公司 | B53: 无锡同方微电子有限公司 | C53: 320200313898720 | D53: 无锡市新吴区菱湖大道200号中国传感网国际创新园D2栋四层 0510-85217533 | F53: 招商银行无锡新区支行 510903136710201
A54: 上海蜂之舞电子有限公司 | B54: 上海蜂之舞电子有限公司 | C54: 91310112669435620F | D54: 上海市浦东新区新场工业园古博路24-26号 | F54: 浦发银行周浦支行 98320154740001617
A55: 江苏万域数码科技股份有限公司 | B55: 江苏万域数码科技股份有限公司 | C55: 91320200053520931W | D55: 无锡市菱湖大道200号 0510-81817430 | F55: 农行新吴区支行 10-635001040222680
A56: 华进半导体封装先导技术研发中心有限公司 | B56: 华进半导体封装先导技术研发中心有限公司 | C56: 913202130551581209 | D56: 无锡市新吴区菱湖大道200号D1栋 0510-66679361 | F56: 中国农业银行股份有限公司无锡新吴区支行 635001040222409
A57: 江苏中科易正电子科技有限公司 | B57: 江苏中科易正电子科技有限公司 | C57: 913202130676787481 | D57: 无锡市新吴区菱湖大道200号中国传感网国际创新园F6栋 0510-8823802 | F57: 江苏银行新区支行 20710188000132405
A58: 广电计量检测（无锡）有限公司 | B58: 广电计量检测（无锡）有限公司 | C58: 91320213063215391J | D58: 无锡市新吴区菱湖大道200号中国传感网国际创新园F8栋 0510-68000578 | F58: 招商银行无锡分行新区支行 510902997510101
A59: 江苏昊华传动控制股份有限公司 | B59: 江苏昊华传动控制股份有限公司 | C59: 91320200722228330W | D59: 无锡市新区景贤路6号中国物联网国际创新园H1栋9楼 0510-82768786 | F59: 中国银行无锡新联支行 511868585984
A60: 天芯互联科技有限公司无锡分公司 | B60: 天芯互联科技有限公司无锡分公司 | C60: 91320214MA22HHBB1K | D60: 无锡市新吴区长江东路18号3号楼 0510-89980000 | F60: 中国农业银行股份有限公司无锡新吴支行10635001040246002
A61: 江苏曼荼罗软件股份有限公司 | B61: 江苏曼荼罗软件股份有限公司 | C61: 913202007635507481 | D61: 无锡市新吴区菱湖大道200号中国传感网国际创新园F5 0510-85223055-8308 | F61: 中国工商银行无锡高新技术开发区支行 1103020809200052213
A62: 无锡安特源科技股份有限公司 | B62: 无锡安特源科技股份有限公司 | C62: 91320200589957779N | D62: 无锡市新吴区菱湖大道200号中国传感网国际创新园D2-101 0510-85382428 | F62: 江苏银行无锡新区支行 20710188000147391
A63: 无锡剑鼎能源技术有限公司 | B63: 无锡剑鼎能源技术有限公司 | C63: 91320214058647659K | D63: 无锡市新吴区菱湖大道200号中国传感网国际创新园B1-407 0510-85386448 | F63: 中国建设银行股份有限公司无锡新安支行 32001617146052502031
A64: 无锡林之盛科技有限公司 | B64: 无锡林之盛科技有限公司 | C64: 91320213583734435G | D64: 无锡市新吴区菱湖大道200号中国传感网国际创新园B2-206 0510-85389939 | F64: 工行无锡高新技术产业开发区支行 1103020809200371382
A65: 江苏米孚致远物联科技有限公司 | B65: 江苏米孚致远物联科技有限公司 | C65: 91320213MA1MCLCB8A | D65: 无锡市新吴区菱湖大道200号中国传感网国际创新园B-210 0510-85385697 | F65: 建行无锡高新技术产业开发区支行 32050161543600000070
A66: 无锡永逸乐机电设备有限公司 | B66: 无锡永逸乐机电设备有限公司 | C66: 91320214079893074D | D66: 无锡市新吴区菱湖大道200号中国传感网国际创新园B2-101 | F66: 工商银行南长支行 1103020909200824081
A67: 无锡泓瑞航天科技有限公司 | B67: 无锡泓瑞航天科技有限公司 | C67: 91320213576282530J | D67: 无锡市新吴区菱湖大道200号中国传感网国际创新园G6 | F67: 无锡招商银行新区支行 931903677310201
A68: 无锡英飞迈讯信息科技有限公司 | B68: 无锡英飞迈讯信息科技有限公司 | C68: 9132021333099540XY | D68: 无锡市新吴区菱湖大道200号中国传感网国际创新园G10-701号 0510-85383933 | F68: 交行北门支行 322000630018170153679
A69: 无锡万发在线科技有限公司 | B69: 无锡万发在线科技有限公司 | C69: 91320213071061628C | D69: 无锡新吴区菱湖大道200号中国传感网国际创新园B1-116 | F69: 江苏银行无锡东林支行 27110188000071238
A70: 无锡汇能达科技有限公司 | B70: 无锡汇能达科技有限公司 | C70: 91320213398386942R | D70: 无锡新吴区菱湖大道200号中国传感网国际创新园B117 | F70: 江苏银行太科园支行 23620188000075112
A71: 江苏云媒数字科技有限公司 | B71: 江苏云媒数字科技有限公司 | C71: 32020033085683X | D71: 无锡新吴区菱湖大道200号中国传感网国际创新园B-312室 | F71: 农业银行新区支行 10-6350010400228505
A72: 无锡王道科技有限公司 | B72: 无锡王道科技有限公司 | C72: 320200071003145 | D72: 无锡新吴区菱湖大道200号中国传感网国际创新园B113 0510-81805788 | F72: 工行无锡南长支行 1103020909200791878
A73: 无锡速客网络科技有限公司 | B73: 无锡速客网络科技有限公司 | C73: 91320214079850533X | D73: 无锡新吴区菱湖大道200号中国传感网国际创新园B111 | F73: 工行无锡南长街支行 1103024109200097609
A74: 中设国联无锡新能源发展有限公司 | B74: 中设国联无锡新能源发展有限公司 | C74: 91320214321157594X | D74: 无锡新吴区菱湖大道200号中国传感网国际创新园A栋202室 | F74: 农行无锡新吴支行 635001040227614
A75: 无锡中智人力资源服务有限公司 | B75: 无锡中智人力资源服务有限公司 | C75: 913202145795271774 | D75: 无锡新吴区菱湖大道200号中国传感网国际创新园A311 | F75: 中国农业银行无锡科技支行 635601040002956
A76: 无锡市迪卡瑞控制技术有限公司 | B76: 无锡市迪卡瑞控制技术有限公司 | C76: 91320214330984479P | D76: 无锡新吴区菱湖大道200号#中国传感网国际创新园A307 | F76: 农行无锡科技支行 10-635601040015362
A77: 无锡华正天网信息安全系统有限公司 | B77: 无锡华正天网信息安全系统有限公司 | C77: 320200790872064 | D77: 无锡新吴区菱湖大道200号中国传感网国际创新园A-308室 | F77: 中国农业银行科技支行 10635601040011965
A78: 无锡赛默斐视科技有限公司 | B78: 无锡赛默斐视科技有限公司 | C78: 91320214087928871P | D78: 无锡新吴区菱湖大道200号中国传感网国际创新园A-518 | F78: 江苏银行股份有限公司无锡城北支行 24410188000067895
A79: 无锡美偌科微电子有限公司 | B79: 无锡美偌科微电子有限公司 | C79: 91320214323896382H | D79: 无锡新吴区菱湖大道200号中国传感网国际创新园A-407 | F79: 农行无锡新吴支行635001040228265
A80: 宽腾达通讯（无锡）有限公司 | B80: 宽腾达通讯（无锡）有限公司 | C80: 91320214569142038C | D80: 无锡新吴区菱湖大道200号中国传感网国际创新园A-501 | F80: 中国银行无锡高新技术产业开发区支行 552158198737
A81: 无锡奥利杰科技有限公司 | B81: 无锡奥利杰科技有限公司 | C81: 913202147802711426 | D81: 无锡新吴区菱湖大道200号中国传感网国际创新园A804 | F81: 工行无锡惠山支行 1103026619000161291
A82: 无锡物讯科技有限公司 | B82: 无锡物讯科技有限公司 | C82: 91320214575417923W | D82: 无锡新吴区菱湖大道200号中国传感网国际创新园A-802 | F82: 中国农业银行无锡高新技术开发区支行635001040219736
A83: 无锡鼎润机电科技有限公司 | B83: 无锡鼎润机电科技有限公司 | C83: 32020069549005X | D83: 无锡新吴区菱湖大道200号中国传感网国际创新园A808 | F83: 农行荣巷支行 655801040004730
A84: 无锡尚游软件科技有限公司 | B84: 无锡尚游软件科技有限公司 | C84: 91320214066237051C | D84: 无锡新吴区菱湖大道200号中国传感网国际创新园A805 | F84: 农行新区支行 10635001040223498
A85: 无锡奥维斯管理咨询有限公司 | B85: 无锡奥维斯管理咨询有限公司 | C85: 913202140586272287 | D85: 无锡新吴区菱湖大道200号中国传感网国际创新园A310 | F85: 中国工商银行股份有限公司无锡人民东路支行 1103054509200041925
A86: 无锡美凯能源科技有限公司 | B86: 无锡美凯能源科技有限公司 | C86: 91320213593919716E | D86: 无锡新吴区菱湖大道200号中国传感网国际创新园B-201 | F86: 农行无锡科技支行10635601040006130
A87: 无锡兆能信息技术有限公司 | B87: 无锡兆能信息技术有限公司 | C87: 91320214313717635B | D87: 无锡新吴区菱湖大道200号中国传感网国际创新园B109 | F87: 农业银行无锡新吴支行 10-635001040226913
A88: 无锡市大田科技有限公司 | B88: 无锡市大田科技有限公司 | C88: 91320214784390413T | D88: 无锡新吴区菱湖大道200号中国传感网国际创新园B220 | F88: 交通银行无锡分行322000600018170037031
A89: 江苏京华山一商业保理有限公司 | B89: 江苏京华山一商业保理有限公司 | C89: 913200003216275096 | D89: 无锡新吴区菱湖大道200号中国传感网国际创新园A506 | F89: 农行无锡新吴支行 10635001040227820
A90: 无锡鼎立网络科技有限公司 | B90: 无锡鼎立网络科技有限公司 | C90: 91320214MA1MEBKC07 | D90: 无锡市新吴区菱湖大道200号中国传感网国际创新园G10-806 | F90: 建行无锡开发区支行 32020161543600000108
A91: 无锡华兆泓光电科技有限公司 | B91: 无锡华兆泓光电科技有限公司 | C91: 91320213550239139A | D91: 无锡市新吴区菱湖大道200号中国传感网国际创新园G10栋十楼 | F91: 农行科技支行635601040004416
A92: 无锡讯泰科技有限公司 | B92: 无锡讯泰科技有限公司 | C92: 91320214591139062C | D92: 无锡市新吴区菱湖大道200号中国传感网国际创新园E2-308 | F92: 中国农业银行无锡科技支行 635601040005728
A93: 江苏晟能科技股份有限公司 | B93: 江苏晟能科技股份有限公司 | C93: 91320214346236854R | D93: 无锡市新吴区菱湖大道200号中国传感网国际创新园F10 | F93: 农业银行无锡科技支行 10635601040016139
A94: 无锡扬晟科技股份有限公司 | B94: 无锡扬晟科技股份有限公司 | C94: 91320214554610089T | D94: 无锡市新吴区菱湖大道200号中国传感网国际创新园G10-9楼 | F94: 农行无锡科技支行 10-635601040007013
A95: 江苏耐思特新能源科技有限公司 | B95: 江苏耐思特新能源科技有限公司 | C95: 91320213355007375T | D95: 无锡市新吴区菱湖大道200号中国传感网国际创新园G10-810 | F95: 中国农业银行股份有限公司无锡新区支行 635001040230212
A96: 无锡徽科特测控技术有限公司 | B96: 无锡徽科特测控技术有限公司 | C96: 320200590016343 | D96: 无锡市新吴区菱湖大道200号中国传感网国际创新园G10-801 | F96: 农行城东支行 632801040011378
A97: 帕特尼斯自动化设备无锡有限公司 | B97: 帕特尼斯自动化设备无锡有限公司 | C97: 32020034634701X | D97: 无锡市新吴区菱湖大道200号中国传感网国际创新园G10-806 | F97: 中国农业银行股份有限公司无锡科技支行 635601040016154
A98: 无锡钧普科技有限公司 | B98: 无锡钧普科技有限公司 | C98: 320200067678422 | D98: 无锡市新吴区菱湖大道200号中国传感网国际创新园G10-602 | F98: 农行无锡科技支行 635601040008482
A99: 无锡市佳信安科技有限公司 | B99: 无锡市佳信安科技有限公司 | C99: 913202130551762301 | D99: 无锡市新吴区菱湖大道200号中国传感网国际创新园G10-601 | F99: 江苏银行科技支行 21910188000093661
A100: 无锡人才之家信息科技有限公司 | B100: 无锡人才之家信息科技有限公司 | C100: 913202147986075055 | D100: 无锡市新吴区菱湖大道200号中国传感网国际创新园G10-403 | F100: 交通银行太湖支行322000644018170023418
A101: 无锡中汉和物流科技有限公司 | B101: 无锡中汉和物流科技有限公司 | C101: 91320214MA1MFFUW46 | D101: 无锡市新吴区菱湖大道200号中国传感网国际创新园G10-401 | F101: 中国银行无锡华庄支行 475468329520
A102: 宜科智能信息系统无锡有限公司 | B102: 宜科智能信息系统无锡有限公司 | C102: 91320214MA1MF80D9A | D102: 无锡市新吴区菱湖大道200号中国传感网国际创新园G10-106 | F102: 中国农业银行股份有限公司无锡新吴支行 635001040231970
A103: 无锡千宝计算机科技有限公司 | B103: 无锡千宝计算机科技有限公司 | C103: 91320213301829066B | D103: 无锡市新吴区菱湖大道200号中国传感网国际创新园G10-203 | F103: 建行清扬路支行 32006165936052507660
A104: 方圆广电检验检测股份有限公司 | B104: 方圆广电检验检测股份有限公司 | C104: 91120000MA06Q46037 | D104: 天津市西青经济技术开发区赛达新兴产业园G座3层B区 | F104: 工行天津赛达支行 0302085609100016311
A105: 无锡微翼德米无人机系统科技有限公司 | B105: 无锡微翼德米无人机系统科技有限公司 | C105: 91320213MA1MD33H64 | D105: 无锡市新吴区菱湖大道200号中国传感网国际创新园G1-301、302 | F105: 中国银行无锡高新技术开发区支行 485867914895
A106: 江苏中元盛辉新能源科技有限公司 | B106: 江苏中元盛辉新能源科技有限公司 | C106: 91320214MA1MGU198R | D106: 无锡市新吴区菱湖大道200号中国传感网国际创新园G1-503 | F106: 农行新吴支行 635001040232192
A107: 中兴智能交通股份有限公司 | B107: 中兴智能交通股份有限公司 | C107: 913202007226045783 | D107: 无锡新区太湖国际科技园菱湖大道200号中国传感网国际创新园A楼 0510-66055077 | F107: 中国工商银行股份有限公司无锡新吴支行1103020819200337927
A108: 无锡中营康园自动化设备有限公司 | B108: 无锡中营康园自动化设备有限公司 | C108: 91320214339191205X | D108: 无锡市新吴区菱湖大道200号中国传感网国际创新园G10-102 | F108: 农行新吴支行 635001040229503
A109: 江苏天安智联科技股份有限公司 | B109: 江苏天安智联科技股份有限公司 | C109: 91320200554616739F | D109: 无锡市新吴区菱湖大道200号中国传感网国际创新园E栋10楼 | F109: 江苏银行无锡新区支行 20710188000165084
A110: 无锡中科光电技术有限公司 | B110: 无锡中科光电技术有限公司 | C110: 91320214579517104U | D110: 无锡市新吴区菱湖大道200号中国传感网国际创新园C座 | F110: 农行无锡新吴支行 635001040218928
A111: 江苏中科物联网科技创业投资有限公司 | B111: 江苏中科物联网科技创业投资有限公司 | C111: 913202145592540282 | D111: 无锡市新吴区菱湖大道200号中国传感网国际创新园C区1层 | F111: 中国工商银行无锡泰伯支行 1103030309000021250
A112: 无锡飞谱电子信息技术有限公司 | B112: 无锡飞谱电子信息技术有限公司 | C112: 91320214398339900W | D112: 无锡市新吴区菱湖大道200号中国传感网国际创新园E1-803号 0510-88575846 | F112: 中国农业银行新吴支行 635001040226616
A113: 无锡艾科斯电子有限公司 | B113: 无锡艾科斯电子有限公司 | C113: 91320214MA1MFTTX41 | D113: 无锡市新吴区菱湖大道200号中国传感网国际创新园E1-403 | F113: 交通银行无锡南长支行322000623018018005043
A114: 龙微科技无锡有限公司 | B114: 龙微科技无锡有限公司 | C114: 913202133021285602 | D114: 无锡市新吴区菱湖大道200号中国传感网国际创新园G5号 0510-85260888 | F114: 中国农业银行股份有限公司无锡科技支行10635601040012260
A115: 无锡锐格思信息技术有限公司 | B115: 无锡锐格思信息技术有限公司 | C115: 91320213585533258G | D115: 无锡新吴区菱湖大道200号中国传感网国际创新园E栋 | F115: 中国农业银行无锡新吴支行 635001040220601
A116: 无锡鹦鹉螺软件有限公司 | B116: 无锡鹦鹉螺软件有限公司 | C116: 913202145900415064 | D116: 无锡新区太湖国际科技园菱湖大道200号中国传感网国际创新园E2-515 0510-85218061 | F116: 农业银行无锡新吴支行 10635001040221161
A117: 江苏中科君芯科技有限公司 | B117: 江苏中科君芯科技有限公司 | C117: 91320213585596419Y | D117: 无锡市新吴区菱湖大道200号中国传感网国际创新园D1-501 | F117: 交通银行无锡城北支行 322000633018010116968
A118: 无锡中欧国际技术转移中心有限公司 | B118: 无锡中欧国际技术转移中心有限公司 | C118: 91320214060152225L | D118: 无锡市新吴区菱湖大道200号中国传感网国际创新园F11-3楼 | F118: 农业银行新吴区支行 635001040223118
A119: 无锡东德自动化科技有限公司 | B119: 无锡东德自动化科技有限公司 | C119: 9132021331371619XR | D119: 无锡市新吴区菱湖大道200号中国传感网国际创新园E2-417 | F119: 工行无锡分行 1103020209201084227
A120: 无锡经纬安捷节能技术有限公司 | B120: 无锡经纬安捷节能技术有限公司 | C120: 91320213323800440D | D120: 无锡市新吴区菱湖大道200号中国传感网国际创新园E2-415 | F120: 工行无锡开发区支行1103020809200455888
A121: 无锡巨天自动化技术有限公司 | B121: 无锡巨天自动化技术有限公司 | C121: 91320214566878875N | D121: 无锡市新吴区菱湖大道200号中国传感网国际创新园E2-409 | F121: 农行科技支行 635601040017061
A122: 广东刘士安网络科技股份有限公司无锡分公司 | B122: 广东刘士安网络科技股份有限公司无锡分公司 | C122: 32020032389909X | D122: 无锡市新吴区菱湖大道200号中国传感网国际创新园E2-407 | F122: 招行新区支行 510903170910902
A123: 江苏晨晖信息技术有限公司 | B123: 江苏晨晖信息技术有限公司 | C123: 320200088372668 | D123: 无锡市新吴区菱湖大道200号中国传感网国际创新园 | F123: 中国工商银行股份有限公司无锡新安支行 1103032209000002315
A124: 无锡永开特材科技有限公司 | B124: 无锡永开特材科技有限公司 | C124: 320200302283114 | D124: 无锡市新区菱湖大道200号中国传感网国际创新园E2-525 | F124: 工行无锡南钢支行 320200 302283114
A125: 无锡诺斯乐机电科技有限公司 | B125: 无锡诺斯乐机电科技有限公司 | C125: 320200684938074 | D125: 无锡市新区太湖国际科技园菱湖大道200号中国传感网国际创新园E1栋503 | F125: 中国建设银行无锡城中支行 32001611836052503230
A126: 无锡餐易通科技有限公司 | B126: 无锡餐易通科技有限公司 | C126: 913202140746625330 | D126: 无锡新吴区菱湖大道200号中国传感网国际创新园E2-211 | F126: 中国建设银行无锡高新技术开发区支行 32001615436052524828
A127: 无锡海派客信息技术有限公司 | B127: 无锡海派客信息技术有限公司 | C127: 913202140518836830 | D127: 无锡新吴区菱湖大道200号中国传感网国际创新园E1-401 | F127: 农业银行无锡新吴支行 635001040222219
A128: 无锡阿法迪科技有限公司 | B128: 无锡阿法迪科技有限公司 | C128: 91320214576744053C | D128: 无锡新吴区菱湖大道200号中国传感网国际创新园E栋 | F128: 华夏银行无锡新区支行 12556000000273236
A129: 无锡诺想信息科技有限公司 | B129: 无锡诺想信息科技有限公司 | C129: 32020031378757X | D129: 无锡新吴区菱湖大道200号中国传感网国际创新园E2-520 | F129: 中国建设银行股份有限公司无锡开发区支行 32001615436052530281
A130: 无锡市安力源消防工程有限公司 | B130: 无锡市安力源消防工程有限公司 | C130: 91320200679847805P | D130: 无锡新区菱湖大道200号中国传感网国际创新园A301 | F130: 农行无锡黄巷支行 10655201040006779
A131: 西门子（中国）有限公司无锡创新中心 | B131: 西门子（中国）有限公司无锡创新中心 | C131: 91320214076398289X | D131: 无锡新区菱湖大道200号中国传感网国际创新园E2栋425室 | F131: 中国工商银行股份有限公司无锡高新技术产业开发区支行 1103020809200422267
A132: 江苏宏知信物联网科技有限公司 | B132: 江苏宏知信物联网科技有限公司 | C132: 91320214078270078Y | D132: 无锡新区太湖国际科技园菱湖大道200号中国传感网国际科技园E2-529 | F132: 中国工商银行股份有限公司无锡南长支行 1103020909200818209
A133: 无锡凯盟威电子科技有限公司 | B133: 无锡凯盟威电子科技有限公司 | C133: 91320203074727931A | D133: 无锡市新吴区菱湖大道200号G10-606 0510-85380092 | F133: 中国工商银行股份有限公司无锡滨湖支行 1103021109200758391
A134: 无锡神采信息技术有限公司 | B134: 无锡神采信息技术有限公司 | C134: 913202143141400492 | D134: 无锡新吴区菱湖大道200号中国传感网国际创新园B212 | F134: 建行无锡高新技术开发区支行 32001615436052529087
A135: 江苏中科龙源网络科技有限公司 | B135: 江苏中科龙源网络科技有限公司 | C135: 91320214058683131E | D135: 无锡市新吴区菱湖大道200号中国传感网国际创新园E2-511 | F135: 中信银行无锡梅村支行 7322610182600018169
A136: 江苏中科西北星信息科技有限公司 | B136: 江苏中科西北星信息科技有限公司 | C136: 91320214582272072G | D136: 无锡市新吴区菱湖大道200号中国传感网国际创新园C1-306 | F136: 农行新都会支行 635501040013443
A137: 无锡瑞埃德检测科技有限公司 | B137: 无锡瑞埃德检测科技有限公司 | C137: 91320214081530125M | D137: 无锡市新吴区菱湖大道200号中国传感网国际创新园E2-524 | F137: 招商银行无锡分行新区支行 510903448010606
A138: 江苏优谷互联科技发展有限公司 | B138: 江苏优谷互联科技发展有限公司 | C138: 91320213MA1MB1QX7W | D138: 无锡市新吴区菱湖大道200号中国传感网国际创新园E2-322 | F138: 工行无锡分行 1103020209201538539
A139: 大唐融合通信无锡有限公司 | B139: 大唐融合通信无锡有限公司 | C139: 91320213063215201K | D139: 无锡市新吴区菱湖大道200号中国传感网国际创新园G1-206楼 | F139: 招商银行无锡分行新区支行 510902994410601
A140: 中科融通物联科技无锡有限公司 | B140: 中科融通物联科技无锡有限公司 | C140: 9132021306763311XR | D140: 无锡菱湖大道200号中国物联网国际创新园E2-308 0510-68789388 | F140: 建行无锡新安支行 32001617146059717273
A141: 无锡锡路微电子有限公司 | B141: 无锡锡路微电子有限公司 | C141: 320200301859038 | D141: 江苏省无锡市新区太湖国际科技园菱湖大道200号中国传感网国际创新园D2栋6楼 | F141: 建设银行无锡高新技术产业开发区支行 32001615436052527065
A142: 江苏感创电子科技股份有限公司 | B142: 江苏感创电子科技股份有限公司 | C142: 913202145558687940 | D142: 无锡新区菱湖大道200号传感网国际创新园A栋201室 | F142: 中国农业银行股份有限公司无锡科技支行 635601040003756
A143: 无锡市新吴区机关事务服务中心 | B143: 无锡市新吴区机关事务服务中心 | C143: 320200733303375 | D143: 无锡市新区长江北路2号 0510-85210950 | F143: 江苏银行无锡新区支行 807010188900032349
A144: 无锡图达智能信息科技有限公司 | B144: 无锡图达智能信息科技有限公司 | C144: 320200313849427 | D144: 无锡市新吴区菱湖大道200号中国传感网国际创新园A栋9楼 | F144: 中国农业银行股份有限公司无锡科技支行 635601040012799
A145: 无锡天隆光电科技有限公司 | B145: 无锡天隆光电科技有限公司 | C145: 320200091469727 | D145: 无锡市新吴区菱湖大道200号中国传感网国际创新园B301室 | F145: 中国工商银行无锡锡山支行
A146: 无锡圆通智能交通科技有限公司 | B146: 无锡圆通智能交通科技有限公司 | C146: 91320213MA1MD8Y086 | D146: 无锡市新吴区菱湖大道200号中国传感网国际创新园A301-a | F146: 浙商银行无锡分行 3020000010120100088803
A147: 无锡市尚略艺术设计有限公司 | B147: 无锡市尚略艺术设计有限公司 | C147: 91320202061896023T | D147: 无锡市新区菱湖大道200号中国传感网国际创新园B401-B | F147: 江苏银行无锡广益支行 20210188000075262
A148: 无锡日川机电设备有限公司 | B148: 无锡日川机电设备有限公司 | C148: 32020066271001X | D148: 无锡市新区湘江路2-2号B815 852303558 | F148: 中信银行无锡分行 7322010182200050114
A149: 无锡乐易邦科技有限公司 | B149: 无锡乐易邦科技有限公司 | C149: 320200346171667 | D149: 无锡市新吴区菱湖大道200号中国传感网国际创新园D2-612 | F149: 中国农业银行 635001040229859
A150: 无锡东华国际货运代理有限公司 | B150: 无锡东华国际货运代理有限公司 | C150: 91320214782065764W | D150: 无锡市新区菱湖大道200号中国传感网国际创新园A区四层 | F150: 建设银行无锡蠡湖支行 32001614838052501464
A151: 无锡艾立德智能科技有限公司 | B151: 无锡艾立德智能科技有限公司 | C151: 91320214569136017C | D151: 无锡市新区菱湖大道200号中国传感网国际创新园A区四层 | F151: 建设银行无锡蠡湖支行 32001614838052500939
A152: 无锡乐东微电子有限公司 | B152: 无锡乐东微电子有限公司 | C152: 913202147439274806 | D152: 无锡市新区菱湖大道200号中国传感网国际创新园A区四层B区 | F152: 建设银行无锡蠡湖支行 3200164838052501262
A153: 无锡卓越光掩模科技有限公司 | B153: 无锡卓越光掩模科技有限公司 | C153: 9132021455026422XE | D153: 无锡市新区菱湖大道200号中国传感网国际创新园A区四层 | F153: 中行开发区支行 552158198602
A154: 无锡博远工程科技有限公司 | B154: 无锡博远工程科技有限公司 | C154: 320200087981808 | D154: 无锡新区清源路20号传感网大学科技园立业楼E区409 | F154: 工商银行新安支行 1103032209000001537
A155: 无锡市光大分析技术有限责任公司 | B155: 无锡市光大分析技术有限责任公司 | C155: 9132021458553359X5 | D155: 无锡市高新区菱湖大道200号中国传感网国际创新园E2-107 81817033 | F155: 中国银行无锡城西支行 526159145596
A156: 无锡衡联科技有限公司 | B156: 无锡衡联科技有限公司 | C156: 91320214067636791H | D156: 无锡新区太湖国际科技园菱湖大道200号中国传感网国际创新园E2-531 | F156: 中国工商银行无锡人民东路支行 1103054509200089838
A157: 恒东信息科技无锡有限公司 | B157: 恒东信息科技无锡有限公司 | C157: 9132021467099709XQ | D157: 无锡新吴区菱湖大道200号中国传感网国际创新园E1栋901室 | F157: 江苏银行无锡科技支行 21910188000065042
A158: 无锡开云信息技术有限公司 | B158: 无锡开云信息技术有限公司 | C158: 913202140893641849 | D158: 无锡市新吴区菱湖大道200号中国传感网国际创新园E1-302号 0510-85229289 | F158: 中国银行股份有限公司无锡高新技术产业开发区支行 493663913725
A159: 无锡微斯腾信息技术有限公司 | B159: 无锡微斯腾信息技术有限公司 | C159: 320200055164379 | D159: 无锡市菱湖大道200号中国传感网创新园E2-517 | F159: 新区农行 635001040222466
A160: 无锡海瑞达科技有限公司 | B160: 无锡海瑞达科技有限公司 | C160: 91320214MA1MFCWJ2M | D160: 无锡市新区菱湖大道200号中国传感网国际创新园E2-526 | F160: 中国农业银行股份有限公司无锡新吴支行 635001040231863
A161: 无锡博域信息科技有限公司 | B161: 无锡博域信息科技有限公司 | C161: 320200323626024 | D161: 无锡新区菱湖大道200号中国传感网国际创新园B-108 | F161: 农行新吴区支行 635001040228430
A162: 无锡源柯管理咨询有限公司 | B162: 无锡源柯管理咨询有限公司 | C162: 91320211346356215D | D162: 无锡市新区菱湖大道200号中国传感网国际创新园B402 | F162: 农行科技支行 635601040017707
A163: 无锡浩真微电子有限公司 | B163: 无锡浩真微电子有限公司 | C163: 91320214MA1ME31P4Y | D163: 无锡市新区菱湖大道200号中国传感网国际创新园A栋509 | F163: 农行无锡新区支行 10635001040231533
A164: 无锡中凌易云信息科技有限公司 | B164: 无锡中凌易云信息科技有限公司 | C164: 9132021432390715XT | D164: 无锡新区太湖国际科技园菱湖大道200号中国传感网国际创新园D2-606室 | F164: 中国工商银行股份有限公司无锡新安支行 1103032209000004917
A165: 无锡微通航空电子技术有限公司 | B165: 无锡微通航空电子技术有限公司 | C165: 91320214MA1MFTU199 | D165: 无锡菱湖大道200号中国传感网国际创新园G1-401 | F165: 中国农业银行股份有限公司无锡新吴支行 635001040232077
A166: 无锡中航华通南方科技有限公司 | B166: 无锡中航华通南方科技有限公司 | C166: 91320214MA1MFTTY2U | D166: 无锡菱湖大道200号中国传感网国际创新园G1-406 | F166: 中国农业银行股份有限公司无锡新吴支行 635001040232069
A167: 无锡易立方能源科技有限公司 | B167: 无锡易立方能源科技有限公司 | C167: 91320214MA1MFNAM7A | D167: 无锡菱湖大道200号中国传感网国际创新园G1-502 | F167: 建行无锡高新技术开发区支行 32050161543600000132
A168: 无锡上云医疗器械有限公司 | B168: 无锡上云医疗器械有限公司 | C168: 91320214091452554R | D168: 无锡新区太湖国际科技园菱湖大道200号E栋327室 | F168: 交通银行盛岸支行 322000642018010227722
A169: 人才金港无锡有限公司 | B169: 人才金港无锡有限公司 | C169: 320200355033557 | D169: 无锡菱湖大道200号中国传感网国际创新园B栋333室 | F169: 建行无锡新安支行 32050161714600000002
A170: 无锡易光达网络科技有限公司 | B170: 无锡易光达网络科技有限公司 | C170: 913202130695485840 | D170: 无锡菱湖大道200号中国传感网国际创新园B-408 | F170: 中国建设银行无锡招商城支行 32001615249052504998
A171: 江苏创宏物联网智能科技有限公司 | B171: 江苏创宏物联网智能科技有限公司 | C171: 91320213323877982W | D171: 无锡新区菱湖大道200号中国传感网国际创新园D2栋620室 0510-88576636 | F171: 华夏银行无锡梅村支行 12564000000003440
A172: 无锡市四根弦物联网科技有限公司 | B172: 无锡市四根弦物联网科技有限公司 | C172: 91320214355021740H | D172: 无锡市新区菱湖大道200号中国传感网国际创新园B1-422 | F172: 招商银行 510903357310708
A173: 无锡市鼎康环保科技有限公司 | B173: 无锡市鼎康环保科技有限公司 | C173: 91320203MA1MHNQD60 | D173: 无锡市新吴区菱湖大道200号中国传感网国际创新园D2-601 | F173: 江苏银行无锡黄泥头支行 20250188000019442
A174: 无锡中科微电子工业技术研究院有限责任公司 | B174: 无锡中科微电子工业技术研究院有限责任公司 | C174: 913202145602566028 | D174: 江苏省无锡市无锡国家高新技术产业开发区太湖国际科技园菱湖大道200号微纳传感国际创新园C座9楼 | F174: 中国工商银行股份有限公司无锡泰伯支行 1103030309000021897
A175: 无锡康科新能源有限公司 | B175: 无锡康科新能源有限公司 | C175: 91320214MA1MN1QK63 | D175: 无锡市新吴区菱湖大道200号中国传感网国际创新园G10-506 | F175: 农行新吴支行 635001040233323
A176: 无锡走着瞧科技有限公司 | B176: 无锡走着瞧科技有限公司 | C176: 91320214339156063P | D176: 无锡市新吴区菱湖大道200号中国传感网国际创新园G1-303 | F176: 无锡工商银行五爱路支行 1103020209201521521
A177: 无锡誉源人力资源有限公司 | B177: 无锡誉源人力资源有限公司 | C177: 91320214MA1MMF990E | D177: 无锡新吴区菱湖大道200号中国传感网国际创新园E2-505 | F177: 招行无锡分行新区支行 510903502710201
A178: 无锡市迪凯罗科技有限公司 | B178: 无锡市迪凯罗科技有限公司 | C178: 91320205552494395Q | D178: 无锡市锡山区锡北镇寨门村西新路301号 88553459 | F178: 农行无锡新都会分理处635501040008252
A179: 无锡派菲诺服务外包有限公司 | B179: 无锡派菲诺服务外包有限公司 | C179: 320213000245519 | D179: 无锡新吴区菱湖大道200号中国传感网国际创新园B-222 | F179: 中国建设银行新安支行 32001617146052503333
A180: 无锡市新普源机电设备有限公司 | B180: 无锡市新普源机电设备有限公司 | C180: 91320214667629376A | D180: 无锡市菱湖大道200号中国传感网国际创新园F4 | F180: 中行靖海支行 506658198448
A181: 无锡先迪德宝电子有限公司 | B181: 无锡先迪德宝电子有限公司 | C181: 9132021472655466XY | D181: 无锡市新吴区菱湖大道200号中国传感网国际创新园F1-A | F181: 江苏银行无锡太科院支行 23620188000061624
A182: 无锡中南益瑞服务外包有限公司 | B182: 无锡中南益瑞服务外包有限公司 | C182: 91320214MA1MHQYT6U | D182: 无锡市新吴区菱湖大道200号中国传感网国际创新园E2-418 | F182: 农行无锡新吴支行
A183: 江苏辰锐网络科技有限公司 | B183: 江苏辰锐网络科技有限公司 | C183: 91320214398381834K | D183: 无锡新吴区菱湖大道200号中国传感网国际创新园E2-215 | F183: 农行无锡新吴支行 635001040226541
A184: 无锡汇才企业管理有限公司 | B184: 无锡汇才企业管理有限公司 | C184: 91320214MA1MK1HT6B | D184: 无锡新吴区菱湖大道200号中国传感网国际创新园E2-314 | F184: 农行无锡新吴支行 635001040232754
A185: 无锡宝德联工业智能科技有限公司 | B185: 无锡宝德联工业智能科技有限公司 | C185: 91320214MA1MJ0MJ81 | D185: 无锡市新吴区菱湖大道200号中国传感网国际创新园E2-108 | F185: 农行蠡园支行 655101040019451
A186: 无锡英格玛制造外包有限公司 | B186: 无锡英格玛制造外包有限公司 | C186: 913202143391589310 | D186: 无锡市新吴区菱湖大道200号中国传感网国际创新园A-306 | F186: 建行新安支行 32001617146052503340
A187: 无锡艾德发科技有限公司 | B187: 无锡艾德发科技有限公司 | C187: 320200078269261 | D187: 无锡市新吴区菱湖大道200号中国传感网国际创新园A-905 | F187: 农行无锡新区支行 632001040224405
A188: 无锡市节能与资源综合利用协会 | B188: 无锡市节能与资源综合利用协会 | C188: 513202005092128158 | D188: 菱湖大道200号G1 | F188: 江苏银行无锡梁溪支行 887010188900049555
A189: 无锡食行生鲜电子商务有限公司 | B189: 无锡食行生鲜电子商务有限公司 | C189: 91320214MA1MG5XMX7 | D189: 无锡市新吴区菱湖大道200号中国传感网国际创新园A801 | F189: 农行无锡新区支行 635001040232044
A190: 江苏赛福玛电子科技股份有限公司 | B190: 江苏赛福玛电子科技股份有限公司 | C190: 91320200MA1MNTE453 | D190: 无锡市新吴区菱湖大道200号中国传感网国际创新园G1-308 | F190: 江苏银行无锡新区支行 20710188000200970
A191: 无锡创展信息科技有限公司 | B191: 无锡创展信息科技有限公司 | C191: 91320214MA1MNXN439 | D191: 无锡市新吴区菱湖大道200号中国传感网国际创新园 | F191: 农行无锡科技支行 635601040018101
A192: 无锡凌湖科技有限公司 | B192: 无锡凌湖科技有限公司 | C192: 9132021457541241XU | D192: 无锡市新吴区菱湖大道200号中国传感网国际创新园D2-619、620 | F192: 农行无锡新吴支行 635001040219496
A193: 无锡物联创空间投资管理有限公司 | B193: 无锡物联创空间投资管理有限公司 | C193: 320200338784033 | D193: 无锡市新吴区菱湖大道200号中国传感网国际创新园D2-6楼 | F193: 建行太湖新城支行 6217001240009177275
A194: 无锡派纳机械电子研究所 | B194: 无锡派纳机械电子研究所 | C194: 320200339001010 | D194: 无锡市新吴区菱湖大道200号中国传感网国际创新园E2-429 | F194: 建行高新开发区支行 32001615436052532979
A195: 无锡军创工程技术有限公司 | B195: 无锡军创工程技术有限公司 | C195: 9132021467489491X4 | D195: 无锡市新区新泰路8号A座201 | F195: 建行无锡开发区支行 32001615436052506851
A196: 无锡复易生物科技有限公司 | B196: 无锡复易生物科技有限公司 | C196: 91320214MA1MPPR72N | D196: 无锡市新吴区菱湖大道200号 13506178386 | F196: 农行科技支行 635601040018291
A197: 无锡进和技研科技有限公司 | B197: 无锡进和技研科技有限公司 | C197: 91320214MA1MQLNN27 | D197: 无锡市新吴区菱湖大道200号中国传感网国际创新园B-406B | F197: 江苏银行股份有限公司无锡新区支行 2071088000204203
A198: 无锡英菲感知技术有限公司 | B198: 无锡英菲感知技术有限公司 | C198: 91320214MA1MQKN609 | D198: 无锡市新吴区菱湖大道200号中国传感网国际创新园A502 0510-85386643 | F198: 江苏银行无锡新区支行 20710188000204464
A199: 无锡市信嘉织物后整理有限公司 | B199: 无锡市信嘉织物后整理有限公司 | C199: 320200302278088 | D199: 无锡市惠山区洛社镇石塘湾秦巷 | F199: 工行前洲支行 1103025909000116631
A200: 江苏智慧测量科技有限公司 | B200: 江苏智慧测量科技有限公司 | C200: 91320214MA1MQ0J871 | D200: 无锡市新吴区菱湖大道200号中国传感网国际创新园G1-701/702 | F200: 中国银行高新技术开发区支行 458568998562
... 598 more rows

Sheet 09.用户列表
A1: #数据初始化#
A2: 1.请不要增加、删除、修改表格列，否则系统将无法识别；
A3: 2.红色列为必填项，黑色列为选填项；
A5: 部门* | B5: 姓名* | C5: 联系电话* | D5: 直属上级* | E5: 部门负责人* | F5: 备注 | H5: 对应角色
A6: 总经办 | B6: 杨渊斌 | E6: 杨渊斌 | H6: 高层管理
A7: 总经办 | B7: 吴一秋 | D7: 杨渊斌 | E7: 杨渊斌 | H7: 高层管理
A8: 总经办 | B8: 邱劲 | D8: 杨渊斌 | E8: 杨渊斌 | H8: 高层管理
A9: 总经办 | B9: 刘放 | D9: 杨渊斌 | E9: 杨渊斌 | H9: 高层管理
A10: 总经办 | B10: 梁雨 | D10: 杨渊斌 | E10: 杨渊斌 | H10: 高层管理
A11: 总经办 | B11: 吴梅香 | D11: 杨渊斌 | E11: 杨渊斌 | H11: 高层管理
A12: 党群综合部（审计监察部） | B12: 董蔓莉 | D12: 梁雨 | E12: 董蔓莉 | H12: 高层管理
A13: 党群综合部（审计监察部） | B13: 陆魏 | D13: 董蔓莉 | E13: 董蔓莉 | H13: 只建立人员，不分配角色
A14: 党群综合部（审计监察部） | B14: 沈洁 | D14: 董蔓莉 | E14: 董蔓莉 | H14: 只建立人员，不分配角色
A15: 党群综合部（审计监察部） | B15: 陈海燕 | D15: 董蔓莉 | E15: 董蔓莉 | H15: 只建立人员，不分配角色
A16: 党群综合部（审计监察部） | B16: 吴敏洁 | D16: 董蔓莉 | E16: 董蔓莉 | H16: 只建立人员，不分配角色
A17: 党群综合部（审计监察部） | B17: 雷子薇 | D17: 董蔓莉 | E17: 董蔓莉 | H17: 只建立人员，不分配角色
A18: 党群综合部（审计监察部） | B18: 曹秋婷 | D18: 董蔓莉 | E18: 董蔓莉 | H18: 只建立人员，不分配角色
A19: 党群综合部（审计监察部） | B19: 欧阳宁 | D19: 董蔓莉 | E19: 董蔓莉 | H19: 只建立人员，不分配角色
A20: 招商发展部 | B20: 王润恩 | D20: 刘放 | E20: 王润恩 | H20: 招商专员
A21: 招商发展部 | B21: 解洋 | D21: 王润恩 | E21: 王润恩 | H21: 招商专员
A22: 招商发展部 | B22: 张伯阳 | D22: 王润恩 | E22: 王润恩 | H22: 招商专员
A23: 招商发展部 | B23: 陈西 | D23: 王润恩 | E23: 王润恩 | H23: 招商专员
A24: 招商发展部 | B24: 李军 | D24: 王润恩 | E24: 王润恩 | H24: 招商专员
A25: 招商发展部 | B25: 李昂 | D25: 王润恩 | E25: 王润恩 | H25: 招商专员
A26: 招商发展部 | B26: 凤毅 | D26: 王润恩 | E26: 王润恩 | H26: 招商专员
A27: 企业服务部 | B27: 云先艳 | D27: 梁雨 | E27: 云先艳 | H27: 企业服务专员
A28: 企业服务部 | B28: 王鹏 | D28: 云先艳 | E28: 云先艳 | H28: 企业服务专员
A29: 企业服务部 | B29: 赵玲 | D29: 云先艳 | E29: 云先艳 | H29: 企业服务专员
A30: 企业服务部 | B30: 王子炎 | D30: 云先艳 | E30: 云先艳 | H30: 企业服务专员
A31: 企业服务部 | B31: 卞孜之 | D31: 云先艳 | E31: 云先艳 | H31: 企业服务专员
A32: 企业服务部 | B32: 杨朝 | D32: 云先艳 | E32: 云先艳 | H32: 企业服务专员
A33: 企业服务部 | B33: 徐百科 | D33: 云先艳 | E33: 云先艳 | H33: 企业服务专员
A34: 资产物业部（安全生产管理部） | B34: 林翎 | D34: 刘放 | E34: 林翎 | H34: 资产物业专员 | I34: 资产物业专员
A35: 资产物业部（安全生产管理部） | B35: 刘小彦 | D35: 林翎 | E35: 林翎 | H35: 资产物业专员
A36: 资产物业部（安全生产管理部） | B36: 袁敏 | D36: 林翎 | E36: 林翎 | H36: 资产物业专员
A37: 资产物业部（安全生产管理部） | B37: 陈薇卉 | D37: 林翎 | E37: 林翎 | H37: 资产物业专员
A38: 资产物业部（安全生产管理部） | B38: 郁春奇 | D38: 林翎 | E38: 林翎 | H38: 资产物业专员
A39: 资产物业部（安全生产管理部） | B39: 杨峰翔 | D39: 林翎 | E39: 林翎 | H39: 资产物业专员
A40: 资产物业部（安全生产管理部） | B40: 邓有伟 | D40: 林翎 | E40: 林翎 | H40: 资产物业专员
A41: 资产物业部（安全生产管理部） | B41: 潘超 | D41: 林翎 | E41: 林翎 | H41: 资产物业专员
A42: 资产物业部（安全生产管理部） | B42: 张步联 | D42: 林翎 | E42: 林翎 | H42: 资产物业专员
A43: 资产物业部（安全生产管理部） | B43: 应康 | D43: 林翎 | E43: 林翎 | H43: 资产物业专员
A44: 金融财务部 | B44: 张晓红 | D44: 吴梅香 | E44: 张晓红 | H44: 财务专员
A45: 金融财务部 | B45: 翟海君 | D45: 张晓红 | E45: 张晓红 | H45: 财务专员
A46: 金融财务部 | B46: 徐文蕾 | D46: 张晓红 | E46: 张晓红 | H46: 财务专员

Sheet 10.企业补贴
A1: 统一信用代码 | B1: 企业名称 | C1: 补贴项目名称 | D1: 补贴金额（万元） | E1: 补贴月份
A2: 91320200MA1XJ1G58R | B2: 无锡国联集成电路投资中心（有限合伙） | C2: 科技企业规模补贴-协议兑现 (截止日期2023-05-15) | D2: 42.32 | E2: 2023-06-06
A3: 91320214MA21L5XW19 | B3: 无锡国联数科咨询服务合伙企业（有限合伙） | C3: 科技企业规模补贴-协议兑现 (截止日期2023-05-15) | D3: 124.95 | E3: 2023-06-06
A4: 91320214088255584N | B4: 江苏慧乔信息科技有限公司 | C4: 其他-协议兑现(截止日期2023-05-15) | D4: 12 | E4: 2023-07-03
A5: 91320214088255584N | B5: 江苏慧乔信息科技有限公司 | C5: 房租补贴-协议兑现(截止日期2023-05-15) | D5: 7.03 | E5: 2023-07-03
A6: 91320214323896382H | B6: 无锡美偌科微电子有限公司 | C6: 其他-协议兑现(截止日期2023-05-15) | D6: 54.84 | E6: 2023-07-04
A7: 91320214323896382H | B7: 无锡美偌科微电子有限公司 | C7: 房租补贴-协议兑现(截止日期2023-05-15) | D7: 34.49 | E7: 2023-07-04
A8: 91320214MA257MR64E | B8: 无锡国联新创私募投资基金有限公司 | C8: 其他-协议兑现(截止日期2023-05-15) | D8: 10.67 | E8: 2023-06-06
A9: 91320214717884755C | B9: 华英证券有限责任公司 | C9: 房租补贴-协议兑现(截止日期2023-05-15) | D9: 45.36 | E9: 2023-05-24
A10: 91320200050281007L | B10: 无锡沃格自动化科技股份有限公司 | C10: 其他-协议兑现(截止日期2023-05-15) | D10: 117.12 | E10: 2023-07-04
A11: 91320200722228330W | B11: 江苏昊华传动控制股份有限公司 | C11: 科技企业规模补贴-协议兑现 (截止日期2023-05-15) | D11: 4.72 | E11: 2023-06-26
A12: 91320200722228330W | B12: 江苏昊华传动控制股份有限公司 | C12: 房租补贴-协议兑现(截止日期2023-05-15) | D12: 97.93 | E12: 2023-06-20
A13: 91320200050281007L | B13: 无锡沃格自动化科技股份有限公司 | C13: 科技企业规模补贴-协议兑现 (截止日期2023-05-15) | D13: 24.04 | E13: 2023-07-04
A14: 91320214717884755C | B14: 华英证券有限责任公司 | C14: 高级人才奖励-协议兑现(截止日期2023-05-15) | D14: 66.21 | E14: 2023-06-06
A15: 91320214MA1YGXW434 | B15: 无锡锡产微芯半导体有限公司 | C15: 房租补贴-协议兑现(截止日期2023-05-15) | D15: 82.44 | E15: 2023-05-24
A16: 91320214MABPPFUK1L | B16: 无锡德明知源技术服务有限公司 | C16: 高级人才奖励-协议兑现(截止日期2023-05-15) | D16: 2.49 | E16: 2023-06-06
A17: 91320214MA1YGXW434 | B17: 无锡锡产微芯半导体有限公司 | C17: 高级人才奖励-协议兑现(截止日期2023-05-15) | D17: 41.4 | E17: 2023-05-24
A18: 91320214MA1YGXW434 | B18: 无锡锡产微芯半导体有限公司 | C18: 公寓补贴-协议兑现(截止日期2023-05-15) | D18: 26.54 | E18: 2023-05-24
A19: 91320214MA1YGXW434 | B19: 无锡锡产微芯半导体有限公司 | C19: 高级人才奖励-协议兑现(截止日期2023-05-15) | D19: 10 | E19: 2023-05-24
A20: 91320214MA1YGXW434 | B20: 无锡锡产微芯半导体有限公司 | C20: 高级人才奖励-协议兑现(截止日期2023-05-15) | D20: 33.33 | E20: 2023-05-11
A21: 91320200135927444B | B21: 无锡市恒顺金属材料有限公司 | C21: 科技企业规模补贴-协议兑现 (截止日期2023-05-15) | D21: 296.74 | E21: 2023-04-20
A22: 91320214MABRJ6ML37 | B22: 无锡亘芯悦科技有限公司 | C22: 高级人才奖励-协议兑现(截止日期2023-05-15) | D22: 0.05 | E22: 2023-05-24
A23: 91320214MABRJ6ML37 | B23: 无锡亘芯悦科技有限公司 | C23: 公寓补贴-协议兑现(截止日期2023-05-15) | D23: 3.27 | E23: 2023-04-23
A24: 91320214MABRJ6ML37 | B24: 无锡亘芯悦科技有限公司 | C24: 房租补贴-协议兑现(截止日期2023-05-15) | D24: 24.19 | E24: 2023-04-23
A25: 91320214MA1YGXW434 | B25: 无锡锡产微芯半导体有限公司 | C25: 贷款贴息-协议兑现(截止日期2023-05-15) | D25: 10878.08 | E25: 2023-04-19
A26: 91320214MABRJ6ML37 | B26: 无锡亘芯悦科技有限公司 | C26: 其他-协议兑现(截止日期2023-01-06) | D26: 5000 | E26: 2023-01-16
A27: 91320200MA1WYURK0Q | B27: 无锡物联网创新中心有限公司 | C27: 高级人才奖励-协议兑现(截止日期2022-11-23) | D27: 3.56 | E27: 2022-12-15
A28: 91320214346080298E | B28: 无锡医迈德科技有限公司 | C28: 房租补贴-协议兑现(截止日期2022-12-02) | D28: 15.15 | E28: 2022-12-16
A29: 91320214346080298E | B29: 无锡医迈德科技有限公司 | C29: 公寓补贴-协议兑现(截止日期2022-12-02) | D29: 1.89 | E29: 2022-12-16
A30: 91320214346080298E | B30: 无锡医迈德科技有限公司 | C30: 科技企业规模补贴-协议兑现 (截止日期2022-12-02) | D30: 9.02 | E30: 2022-12-16
A31: 91320214MA1YULTW72 | B31: 信而泰（无锡）信息技术有限公司 | C31: 房租补贴-协议兑现(截止日期2022-12-02) | D31: 8.48 | E31: 2023-01-10
A32: 91320214MA1YULTW72 | B32: 信而泰（无锡）信息技术有限公司 | C32: 公寓补贴-协议兑现(截止日期2022-12-02) | D32: 1.29 | E32: 2023-01-10
A33: 91320200MA1WYURK0Q | B33: 无锡物联网创新中心有限公司 | C33: 房租补贴-协议兑现(截止日期2022-11-15) | D33: 587.14 | E33: 2022-12-16
A34: 91320214MA1Y601P3F | B34: 无锡芯万企业管理合伙企业（有限合伙） | C34: 其他-协议兑现(截止日期2022-11-15) | D34: 26.43 | E34: 2022-11-02
A35: 91320214MA1YGXW434 | B35: 无锡锡产微芯半导体有限公司 | C35: 高级人才奖励-协议兑现(截止日期2022-11-15) | D35: 16.67 | E35: 2022-11-22
A36: 91320214MA1YGXW434 | B36: 无锡锡产微芯半导体有限公司 | C36: 贷款贴息-协议兑现(截止日期2022-11-15) | D36: 5647.33 | E36: 2022-12-07
A37: 91320214MA20CXF79R | B37: 觉芯电子（无锡）有限公司 | C37: 高级人才奖励-协议兑现(截止日期2022-12-30) | D37: 0.08 | E37: 2022-09-22
A38: 91320214MA1YGXW434 | B38: 无锡锡产微芯半导体有限公司 | C38: 其他-协议兑现(截止日期2022-08-15) | D38: 4 | E38: 2022-09-09
A39: 91320214MA21L5XW19 | B39: 无锡国联数科咨询服务合伙企业（有限合伙） | C39: 科技企业规模补贴-协议兑现 (截止日期2022-08-15) | D39: 12.23 | E39: 2022-10-11
A40: 91320214323618980Q | B40: 无锡影速半导体科技有限公司 | C40: 其他-协议兑现(截止日期2022-08-17) | D40: 50 | E40: 2022-09-02
A41: 91320214323618980Q | B41: 无锡影速半导体科技有限公司 | C41: 高级人才奖励-协议兑现(截止日期2022-08-17) | D41: 4.5 | E41: 2022-09-02
A42: 91320214323618980Q | B42: 无锡影速半导体科技有限公司 | C42: 房租补贴-协议兑现(截止日期2022-08-17) | D42: 63.83 | E42: 2022-09-02
A43: 91320214323618980Q | B43: 无锡影速半导体科技有限公司 | C43: 公寓补贴-协议兑现(截止日期2022-08-16) | D43: 11.14 | E43: 2022-09-15
A44: 913202133021285602 | B44: 龙微科技无锡有限公司 | C44: 房租补贴-协议兑现(截止日期2022-08-16) | D44: 52.45 | E44: 2022-09-09
A45: 91320214717884755C | B45: 华英证券有限责任公司 | C45: 高级人才奖励-协议兑现(截止日期2022-08-15) | D45: 100.16 | E45: 2022-12-10
A46: 91320200MA1MD4B35C | B46: 无锡国经众新投资管理合伙企业（有限合伙） | C46: 其他-协议兑现(截止日期2022-08-15) | D46: 1.5 | E46: 2022-08-13
A47: 91320214066282805K | B47: 无锡纽科电子科技股份有限公司 | C47: 其他-协议兑现(截止日期2022-08-15) | D47: 100 | E47: 2022-08-09
A48: 91320214066282805K | B48: 无锡纽科电子科技股份有限公司 | C48: 房租补贴-协议兑现(截止日期2022-08-15) | D48: 10.8 | E48: 2022-08-09
A49: 91320214MA1PBBBM14 | B49: 瓴芯电子科技(无锡)有限公司 | C49: 公寓补贴-协议兑现(截止日期2022-08-15) | D49: 2.29 | E49: 2022-09-02
A50: 91320214MA1PBBBM14 | B50: 瓴芯电子科技(无锡)有限公司 | C50: 房租补贴-协议兑现(截止日期2022-05-24) | D50: 26.52 | E50: 2022-07-20
A51: 91320200MA1WYURK0Q | B51: 无锡物联网创新中心有限公司 | C51: 房租补贴-协议兑现(截止日期2022-05-24) | D51: 1076.41 | E51: 2022-07-05
A52: 9132021479331907XR | B52: 无锡国联产业投资有限公司 | C52: 高级人才奖励-协议兑现(截止日期2022-05-15) | D52: 2.18 | E52: 2022-06-24
A53: 91320214579517104U | B53: 无锡中科光电技术有限公司 | C53: 高级人才奖励-协议兑现(截止日期2022-05-24) | D53: 24.27 | E53: 2022-06-14
A54: 91320214579517104U | B54: 无锡中科光电技术有限公司 | C54: 其他-协议兑现(截止日期2022-05-15) | D54: 400 | E54: 2022-06-14
A55: 91320214579517104U | B55: 无锡中科光电技术有限公司 | C55: 科技企业规模补贴-协议兑现 (截止日期2022-05-15) | D55: 65.86 | E55: 2022-06-14
A56: 91320214579517104U | B56: 无锡中科光电技术有限公司 | C56: 贷款贴息-协议兑现(截止日期2022-05-15) | D56: 74.89 | E56: 2022-06-14
A57: 91320214579517104U | B57: 无锡中科光电技术有限公司 | C57: 高级人才奖励-协议兑现(截止日期2022-05-15) | D57: 5.15 | E57: 2022-06-14
A58: 913202133309078520 | B58: 无锡天云数据中心科技有限公司 | C58: 其他-协议兑现(截止日期2022-05-24) | D58: 100 | E58: 2022-08-18
A59: 913202133309078520 | B59: 无锡天云数据中心科技有限公司 | C59: 科技企业规模补贴-协议兑现 (截止日期2022-05-24) | D59: 54.75 | E59: 2022-08-18
A60: 913202133309078520 | B60: 无锡天云数据中心科技有限公司 | C60: 高级人才奖励-协议兑现(截止日期2022-05-24) | D60: 2.48 | E60: 2022-08-18
A61: 91320214MA22JETH8N | B61: 问天鼎讯量子科技（无锡）有限公司 | C61: 其他-协议兑现(截止日期2022-06-02) | D61: 21.95 | E61: 2022-06-14
A62: 91320214MA22JETH8N | B62: 问天鼎讯量子科技（无锡）有限公司 | C62: 科技企业规模补贴-协议兑现 (截止日期2022-06-02) | D62: 1.1 | E62: 2022-06-14
A63: 91320214MA22JETH8N | B63: 问天鼎讯量子科技（无锡）有限公司 | C63: 高级人才奖励-协议兑现(截止日期2022-06-02) | D63: 0.26 | E63: 2022-06-14
A64: 91320214MA22JETH8N | B64: 问天鼎讯量子科技（无锡）有限公司 | C64: 公寓补贴-协议兑现(截止日期2022-06-02) | D64: 1.93 | E64: 2022-06-14
A65: 91320214MA22JETH8N | B65: 问天鼎讯量子科技（无锡）有限公司 | C65: 房租补贴-协议兑现(截止日期2022-06-02) | D65: 12.46 | E65: 2022-06-14
A66: 91320214MA257KKY3K | B66: 无锡优微科技有限公司 | C66: 其他-协议兑现(截止日期2022-06-09) | D66: 83.54 | E66: 2022-09-02
A67: 91320214MA257KKY3K | B67: 无锡优微科技有限公司 | C67: 房租补贴-协议兑现(截止日期2022-06-09) | D67: 36.01 | E67: 2022-09-15
A68: 91320214MA1MQKN609 | B68: 无锡英菲感知技术有限公司 | C68: 其他-协议兑现(截止日期2022-08-15) | D68: 32.12 | E68: 2023-01-10
A69: 91320214MA1MQKN609 | B69: 无锡英菲感知技术有限公司 | C69: 其他-协议兑现(截止日期2022-08-15) | D69: 4.57 | E69: 2023-01-10
A70: 91320214MA25QW1M0F | B70: 无锡谱视界科技有限公司 | C70: 其他-协议兑现(截止日期2022-05-15) | D70: 1.55 | E70: 2022-06-14
A71: 91320200MA1WYURK0Q | B71: 无锡物联网创新中心有限公司 | C71: 其他-协议兑现(截止日期2022-08-16) | D71: 300 | E71: 2022-10-11
A72: 91320200MA1WYURK0Q | B72: 无锡物联网创新中心有限公司 | C72: 高级人才奖励-协议兑现(截止日期2022-08-16) | D72: 27.23 | E72: 2022-10-11
A73: 91320200MA1WYURK0Q | B73: 无锡物联网创新中心有限公司 | C73: 公寓补贴-协议兑现(截止日期2022-08-16) | D73: 19.74 | E73: 2022-12-16
A74: 91320200MA1WYURK0Q | B74: 无锡物联网创新中心有限公司 | C74: 房租补贴-协议兑现(截止日期2022-08-16) | D74: 95.78 | E74: 2022-10-11
A75: 91320214MA1MHNE46U | B75: 无锡盛景微电子股份有限公司 | C75: 其他-协议兑现(截止日期2022-08-15) | D75: 220.23 | E75: 2022-08-25
A76: 91320214MA1MHNE46U | B76: 无锡盛景微电子股份有限公司 | C76: 高级人才奖励-协议兑现(截止日期2022-08-15) | D76: 9.13 | E76: 2022-08-23
A77: 91320214MA1MHNE46U | B77: 无锡盛景微电子股份有限公司 | C77: 公寓补贴-协议兑现(截止日期2022-08-15) | D77: 10.8 | E77: 2022-08-23
A78: 91320214MA1MHNE46U | B78: 无锡盛景微电子股份有限公司 | C78: 房租补贴-协议兑现(截止日期2022-06-09) | D78: 8.54 | E78: 2022-08-29
A79: 91320214MA1MHNE46U | B79: 无锡盛景微电子股份有限公司 | C79: 科技企业规模补贴-协议兑现 (截止日期2022-08-15) | D79: 506.77 | E79: 2022-08-23
A80: 913202007635507481 | B80: 江苏曼荼罗软件股份有限公司 | C80: 其他-协议兑现(截止日期2022-05-15) | D80: 168.17 | E80: 2022-06-10
A81: 913202007635507481 | B81: 江苏曼荼罗软件股份有限公司 | C81: 房租补贴-协议兑现(截止日期2022-05-15) | D81: 61.21 | E81: 2022-06-10
A82: 913202007635507481 | B82: 江苏曼荼罗软件股份有限公司 | C82: 高级人才奖励-协议兑现(截止日期2022-05-15) | D82: 17.11 | E82: 2022-06-10
A83: 91320200050281007L | B83: 无锡沃格自动化科技股份有限公司 | C83: 其他-协议兑现(截止日期2022-06-09) | D83: 118.35 | E83: 2022-09-20
A84: 91320200050281007L | B84: 无锡沃格自动化科技股份有限公司 | C84: 科技企业规模补贴-协议兑现 (截止日期2022-06-09) | D84: 31.82 | E84: 2022-09-20
A85: 91320214MA1XD32R1A | B85: 盛奕半导体科技（无锡）有限公司 | C85: 房租补贴-协议兑现(截止日期2022-08-15) | D85: 30.69 | E85: 2022-08-26
A86: 91320214MA1XD32R1A | B86: 盛奕半导体科技（无锡）有限公司 | C86: 公寓补贴-协议兑现(截止日期2022-05-15) | D86: 3.53 | E86: 2022-06-10
A87: 91320214MA1XD32R1A | B87: 盛奕半导体科技（无锡）有限公司 | C87: 高级人才奖励-协议兑现(截止日期2022-05-15) | D87: 0.56 | E87: 2022-06-10
A88: 91320214MA1XD32R1A | B88: 盛奕半导体科技（无锡）有限公司 | C88: 科技企业规模补贴-协议兑现 (截止日期2022-05-15) | D88: 104.33 | E88: 2022-06-10
A89: 91320200722228330W | B89: 江苏昊华传动控制股份有限公司 | C89: 科技企业规模补贴-协议兑现 (截止日期2022-05-15) | D89: 27.5 | E89: 2022-06-27
A90: 91320200722228330W | B90: 江苏昊华传动控制股份有限公司 | C90: 房租补贴-协议兑现(截止日期2022-05-15) | D90: 100.95 | E90: 2022-06-27
A91: 91320214MA1YGXW434 | B91: 无锡锡产微芯半导体有限公司 | C91: 公寓补贴-协议兑现(截止日期2022-06-09) | D91: 18.14 | E91: 2022-08-01
A92: 91320214MA1YGXW434 | B92: 无锡锡产微芯半导体有限公司 | C92: 高级人才奖励-协议兑现(截止日期2022-06-09) | D92: 15 | E92: 2022-08-01
A93: 91320214MA1YGXW434 | B93: 无锡锡产微芯半导体有限公司 | C93: 高级人才奖励-协议兑现(截止日期2022-06-09) | D93: 32.11 | E93: 2022-08-09
A94: 91320214MA1MQKN609 | B94: 无锡英菲感知技术有限公司 | C94: 公寓补贴-协议兑现(截止日期2022-08-15) | D94: 2.69 | E94: 2023-01-10
A95: 91320214MA1MQKN609 | B95: 无锡英菲感知技术有限公司 | C95: 其他-协议兑现(截止日期2022-08-15) | D95: 100 | E95: 2023-01-10
A96: 91320214MA1MQKN609 | B96: 无锡英菲感知技术有限公司 | C96: 高级人才奖励-协议兑现(截止日期2022-08-15) | D96: 3.62 | E96: 2023-01-10
A97: 91320214MA25QW1M0F | B97: 无锡谱视界科技有限公司 | C97: 其他-协议兑现(截止日期2022-05-15) | D97: 44.62 | E97: 2022-06-14
A98: 91320214MA25QW1M0F | B98: 无锡谱视界科技有限公司 | C98: 高级人才奖励-协议兑现(截止日期2022-05-15) | D98: 0.02 | E98: 2022-06-20
A99: 91320214MA25QW1M0F | B99: 无锡谱视界科技有限公司 | C99: 公寓补贴-协议兑现(截止日期2022-05-15) | D99: 4.67 | E99: 2022-06-14
A100: 91320214MA20CXF79R | B100: 觉芯电子（无锡）有限公司 | C100: 高级人才奖励-协议兑现(截止日期2022-05-24) | D100: 6.37 | E100: 2022-09-22
A101: 91320214MA20CXF79R | B101: 觉芯电子（无锡）有限公司 | C101: 科技企业规模补贴-协议兑现 (截止日期2022-05-15) | D101: 4.66 | E101: 2022-09-15
A102: 91320214MA20CXF79R | B102: 觉芯电子（无锡）有限公司 | C102: 房租补贴-协议兑现(截止日期2022-05-15) | D102: 36.18 | E102: 2022-09-22
A103: 91320214MA20CXF79R | B103: 觉芯电子（无锡）有限公司 | C103: 公寓补贴-协议兑现(截止日期2022-05-24) | D103: 3.67 | E103: 2022-09-22
A104: 91320214MA20CXF79R | B104: 觉芯电子（无锡）有限公司 | C104: 其他-协议兑现(截止日期2022-08-16) | D104: 54.62 | E104: 2022-09-22
A105: 91320214MA21X47B7U | B105: 捷捷微电（无锡）科技有限公司 | C105: 房租补贴-协议兑现(截止日期2022-05-15) | D105: 28.8 | E105: 2022-05-19
A106: 91320214MA21X47B7U | B106: 捷捷微电（无锡）科技有限公司 | C106: 高级人才奖励-协议兑现(截止日期2022-05-15) | D106: 3.76 | E106: 2022-05-23
A107: 91320214MA21X47B7U | B107: 捷捷微电（无锡）科技有限公司 | C107: 科技企业规模补贴-协议兑现 (截止日期2022-05-15) | D107: 257.51 | E107: 2022-05-19
A108: 91320214MA21X47B7U | B108: 捷捷微电（无锡）科技有限公司 | C108: 其他-协议兑现(截止日期2022-05-15) | D108: 281.95 | E108: 2022-05-19
A109: 91320214MA25QW1M0F | B109: 无锡谱视界科技有限公司 | C109: 房租补贴-协议兑现(截止日期2022-05-15) | D109: 6.32 | E109: 2022-06-14
A110: 123202004662852983 | B110: 无锡市计量测试院 | C110: 房租补贴-协议兑现(截止日期2022-06-09) | D110: 125.72 | E110: 2023-01-31
A111: 91320214MA1YGXW434 | B111: 无锡锡产微芯半导体有限公司 | C111: 房租补贴-协议兑现(截止日期2022-05-15) | D111: 82.44 | E111: 2022-07-20
A112: 91320200553819024U | B112: 无锡国联浚源创业投资中心（有限合伙） | C112: 科技企业规模补贴-协议兑现 (截止日期2022-05-15) | D112: 95.38 | E112: 2022-06-20
A113: 91320200135927444B | B113: 无锡市恒顺金属材料有限公司 | C113: 科技企业规模补贴-协议兑现 (截止日期2022-05-15) | D113: 255.06 | E113: 2022-06-30
A114: 91320214398339900W | B114: 无锡飞谱电子信息技术有限公司 | C114: 高级人才奖励-协议兑现(截止日期2022-05-15) | D114: 47.58 | E114: 2022-11-02
A115: 91320214398339900W | B115: 无锡飞谱电子信息技术有限公司 | C115: 其他-协议兑现(截止日期2022-05-15) | D115: 585.85 | E115: 2022-06-14
A116: 91320214398339900W | B116: 无锡飞谱电子信息技术有限公司 | C116: 房租补贴-协议兑现(截止日期2022-05-15) | D116: 24.59 | E116: 2022-06-13
A117: 913202133309078520 | B117: 无锡天云数据中心科技有限公司 | C117: 其他-协议兑现(截止日期2021-12-20) | D117: 55.47 | E117: 2022-01-06
A118: 913202133309078520 | B118: 无锡天云数据中心科技有限公司 | C118: 高级人才奖励-协议兑现(截止日期2021-12-20) | D118: 0.93 | E118: 2022-01-06
A119: 913202133309078520 | B119: 无锡天云数据中心科技有限公司 | C119: 房租补贴-协议兑现(截止日期2021-12-20) | D119: 40.49 | E119: 2022-01-06
A120: 913202133309078520 | B120: 无锡天云数据中心科技有限公司 | C120: 科技企业规模补贴-协议兑现 (截止日期2021-12-20) | D120: 9.27 | E120: 2022-01-06
A121: 91320214MA1YGXW434 | B121: 无锡锡产微芯半导体有限公司 | C121: 高级人才奖励-协议兑现(截止日期2021-11-15) | D121: 0.98 | E121: 2021-12-30
A122: 91320214MA1YGXW434 | B122: 无锡锡产微芯半导体有限公司 | C122: 高级人才奖励-协议兑现(截止日期2021-11-15) | D122: 30 | E122: 2021-12-30
A123: 91320214MA1YGXW434 | B123: 无锡锡产微芯半导体有限公司 | C123: 高级人才奖励-协议兑现(截止日期2021-11-01) | D123: 2.94 | E123: 2021-11-16
A124: 91320214MA1MQKN609 | B124: 无锡英菲感知技术有限公司 | C124: 其他-协议兑现(截止日期2022-05-15) | D124: 58.04 | E124: 2022-06-20
A125: 913202146829857231 | B125: 无锡微纳产业发展有限公司 | C125: 科技企业规模补贴-协议兑现 | D125: 1918.01 | E125: 2022-04-12
A126: 91320214MA1XD32R1A | B126: 盛奕半导体科技（无锡）有限公司 | C126: 高级人才奖励-协议兑现 | D126: 0.22 | E126: 2021-11-08
A127: 91320214579517104U | B127: 无锡中科光电技术有限公司 | C127: 高级人才奖励-协议兑现 | D127: 23.82 | E127: 2021-08-31
A128: 91320214MA1MQKN609 | B128: 无锡英菲感知技术有限公司 | C128: 其他-协议兑现 | D128: 7 | E128: 2021-12-21
A129: 91320214MA1MQKN609 | B129: 无锡英菲感知技术有限公司 | C129: 其他-协议兑现 | D129: 37.27 | E129: 2021-12-30
A130: 91320214579517104U | B130: 无锡中科光电技术有限公司 | C130: 高级人才奖励-协议兑现 | D130: 3.16 | E130: 2021-08-27
A131: 91320214MA1MQKN609 | B131: 无锡英菲感知技术有限公司 | C131: 高级人才奖励-协议兑现 | D131: 4.31 | E131: 2021-12-21
A132: 913202007635507481 | B132: 江苏曼荼罗软件股份有限公司 | C132: 高级人才奖励-协议兑现 | D132: 14.74 | E132: 2021-09-29
A133: 913202007635507481 | B133: 江苏曼荼罗软件股份有限公司 | C133: 其他-协议兑现 | D133: 209.77 | E133: 2021-09-29
A134: 913202007635507481 | B134: 江苏曼荼罗软件股份有限公司 | C134: 房租补贴-协议兑现 | D134: 52.64 | E134: 2021-09-29
A135: 91320214346080298E | B135: 无锡医迈德科技有限公司 | C135: 科技企业规模补贴-协议兑现 | D135: 8.09 | E135: 2021-11-16
A136: 91320214346080298E | B136: 无锡医迈德科技有限公司 | C136: 公寓补贴-协议兑现 | D136: 2.16 | E136: 2021-11-16
A137: 91320214323618980Q | B137: 无锡影速半导体科技有限公司 | C137: 其他-协议兑现 | D137: 50 | E137: 2021-10-12
A138: 91320214323618980Q | B138: 无锡影速半导体科技有限公司 | C138: 高级人才奖励-协议兑现 | D138: 2.45 | E138: 2021-10-12
A139: 91320214323618980Q | B139: 无锡影速半导体科技有限公司 | C139: 公寓补贴-协议兑现 | D139: 8.02 | E139: 2021-11-24
A140: 91320214323618980Q | B140: 无锡影速半导体科技有限公司 | C140: 房租补贴-协议兑现 | D140: 53.26 | E140: 2021-10-13
A141: 91320214MA1MQKN609 | B141: 无锡英菲感知技术有限公司 | C141: 其他-协议兑现 | D141: 100 | E141: 2021-12-17
A142: 91320214MA1MQKN609 | B142: 无锡英菲感知技术有限公司 | C142: 公寓补贴-协议兑现 | D142: 2.54 | E142: 2021-12-21
A143: 91320214346080298E | B143: 无锡医迈德科技有限公司 | C143: 房租补贴-协议兑现 | D143: 12.96 | E143: 2021-11-16
A144: 91320214MA1MQKN609 | B144: 无锡英菲感知技术有限公司 | C144: 科技企业规模补贴-协议兑现 | D144: 9.71 | E144: 2021-12-17
A145: 91320214MA1MQKN609 | B145: 无锡英菲感知技术有限公司 | C145: 房租补贴-协议兑现 | D145: 13.5 | E145: 2021-12-21
A146: 91320214MA1PBBBM14 | B146: 瓴芯电子科技(无锡)有限公司 | C146: 公寓补贴-协议兑现 | D146: 2.48 | E146: 2021-11-24
A147: 91320214MA1PBBBM14 | B147: 瓴芯电子科技(无锡)有限公司 | C147: 房租补贴-协议兑现 | D147: 26.09 | E147: 2021-11-24
A148: 91320214MA1YGXW434 | B148: 无锡锡产微芯半导体有限公司 | C148: 公寓补贴-协议兑现 | D148: 3.41 | E148: 2021-11-05
A149: 91320214MA1YGXW434 | B149: 无锡锡产微芯半导体有限公司 | C149: 高级人才奖励-协议兑现 | D149: 6.13 | E149: 2021-10-29
A150: 91320214579517104U | B150: 无锡中科光电技术有限公司 | C150: 贷款贴息-协议兑现 | D150: 46.64 | E150: 2021-08-16
A151: 91320214579517104U | B151: 无锡中科光电技术有限公司 | C151: 科技企业规模补贴-协议兑现 | D151: 69.02 | E151: 2021-08-16
A152: 91320214579517104U | B152: 无锡中科光电技术有限公司 | C152: 其他-协议兑现 | D152: 300 | E152: 2021-08-16
A153: 91320214MA1YGXW434 | B153: 无锡锡产微芯半导体有限公司 | C153: 高级人才奖励-协议兑现 | D153: 16.67 | E153: 2021-10-13
A154: 91320214MA1YGXW434 | B154: 无锡锡产微芯半导体有限公司 | C154: 高级人才奖励-协议兑现 | D154: 10 | E154: 2021-11-05
A155: 91320200MA1MD4B35C | B155: 无锡国经众新投资管理合伙企业（有限合伙） | C155: 其他-协议兑现 | D155: 1.39 | E155: 2021-10-13
A156: 91320214MA21X47B7U | B156: 捷捷微电（无锡）科技有限公司 | C156: 房租补贴-协议兑现 | D156: 13.09 | E156: 2021-11-24
A157: 913202133021285602 | B157: 龙微科技无锡有限公司 | C157: 房租补贴-协议兑现 | D157: 110.04 | E157: 2021-08-19
A158: 91320214MA1MHNE46U | B158: 无锡盛景微电子股份有限公司 | C158: 公寓补贴-协议兑现 | D158: 7.74 | E158: 2021-08-05
A159: 91320214MA1MHNE46U | B159: 无锡盛景微电子股份有限公司 | C159: 科技企业规模补贴-协议兑现 | D159: 291.11 | E159: 2021-08-16
A160: 91320214MA1MHNE46U | B160: 无锡盛景微电子股份有限公司 | C160: 高级人才奖励-协议兑现 | D160: 1.61 | E160: 2021-08-16
A161: 91320214MA1MHNE46U | B161: 无锡盛景微电子股份有限公司 | C161: 贷款贴息-协议兑现 | D161: 8.79 | E161: 2021-08-16
A162: 91320214MA1MHNE46U | B162: 无锡盛景微电子股份有限公司 | C162: 房租补贴-协议兑现 | D162: 18.24 | E162: 2021-08-16
A163: 91320214MA1MHNE46U | B163: 无锡盛景微电子股份有限公司 | C163: 其他-协议兑现 | D163: 88.96 | E163: 2021-08-16
A164: 123202004662852983 | B164: 无锡市计量测试院 | C164: 房租补贴-协议兑现 | D164: 230.47 | E164: 2021-12-30
A165: 91320200MA1MD5Q09N | B165: 无锡国经精益制造投资企业（有限合伙） | C165: 其他-协议兑现 | D165: 2.21 | E165: 2021-09-23
A166: 91320200MA1MD4B35C | B166: 无锡国经众新投资管理合伙企业（有限合伙） | C166: 其他-协议兑现 | D166: 52.64 | E166: 2021-09-23
A167: 91320200MA1WYURK0Q | B167: 无锡物联网创新中心有限公司 | C167: 其他-协议兑现 | D167: 300 | E167: 2021-08-16
A168: 91320200135927444B | B168: 无锡市恒顺金属材料有限公司 | C168: 科技企业规模补贴-协议兑现 | D168: 73.76 | E168: 2021-10-13
A169: 91320200MA1WYURK0Q | B169: 无锡物联网创新中心有限公司 | C169: 高级人才奖励-协议兑现 | D169: 0.45 | E169: 2021-08-16
A170: 91320200MA1WYURK0Q | B170: 无锡物联网创新中心有限公司 | C170: 科技企业规模补贴-协议兑现 | D170: 83.35 | E170: 2021-08-16
A171: 91320214066282805K | B171: 无锡纽科电子科技股份有限公司 | C171: 其他-协议兑现 | D171: 149.3 | E171: 2021-09-23
A172: 91320214MA2094WB4C | B172: 华芯检测（无锡）有限公司 | C172: 其他-协议兑现 | D172: 68.93 | E172: 2021-07-30
A173: 1232020046637256X7 | B173: 江苏物联网研究发展中心 | C173: 其他-协议兑现 | D173: 10.8 | E173: 2021-12-30
A174: 91320200MA1WYURK0Q | B174: 无锡物联网创新中心有限公司 | C174: 公寓补贴-协议兑现 | D174: 12.46 | E174: 2021-08-16
A175: 91320200MA1WYURK0Q | B175: 无锡物联网创新中心有限公司 | C175: 房租补贴-协议兑现 | D175: 47.89 | E175: 2021-08-16
A176: 91320214MA2094WB4C | B176: 华芯检测（无锡）有限公司 | C176: 高级人才奖励-协议兑现 | D176: 0.15 | E176: 2021-07-30
A177: 91320214MA1YGXW434 | B177: 无锡锡产微芯半导体有限公司 | C177: 贷款贴息-协议兑现 | D177: 538.15 | E177: 2021-08-18
A178: 91320214MA1YGXW434 | B178: 无锡锡产微芯半导体有限公司 | C178: 房租补贴-协议兑现 | D178: 61.83 | E178: 2021-08-17
A179: 91320214MA2094WB4C | B179: 华芯检测（无锡）有限公司 | C179: 科技企业规模补贴-协议兑现 | D179: 5.4 | E179: 2021-07-30
A180: 91320214MA25D57X4T | B180: 无锡渊远企业管理合伙企业（有限合伙） | C180: 其他-协议兑现 | D180: 108.5 | E180: 2021-07-20
A181: 91320214MA1XD32R1A | B181: 盛奕半导体科技（无锡）有限公司 | C181: 公寓补贴-协议兑现 | D181: 3.6 | E181: 2021-09-23
A182: 91320214MA1XD32R1A | B182: 盛奕半导体科技（无锡）有限公司 | C182: 房租补贴-协议兑现 | D182: 23.44 | E182: 2021-09-23
A183: 91320200553819024U | B183: 无锡国联浚源创业投资中心（有限合伙） | C183: 科技企业规模补贴-协议兑现 | D183: 53.74 | E183: 2021-08-19
A184: 91320200553819024U | B184: 无锡国联浚源创业投资中心（有限合伙） | C184: 科技企业规模补贴-协议兑现 | D184: 232.47 | E184: 2021-07-30
A185: 91320213576282530J | B185: 无锡泓瑞航天科技有限公司 | C185: 高新技术企业认定补贴 | D185: 10 | E185: 2023-06-30
A186: 91320214330829129L | B186: 品冠物联科技有限公司 | C186: 高新技术企业认定补贴 | D186: 10 | E186: 2023-06-30
A187: 9132021467489491X4 | B187: 无锡军创工程技术有限公司 | C187: 高新技术企业认定补贴 | D187: 20 | E187: 2023-06-30
A188: 9131000058521410XD | B188: 艾普柯微电子（江苏）有限公司 | C188: 高新技术企业认定补贴 | D188: 10 | E188: 2023-06-30
A189: 91320211MA1MK2G56U | B189: 无锡迅杰光远科技有限公司 | C189: 高新技术企业认定补贴 | D189: 10 | E189: 2023-06-30
A190: 91320214MA1NXDMY3K | B190: 无锡翊鸿信息科技有限公司 | C190: 高新技术企业认定补贴 | D190: 10 | E190: 2023-06-30
A191: 91320211313880491L | B191: 无锡布里渊电子科技有限公司 | C191: 高新技术企业认定补贴 | D191: 20 | E191: 2023-06-30
A192: 91320214MA21X47B7U | B192: 捷捷微电（无锡）科技有限公司 | C192: 高新技术企业认定补贴 | D192: 20 | E192: 2023-06-30
A193: 91320214MA20BF8E76 | B193: 无锡来龙去脉科技有限公司 | C193: 高新技术企业认定补贴 | D193: 20 | E193: 2023-06-30
A194: 91320214MA20ED352R | B194: 无锡中科维智数据科技有限公司 | C194: 高新技术企业认定补贴 | D194: 20 | E194: 2023-06-30
A195: 91320214MA1MQLTU8M | B195: 无锡精质视觉科技有限公司 | C195: 高新技术企业认定补贴 | D195: 10 | E195: 2023-06-30
A196: 91320214088255584N | B196: 江苏慧乔信息科技有限公司 | C196: 高新技术企业认定补贴 | D196: 20 | E196: 2023-06-30
A197: 91320214MA1NM2910T | B197: 江苏必胜课教育科技有限公司 | C197: 高新技术企业认定补贴 | D197: 10 | E197: 2023-06-30
A198: 91320214346080298E | B198: 无锡医迈德科技有限公司 | C198: 高新技术企业认定补贴 | D198: 10 | E198: 2023-06-30
A199: 913202005823087688 | B199: 江苏宙斯物联网科技集团股份有限公司 | C199: 高新技术企业认定补贴 | D199: 10 | E199: 2023-06-30
A200: 91320214569136017C | B200: 无锡艾立德智能科技有限公司 | C200: 高新技术企业认定补贴 | D200: 10 | E200: 2023-06-30
... 1483 more rows

Sheet 11.招商经理
A1: 入驻企业 | B1: 招商经理
A2: 中设国联无锡新能源发展有限公司 | B2: 曹秋婷
A3: 无锡新企友工业外包有限公司 | B3: 李军
A4: 无锡新思云众科技有限公司 | B4: 曹秋婷
A5: 江苏中科君芯科技有限公司
A6: 无锡文思创新信息技术有限公司 | B6: 曾焱
A8: 无锡麦姆斯咨询有限公司 | B8: 陈西
A9: 无锡市新吴区机关事务服务中心 | B9: 曾焱
A10: 江苏物联网研究发展中心 | B10: 曾焱
A11: 无锡紫光微电子有限公司 | B11: 解洋
A12: 华景传感科技（无锡）有限公司 | B12: 曹秋婷
A13: 华景传感科技（无锡）有限公司 | B13: 曹秋婷
A14: 无锡华耀生物科技有限公司 | B14: 解洋
A15: 无锡开云信息技术有限公司 | B15: 陈西
A16: 牛拓新材料科技（无锡）股份有限公司 | B16: 陈西
A17: 中力航空设备（江苏）有限公司 | B17: 李军
A18: 无锡巨谷科技有限公司 | B18: 解洋
A19: 无锡光之谷传感技术有限公司 | B19: 陈西
A22: 江苏曼荼罗软件股份有限公司 | B22: 解洋
A23: 无锡力捷丰科技有限公司 | B23: 李军
A24: 无锡力捷丰科技有限公司 | B24: 李军
A25: 无锡创思感知科技有限公司 | B25: 陈西
A26: 无锡微田园网络科技有限公司
A27: 无锡菲光科技有限公司 | B27: 陈西
A28: 无锡菲光科技有限公司 | B28: 陈西
A29: 广电计量检测（无锡）有限公司 | B29: 曾焱
A30: 江苏明/软件技术股份有限公司 | B30: 陈西
A31: 爱欧意科技无锡有限公司 | B31: 曾焱
A32: 高铭科维科技无锡有限公司 | B32: 陈西
A33: 高铭科维科技无锡有限公司 | B33: 陈西
A34: 高铭科维科技无锡有限公司 | B34: 陈西
A35: 江苏达尔塔数据有限公司 | B35: 陈西
A36: 龙微科技无锡有限公司 | B36: 曾焱
A37: 龙微科技无锡有限公司 | B37: 曾焱
B38: 陈西
A39: 无锡沃联斯科智能科技有限公司 | B39: 李军
A40: 森特奈智能科技（无锡）有限公司 | B40: 解洋
A41: 无锡市新吴区机关事务服务中心 | B41: 王润恩
A43: 延安知青印象农业有限公司 | B43: 潘超
A44: 瓴芯电子科技（无锡）有限公司 | B44: 曾焱
A45: 无锡掌薪网络科技有限公司 | B45: 曹秋婷
A46: 无锡掌薪网络科技有限公司 | B46: 曹秋婷
A47: 无锡人才之家信息科技有限公司 | B47: 曹秋婷
A48: 无锡奥维斯管理咨询有限公司 | B48: 曹秋婷
A49: 无锡中智人力资源服务有限公司 | B49: 曹秋婷
A50: 江苏开心工作科技有限公司 | B50: 曹秋婷
B53: 曹秋婷
A54: 无锡市新吴区人力资源服务行业协会 | B54: 曹秋婷
A55: 无锡伙伴人力资源服务有限公司 | B55: 曹秋婷
A56: 无锡高新人才发展集团有限公司 | B56: 曹秋婷
A57: 无锡高新人才管理咨询有限公司 | B57: 曹秋婷
A58: 无锡高新人才数字科技有限公司 | B58: 曹秋婷
A59: 无锡高杰外包服务有限公司 | B59: 曹秋婷
A60: 无锡美偌科微电子有限公司 | B60: 张伯阳
A61: 无锡美偌科微电子有限公司 | B61: 张伯阳
A62: 无锡金源半导体科技有限公司 | B62: 陈西
A63: 无锡浩真微电子有限公司 | B63: 曹秋婷
A64: 江苏洵谷智能科技有限公司 | B64: 曾焱
A65: 阿达智能装备（江苏）有限公司 | B65: 张伯阳
A66: 无锡市迪卡瑞智能科技有限公司 | B66: 曾焱
A67: 江苏京华山一商业保理有限公司 | B67: 曾焱
A68: 无锡星承云启信息技术有限公司 | B68: 陈西
A69: 江苏深网科技有限公司 | B69: 曹秋婷
A73: 无锡市艾克特电气股份有限公司 | B73: 解洋
A74: 无锡布勒卡乐服务外包有限公司 | B74: 曹秋婷
A75: 无锡奥利杰科技有限公司 | B75: 陈西
A76: 南京恒新天朗电子科技有限公司 | B76: 解洋
A77: 上海佐越企业管理有限公司 | B77: 曹秋婷
A78: 无锡奥利杰科技有限公司 | B78: 陈西
A79: 无锡市新吴区机关事务服务中心 | B79: 曹秋婷
A80: 无锡市杰特电气有限公司 | B80: 解洋
A82: 无锡永逸乐机电设备有限公司 | B82: 曹秋婷
A83: 无锡通测检测技术有限公司 | B83: 曾焱
A84: 无锡通优检测技术有限公司 | B84: 曾焱
A85: 无锡通测检测技术有限公司 | B85: 曾焱
A86: 无锡凡特物联技术有限公司 | B86: 解洋
A87: 无锡赛米斯半导体科技有限公司 | B87: 李军
A88: 广电计量检测（无锡）有限公司 | B88: 曾焱
A89: 广电计量检测（无锡）有限公司 | B89: 曾焱
A90: 广电计量检测（无锡）有限公司 | B90: 曾焱
A91: 广电计量检测（无锡）有限公司 | B91: 曾焱
A92: 广电计量检测（无锡）有限公司 | B92: 曾焱
A93: 广电计量检测（无锡）有限公司 | B93: 曾焱
A94: 广电计量检测（无锡）有限公司 | B94: 曾焱
A95: 广电计量检测（无锡）有限公司 | B95: 曾焱
A97: 铨力微电子（无锡）有限公司 | B97: 陈西
A98: 康路联（无锡）医疗科技有限公司 | B98: 李军
A99: 无锡中科光电技术有限公司 | B99: 解洋
A100: 无锡瑞科维半导体有限公司
A101: 西克制冷（无锡）有限公司 | B101: 李昂
B102: 陈西
A103: 无锡微泰传感封测技术有限公司 | B103: 王润恩
A105: 黑曼巴半导体（无锡）有限公司 | B105: 王润恩
A106: 无锡赛博芯电子科技有限公司 | B106: 陈西
A107: 无锡通测检测技术有限公司 | B107: 曾焱
A108: 江苏瀚点智能科技有限公司 | B108: 曾焱
A110: 无锡厦泰生物科技有限公司 | B110: 张伯阳
A111: 无锡厦泰生物科技有限公司 | B111: 张伯阳
A113: 无锡厦泰生物科技有限公司 | B113: 张伯阳
A114: 无锡通测检测技术有限公司 | B114: 曾焱
A115: 江苏生活通信息技术有限公司 | B115: 陈西
A116: 深圳尚阳通科技股份偶限公司 | B116: 陈西
A117: 无锡蚊子科技有限公司 | B117: 李军
A118: 无锡芯大周半导体科技有限公司 | B118: 李昂
A119: 无锡元微数智科技有限公司 | B119: 陈西
A120: 无锡矢岛自动化设备有限公司 | B120: 曹秋婷
A121: 康路联（无锡）医疗科技有限公司 | B121: 曾焱
A122: 无锡超信工业外包有限公司 | B122: 曹秋婷
A123: 无锡市新信元科技有限公司 | B123: 曹秋婷
A124: 无锡小飞物联科技有限公司 | B124: 李军
A125: 无锡中南益瑞服务外包有限公司 | B125: 曹秋婷
A126: 无锡则安电力科技有限公司 | B126: 陈西
A127: 江苏达和晟智能科技集团有限公司 | B127: 陈西
A128: 橙色谷（江苏）科创发展有限公司 | B128: 解洋
A131: 无锡招彩旺旺信息技术有限公司 | B131: 曾焱
A132: 无锡凯丰企业管理顾问有限公司 | B132: 曹秋婷
A133: 无锡天原信息技术有限公司 | B133: 陈西
A134: 无锡行先网络科技有限公司 | B134: 曾焱
A135: 江苏航顺集成电路技术有限公司 | B135: 张伯阳
A136: 无锡市中力神盾防雷技术有限公司 | B136: 陈西
A137: 无锡天原信息技术有限公司 | B137: 陈西
A138: 无锡雪云数据科技有限公司 | B138: 曹秋婷
A139: 无锡百财企业咨询有限公司 | B139: 李军
A141: 无锡兴华慧筑科技有限公司 | B141: 陈西
A142: 无锡云裳衣联网科技有限公司 | B142: 曾焱
A144: 江苏圣捷集科技有限公司 | B144: 陈西
A145: 无锡焕芯科技有限公司 | B145: 陈西
A147: 无锡中启半导体有限公司 | B147: 李军
A148: 无锡布里渊电子科技有限公司 | B148: 张伯阳
A149: 无锡安特源科技股份有限公司 | B149: 张伯阳
A150: 无锡厦泰生物科技有限公司 | B150: 张伯阳
A151: 中城智慧科技有限公司 | B151: 陈西
A152: 无锡医迈德科技有限公司 | B152: 陈西
A153: 无锡赢科软件技术有限公司 | B153: 曹秋婷
A154: 无锡迎嘉信息技术有限公司 | B154: 陈西
A155: 江苏中科君芯科技有限公司
A157: 无锡慕鱼人力资源服务有限公司 | B157: 李军
A158: 无锡金尚汽车技术开发有限公司 | B158: 陈西
A159: 无锡家珵环保制品有限公司 | B159: 解洋
A160: 无锡广汇鑫电子科技有限公司 | B160: 解洋
A161: 无锡中科维智数据科技有限公司 | B161: 曾焱
A162: 无锡中科维智数据科技有限公司 | B162: 曾焱
A163: 问天鼎讯量子科技（无锡）有限公司 | B163: 陈西
A165: 无锡康讯微电子科技有限公司 | B165: 陈西
A166: 江苏领创智科技发展有限公司
A167: 无锡卡思优派工业服务外包有限公司 | B167: 曹秋婷
A169: 无锡行行智研科技有限公司 | B169: 陈西
A170: 无锡中营康园自动化设备有限公司 | B170: 解洋
A172: 无锡华恩泰物联网科技有限责任公司 | B172: 解洋
A173: 无锡芯利世科技有限公司 | B173: 李军
A174: 无锡腾云驾数技术服务有限公司 | B174: 解洋
A175: 无锡智信云信息科技有限公司 | B175: 曾焱
A176: 无锡智尧信息科技有限公司 | B176: 李军
A177: 华进半导体封装先导技术研发中心有限公司 | B177: 解洋
A178: 华进半导体封装先导技术研发中心有限公司 | B178: 解洋
A179: 华进半导体封装先导技术研发中心有限公司 | B179: 解洋
A180: 华进半导体封装先导技术研发中心有限公司 | B180: 解洋
A181: 华进半导体封装先导技术研发中心有限公司 | B181: 解洋
A182: 华进半导体封装先导技术研发中心有限公司 | B182: 解洋
A183: 无锡市时盛激光科技有限公司 | B183: 曾焱
A184: 无锡纳诺光子技术有限公司 | B184: 王润恩
A185: 无锡市时盛激光科技有限公司 | B185: 曾焱
A186: 无锡市时盛激光科技有限公司 | B186: 曾焱
A187: 华英证券有限责任公司 | B187: 陈西
A188: 无锡凯必特斯半导体科技有限公司 | B188: 李军
A189: 无锡光之谷传感技术有限公司
A190: 无锡谱视界科技有限公司 | B190: 张伯阳
A191: 无锡物联网创新中心有限公司 | B191: 李军
A192: 有芯智能科技（无锡）有限公司 | B192: 朱晟
A193: 立潮半导体科技（江苏无锡）有限公司 | B193: 李昂
A194: 无锡优驱自动控制科技有限公司 | B194: 陈西
A195: 矽朋微电子（无锡）有限公司 | B195: 曹秋婷
A196: 无锡优塑美科技有限公司 | B196: 凤毅
A197: 江苏中科数泰科技有限公司 | B197: 曹秋婷
A198: 温森美（无锡）设备技术有限公司 | B198: 陈西
A201: 图灵威视智能科技（无锡）有限公司 | B201: 陈西
A202: 中科融通物联科技无锡有限公司 | B202: 曾焱
A203: 无锡苏博网络信息管理有限公司 | B203: 陈西
A204: 无锡汇才企业管理有限公司 | B204: 陈西
A205: 江苏安友生物科技有限公司 | B205: 曹秋婷
A206: 江苏米孚数字科技有限公司 | B206: 陈西
A207: 中讯通康信息科技无锡有限公司 | B207: 解洋
A208: 西门子（中国）有限公司无锡创新中心 | B208: 张伯阳
A209: 天芯互联科技有限公司无锡分公司 | B209: 陈西
A211: 无锡群联电子技术有限公司 | B211: 陈西
A212: 无锡飞谱电子信息技术有限公司 | B212: 曹秋婷
A213: 无锡秩熵物联网科技有限公司 | B213: 李昂
A214: 无锡海迪斯智能科技有限公司 | B214: 解洋
A215: 无锡弘鼎软件科技有限公司
A216: 海菲克智能科技（江苏）有限公司 | B216: 解洋
A217: 无锡漆好环保新材料研究有限公司 | B217: 陈西
A218: 无锡吉数网络有限公司 | B218: 解洋
A219: 无锡灵瑞科技有限公司 | B219: 解洋
A221: 无锡图灵视频科技有限公司 | B221: 曾焱
A222: 无锡超行星视频科技有限公司 | B222: 曾焱
A223: 迈锐数据（无锡）有限公司 | B223: 李军
B225: 曾焱
B227: 解洋
A229: 无锡中金鼎讯信通科技股份有限公司
A231: 问天鼎讯量子科技（无锡）有限公司
... 183 more rows

Sheet 12.辅助余额表
A5: 辅助余额表 | B5: 辅助余额表 | C5: 辅助余额表 | D5: 辅助余额表 | E5: 辅助余额表 | F5: 辅助余额表 | G5: 辅助余额表 | H5: 辅助余额表 | I5: 辅助余额表 | J5: 辅助余额表
A6: 期间：2023.06-2023.06 | B6: 期间： | C6: 期间： | D6: 期间： | E6: 期间：2023.06-2023.06 | F6: 期间：2023.06-2023.06 | G6: 期间：2023.06-2023.06 | H6: 期间：2023.06-2023.06 | I6: 期间：2023.06-2023.06 | J6: 期间：2023.06-2023.06
G7: 币种： | H7: 本币
A8: 科目名称 | B8: 客商辅助核算名称 | C8: 收入辅助核算名称 | D8: 园区辅助核算名称 | E8: 方向 | F8: 期初余额 | G8: 本期借方 | H8: 本期贷方 | I8: 方向 | J8: 期末余额
A9: 1122\应收账款 | B9: 江苏物联网研究发展中心 | C9: 房屋租赁 | D9: 微纳园一期 | E9: 借 | F9: 115494.69 | I9: 借 | J9: 115494.69
A10: 1122\应收账款 | B10: 江苏物联网研究发展中心 | C10: 物业费 | D10: 微纳园一期 | E10: 借 | F10: 1233517.5 | I10: 借 | J10: 1233517.5
A11: 1122\应收账款 | B11: 龙微科技无锡有限公司 | C11: 房屋租赁 | D11: 微纳园三期 | E11: 借 | F11: 0.01 | I11: 借 | J11: 0.01
A12: 1122\应收账款 | B12: 无锡飞谱电子信息技术有限公司 | C12: 电费 | D12: 微纳园二期 | E12: 借 | F12: 2726.56 | I12: 借 | J12: 2726.56
A13: 1122\应收账款 | B13: 无锡福歌科技有限公司 | C13: 房屋租赁 | D13: 微纳园一期 | E13: 借 | F13: 54667 | I13: 借 | J13: 54667
A14: 1122\应收账款 | B14: 无锡金中昊信息技术有限公司 | C14: 房屋租赁 | D14: 微纳园一期 | E14: 借 | F14: 2229.52 | I14: 借 | J14: 2229.52
A15: 1122\应收账款 | B15: 江苏曼荼罗软件股份有限公司 | C15: 房屋租赁 | D15: 微纳园二期 | E15: 借 | F15: 409474.8 | I15: 借 | J15: 409474.8
A16: 1122\应收账款 | B16: 江苏曼荼罗软件股份有限公司 | C16: 物业费 | D16: 微纳园二期 | E16: 借 | F16: 81894.96 | I16: 借 | J16: 81894.96
A17: 1122\应收账款 | B17: 无锡市艾克特电气股份有限公司 | C17: 房屋租赁 | D17: 微纳园一期 | E17: 借 | F17: 320355 | I17: 借 | J17: 320355
A18: 1122\应收账款 | B18: 无锡市艾克特电气股份有限公司 | C18: 物业费 | D18: 微纳园一期 | E18: 借 | F18: 64071 | I18: 借 | J18: 64071
A19: 1122\应收账款 | B19: 牛拓新材料科技（无锡）股份有限公司 | C19: 房屋租赁 | D19: 微纳园二期 | E19: 借 | F19: 29505 | I19: 借 | J19: 29505
A20: 1122\应收账款 | B20: 牛拓新材料科技（无锡）股份有限公司 | C20: 物业费 | D20: 微纳园二期 | E20: 借 | F20: 5901 | I20: 借 | J20: 5901
A21: 1122\应收账款 | B21: 无锡市新吴区机关事务服务中心 | C21: 电费 | D21: 微纳园一期 | E21: 借 | F21: 7062.39 | I21: 借 | J21: 7062.39
A22: 1122\应收账款 | B22: 无锡微斯腾信息技术有限公司 | C22: 房屋租赁 | D22: 微纳园一期 | E22: 借 | F22: 532.1 | I22: 借 | J22: 532.1
A23: 1122\应收账款 | B23: 无锡雅美尔科技有限公司 | C23: 房屋租赁 | D23: 微纳园二期 | E23: 借 | F23: 1582.53 | I23: 借 | J23: 1582.53
A24: 1122\应收账款 | B24: 无锡中科光电技术有限公司 | C24: 电费 | D24: 微纳园一期 | E24: 借 | F24: 16512.21 | I24: 借 | J24: 16512.21
A25: 1122\应收账款 | B25: 无锡舟梭节能科技有限公司 | C25: 房屋租赁 | D25: 微纳园一期 | E25: 借 | F25: 3715.2 | I25: 借 | J25: 3715.2
A26: 1122\应收账款 | B26: 中科联合自动化科技无锡分公司 | C26: 房屋租赁 | D26: 微纳园二期 | E26: 借 | F26: 42249.66 | I26: 借 | J26: 42249.66
A27: 1122\应收账款 | B27: 中兴智能交通股份有限公司 | C27: 物业费 | D27: 微纳园一期 | E27: 借 | F27: 12850 | I27: 借 | J27: 12850
A28: 1122\应收账款 | B28: 中兴智能交通股份有限公司 | C28: 电费 | D28: 微纳园一期 | E28: 借 | F28: 4940.57 | I28: 借 | J28: 4940.57
A29: 1122\应收账款 | B29: 中兴智能交通股份有限公司 | C29: 停车场地租赁费 | D29: 微纳园一期 | E29: 借 | F29: 280359.73 | I29: 借 | J29: 280359.73
A30: 1122\应收账款 | B30: 无锡迎嘉信息技术有限公司 | C30: 房屋租赁 | D30: 微纳园二期 | E30: 借 | F30: 30000 | I30: 借 | J30: 30000
A31: 1122\应收账款 | B31: 中智物联技术有限公司 | C31: 房屋租赁 | D31: 微纳园二期 | E31: 借 | F31: 1000 | I31: 借 | J31: 1000
A32: 1122\应收账款 | B32: 无锡泓瑞航天科技有限公司 | C32: 房屋租赁 | D32: 微纳园三期 | E32: 借 | F32: 2609011.3 | I32: 借 | J32: 2609011.3
A33: 1122\应收账款 | B33: 无锡泓瑞航天科技有限公司 | C33: 物业费 | D33: 微纳园三期 | E33: 借 | F33: 420695.1 | I33: 借 | J33: 420695.1
A34: 1122\应收账款 | B34: 无锡泓瑞航天科技有限公司 | C34: 电费 | D34: 微纳园三期 | E34: 借 | F34: 311593.18 | I34: 借 | J34: 311593.18
A35: 1122\应收账款 | B35: 无锡泓瑞航天科技有限公司 | C35: 水费 | D35: 微纳园三期 | E35: 借 | F35: 807.04 | I35: 借 | J35: 807.04
A36: 1122\应收账款 | B36: 无锡医迈德科技有限公司 | C36: 房屋租赁 | D36: 微纳园二期 | E36: 借 | F36: 50400 | I36: 借 | J36: 50400
A37: 1122\应收账款 | B37: 无锡医迈德科技有限公司 | C37: 物业费 | D37: 微纳园二期 | E37: 借 | F37: 10080 | I37: 借 | J37: 10080
A38: 1122\应收账款 | B38: 江苏晟能科技股份有限公司 | C38: 房屋租赁 | D38: 微纳园三期 | E38: 借 | F38: 28875 | I38: 借 | J38: 28875
A39: 1122\应收账款 | B39: 江苏晟能科技股份有限公司 | C39: 物业费 | D39: 微纳园三期 | E39: 借 | F39: 5775 | I39: 借 | J39: 5775
A40: 1122\应收账款 | B40: 无锡创星孵化器管理有限公司 | C40: 房屋租赁 | D40: 微纳园二期 | E40: 借 | F40: 133200 | I40: 借 | J40: 133200
A41: 1122\应收账款 | B41: 无锡中南益瑞服务外包有限公司 | C41: 房屋租赁 | D41: 微纳园一期 | E41: 借 | F41: 9660 | I41: 借 | J41: 9660
A42: 1122\应收账款 | B42: 无锡中南益瑞服务外包有限公司 | C42: 物业费 | D42: 微纳园一期 | E42: 借 | F42: 1932 | I42: 借 | J42: 1932
A43: 1122\应收账款 | B43: 无锡中汉和物流科技有限公司 | C43: 房屋租赁 | D43: 微纳园三期 | E43: 借 | F43: 17115 | I43: 借 | J43: 17115
A44: 1122\应收账款 | B44: 无锡中汉和物流科技有限公司 | C44: 物业费 | D44: 微纳园三期 | E44: 借 | F44: 3423 | I44: 借 | J44: 3423
A45: 1122\应收账款 | B45: 无锡中汉和物流科技有限公司 | C45: 电费 | D45: 微纳园三期 | E45: 借 | F45: 2661.35 | I45: 借 | J45: 2661.35
A46: 1122\应收账款 | B46: 无锡汇才企业管理有限公司 | C46: 电费 | D46: 微纳园二期 | E46: 借 | F46: 2404.81 | I46: 借 | J46: 2404.81
A47: 1122\应收账款 | B47: 摩诃科技无锡有限公司 | C47: 房屋租赁 | D47: 微纳园三期 | E47: 借 | F47: 17104.5 | I47: 借 | J47: 17104.5
A48: 1122\应收账款 | B48: 摩诃科技无锡有限公司 | C48: 物业费 | D48: 微纳园三期 | E48: 借 | F48: 3420.9 | I48: 借 | J48: 3420.9
A49: 1122\应收账款 | B49: 高铭科维科技无锡有限公司 | C49: 房屋租赁 | D49: 微纳园三期 | E49: 借 | F49: 449719.2 | I49: 借 | J49: 449719.2
A50: 1122\应收账款 | B50: 高铭科维科技无锡有限公司 | C50: 物业费 | D50: 微纳园三期 | E50: 借 | F50: 18988.2 | I50: 借 | J50: 18988.2
A51: 1122\应收账款 | B51: 高铭科维科技无锡有限公司 | C51: 电费 | D51: 微纳园三期 | E51: 借 | F51: 1205.51 | I51: 借 | J51: 1205.51
A52: 1122\应收账款 | B52: 无锡精质视觉科技有限公司 | C52: 房屋租赁 | D52: 微纳园三期 | E52: 借 | F52: 29284.5 | I52: 借 | J52: 29284.5
A53: 1122\应收账款 | B53: 无锡精质视觉科技有限公司 | C53: 物业费 | D53: 微纳园三期 | E53: 借 | F53: 5856.9 | I53: 借 | J53: 5856.9
A54: 1122\应收账款 | B54: 蝶和（无锡）智能设备制造有限公司 | C54: 房屋租赁 | D54: 微纳园三期 | E54: 借 | F54: 640925.14 | I54: 借 | J54: 640925.14
A55: 1122\应收账款 | B55: 蝶和（无锡）智能设备制造有限公司 | C55: 物业费 | D55: 微纳园三期 | E55: 借 | F55: 63425.1 | I55: 借 | J55: 63425.1
A56: 1122\应收账款 | B56: 蝶和（无锡）智能设备制造有限公司 | C56: 电费 | D56: 微纳园三期 | E56: 借 | F56: 28245.32 | I56: 借 | J56: 28245.32
A57: 1122\应收账款 | B57: 蝶和（无锡）智能设备制造有限公司 | C57: 水费 | D57: 微纳园三期 | E57: 借 | F57: 208 | I57: 借 | J57: 208
A58: 1122\应收账款 | B58: 轻客智能科技（江苏）有限公司 | C58: 房屋租赁 | D58: 微纳园二期 | E58: 借 | F58: 183321.11 | I58: 借 | J58: 183321.11
A59: 1122\应收账款 | B59: 隆正信息科技有限公司 | C59: 房屋租赁 | D59: 微纳园二期 | E59: 借 | F59: 867880.61 | I59: 借 | J59: 867880.61
A60: 1122\应收账款 | B60: 隆正信息科技有限公司 | C60: 物业费 | D60: 微纳园二期 | E60: 借 | F60: 56525.32 | I60: 借 | J60: 56525.32
A61: 1122\应收账款 | B61: 无锡图灵视频科技有限公司 | C61: 房屋租赁 | D61: 微纳园二期 | E61: 借 | F61: 54180 | I61: 借 | J61: 54180
A62: 1122\应收账款 | B62: 无锡图灵视频科技有限公司 | C62: 物业费 | D62: 微纳园二期 | E62: 借 | F62: 10836 | I62: 借 | J62: 10836
A63: 1122\应收账款 | B63: 无锡图灵视频科技有限公司 | C63: 电费 | D63: 微纳园二期 | E63: 借 | F63: 2426.57 | I63: 借 | J63: 2426.57
A64: 1122\应收账款 | B64: 江苏亚标检测技术服务有限公司 | C64: 房屋租赁 | D64: 微纳园三期 | E64: 借 | F64: 171013.5 | I64: 借 | J64: 171013.5
A65: 1122\应收账款 | B65: 江苏亚标检测技术服务有限公司 | C65: 物业费 | D65: 微纳园三期 | E65: 借 | F65: 34202.7 | I65: 借 | J65: 34202.7
A66: 1122\应收账款 | B66: 江苏行云信息科技有限公司 | C66: 房屋租赁 | D66: 微纳园三期 | E66: 借 | F66: 80283 | I66: 借 | J66: 80283
A67: 1122\应收账款 | B67: 江苏行云信息科技有限公司 | C67: 物业费 | D67: 微纳园三期 | E67: 借 | F67: 16056.6 | I67: 借 | J67: 16056.6
A68: 1122\应收账款 | B68: 无锡翊鸿信息科技有限公司 | C68: 房屋租赁 | D68: 微纳园三期 | E68: 借 | F68: 57645 | I68: 借 | J68: 57645
A69: 1122\应收账款 | B69: 无锡翊鸿信息科技有限公司 | C69: 物业费 | D69: 微纳园三期 | E69: 借 | F69: 11529 | I69: 借 | J69: 11529
A70: 1122\应收账款 | B70: 无锡翊鸿信息科技有限公司 | C70: 电费 | D70: 微纳园三期 | E70: 借 | F70: 3538.27 | I70: 借 | J70: 3538.27
A71: 1122\应收账款 | B71: 无锡正则品冠物联网技术有限公司 | C71: 电费 | D71: 微纳园三期 | E71: 借 | F71: 3367.5 | I71: 借 | J71: 3367.5
A72: 1122\应收账款 | B72: 无锡吉成生物科技有限公司 | C72: 电费 | D72: 微纳园二期 | E72: 借 | F72: 758.19 | I72: 借 | J72: 758.19
A73: 1122\应收账款 | B73: 无锡紫光微电子有限公司 | C73: 房屋租赁 | D73: 微纳园二期 | E73: 借 | F73: 184590 | I73: 借 | J73: 184590
A74: 1122\应收账款 | B74: 无锡紫光微电子有限公司 | C74: 物业费 | D74: 微纳园二期 | E74: 借 | F74: 36918 | I74: 借 | J74: 36918
A75: 1122\应收账款 | B75: 无锡中慧联合科技有限公司 | C75: 房屋租赁 | D75: 微纳园三期 | E75: 借 | F75: 18186 | I75: 借 | J75: 18186
A76: 1122\应收账款 | B76: 无锡中慧联合科技有限公司 | C76: 物业费 | D76: 微纳园三期 | E76: 借 | F76: 3637.2 | I76: 借 | J76: 3637.2
A77: 1122\应收账款 | B77: 无锡微泰传感封测技术有限公司 | C77: 房屋租赁 | D77: 微纳园一期 | E77: 平 | G77: 14490 | I77: 借 | J77: 14490
A78: 1122\应收账款 | B78: 无锡微泰传感封测技术有限公司 | C78: 物业费 | D78: 微纳园一期 | E78: 平 | G78: 2898 | I78: 借 | J78: 2898
A79: 1122\应收账款 | B79: 无锡微泰传感封测技术有限公司 | C79: 电费 | D79: 微纳园一期 | E79: 借 | F79: 12.37 | I79: 借 | J79: 12.37
A80: 1122\应收账款 | B80: 高铭科源科技无锡有限公司 | C80: 房屋租赁 | D80: 微纳园三期 | E80: 借 | F80: 395492.02 | I80: 借 | J80: 395492.02
A81: 1122\应收账款 | B81: 高铭科源科技无锡有限公司 | C81: 物业费 | D81: 微纳园三期 | E81: 借 | F81: 32222.4 | I81: 借 | J81: 32222.4
A82: 1122\应收账款 | B82: 高铭科源科技无锡有限公司 | C82: 电费 | D82: 微纳园三期 | E82: 借 | F82: 2515.78 | I82: 借 | J82: 2515.78
A83: 1122\应收账款 | B83: 江苏生活通信息技术有限公司 | C83: 房屋租赁 | D83: 微纳园一期 | E83: 借 | F83: 8925 | I83: 借 | J83: 8925
A84: 1122\应收账款 | B84: 江苏生活通信息技术有限公司 | C84: 物业费 | D84: 微纳园一期 | E84: 借 | F84: 1785 | I84: 借 | J84: 1785
A85: 1122\应收账款 | B85: 江苏生活通信息技术有限公司 | C85: 电费 | D85: 微纳园一期 | E85: 借 | F85: 1167.87 | I85: 借 | J85: 1167.87
A86: 1122\应收账款 | B86: 无锡暨牧微银物联科技有限公司 | C86: 房屋租赁 | D86: 微纳园一期 | E86: 借 | F86: 381039.54 | I86: 借 | J86: 381039.54
A87: 1122\应收账款 | B87: 江苏彰旗物联网科技有限公司 | C87: 房屋租赁 | D87: 微纳园三期 | E87: 借 | F87: 257242.36 | I87: 借 | J87: 257242.36
A88: 1122\应收账款 | B88: 江苏彰旗物联网科技有限公司 | C88: 物业费 | D88: 微纳园三期 | E88: 借 | F88: 36250.2 | I88: 借 | J88: 36250.2
A89: 1122\应收账款 | B89: 江苏彰旗物联网科技有限公司 | C89: 电费 | D89: 微纳园三期 | E89: 借 | F89: 5267.37 | I89: 借 | J89: 5267.37
A90: 1122\应收账款 | B90: 智驰华芯（无锡）传感科技有限公司 | C90: 房屋租赁 | D90: 微纳园二期 | E90: 借 | F90: 932827.74 | I90: 借 | J90: 932827.74
A91: 1122\应收账款 | B91: 智驰华芯（无锡）传感科技有限公司 | C91: 物业费 | D91: 微纳园二期 | E91: 借 | F91: 265919.22 | I91: 借 | J91: 265919.22
A92: 1122\应收账款 | B92: 智驰华芯（无锡）传感科技有限公司 | C92: 水费 | D92: 微纳园二期 | E92: 借 | F92: 440.96 | I92: 借 | J92: 440.96
A93: 1122\应收账款 | B93: 无锡金尚汽车技术开发有限公司 | C93: 房屋租赁 | D93: 微纳园二期 | E93: 借 | F93: 5355 | I93: 借 | J93: 5355
A94: 1122\应收账款 | B94: 无锡金尚汽车技术开发有限公司 | C94: 物业费 | D94: 微纳园二期 | E94: 借 | F94: 1071 | I94: 借 | J94: 1071
A95: 1122\应收账款 | B95: 江苏中科数泰科技有限公司 | C95: 房屋租赁 | D95: 微纳园二期 | E95: 借 | F95: 172924 | I95: 借 | J95: 172924
A96: 1122\应收账款 | B96: 江苏中科数泰科技有限公司 | C96: 物业费 | D96: 微纳园二期 | E96: 借 | F96: 58380 | I96: 借 | J96: 58380
A97: 1122\应收账款 | B97: 无锡云裳衣联网科技有限公司 | C97: 房屋租赁 | D97: 微纳园一期 | E97: 借 | F97: 25200 | I97: 借 | J97: 25200
A98: 1122\应收账款 | B98: 无锡云裳衣联网科技有限公司 | C98: 物业费 | D98: 微纳园一期 | E98: 借 | F98: 5040 | I98: 借 | J98: 5040
A99: 1122\应收账款 | B99: 无锡品冠衣联网信息技术有限公司 | C99: 房屋租赁 | D99: 微纳园三期 | E99: 借 | F99: 58569 | H99: 23427.6 | I99: 借 | J99: 35141.4
A100: 1122\应收账款 | B100: 无锡米芯微电子技术有限公司 | C100: 房屋租赁 | D100: 微纳园三期 | E100: 借 | F100: 854.5 | I100: 借 | J100: 854.5
A101: 1122\应收账款 | B101: 无锡聚日信息科技有限公司 | C101: 房屋租赁 | D101: 微纳园二期 | E101: 借 | F101: 31080 | I101: 借 | J101: 31080
A102: 1122\应收账款 | B102: 无锡聚日信息科技有限公司 | C102: 物业费 | D102: 微纳园二期 | E102: 借 | F102: 6216 | I102: 借 | J102: 6216
A103: 1122\应收账款 | B103: 江苏达尔塔数据有限公司 | C103: 房屋租赁 | D103: 微纳园三期 | E103: 借 | F103: 425499.9 | I103: 借 | J103: 425499.9
A104: 1122\应收账款 | B104: 江苏达尔塔数据有限公司 | C104: 物业费 | D104: 微纳园三期 | E104: 借 | F104: 16056.6 | I104: 借 | J104: 16056.6
A105: 1122\应收账款 | B105: 江苏达尔塔数据有限公司 | C105: 电费 | D105: 微纳园三期 | E105: 借 | F105: 9003.78 | I105: 借 | J105: 9003.78
A106: 1122\应收账款 | B106: 橙色谷（江苏）科创发展有限公司 | C106: 房屋租赁 | D106: 微纳园一期 | E106: 借 | F106: 73080 | I106: 借 | J106: 73080
A107: 1122\应收账款 | B107: 橙色谷（江苏）科创发展有限公司 | C107: 物业费 | D107: 微纳园一期 | E107: 借 | F107: 9135 | I107: 借 | J107: 9135
A108: 1122\应收账款 | B108: 无锡沃联斯科智能科技有限公司 | C108: 房屋租赁 | D108: 微纳园二期 | E108: 借 | F108: 19506.99 | G108: 29803.67 | I108: 借 | J108: 49310.66
A109: 1122\应收账款 | B109: 无锡沃联斯科智能科技有限公司 | C109: 物业费 | D109: 微纳园二期 | E109: 借 | F109: 4161.27 | G109: 5960.73 | I109: 借 | J109: 10122
A110: 1122\应收账款 | B110: 无锡大途智能科技有限公司 | C110: 房屋租赁 | D110: 微纳园三期 | E110: 借 | F110: 40141.5 | I110: 借 | J110: 40141.5
A111: 1122\应收账款 | B111: 无锡大途智能科技有限公司 | C111: 物业费 | D111: 微纳园三期 | E111: 借 | F111: 16056.6 | I111: 借 | J111: 16056.6
A112: 1122\应收账款 | B112: 无锡市腾通系统科技有限公司 | C112: 房屋租赁 | D112: 微纳园三期 | E112: 借 | F112: 78120 | I112: 借 | J112: 78120
A113: 1122\应收账款 | B113: 无锡市腾通系统科技有限公司 | C113: 物业费 | D113: 微纳园三期 | E113: 借 | F113: 15624 | I113: 借 | J113: 15624
A114: 1122\应收账款 | B114: 无锡专心智制科技有限公司 | C114: 房屋租赁 | D114: 微纳园三期 | E114: 借 | F114: 452061 | I114: 借 | J114: 452061
A115: 1122\应收账款 | B115: 无锡专心智制科技有限公司 | C115: 物业费 | D115: 微纳园三期 | E115: 借 | F115: 75343.5 | I115: 借 | J115: 75343.5
A116: 1122\应收账款 | B116: 江苏瀚点智能科技有限公司 | C116: 房屋租赁 | D116: 微纳园一期 | E116: 借 | F116: 47460 | I116: 借 | J116: 47460
A117: 1122\应收账款 | B117: 江苏瀚点智能科技有限公司 | C117: 物业费 | D117: 微纳园一期 | E117: 借 | F117: 9492 | I117: 借 | J117: 9492
A118: 1122\应收账款 | B118: 康路联（无锡）医疗科技有限公司 | C118: 电费 | D118: 微纳园一期 | E118: 借 | F118: 1882.84 | I118: 借 | J118: 1882.84
A119: 1122\应收账款 | B119: 无锡来龙去脉科技有限公司 | C119: 房屋租赁 | D119: 微纳园三期 | E119: 借 | F119: 87378.32 | I119: 借 | J119: 87378.32
A120: 1122\应收账款 | B120: 无锡来龙去脉科技有限公司 | C120: 物业费 | D120: 微纳园三期 | E120: 借 | F120: 21823.2 | I120: 借 | J120: 21823.2
A121: 1122\应收账款 | B121: 无锡来龙去脉科技有限公司 | C121: 电费 | D121: 微纳园三期 | E121: 借 | F121: 2130.24 | I121: 借 | J121: 2130.24
A122: 1122\应收账款 | B122: 无锡市迪卡瑞智能科技有限公司 | C122: 房屋租赁 | D122: 微纳园一期 | E122: 借 | F122: 47670 | I122: 借 | J122: 47670
A123: 1122\应收账款 | B123: 无锡市迪卡瑞智能科技有限公司 | C123: 物业费 | D123: 微纳园一期 | E123: 借 | F123: 19068 | H123: 9534 | I123: 借 | J123: 9534
A124: 1122\应收账款 | B124: 艾普柯微电子（江苏）有限公司 | C124: 房屋租赁 | D124: 微纳园三期 | E124: 借 | F124: 129351.6 | I124: 借 | J124: 129351.6
A125: 1122\应收账款 | B125: 艾普柯微电子（江苏）有限公司 | C125: 物业费 | D125: 微纳园三期 | E125: 借 | F125: 21558.6 | I125: 借 | J125: 21558.6
A126: 1122\应收账款 | B126: 无锡市润禾信息科技有限公司 | C126: 房屋租赁 | D126: 微纳园三期 | E126: 借 | F126: 183903.04 | I126: 借 | J126: 183903.04
A127: 1122\应收账款 | B127: 无锡市润禾信息科技有限公司 | C127: 物业费 | D127: 微纳园三期 | E127: 借 | F127: 3627.76 | I127: 借 | J127: 3627.76
A128: 1122\应收账款 | B128: 无锡雪云数据科技有限公司 | C128: 物业费 | D128: 微纳园一期 | E128: 借 | F128: 903 | I128: 借 | J128: 903
A129: 1122\应收账款 | B129: 江苏领创智科技发展有限公司 | C129: 房屋租赁 | D129: 微纳园二期 | E129: 借 | F129: 6699 | I129: 借 | J129: 6699
A130: 1122\应收账款 | B130: 江苏领创智科技发展有限公司 | C130: 物业费 | D130: 微纳园二期 | E130: 借 | F130: 1339.8 | I130: 借 | J130: 1339.8
A131: 1122\应收账款 | B131: 江苏领创智科技发展有限公司 | C131: 电费 | D131: 微纳园二期 | E131: 借 | F131: 2105.38 | I131: 借 | J131: 2105.38
A132: 1122\应收账款 | B132: 无锡克莱沃智能装备有限公司 | C132: 房屋租赁 | D132: 微纳园三期 | E132: 借 | F132: 78414 | I132: 借 | J132: 78414
A133: 1122\应收账款 | B133: 无锡克莱沃智能装备有限公司 | C133: 物业费 | D133: 微纳园三期 | E133: 借 | F133: 15682.8 | I133: 借 | J133: 15682.8
A134: 1122\应收账款 | B134: 无锡精质测控科技有限公司 | C134: 房屋租赁 | D134: 微纳园三期 | E134: 借 | F134: 28822.5 | I134: 借 | J134: 28822.5
A135: 1122\应收账款 | B135: 无锡精质测控科技有限公司 | C135: 物业费 | D135: 微纳园三期 | E135: 借 | F135: 11529 | I135: 借 | J135: 11529
A136: 1122\应收账款 | B136: 无锡速芯微电子有限公司 | C136: 电费 | D136: 微纳园二期 | E136: 借 | F136: 634.44 | I136: 借 | J136: 634.44
A137: 1122\应收账款 | B137: 无锡图智科技有限公司 | C137: 房屋租赁 | D137: 微纳园二期 | E137: 借 | F137: 59260 | I137: 借 | J137: 59260
A138: 1122\应收账款 | B138: 无锡图智科技有限公司 | C138: 物业费 | D138: 微纳园二期 | E138: 借 | F138: 12852 | I138: 借 | J138: 12852
A139: 1122\应收账款 | B139: 江苏开盟科技有限公司 | C139: 房屋租赁 | D139: 微纳园三期 | E139: 借 | F139: 17944.5 | I139: 借 | J139: 17944.5
A140: 1122\应收账款 | B140: 江苏开盟科技有限公司 | C140: 物业费 | D140: 微纳园三期 | E140: 借 | F140: 3588.9 | I140: 借 | J140: 3588.9
A141: 1122\应收账款 | B141: 江苏开盟科技有限公司 | C141: 电费 | D141: 微纳园三期 | E141: 借 | F141: 287.28 | I141: 借 | J141: 287.28
A142: 1122\应收账款 | B142: 江苏米孚数字科技有限公司 | C142: 房屋租赁 | D142: 微纳园二期 | E142: 借 | F142: 165375 | H142: 52500 | I142: 借 | J142: 112875
A143: 1122\应收账款 | B143: 江苏米孚数字科技有限公司 | C143: 物业费 | D143: 微纳园二期 | E143: 借 | F143: 44100 | H143: 11025 | I143: 借 | J143: 33075
A144: 1122\应收账款 | B144: 江苏米孚数字科技有限公司 | C144: 电费 | D144: 微纳园二期 | E144: 借 | F144: 5839.81 | I144: 借 | J144: 5839.81
A145: 1122\应收账款 | B145: 江苏奥立信数字科技有限公司 | C145: 房屋租赁 | D145: 微纳园三期 | E145: 借 | F145: 57004.5 | I145: 借 | J145: 57004.5
A146: 1122\应收账款 | B146: 江苏奥立信数字科技有限公司 | C146: 物业费 | D146: 微纳园三期 | E146: 借 | F146: 11400.9 | I146: 借 | J146: 11400.9
A147: 1122\应收账款 | B147: 无锡胜脉电子有限公司 | C147: 电费 | D147: 微纳园四期 | E147: 借 | F147: 314342.16 | H147: 261482.07 | I147: 借 | J147: 52860.09
A148: 1122\应收账款 | B148: 无锡矢岛自动化设备有限公司 | C148: 电费 | D148: 微纳园一期 | E148: 借 | F148: 2.41 | I148: 借 | J148: 2.41
A149: 1122\应收账款 | B149: 无锡漆好环保新材料研究有限公司 | C149: 房屋租赁 | D149: 微纳园二期 | E149: 借 | F149: 62908.79 | I149: 借 | J149: 62908.79
A150: 1122\应收账款 | B150: 无锡漆好环保新材料研究有限公司 | C150: 物业费 | D150: 微纳园二期 | E150: 借 | F150: 12726 | I150: 借 | J150: 12726
A151: 1122\应收账款 | B151: 无锡漆好环保新材料研究有限公司 | C151: 电费 | D151: 微纳园二期 | E151: 借 | F151: 215.61 | I151: 借 | J151: 215.61
A152: 1122\应收账款 | B152: 无锡谱视界科技有限公司 | C152: 房屋租赁 | D152: 微纳园二期 | E152: 借 | F152: 91140 | I152: 借 | J152: 91140
A153: 1122\应收账款 | B153: 无锡谱视界科技有限公司 | C153: 物业费 | D153: 微纳园二期 | E153: 借 | F153: 18228 | I153: 借 | J153: 18228
A154: 1122\应收账款 | B154: 无锡谱视界科技有限公司 | C154: 电费 | D154: 微纳园二期 | E154: 借 | F154: 11351.82 | I154: 借 | J154: 11351.82
A155: 1122\应收账款 | B155: 无锡中启半导体有限公司 | C155: 房屋租赁 | D155: 微纳园一期 | E155: 借 | F155: 16590 | I155: 借 | J155: 16590
A156: 1122\应收账款 | B156: 无锡中启半导体有限公司 | C156: 物业费 | D156: 微纳园一期 | E156: 借 | F156: 4977 | I156: 借 | J156: 4977
A157: 1122\应收账款 | B157: 无锡超行星视频科技有限公司 | C157: 房屋租赁 | D157: 微纳园二期 | E157: 借 | F157: 65100 | I157: 借 | J157: 65100
A158: 1122\应收账款 | B158: 无锡超行星视频科技有限公司 | C158: 物业费 | D158: 微纳园二期 | E158: 借 | F158: 13020 | I158: 借 | J158: 13020
A159: 1122\应收账款 | B159: 无锡超行星视频科技有限公司 | C159: 电费 | D159: 微纳园二期 | E159: 借 | F159: 6661.43 | I159: 借 | J159: 6661.43
A160: 1122\应收账款 | B160: 江苏汇辰智能科技有限公司 | C160: 房屋租赁 | D160: 微纳园三期 | E160: 借 | F160: 221501 | I160: 借 | J160: 221501
A161: 1122\应收账款 | B161: 江苏汇辰智能科技有限公司 | C161: 物业费 | D161: 微纳园三期 | E161: 借 | F161: 44300.2 | I161: 借 | J161: 44300.2
A162: 1122\应收账款 | B162: 无锡硕磊科技有限公司 | C162: 电费 | D162: 微纳园三期 | E162: 借 | F162: 5723.95 | I162: 借 | J162: 5723.95
A163: 1122\应收账款 | B163: 无锡市时盛激光科技有限公司 | C163: 房屋租赁 | D163: 微纳园二期 | E163: 借 | F163: 209790 | I163: 借 | J163: 209790
A164: 1122\应收账款 | B164: 无锡市时盛激光科技有限公司 | C164: 物业费 | D164: 微纳园二期 | E164: 借 | F164: 61362 | I164: 借 | J164: 61362
A165: 1122\应收账款 | B165: 无锡元微数智科技有限公司 | C165: 电费 | D165: 微纳园一期 | E165: 借 | F165: 67.36 | I165: 借 | J165: 67.36
A166: 1122\应收账款 | B166: 无锡盛赛传感科技有限公司 | C166: 房屋租赁 | D166: 微纳园四期 | E166: 平 | G166: 110520 | I166: 借 | J166: 110520
A167: 1122\应收账款 | B167: 无锡盛赛传感科技有限公司 | C167: 物业费 | D167: 微纳园四期 | E167: 平 | G167: 18420 | I167: 借 | J167: 18420
A168: 1122\应收账款 | B168: 无锡盛赛传感科技有限公司 | C168: 电费 | D168: 微纳园四期 | E168: 借 | F168: 5654.47 | I168: 借 | J168: 5654.47
A169: 1122\应收账款 | B169: 无锡盛赛传感科技有限公司 | C169: 水费 | D169: 微纳园四期 | E169: 借 | F169: 574.08 | I169: 借 | J169: 574.08
A170: 1122\应收账款 | B170: 品冠物联科技有限公司 | C170: 房屋租赁 | D170: 微纳园三期 | E170: 借 | F170: 70049.9 | G170: 245199.5 | H170: 70455 | I170: 借 | J170: 244794.4
A171: 1122\应收账款 | B171: 品冠物联科技有限公司 | C171: 物业费 | D171: 微纳园三期 | E171: 借 | F171: 15934.8 | G171: 49039.9 | H171: 14091 | I171: 借 | J171: 50883.7
A172: 1122\应收账款 | B172: 品冠物联科技有限公司 | C172: 水费 | D172: 微纳园三期 | E172: 借 | F172: 8.32 | I172: 借 | J172: 8.32
A173: 1122\应收账款 | B173: 无锡凯丰企业管理顾问有限公司 | C173: 房屋租赁 | D173: 微纳园一期 | E173: 借 | F173: 4200 | I173: 借 | J173: 4200
A174: 1122\应收账款 | B174: 无锡凯丰企业管理顾问有限公司 | C174: 物业费 | D174: 微纳园一期 | E174: 借 | F174: 840 | I174: 借 | J174: 840
A175: 1122\应收账款 | B175: 江苏兴盛诚速通新能源科技有限公司 | C175: 房屋租赁 | D175: 微纳园一期 | E175: 借 | F175: 16172.81 | I175: 借 | J175: 16172.81
A176: 1122\应收账款 | B176: 江苏兴盛诚速通新能源科技有限公司 | C176: 电费 | D176: 微纳园一期 | E176: 借 | F176: 21195.82 | I176: 借 | J176: 21195.82
A177: 1122\应收账款 | B177: 江苏兴盛诚速通新能源科技有限公司 | C177: 电费 | D177: 微纳园二期 | E177: 借 | F177: 1806.67 | I177: 借 | J177: 1806.67
A178: 1122\应收账款 | B178: 江苏神达智能科技有限公司 | C178: 电费 | D178: 微纳园二期 | E178: 借 | F178: 56.28 | I178: 借 | J178: 56.28
A179: 1122\应收账款 | B179: 有芯智能科技（无锡）有限公司 | C179: 房屋租赁 | D179: 微纳园二期 | E179: 借 | F179: 35070 | I179: 借 | J179: 35070
A180: 1122\应收账款 | B180: 有芯智能科技（无锡）有限公司 | C180: 物业费 | D180: 微纳园二期 | E180: 借 | F180: 7014 | I180: 借 | J180: 7014
A181: 1122\应收账款 | B181: 有芯智能科技（无锡）有限公司 | C181: 电费 | D181: 微纳园二期 | E181: 借 | F181: 280.73 | I181: 借 | J181: 280.73
A182: 1122\应收账款 | B182: 华合仁（江苏）科技发展有限公司 | C182: 房屋租赁 | D182: 微纳园三期 | E182: 借 | F182: 18186 | I182: 借 | J182: 18186
A183: 1122\应收账款 | B183: 华合仁（江苏）科技发展有限公司 | C183: 物业费 | D183: 微纳园三期 | E183: 借 | F183: 3637.2 | I183: 借 | J183: 3637.2
A184: 1122\应收账款 | B184: 华合仁（江苏）科技发展有限公司 | C184: 电费 | D184: 微纳园三期 | E184: 借 | F184: 749.52 | I184: 借 | J184: 749.52
A185: 1122\应收账款 | B185: 图灵威视智能科技（无锡）有限公司 | C185: 房屋租赁 | D185: 微纳园二期 | E185: 借 | F185: 60480 | I185: 借 | J185: 60480
A186: 1122\应收账款 | B186: 图灵威视智能科技（无锡）有限公司 | C186: 物业费 | D186: 微纳园二期 | E186: 借 | F186: 12096 | I186: 借 | J186: 12096
A187: 1122\应收账款 | B187: 图灵威视智能科技（无锡）有限公司 | C187: 电费 | D187: 微纳园二期 | E187: 借 | F187: 1438.64 | I187: 借 | J187: 1438.64
A188: 1122\应收账款 | B188: 无锡布里渊电子科技有限公司 | C188: 房屋租赁 | D188: 微纳园一期 | E188: 借 | F188: 94710 | I188: 借 | J188: 94710
A189: 1122\应收账款 | B189: 无锡布里渊电子科技有限公司 | C189: 物业费 | D189: 微纳园一期 | E189: 借 | F189: 18942 | I189: 借 | J189: 18942
A190: 1122\应收账款 | B190: 无锡凯盟威电子科技有限公司 | C190: 电费 | D190: 微纳园三期 | E190: 借 | F190: 906.81 | I190: 借 | J190: 906.81
A191: 1122\应收账款 | B191: 无锡芯拓科技有限公司 | C191: 电费 | D191: 微纳园三期 | E191: 借 | F191: 182.07 | I191: 借 | J191: 182.07
A192: 1122\应收账款 | B192: 无锡秩熵物联网科技有限公司 | C192: 电费 | D192: 微纳园二期 | E192: 借 | F192: 260.83 | I192: 借 | J192: 260.83
A193: 1122\应收账款 | B193: 江苏安友生物科技有限公司 | C193: 房屋租赁 | D193: 微纳园二期 | E193: 借 | F193: 50750 | I193: 借 | J193: 50750
A194: 1122\应收账款 | B194: 江苏安友生物科技有限公司 | C194: 物业费 | D194: 微纳园二期 | E194: 借 | F194: 10150 | I194: 借 | J194: 10150
A195: 1122\应收账款 | B195: 江苏安友生物科技有限公司 | C195: 电费 | D195: 微纳园二期 | E195: 借 | F195: 461.96 | I195: 借 | J195: 461.96
A196: 1122\应收账款 | B196: 无锡酷能科技有限公司 | C196: 房屋租赁 | D196: 微纳园三期 | E196: 借 | F196: 28822.5 | I196: 借 | J196: 28822.5
A197: 1122\应收账款 | B197: 无锡酷能科技有限公司 | C197: 物业费 | D197: 微纳园三期 | E197: 借 | F197: 5764.5 | I197: 借 | J197: 5764.5
A198: 1122\应收账款 | B198: 中讯通康信息科技无锡有限公司 | C198: 物业费 | D198: 微纳园二期 | E198: 借 | F198: 2898.2 | H198: 2898 | I198: 借 | J198: 0.2
A199: 1122\应收账款 | B199: 八千里（无锡）科技有限公司 | C199: 房屋租赁 | D199: 微纳园三期 | E199: 借 | F199: 40998.3 | I199: 借 | J199: 40998.3
A200: 1122\应收账款 | B200: 八千里（无锡）科技有限公司 | C200: 物业费 | D200: 微纳园三期 | E200: 借 | F200: 8199.66 | I200: 借 | J200: 8199.66
A201: 1122\应收账款 | B201: 南京恒新天朗电子科技有限公司 | C201: 物业费 | D201: 微纳园一期 | E201: 借 | F201: 3990 | I201: 借 | J201: 3990
A202: 1122\应收账款 | B202: 无锡兴华慧筑科技有限公司 | C202: 房屋租赁 | D202: 微纳园一期 | E202: 借 | F202: 1773.33 | I202: 借 | J202: 1773.33
A203: 1122\应收账款 | B203: 无锡兴华慧筑科技有限公司 | C203: 物业费 | D203: 微纳园一期 | E203: 借 | F203: 354.67 | I203: 借 | J203: 354.67
A204: 1122\应收账款 | B204: 无锡兴华慧筑科技有限公司 | C204: 电费 | D204: 微纳园一期 | E204: 借 | F204: 18.39 | I204: 借 | J204: 18.39
... 8 more rows

Sheet 字典管理
A2: 菜单模块 | B2: 字典名称 | C2: 字典子项
A3: 楼盘管理 | B3: 类型 | C3: 商铺、写字楼、场地
A4: 楼栋管理 | B4: 楼层 | C4: 一层、二层、三层、四层、五层、六层、七层、八层、九层、十层、十一层、负一层、屋顶、整栋
B5: 楼层区域 | C5: A1\A2\B1\B2\B3\C1\C2\D1\D2\E1\E2\F1\F2\F3\F4\F5\F6\F7\F8F9\F10\F11\F12\G1\G2\G4\G3\G5\G6\G7\G8\G9\G10\H1\H2\H4\H5\H6\H7
A6: 房间管理 | B6: 房间可用状态 | C6: 可用、禁用
B7: 租赁状态 | C7: 正常、司法、维修、办公占用、临时占用、招商锁定
B8: 房间用途 | C8: 研发办公、餐饮配套、生产
B9: 朝向 | C9: 朝东、朝西、朝南、朝北
B10: 物业性质 | C10: 自有物业、社会物业
A11: 走访上报 | B11: 走访类型 | C11: 定时走访、上市进展
A12: 招商-项目管理 | B12: 房源当前状态 | C12: 空置、锁定、预约、临期、已租、到期、其他
B13: 项目类型 | C13: 租赁、挂靠
B14: 项目状态 | C14: 跟进中、已确定、已签约、关闭
A15: 合同管理 | B15: 合同类型 | C15: 租赁合同 、挂靠合同
B16: 合同状态 | C16: 未生效、生效中、到期、到期续约、到期终止、终止、已作废
B17: 模板类型 | C17: 租赁模板A、租赁模板B（阶梯合同）
A18: 企业库管理 | B18: 入驻类型 | C18: 在园、挂靠、异地生产、飞地
B19: 币种 | C19: 人民币、美金
A20: 企业入库审核 | B20: 处理结果 | C20: 通过、不通过
A21: 经发导入数据查询 | B21: 任务年份 | C21: 2029、2021、2022、2023、2024、2025、2026、2027、2028、2029
B22: 任务月份 | C22: 1月、2月、3月、4月、5月、6月、 7月、8月、9月、10月、11月、12月

Sheet 合同信息
A1: 合同类型 | B1: 合同状态 | C1: 区域 | D1: 楼层 | E1: 门牌号 | F1: 入驻企业 | G1: 合同面积㎡ | H1: 起租时间 | I1: 到期时间 | J1: 房屋单价 | K1: 物业单价 | L1: 法人/联系人 | M1: 联系方式 | N1: 备注
A2: 租赁合同 | B2: 生效中 | C2: A栋 | D2: 二层 | E2: A-202 | F2: 中设国联无锡新能源发展有限公司 | G2: 1513 | H2: 2023-02-01 | I2: 2026-01-31 | J2: 35 | K2: 7 | L2: 杨乐 | M2: 13771121286
A3: 租赁合同 | B3: 生效中 | C3: A栋 | D3: 三层 | E3: A-301-3 | F3: 无锡新企友工业外包有限公司 | G3: 258 | H3: 2023-03-01 | I3: 2026-02-28 | J3: 35 | K3: 7 | L3: 钱锋 | M3: 18851585735
A4: 租赁合同 | B4: 生效中 | C4: B栋 | D4: 一层 | E4: B-113 | F4: 无锡新思云众科技有限公司 | G4: 219 | H4: 2023-01-15 | I4: 2026-01-14 | J4: 35 | K4: 7 | L4: 陈璐 | M4: 13771005079
A5: 租赁合同 | B5: 生效中 | C5: B栋 | D5: 二层 | E5: B-222 | F5: 江苏中科君芯科技有限公司 | G5: 200 | H5: 2018-01-01 | I5: 2022-12-31 | J5: 35 | K5: 7 | L5: 肖庆云 | M5: 13902972899
A6: 租赁合同 | B6: 生效中 | C6: B栋 | D6: 三层 | E6: B-301 | F6: 无锡文思创新信息技术有限公司 | G6: 226 | H6: 2023-02-15 | I6: 2026-02-14 | J6: 35 | K6: 7 | L6: 曾金莲 | M6: 13270137505
A7: 租赁合同 | B7: 生效中 | C7: B栋 | D7: 四层 | E7: B-416 | F7: 无锡旭浦能源科技有限公司 | G7: 443 | H7: 2023-02-01 | I7: 2026-01-31 | J7: 35 | K7: 7 | L7: 吴超 | M7: 18662777776
A8: 租赁合同 | B8: 生效中 | C8: B栋 | D8: 四层 | E8: B-406-A | F8: 无锡麦姆斯咨询有限公司 | G8: 61 | H8: 2023-02-01 | I8: 2026-01-31 | J8: 35 | K8: 7 | L8: 田娟 | M8: 13196572937
A9: 租赁合同 | B9: 生效中 | C9: B栋 | D9: 二层 | E9: B-288 | F9: 无锡市新吴区机关事务服务中心 | G9: 1215 | H9: 2020-01-01 | I9: 2022-12-31 | J9: 35 | K9: 0 | L9: 丁松 | M9: 81890170
A10: 物业合同 | B10: 生效中 | C10: C栋 | D10: 整栋 | E10: C栋 | F10: 江苏物联网研究发展中心 | G10: 24670.35 | H10: 2023-01-01 | I10: 2023-12-31 | J10: 0 | K10: 5 | L10: 张喜江 | M10: 15251509036
A11: 租赁合同 | B11: 生效中 | C11: D栋 | D11: 四层 | E11: D2-401 | F11: 无锡紫光微电子有限公司 | G11: 1758 | H11: 2023-01-01 | I11: 2025-12-31 | J11: 35 | K11: 7 | L11: 马道杰 | M11: 15961832572
A12: 租赁合同 | B12: 生效中 | C12: D栋 | D12: 六层 | E12: D2-611 | F12: 华景传感科技（无锡）有限公司 | G12: 70.2 | H12: 2023-01-01 | I12: 2023-12-31 | J12: 35 | K12: 7 | L12: 吴亮 | M12: 15161695069 | N12: 一份合同
A13: 租赁合同 | B13: 生效中 | C13: D栋 | D13: 六层 | E13: D2-615 | F13: 华景传感科技（无锡）有限公司 | G13: 123.7 | H13: 2023-01-01 | I13: 2023-12-31 | J13: 35 | K13: 7 | L13: 吴亮 | M13: 15161695069
A14: 租赁合同 | B14: 生效中 | C14: E栋 | D14: 三层 | E14: E2-310 | F14: 无锡华耀生物科技有限公司 | G14: 184 | H14: 2023-03-01 | I14: 2026-02-28 | J14: 35 | K14: 7 | L14: 纪婷蕊 | M14: 18961868200
A15: 租赁合同 | B15: 生效中 | C15: E栋 | D15: 三层 | E15: E1-302 | F15: 无锡开云信息技术有限公司 | G15: 762 | H15: 2023-01-01 | I15: 2025-12-31 | J15: 35 | K15: 7 | L15: 郑浩然 | M15: 13914136591
A16: 租赁合同 | B16: 生效中 | C16: E栋 | D16: 四层 | E16: E2-403 | F16: 牛拓新材料科技（无锡）股份有限公司 | G16: 281 | H16: 2023-03-01 | I16: 2026-02-28 | J16: 35 | K16: 7 | L16: 陈超 | M16: 15358988866
A17: 租赁合同 | B17: 生效中 | C17: E栋 | D17: 五层 | E17: E2-509 | F17: 中力航空设备（江苏）有限公司 | G17: 305 | H17: 2023-01-01 | I17: 2024-12-31 | J17: 35 | K17: 7 | L17: 周凤彬 | M17: 13852620338
A18: 租赁合同 | B18: 生效中 | C18: E栋 | D18: 五层 | E18: E2-525 | F18: 无锡巨谷科技有限公司 | G18: 92 | H18: 2023-01-20 | I18: 2026-01-19 | J18: 35 | K18: 7 | L18: 李忠义 | M18: 13912371360
A19: 租赁合同 | B19: 生效中 | C19: E栋 | D19: 五层 | E19: E2-535 | F19: 无锡光之谷传感技术有限公司 | G19: 70 | H19: 2023-01-01 | I19: 2025-12-31 | J19: 35 | K19: 7 | L19: 龙双 | M19: 13812021024
A20: 租赁合同 | B20: 生效中 | C20: G1 | D20: 八层 | E20: G1-801 | G20: 214.7 | J20: 35 | K20: 7
A21: 租赁合同 | B21: 生效中 | C21: G1 | D21: 八层 | E21: G1-802 | G21: 372 | J21: 35 | K21: 7
A22: 租赁合同 | B22: 生效中 | C22: G1 | D22: 八层 | E22: G1-803 | F22: 江苏曼荼罗软件股份有限公司 | G22: 170.9 | H22: 2023-06-19 | I22: 2023-09-18 | J22: 35 | K22: 7 | L22: 陆艺 | M22: 13915280061
A23: 租赁合同 | B23: 生效中 | C23: G1 | D23: 八层 | E23: G1-806 | F23: 无锡力捷丰科技有限公司 | G23: 542.9 | H23: 2023-07-01 | I23: 2024-06-30 | J23: 35 | K23: 7 | L23: 楚 丰 | M23: 15061825973 | N23: 一份合同
A24: 租赁合同 | B24: 生效中 | C24: G1 | D24: 八层 | E24: G1-808 | F24: 无锡力捷丰科技有限公司 | G24: 373.4 | H24: 2023-07-01 | I24: 2024-06-30 | J24: 35 | K24: 7 | L24: 楚 丰 | M24: 15061825973
A25: 租赁合同 | B25: 生效中 | C25: G1 | D25: 九层 | E25: G1-902 | F25: 无锡创思感知科技有限公司 | G25: 372 | H25: 2023-01-01 | I25: 2025-12-31 | J25: 35 | K25: 7 | L25: 左丹丹 | M25: 13395166227
A26: 租赁合同 | B26: 生效中 | C26: G1 | D26: 十层 | E26: G1-1002 | F26: 无锡微田园网络科技有限公司 | G26: 372 | H26: 2023-01-08 | I26: 2026-01-07 | J26: 35 | K26: 7 | L26: 邵伟 | M26: 13606190126
A27: 租赁合同 | B27: 生效中 | C27: G2 | D27: 一层 | E27: G2-101 | F27: 无锡菲光科技有限公司 | G27: 1183.4 | H27: 2023-07-01 | I27: 2026-06-30 | J27: 30 | K27: 5 | L27: 薛银飞 | M27: 18961809602
A28: 租赁合同 | B28: 生效中 | C28: G2 | D28: 二层 | E28: G2-201 | F28: 无锡菲光科技有限公司 | G28: 1450.2 | H28: 2023-02-01 | I28: 2026-01-31 | J28: 30 | K28: 5 | L28: 薛银飞 | M28: 18961809602
A29: 租赁合同 | B29: 生效中 | C29: G2 | D29: 三层 | E29: G2-301 | F29: 广电计量检测（无锡）有限公司 | G29: 1450.2 | H29: 2023-03-01 | I29: 2023-12-31 | J29: 30 | K29: 5 | L29: 朱钧 | M29: 15861498442
A30: 租赁合同 | B30: 生效中 | C30: G10 | D30: 五层 | E30: G10-510 | F30: 江苏明/软件技术股份有限公司 | G30: 382.3 | H30: 2023-01-01 | I30: 2025-12-31 | J30: 35 | K30: 7 | L30: 卢瑛 | M30: 18912353083
A31: 租赁合同 | B31: 生效中 | C31: G10 | D31: 八层 | E31: G10-808 | F31: 爱欧意科技无锡有限公司 | G31: 274.5 | H31: 2023-03-01 | I31: 2026-02-28 | J31: 35 | K31: 7 | L31: 张瑜 | M31: 13338106639
A32: 租赁合同 | B32: 生效中 | C32: G10 | D32: 十一层 | E32: G10-1101 | F32: 高铭科维科技无锡有限公司 | G32: 162.9 | H32: 2016-12-15 | I32: 2021/11/30 | J32: 35 | K32: 7 | L32: 刘飞 | M32: 13608306022
A33: 租赁合同 | B33: 生效中 | C33: G10 | D33: 十一层 | E33: G10-1103 | F33: 高铭科维科技无锡有限公司 | G33: 173.2 | H33: 2019-07-01 | I33: 2022/6/30 | J33: 35 | K33: 7 | L33: 刘飞 | M33: 13608306022 | N33: 一份合同
A34: 租赁合同 | B34: 生效中 | C34: G10 | D34: 十一层 | E34: G10-1106 | F34: 高铭科维科技无锡有限公司 | G34: 278.9 | H34: 2019-07-01 | I34: 2022-06-30 | J34: 35 | K34: 7 | L34: 刘飞 | M34: 13608306022
A35: 租赁合同 | B35: 生效中 | C35: G10 | D35: 十一层 | E35: G10-1110 | F35: 江苏达尔塔数据有限公司 | G35: 382.3 | H35: 2019-07-01 | I35: 2022/6/30 | J35: 35 | K35: 7 | L35: 刘力 | M35: 18519708633
A36: 租赁合同 | B36: 生效中 | C36: G5 | D36: -1层 | E36: G5-地下1层 | F36: 龙微科技无锡有限公司 | G36: 2460.3 | H36: 2023-01-01 | I36: 2025-12-31 | J36: 15 | K36: 5 | L36: 杨倩 | M36: 18552505685 | N36: 一份合同
A37: 租赁合同 | B37: 生效中 | C37: G5 | D37: 一层 | E37: G5 | F37: 龙微科技无锡有限公司 | G37: 5126.61 | H37: 2023-01-01 | I37: 2025-12-31 | J37: 30 | K37: 5 | L37: 杨倩 | M37: 18552505685
A38: 租赁合同 | B38: 生效中 | C38: D栋 | D38: 六层 | E38: D2-614 | G38: 62.5 | J38: 35 | K38: 7
A39: 租赁合同 | B39: 生效中 | C39: E栋 | D39: 四层 | E39: E2-417 | F39: 无锡沃联斯科智能科技有限公司 | G39: 241 | H39: 2023-03-15 | I39: 2025-03-14 | J39: 35 | K39: 7 | L39: 张涛 | M39: 13951511696
A40: 租赁合同 | B40: 生效中 | C40: G1 | D40: 三层 | E40: G1-301 | F40: 森特奈智能科技（无锡）有限公司 | G40: 214 | H40: 2023-01-01 | I40: 2025-12-31 | J40: 35 | K40: 7 | L40: 赵/卿 | M40: 13793403432
A41: 租赁合同 | B41: 生效中 | C41: A栋 | D41: 一层 | E41: A-101 | F41: 无锡市新吴区机关事务服务中心 | G41: 2771 | H41: 2020-01-01 | I41: 2025-04-30 | J41: 35 | K41: 8.5 | L41: 丁松 | M41: 15050696661
A42: 租赁合同 | B42: 生效中 | C42: B栋 | D42: 一层 | E42: B-PT-102 | G42: 155.78
A43: 租赁合同 | B43: 生效中 | C43: B栋 | D43: 一层 | E43: B-PT-101 | F43: 延安知青印象农业有限公司 | G43: 207.56 | H43: 2023-06-01 | I43: 2026-06-01 | J43: / | K43: / | L43: 田鑫 | M43: 15129112129
A44: 租赁合同 | B44: 生效中 | C44: A栋 | D44: 二层 | E44: A-201 | F44: 瓴芯电子科技（无锡）有限公司 | G44: 1259 | H44: 2019-11-01 | I44: 2025-10-31 | J44: 35 | K44: 7 | L44: NI CHUAN | M44: 18068298716
A45: 租赁合同 | B45: 生效中 | C45: A栋 | D45: 三层 | E45: A-302 | F45: 无锡掌薪网络科技有限公司 | G45: 317 | H45: 2022-01-01 | I45: 2024-12-31 | J45: 35 | K45: 7 | L45: 许建军 | M45: 13338119165
A46: 租赁合同 | B46: 生效中 | C46: A栋 | D46: 三层 | E46: A-304 | F46: 无锡掌薪网络科技有限公司 | G46: 258 | H46: 2022-10-01 | I46: 2025-09-30 | J46: 35 | K46: 7 | L46: 许建军 | M46: 13338119165
A47: 租赁合同 | B47: 生效中 | C47: A栋 | D47: 三层 | E47: A-306 | F47: 无锡人才之家信息科技有限公司 | G47: 190 | H47: 2022-10-01 | I47: 2025-09-30 | J47: 35 | K47: 7 | L47: 杨晓峰 | M47: 13813691833
A48: 租赁合同 | B48: 生效中 | C48: A栋 | D48: 三层 | E48: A-310 | F48: 无锡奥维斯管理咨询有限公司 | G48: 360 | H48: 2021-04-01 | I48: 2024-03-31 | J48: 35 | K48: 7 | L48: 朱新华 | M48: 13771443322
A49: 租赁合同 | B49: 生效中 | C49: A栋 | D49: 三层 | E49: A-311 | F49: 无锡中智人力资源服务有限公司 | G49: 227 | H49: 2021-06-01 | I49: 2024-05-31 | J49: 35 | K49: 7 | L49: 吴晓兰 | M49: 18651868665
A50: 租赁合同 | B50: 生效中 | C50: A栋 | D50: 三层 | E50: A-307-1 | F50: 江苏开心工作科技有限公司 | G50: 223 | H50: 2020-03-16 | I50: 2024-03-15 | J50: 35 | K50: 7 | L50: 蒋丹 | M50: 13961899958
A51: 租赁合同 | B51: 生效中 | C51: A栋 | D51: 三层 | E51: A-307-2 | G51: 191 | J51: 35 | K51: 7
A52: 租赁合同 | B52: 生效中 | C52: A栋 | D52: 三层 | E52: A-301-1 | G52: 209
A53: 租赁合同 | B53: 生效中 | C53: A栋 | D53: 三层 | E53: A-301-2 | G53: 177 | J53: 35 | K53: 7
A54: 租赁合同 | B54: 生效中 | C54: A栋 | D54: 三层 | E54: A-308 | F54: 无锡市新吴区人力资源服务行业协会 | G54: 254 | H54: 2022-01-01 | I54: 2024-12-31 | J54: 35 | K54: 7 | L54: 蒋丹 | M54: 13961899958
A55: 租赁合同 | B55: 生效中 | C55: A栋 | D55: 四层 | E55: A-401 | F55: 无锡伙伴人力资源服务有限公司 | G55: 550.4 | H55: 2023-04-01 | I55: 2025-12-31 | J55: 35 | K55: 7 | L55: 朱晓燕 | M55: 15251623203
A56: 租赁合同 | B56: 生效中 | C56: A栋 | D56: 四层 | E56: A-402 | F56: 无锡高新人才发展集团有限公司 | G56: 570 | H56: 2023-01-01 | I56: 2025-12-31 | J56: 35 | K56: 7 | L56: 朱晓燕 | M56: 15052250111 | N56: 每家公司一个合同
A57: 租赁合同 | B57: 生效中 | C57: A栋 | D57: 四层 | E57: A-402-1 | F57: 无锡高新人才管理咨询有限公司 | G57: 40 | H57: 2023-01-01 | I57: 2025-12-31 | J57: 35 | K57: 7 | L57: 朱晓燕 | M57: 14852877019
A58: 租赁合同 | B58: 生效中 | C58: A栋 | D58: 四层 | E58: A-402-2 | F58: 无锡高新人才数字科技有限公司 | G58: 40 | H58: 2023-01-01 | I58: 2025-12-31 | J58: 35 | K58: 7 | L58: 朱晓燕 | M58: 14653503927
A59: 租赁合同 | B59: 生效中 | C59: A栋 | D59: 四层 | E59: A-402-3 | F59: 无锡高杰外包服务有限公司 | G59: 40 | H59: 2023-01-01 | I59: 2025-12-31 | J59: 35 | K59: 7 | L59: 朱晓燕 | M59: 14454130835
A60: 租赁合同 | B60: 生效中 | C60: A栋 | D60: 四层 | E60: A-406 | F60: 无锡美偌科微电子有限公司 | G60: 340.5866667 | H60: 2021-05-01 | I60: 2025-04-30 | J60: 35 | K60: 7 | L60: 夏中宇 | M60: 13585000628
A61: 租赁合同 | B61: 生效中 | C61: A栋 | D61: 四层 | E61: A-407 | F61: 无锡美偌科微电子有限公司 | G61: 1461.024 | H61: 2021-05-01 | I61: 2025-04-30 | J61: 35 | K61: 7 | L61: 夏中宇 | M61: 13585000628
A62: 租赁合同 | B62: 生效中 | C62: A栋 | D62: 五层 | E62: A-501 | F62: 无锡金源半导体科技有限公司 | G62: 672 | H62: 2021-11-12 | I62: 2024-11-30 | J62: 35 | K62: 7 | L62: 刘阳 | M62: 13115058893
A63: 租赁合同 | B63: 生效中 | C63: A栋 | D63: 五层 | E63: A-509 | F63: 无锡浩真微电子有限公司 | G63: 331 | H63: 2021-04-01 | I63: 2024-03-31 | J63: 35 | K63: 7 | L63: 季富荣 | M63: 13901723347
A64: 租赁合同 | B64: 生效中 | C64: A栋 | D64: 五层 | E64: A-507 | F64: 江苏洵谷智能科技有限公司 | G64: 331 | H64: 2023-05-03 | I64: 2025-05-02 | J64: 35 | K64: 7 | L64: 高鹲 | M64: 15052107119
A65: 租赁合同 | B65: 生效中 | C65: A栋 | D65: 五层 | E65: A-502 | F65: 阿达智能装备（江苏）有限公司 | G65: 604 | H65: 2022-03-29 | I65: 2025-03-28 | J65: 35 | K65: 7 | L65: HE YUNBO | M65: 15207550012
A66: 租赁合同 | B66: 生效中 | C66: A栋 | D66: 五层 | E66: A-518 | F66: 无锡市迪卡瑞智能科技有限公司 | G66: 227 | H66: 2020-09-01 | I66: 2025-04-30 | J66: 35 | K66: 7 | L66: 宋瑞俊 | M66: 15852538088
A67: 租赁合同 | B67: 生效中 | C67: A栋 | D67: 五层 | E67: A-506 | F67: 江苏京华山一商业保理有限公司 | G67: 800 | H67: 2021-04-01 | I67: 2025-03-31 | J67: 23 | K67: 7 | L67: 时祥 | M67: 13852598000
A68: 租赁合同 | B68: 生效中 | C68: A栋 | D68: 五层 | E68: A-516 | F68: 无锡星承云启信息技术有限公司 | G68: 144 | H68: 2022-09-01 | I68: 2025-08-31 | J68: 35 | K68: 7 | L68: 沈俊强 | M68: 18915732083
A69: 租赁合同 | B69: 生效中 | C69: A栋 | D69: 六层 | E69: A-601 | F69: 江苏深网科技有限公司 | G69: 534.88 | H69: 2021-10-01 | I69: 2024-09-30 | J69: 35 | K69: 7 | L69: 王传林 | M69: 13915358105
A70: 租赁合同 | B70: 生效中 | C70: A栋 | D70: 六层 | E70: A-602 | G70: 1615.16
A71: 租赁合同 | B71: 生效中 | C71: A栋 | D71: 六层 | E71: A-603 | G71: 33.7
A72: 租赁合同 | B72: 生效中 | C72: A栋 | D72: 六层 | E72: A-605 | G72: 867.26
A73: 租赁合同 | B73: 生效中 | C73: A栋 | D73: 七层 | E73: A-701 | F73: 无锡市艾克特电气股份有限公司 | G73: 3051 | H73: 2022-09-01 | I73: 2023-08-31 | J73: 35 | K73: 7 | L73: 刘建 | M73: 18961882930
A74: 租赁合同 | B74: 生效中 | C74: A栋 | D74: 八层 | E74: A-805 | F74: 无锡布勒卡乐服务外包有限公司 | G74: 288 | H74: 2021-01-01 | I74: 2023-12-31 | J74: 35 | K74: 7 | L74: 张德威 | M74: 13861713682
A75: 租赁合同 | B75: 生效中 | C75: A栋 | D75: 八层 | E75: A-802 | F75: 无锡奥利杰科技有限公司 | G75: 320 | H75: 2021-12-31 | I75: 2024-12-30 | J75: 35 | K75: 7 | L75: 周志城 | M75: 13395111011
A76: 租赁合同 | B76: 生效中 | C76: A栋 | D76: 八层 | E76: A-808 | F76: 南京恒新天朗电子科技有限公司 | G76: 190 | H76: 2022-12-01 | I76: 2025-11-30 | J76: 35 | K76: 7 | L76: 光晓山 | M76: 18905170036
A77: 租赁合同 | B77: 生效中 | C77: A栋 | D77: 八层 | E77: A-801 | F77: 上海佐越企业管理有限公司 | G77: 194 | H77: 2022-04-01 | I77: 2025-03-31 | J77: 35 | K77: 7 | L77: 郭明敏 | M77: 15852719762
A78: 租赁合同 | B78: 生效中 | C78: A栋 | D78: 八层 | E78: A-804 | F78: 无锡奥利杰科技有限公司 | G78: 480 | H78: 2021-06-01 | I78: 2024-05-31 | J78: 35 | K78: 7 | L78: 周志城 | M78: 13395111011
A79: 租赁合同 | B79: 生效中 | C79: A栋 | D79: 九层 | E79: A-901 | F79: 无锡市新吴区机关事务服务中心 | G79: 1579 | H79: 2020-01-01 | I79: 2025-03-31 | J79: 35 | K79: 8.5 | L79: 丁松 | M79: 81890170
A80: 租赁合同 | B80: 生效中 | C80: A栋 | D80: 十层 | E80: A-1001 | F80: 无锡市杰特电气有限公司 | G80: 1579 | H80: 2023-01-01 | I80: 2023-08-31 | J80: 35 | K80: 7 | L80: 冯钶 | M80: 18861875273
A81: 租赁合同 | B81: 生效中 | C81: A栋 | D81: 十一层 | E81: A-1101 | G81: 1579
A82: 租赁合同 | B82: 生效中 | C82: B栋 | D82: 一层 | E82: B-101 | F82: 无锡永逸乐机电设备有限公司 | G82: 668 | H82: 2022-01-01 | I82: 2024-12-31 | J82: 35 | K82: 7 | L82: 虞婧娜 | M82: 13861456657
A83: 租赁合同 | B83: 生效中 | C83: B栋 | D83: 一层 | E83: B-106 | F83: 无锡通测检测技术有限公司 | G83: 128 | H83: 2019-02-01 | I83: 2025-01-31 | J83: 35 | K83: 7 | L83: 石章华 | M83: 15861463945
A84: 租赁合同 | B84: 生效中 | C84: B栋 | D84: 一层 | E84: B-108 | F84: 无锡通优检测技术有限公司 | G84: 206 | H84: 2022-06-01 | I84: 2025-05-31 | J84: 35 | K84: 7 | L84: 陈鹏鹏 | M84: 18851503279
A85: 租赁合同 | B85: 生效中 | C85: B栋 | D85: 一层 | E85: B-109 | F85: 无锡通测检测技术有限公司 | G85: 149 | H85: 2019-02-01 | I85: 2025-01-31 | J85: 35 | K85: 7 | L85: 石章华 | M85: 15861463945
A86: 租赁合同 | B86: 生效中 | C86: B栋 | D86: 一层 | E86: B-111 | F86: 无锡凡特物联技术有限公司 | G86: 112 | H86: 2023-06-15 | I86: 2024-06-14 | J86: 35 | K86: 7 | L86: 金哲 | M86: 15106178761
A87: 租赁合同 | B87: 生效中 | C87: B栋 | D87: 一层 | E87: B-112 | F87: 无锡赛米斯半导体科技有限公司 | G87: 139 | H87: 2023-05-29 | I87: 2024-05-28 | J87: 35 | K87: 7 | L87: 陈立明 | M87: 15961744582
A88: 租赁合同 | B88: 生效中 | C88: B栋 | D88: 一层 | E88: B-115 | F88: 广电计量检测（无锡）有限公司 | G88: 147 | H88: 2018-08-01 | I88: 2023-07-31 | J88: 35 | K88: 7 | L88: 黄沃文 | M88: 13326408290
A89: 租赁合同 | B89: 生效中 | C89: B栋 | D89: 一层 | E89: B-116 | F89: 广电计量检测（无锡）有限公司 | G89: 182 | H89: 2019-02-01 | I89: 2025-01-31 | J89: 35 | K89: 7 | L89: 黄沃文 | M89: 13326408290
A90: 租赁合同 | B90: 生效中 | C90: B栋 | D90: 一层 | E90: B-117 | F90: 广电计量检测（无锡）有限公司 | G90: 234 | H90: 2019-05-01 | I90: 2025-04-30 | J90: 35 | K90: 7 | L90: 黄沃文 | M90: 13326408290
A91: 租赁合同 | B91: 生效中 | C91: B栋 | D91: 一层 | E91: B-119 | F91: 广电计量检测（无锡）有限公司 | G91: 189 | H91: 2017-03-01 | I91: 2025-02-28 | J91: 35 | K91: 7 | L91: 黄沃文 | M91: 13326408290
A92: 租赁合同 | B92: 生效中 | C92: B栋 | D92: 一层 | E92: B-120 | F92: 广电计量检测（无锡）有限公司 | G92: 195 | H92: 2022-10-01 | I92: 2025-09-30 | J92: 35 | K92: 7 | L92: 黄沃文 | M92: 13326408290
A93: 租赁合同 | B93: 生效中 | C93: B栋 | D93: 一层 | E93: B-121 | F93: 广电计量检测（无锡）有限公司 | G93: 338 | H93: 2021-03-01 | I93: 2024-02-29 | J93: 35 | K93: 7 | L93: 黄沃文 | M93: 13326408290 | N93: 一份合同
A94: 租赁合同 | B94: 生效中 | C94: B栋 | D94: 一层 | E94: B-123 | F94: 广电计量检测（无锡）有限公司 | G94: 232 | H94: 2021-03-01 | I94: 2024-02-29 | J94: 35 | K94: 7 | L94: 黄沃文 | M94: 13326408290
A95: 租赁合同 | B95: 生效中 | C95: B栋 | D95: 一层 | E95: B-125 | F95: 广电计量检测（无锡）有限公司 | G95: 503 | H95: 2021-03-01 | I95: 2024-02-29 | J95: 30 | K95: 5 | L95: 黄沃文 | M95: 13326408290
A96: 租赁合同 | B96: 生效中 | C96: B栋 | D96: 二层 | E96: B-213 | G96: 376 | J96: 35 | K96: 7
A97: 租赁合同 | B97: 生效中 | C97: B栋 | D97: 二层 | E97: B-221 | F97: 铨力微电子（无锡）有限公司 | G97: 582 | H97: 2022-10-01 | I97: 2025-09-30 | J97: 35 | K97: 7 | L97: 丁乙人 | M97: 13818250262
A98: 租赁合同 | B98: 生效中 | C98: B栋 | D98: 二层 | E98: B-219-A | F98: 康路联（无锡）医疗科技有限公司 | G98: 153 | H98: 2021-05-01 | I98: 2024-04-30 | J98: 30 | K98: 7 | L98: 梁金 | M98: 13357901156
A99: 租赁合同 | B99: 生效中 | C99: B栋 | D99: 二层 | E99: B-219-B | F99: 无锡中科光电技术有限公司 | G99: 233 | H99: 2019-05-01 | I99: 2025-04-30 | J99: 30 | K99: 7 | L99: 万学平 | M99: 0510-88570950
A100: 租赁合同 | B100: 生效中 | C100: B栋 | D100: 二层 | E100: B-220 | F100: 无锡瑞科维半导体有限公司 | G100: 196 | H100: 2022-03-01 | I100: 2025-02-28 | J100: 35 | K100: 7 | L100: 郭琴 | M100: 13812187039
A101: 租赁合同 | B101: 生效中 | C101: B栋 | D101: 二层 | E101: B-201 | F101: 西克制冷（无锡）有限公司 | G101: 469 | H101: 2020-07-01 | I101: 2023-06-30 | J101: 35 | K101: 7 | L101: 吴艳梅 | M101: 13958006159
A102: 租赁合同 | B102: 生效中 | C102: B栋 | D102: 二层 | E102: B-218 | G102: 291 | J102: 35 | K102: 7
A103: 租赁合同 | B103: 生效中 | C103: B栋 | D103: 二层 | E103: B-212 | F103: 无锡微泰传感封测技术有限公司 | G103: 138 | H103: 2018-08-11 | I103: 2023-08-10 | J103: 35 | K103: 7 | L103: 姚翠莲 | M103: 18553697084
A104: 租赁合同 | B104: 生效中 | C104: B栋 | D104: 二层 | E104: B-214 | G104: 312
A105: 租赁合同 | B105: 生效中 | C105: B栋 | D105: 二层 | E105: B-210 | F105: 黑曼巴半导体（无锡）有限公司 | G105: 197 | H105: 2022-01-01 | I105: 2024-12-31 | J105: 35 | K105: 7 | L105: 王琳妍 | M105: 15861551593
A106: 租赁合同 | B106: 生效中 | C106: B栋 | D106: 二层 | E106: B-209 | F106: 无锡赛博芯电子科技有限公司 | G106: 224 | H106: 2022-04-01 | I106: 2025-03-31 | J106: 35 | K106: 7 | L106: 胡莉 | M106: 13735591181
A107: 租赁合同 | B107: 生效中 | C107: B栋 | D107: 二层 | E107: B-205 | F107: 无锡通测检测技术有限公司 | G107: 216 | H107: 2021-05-10 | I107: 2027-05-09 | J107: 35 | K107: 7 | L107: 石章华 | M107: 15861463945
A108: 租赁合同 | B108: 生效中 | C108: B栋 | D108: 二层 | E108: B-206 | F108: 江苏瀚点智能科技有限公司 | G108: 226 | H108: 2020-07-01 | I108: 2023-06-30 | J108: 35 | K108: 7 | L108: 尤礼军 | M108: 13912383338
A109: 租赁合同 | B109: 生效中 | C109: B栋 | D109: 二层 | E109: B-227 | G109: 179 | J109: 35 | K109: 7
A110: 租赁合同 | B110: 生效中 | C110: B栋 | D110: 三层 | E110: B-312-A | F110: 无锡厦泰生物科技有限公司 | G110: 911 | H110: 2019-06-01 | I110: 2025-05-31 | J110: 35 | K110: 7 | L110: 钱怡菁 | M110: 18914161235
A111: 租赁合同 | B111: 生效中 | C111: B栋 | D111: 三层 | E111: B-312-B | F111: 无锡厦泰生物科技有限公司 | G111: 1370 | H111: 2019-06-01 | I111: 2025-05-31 | J111: 35 | K111: 7 | L111: 钱怡菁 | M111: 18914161235
A112: 租赁合同 | B112: 生效中 | C112: B栋 | D112: 三层 | E112: B-305 | G112: 866
A113: 租赁合同 | B113: 生效中 | C113: B栋 | D113: 三层 | E113: B-324 | F113: 无锡厦泰生物科技有限公司 | G113: 339 | H113: 2023-04-01 | I113: 2023-09-30 | J113: 30 | K113: 7 | L113: 钱怡菁 | M113: 18914161235
A114: 租赁合同 | B114: 生效中 | C114: B栋 | D114: 三层 | E114: B-302 | F114: 无锡通测检测技术有限公司 | G114: 245 | H114: 2019-10-15 | I114: 2025-10-14 | J114: 35 | K114: 7 | L114: 石章华 | M114: 15861463945
A115: 租赁合同 | B115: 生效中 | C115: B栋 | D115: 三层 | E115: B-329 | F115: 江苏生活通信息技术有限公司 | G115: 85 | H115: 2022-09-01 | I115: 2025-08-31 | J115: 35 | K115: 7 | L115: 吴京玉 | M115: 13656183128
A116: 租赁合同 | B116: 生效中 | C116: B栋 | D116: 三层 | E116: B-331 | F116: 深圳尚阳通科技股份有限公司 | G116: 98 | H116: 2023-06-01 | I116: 2024-05-31 | J116: 35 | K116: 7 | L116: 蒋容 | M116: 13538103415
A117: 租赁合同 | B117: 生效中 | C117: B栋 | D117: 三层 | E117: B-332 | F117: 无锡蚊子科技有限公司 | G117: 57 | H117: 2023-07-15 | I117: 2023-10-14 | J117: 35 | K117: 7 | L117: 柏友文 | M117: 18751552631
A118: 租赁合同 | B118: 生效中 | C118: B栋 | D118: 三层 | E118: B-333 | F118: 无锡芯大周半导体科技有限公司 | G118: 37 | H118: 2023-02-20 | I118: 2026-02-19 | J118: 35 | K118: 7 | L118: 周晋生 | M118: 15852838165
A119: 租赁合同 | B119: 生效中 | C119: B栋 | D119: 三层 | E119: B-334 | F119: 无锡元微数智科技有限公司 | G119: 37 | H119: 2022-01-01 | I119: 2024-12-31 | J119: 35 | K119: 7 | L119: 李爱玲 | M119: 18951568531
A120: 租赁合同 | B120: 生效中 | C120: B栋 | D120: 三层 | E120: B-335 | F120: 无锡矢岛自动化设备有限公司 | G120: 42 | H120: 2021-08-01 | I120: 2024-07-31 | J120: 35 | K120: 7 | L120: 邵佳 | M120: 13585019271
A121: 租赁合同 | B121: 生效中 | C121: B栋 | D121: 三层 | E121: B-336 | F121: 康路联（无锡）医疗科技有限公司 | G121: 38 | H121: 2020-07-01 | I121: 2023-06-30 | J121: 35 | K121: 7 | L121: 梁金 | M121: 13357901156
A122: 租赁合同 | B122: 生效中 | C122: B栋 | D122: 三层 | E122: B-337 | F122: 无锡超信工业外包有限公司 | G122: 40 | H122: 2022-01-01 | I122: 2024-12-31 | J122: 35 | K122: 7 | L122: 段波浪 | M122: 15852804026
A123: 租赁合同 | B123: 生效中 | C123: B栋 | D123: 三层 | E123: B-338 | F123: 无锡市新信元科技有限公司 | G123: 65 | H123: 2021-01-01 | I123: 2023-12-31 | J123: 35 | K123: 7 | L123: 沈忠文 | M123: 13306173757
A124: 租赁合同 | B124: 生效中 | C124: B栋 | D124: 三层 | E124: B-339 | F124: 无锡小飞物联科技有限公司 | G124: 39 | H124: 2023-02-01 | I124: 2026-01-31 | J124: 35 | K124: 7 | L124: 韩梦娇 | M124: 1560618731
A125: 租赁合同 | B125: 生效中 | C125: B栋 | D125: 三层 | E125: B-340 | F125: 无锡中南益瑞服务外包有限公司 | G125: 46 | H125: 2021-04-20 | I125: 2024-04-19 | J125: 35 | K125: 7 | L125: 张伟 | M125: 17715828686
A126: 租赁合同 | B126: 生效中 | C126: B栋 | D126: 四层 | E126: B-419 | F126: 无锡则安电力科技有限公司 | G126: 320 | H126: 2023-05-01 | I126: 2025-04-30 | J126: 30 | K126: 7 | L126: 曹宾 | M126: 13951504734
A127: 租赁合同 | B127: 生效中 | C127: B栋 | D127: 四层 | E127: B-415 | F127: 江苏达和晟智能科技集团有限公司 | G127: 360 | H127: 2022-04-03 | I127: 2025-04-02 | J127: 35 | K127: 7 | L127: 李永春 | M127: 13915409168
A128: 租赁合同 | B128: 生效中 | C128: B栋 | D128: 四层 | E128: B-421 | F128: 橙色谷（江苏）科创发展有限公司 | G128: 261 | H128: 2020-06-01 | I128: 2023-05-31 | J128: 35 | K128: 7 | L128: 殷飞 | M128: 13861827909
A129: 租赁合同 | B129: 生效中 | C129: B栋 | D129: 四层 | E129: B-422 | G129: 129
A130: 租赁合同 | B130: 生效中 | C130: B栋 | D130: 四层 | E130: B-401-A | F130: 五分人才管理咨询（无锡）有限公司 | G130: 56 | H130: 2019-03-16 | I130: 2025-03-15 | J130: 35 | K130: 7 | L130: 鲁贤志 | M130: 18018378108
A131: 租赁合同 | B131: 生效中 | C131: B栋 | D131: 四层 | E131: B-402-A | F131: 无锡招彩旺旺信息技术有限公司 | G131: 59 | H131: 2021-12-12 | I131: 2024-12-11 | J131: 35 | K131: 7 | L131: 邹浩冰 | M131: 18601088590
A132: 租赁合同 | B132: 生效中 | C132: B栋 | D132: 四层 | E132: B-401-B | F132: 无锡凯丰企业管理顾问有限公司 | G132: 40 | H132: 2023-04-01 | I132: 2025-03-31 | J132: 35 | K132: 7 | L132: 黄汉楠 | M132: 13914133393
A133: 租赁合同 | B133: 生效中 | C133: B栋 | D133: 四层 | E133: B-402-B | F133: 无锡天原信息技术有限公司 | G133: 61 | H133: 2023-07-01 | I133: 2024-06-30 | J133: 35 | K133: 7 | L133: 张立青 | M133: 15906188788 | N133: 与b-404-b同一份合同
A134: 租赁合同 | B134: 生效中 | C134: B栋 | D134: 四层 | E134: B-403-A | F134: 无锡行先网络科技有限公司 | G134: 40 | H134: 2018-10-01 | I134: 2024-09-30 | J134: 35 | K134: 7 | L134: 郭国亮 | M134: 15061873621
A135: 租赁合同 | B135: 生效中 | C135: B栋 | D135: 四层 | E135: B-404-A | F135: 江苏航顺集成电路技术有限公司 | G135: 61 | H135: 2020-12-01 | I135: 2023-11-30 | J135: 35 | K135: 7 | L135: 唐伟 | M135: 15861482775
A136: 租赁合同 | B136: 生效中 | C136: B栋 | D136: 四层 | E136: B-403-B | F136: 无锡市中力神盾防雷技术有限公司 | G136: 40 | H136: 2022/3/1 | I136: 2025/02/28 | J136: 35 | K136: 7 | L136: 许惠岗 | M136: 13093031677
A137: 租赁合同 | B137: 生效中 | C137: B栋 | D137: 四层 | E137: B-404-B | F137: 无锡天原信息技术有限公司 | G137: 57 | H137: 2023-08-01 | I137: 2024-06-30 | J137: 35 | K137: 7 | L137: 张立青 | M137: 15906188788
A138: 租赁合同 | B138: 生效中 | C138: B栋 | D138: 四层 | E138: B-405 | F138: 无锡雪云数据科技有限公司 | G138: 43 | H138: 2020-11-01 | I138: 2023-10-31 | J138: 35 | K138: 7 | L138: 巩雪 | M138: 15961801811
A139: 租赁合同 | B139: 生效中 | C139: B栋 | D139: 四层 | E139: B-406-B | F139: 无锡百财企业咨询有限公司 | G139: 59 | H139: 2023-02-16 | I139: 2026-02-15 | J139: 35 | K139: 7 | L139: 董小葵 | M139: 13656193610
A140: 租赁合同 | B140: 生效中 | C140: B栋 | D140: 四层 | E140: B-498 | G140: 143
A141: 租赁合同 | B141: 生效中 | C141: B栋 | D141: 四层 | E141: B-413 | F141: 无锡兴华慧筑科技有限公司 | G141: 95 | H141: 2022-12-15 | I141: 2025-12-14 | J141: 35 | K141: 7 | L141: 王振华 | M141: 18862142956
A142: 租赁合同 | B142: 生效中 | C142: B栋 | D142: 四层 | E142: B-412 | F142: 无锡云裳衣联网科技有限公司 | G142: 120 | H142: 2022-07-01 | I142: 2025-06-30 | J142: 35 | K142: 7 | L142: 李洋 | M142: 18936035522
A143: 租赁合同 | B143: 生效中 | C143: B栋 | D143: 四层 | E143: B-411 | G143: 78 | J143: 35 | K143: 7
A144: 租赁合同 | B144: 生效中 | C144: B栋 | D144: 四层 | E144: B-410 | F144: 江苏圣捷集科技有限公司 | G144: 112 | H144: 2022/4/1 | I144: 2025/03/31 | J144: 35 | K144: 7 | L144: 朱盛军 | M144: 13921290269
A145: 租赁合同 | B145: 生效中 | C145: B栋 | D145: 四层 | E145: B-409 | F145: 无锡焕芯科技有限公司 | G145: 77 | H145: 2022-03-01 | I145: 2025-02-28 | J145: 35 | K145: 7 | L145: 杜铭 | M145: 18018388080
A146: 租赁合同 | B146: 生效中 | C146: B栋 | D146: 四层 | E146: B-408 | F146: 无锡旭浦能源科技有限公司 | G146: 114 | H146: 2022-06-15 | I146: 2025-06-14 | J146: 35 | K146: 7 | L146: 吴可可 | M146: 18652958348
A147: 租赁合同 | B147: 生效中 | C147: B栋 | D147: 四层 | E147: B-407 | F147: 无锡中启半导体有限公司 | G147: 79 | H147: 2021-09-01 | I147: 2024-08-31 | J147: 35 | K147: 7 | L147: 穆亚芳 | M147: 18800567088
A148: 租赁合同 | B148: 生效中 | C148: B栋 | D148: 四层 | E148: B-401 | F148: 无锡布里渊电子科技有限公司 | G148: 902 | H148: 2022-08-01 | I148: 2025-07-31 | J148: 35 | K148: 7 | L148: 韦波 | M148: 18626352029
A149: 租赁合同 | B149: 生效中 | C149: D栋 | D149: 一层 | E149: D2-101 | F149: 无锡安特源科技股份有限公司 | G149: 1176 | H149: 2021-01-01 | I149: 2024-12-31 | J149: 23 | K149: 7 | L149: 许若鹏 | M149: 15961838578
A150: 租赁合同 | B150: 生效中 | C150: D栋 | D150: 二层 | E150: D2-201 | F150: 无锡厦泰生物科技有限公司 | G150: 1495.5 | H150: 2022-11-01 | I150: 2025-10-31 | J150: 35 | K150: 7 | L150: 钱怡菁 | M150: 18914161235
A151: 租赁合同 | B151: 生效中 | C151: D栋 | D151: 三层 | E151: D2-307 | F151: 中城智慧科技有限公司 | G151: 490 | H151: 2017-08-01 | I151: 2025-07-31 | J151: 35 | K151: 7 | L151: 聂明 | M151: 13901208876
A152: 租赁合同 | B152: 生效中 | C152: D栋 | D152: 三层 | E152: D2-303 | F152: 无锡医迈德科技有限公司 | G152: 480 | H152: 2019-06-01 | I152: 2025-05-31 | J152: 35 | K152: 7 | L152: 朱宏宽 | M152: 13911076973
A153: 租赁合同 | B153: 生效中 | C153: D栋 | D153: 三层 | E153: D2-305 | F153: 无锡赢科软件技术有限公司 | G153: 437 | H153: 2023-01-01 | I153: 2025-12-31 | J153: 35 | K153: 7 | L153: 江礼辉 | M153: 13806188250
A154: 租赁合同 | B154: 生效中 | C154: D栋 | D154: 三层 | E154: D2-301 | F154: 无锡迎嘉信息技术有限公司 | G154: 440 | H154: 2014-08-25 | I154: 2025-08-24 | J154: 35 | K154: 7 | L154: 陈杰 | M154: 13861790505
A155: 租赁合同 | B155: 生效中 | C155: D栋 | D155: 五层 | E155: D2-501 | F155: 江苏中科君芯科技有限公司 | G155: 1758.5 | H155: 2021-09-01 | I155: 2024-08-31 | J155: 35 | K155: 7 | L155: 肖庆云 | M155: 13902972899
A156: 租赁合同 | B156: 生效中 | C156: D栋 | D156: 六层 | E156: D2-600 | G156: 70
A157: 租赁合同 | B157: 生效中 | C157: D栋 | D157: 六层 | E157: D2-601 | F157: 无锡慕鱼人力资源服务有限公司 | G157: 51 | H157: 2020-06-15 | I157: 2023/6/14 | J157: 35 | K157: 7 | L157: 高永梅 | M157: 18952475256
A158: 租赁合同 | B158: 生效中 | C158: D栋 | D158: 六层 | E158: D2-602 | F158: 无锡金尚汽车技术开发有限公司 | G158: 51 | H158: 2021-11-16 | I158: 2024/11/15 | J158: 35 | K158: 7 | L158: 孙春华 | M158: 13812272115
A159: 租赁合同 | B159: 生效中 | C159: D栋 | D159: 六层 | E159: D2-603 | F159: 无锡家珵环保制品有限公司 | G159: 49.8 | H159: 2023-04-01 | I159: 2025-03-31 | J159: 35 | K159: 7 | L159: 李晓平 | M159: 15312482076
A160: 租赁合同 | B160: 生效中 | C160: D栋 | D160: 六层 | E160: D2-604 | F160: 无锡广汇鑫电子科技有限公司 | G160: 53.6 | H160: 2023-04-01 | I160: 2025-03-31 | J160: 35 | K160: 7 | L160: 徐继双 | M160: 81153606
A161: 租赁合同 | B161: 生效中 | C161: D栋 | D161: 六层 | E161: D2-605 | F161: 无锡中科维智数据科技有限公司 | G161: 53.6 | H161: 2022-07-01 | I161: 2025-06-30 | J161: 35 | K161: 7 | L161: 孙晓丽 | M161: 13671121092
A162: 租赁合同 | B162: 生效中 | C162: D栋 | D162: 六层 | E162: D2-606 | F162: 无锡中科维智数据科技有限公司 | G162: 47.2 | H162: 2022-07-01 | I162: 2025-06-30 | J162: 35 | K162: 7 | L162: 孙晓丽 | M162: 13671121092
A163: 租赁合同 | B163: 生效中 | C163: D栋 | D163: 六层 | E163: D2-607 | F163: 问天鼎讯量子科技（无锡）有限公司 | G163: 51 | H163: 2020-11-01 | I163: 2023/10/31 | J163: 35 | K163: 7 | L163: 黎斌 | M163: 13855169313
